Workbook

Sheet Low-end WP
A1: IMPLIED MDPSC STAFF THRESHOLDS
B4: Original Staff Risk Premiums | H4: Low-end | J4: High-end
A5: (a) | B5: Original Threshold | H5: 0.065 | J5: 0.14
B7: Original Baa Utility Bond Yield
A8: (b) | C8: Case No. 9645 - Aug. 2020 | F8: 0.0306
A9: (b) | C9: Case No. 9655 - Mar. 2021 | F9: 0.0372
A10: (b) | C10: Case No. 9670 - Dec. 2021 | F10: 0.0327
D11: Average | H11: =AVERAGE(F8:F10) -> 0.0335 | J11: =H11 -> 0.0335
C12: Original Staff Risk Premiums | H12: =H5-H11 -> 0.0315 | J12: =J5-J11 -> 0.1065
B14: Current Equity Risk Premiums
C15: Original Baa Utility Bond Yield | H15: =H11 -> 0.0335 | J15: =H15 -> 0.0335
A16: (c) | C16: Current Baa Utility Bond Yield | H16: ='Bond Yields'!C14 -> 0.05466111111 | J16: =H16 -> 0.05466111111
D17: Change in Bond Yield | H17: =-H15+H16 -> 0.02116111111 | J17: =-J15+J16 -> 0.02116111111
A19: (d) | C19: Risk Premium/Interest Rate Relationship | H19: ='9 (3)'!B45 -> -0.4272574915 | J19: =H19 -> -0.4272574915
D20: Adjustment to Average Risk Premium | H20: =H17*H19 -> -0.009041243251 | J20: =J17*J19 -> -0.009041243251
C22: Original Staff Risk Premiums | H22: =H12 -> 0.0315 | J22: =J12 -> 0.1065
D23: Current Risk Premiums | H23: =H22+H20 -> 0.02245875675 | J23: =J22+H20 -> 0.09745875675
B25: Revised Staff Thresholds
A26: (c) | C26: Baa Utility Bond Yield | H26: ='Bond Yields'!C14 -> 0.05466111111 | J26: =H26 -> 0.05466111111
C27: Adjusted Equity Risk Premium | H27: =H23 -> 0.02245875675 | J27: =J23 -> 0.09745875675
D29: Revised Staff Thresholds | H29: =H26+H27 -> 0.07711986786 | J29: =J26+J27 -> 0.1521198679
A32: (a) | B32: Case No. 9645, Direct Testimony and Exhibits of Drew M. McAuliffe (Aug. 14, 2020) at 17; Case No. 9655, Direct Testimony and Exhibits of Drew M. McAuliffe (Mar. 3, 2021) at 19; Case No. 9670, Direct Testimony and Exhibits of Drew M. McAuliffe (Dec. 2, 2021) at 15.
A35: (b) | B35: Average Baa utility bond yield for respective month from Moody's Investors Service.
A36: (c) | B36: ="Average Baa utility bond yield for "&'[16]Bond Yields'!B14&" from Moody's Investors Service." -> Average Baa utility bond yield for Mar. 2023 from Moody's Investors Service.
A37: (d) | B37: ='[16]9 (3)'!I1& ", page 3." -> Exhibit AMM-9, page 3.
B40: FERC Test | H40: ='7'!H9*0.2+'Bond Yields'!C16 -> 0.0719

Sheet Fig. 1

Sheet Fig. 1 - Data
B2: Table 5: Electric and gas utility decisions
B3: Date | D3: Company | E3: State | F3: ROE (%) | G3: Common equity as % of capital | I3: Weighted ROE
B4: 2022-11-17 | D4: Commonwealth Edison Co. | E4: IL | F4: 7.85 | G4: 49.45 | I4: =(F4/100)*(G4/100) -> 0.03881825
B5: 2022-12-01 | D5: Ameren Illinois Co. | E5: IL | F5: 7.85 | G5: 50 | I5: =(F5/100)*(G5/100) -> 0.03925
D6: Kentucky Power Proposed | I6: =0.099*0.4162 -> 0.0412038
B7: 2023-03-09 | D7: Oncor Electric Delivery Co. LLC | E7: TX | F7: 9.7 | G7: 42.5 | I7: =(F7/100)*(G7/100) -> 0.041225
B8: 2022-05-23 | D8: Southwestern Electric Power Co. | E8: AR | F8: 9.5 | G8: 44.54 | I8: 0.042313
B9: 2022-08-31 | D9: Green Mountain Power Corp. | E9: VT | F9: 8.57 | G9: 49.98 | I9: 0.04283286
B10: 2022-01-20 | D10: Niagara Mohawk Power Corp. | E10: NY | F10: 9 | G10: 48 | I10: 0.0432
B11: 2022-04-14 | D11: Orange and Rockland Utilities Inc. | E11: NY | F11: 9.2 | G11: 48 | I11: 0.04416
B12: 2022-12-06 | D12: Tampa Electric Co. | E12: FL | F12: 10.2 | G12: 45.07 | I12: 0.0459714
B13: 2022-12-22 | D13: Puget Sound Energy Inc. | E13: WA | F13: 9.4 | G13: 49 | I13: 0.04606
B14: 2022-10-25 | D14: Kingsport Power Co. | E14: TN | F14: 9.5 | G14: 48.9 | I14: 0.046455
B15: 2022-04-25 | D15: Portland General Electric Co. | E15: OR | F15: 9.5 | G15: 50 | I15: 0.0475
B16: 2022-12-16 | D16: PacifiCorp | E16: OR | F16: 9.5 | G16: 50 | I16: 0.0475
B17: 2022-09-15 | D17: El Paso Electric Co. | E17: TX | F17: 9.35 | G17: 51 | I17: 0.047685
B18: 2022-05-12 | D18: Unitil Energy Systems Inc. | E18: NH | F18: 9.2 | G18: 52 | I18: 0.04784
B19: 2022-12-14 | D19: Duke Energy Ohio Inc. | E19: OH | F19: 9.5 | G19: 50.5 | I19: 0.047975
B20: 2022-12-14 | D20: Delmarva Power & Light Co. | E20: MD | F20: 9.6 | G20: 50.5 | I20: 0.04848
B21: 2022-12-27 | D21: Sierra Pacific Power Co. | E21: NV | F21: 9.56 | G21: 52.4 | I21: 0.0500944
B22: 2023-02-09 | D22: Duke Energy Progress LLC | E22: SC | F22: 9.6 | G22: 52.43 | I22: 0.0503328
B23: 2023-01-23 | D23: Minnesota Power Enterprises Inc. | E23: MN | F23: 9.65 | G23: 52.5 | I23: 0.0506625
B24: 2023-01-26 | D24: Cheyenne Light, Fuel and Power Co. | E24: WY | F24: 9.75 | G24: 52 | I24: 0.0507
B25: 2022-09-08 | D25: Oklahoma Gas and Electric Co. | E25: OK | F25: 9.5 | G25: 53.37 | I25: 0.0507015
B26: 2022-02-16 | D26: Southwestern Public Service Co. | E26: NM | F26: 9.35 | G26: 54.72 | I26: 0.0511632
B27: 2022-12-15 | D27: San Diego Gas & Electric Co. | E27: CA | F27: 9.95 | G27: 52 | I27: 0.05174
B28: 2022-03-16 | D28: Public Service Co. of Colorado | E28: CO | F28: 9.3 | G28: 55.69 | I28: 0.0517917
B29: 2022-12-15 | D29: Pacific Gas and Electric Co. | E29: CA | F29: 10 | G29: 52 | I29: 0.052
B30: 2022-11-30 | D30: NSTAR Electric Co. | E30: MA | F30: 9.8 | G30: 53.21 | I30: 0.0521458
B31: 2022-12-15 | D31: Southern California Edison Co. | E31: CA | F31: 10.05 | G31: 52 | I31: 0.05226
B32: 2022-12-22 | D32: Wisconsin Public Service Corp. | E32: WI | F32: 9.8 | G32: 53.4 | I32: 0.052332
B33: 2022-11-03 | D33: San Diego Gas & Electric Co. | E33: CA | F33: 10.2 | G33: 52 | I33: 0.05304
B34: 2022-11-03 | D34: Pacific Gas and Electric Co. | E34: CA | F34: 10.25 | G34: 52 | I34: 0.0533
B35: 2022-11-03 | D35: Southern California Edison Co. | E35: CA | F35: 10.3 | G35: 52 | I35: 0.05356
B36: 2022-12-14 | D36: Dayton Power and Light Co. | E36: OH | F36: 10 | G36: 53.87 | I36: 0.05387
B37: 2022-12-29 | D37: Wisconsin Electric Power Co. | E37: WI | F37: 9.8 | G37: 58.22 | I37: 0.0570556
B38: 2022-12-20 | D38: Georgia Power Co. | E38: GA | F38: 10.5 | G38: 56 | I38: 0.0588

Sheet Fig. 2
Q19: (a) | R19: (b) | S19: (c) | T19: (d) | U19: (e) | V19: (f) | W19: (g) | X19: (h) | Y19: (i)
Q20: Feb. 2019 | R20: Aug. 2019 | S20: Feb. 2020 | T20: Aug. 2020 | U20: Feb. 2021 | V20: Aug. 2021 | W20: Feb. 2022 | X20: Aug. 2022 | Y20: Feb. 2023
M21: 1 | N21: Algonquin Pwr & Util | Q21: n/a | R21: n/a | S21: n/a | T21: n/a | U21: n/a | V21: n/a | W21: n/a | X21: n/a | Y21: n/a
M22: =M21+1 -> 2 | N22: ALLETE | Q22: 0.65 | R22: 0.65 | S22: 0.6 | T22: 0.85 | U22: 0.9 | V22: 0.9 | W22: 0.9 | X22: 0.9 | Y22: 0.9
M23: 3 | N23: Alliant Energy | Q23: 0.65 | R23: 0.6 | S23: 0.55 | T23: 0.85 | U23: 0.85 | V23: 0.85 | W23: 0.85 | X23: 0.85 | Y23: 0.85
M24: 4 | N24: Ameren Corp. | Q24: 0.6 | R24: 0.55 | S24: 0.5 | T24: 0.8 | U24: 0.8 | V24: 0.85 | W24: 0.8 | X24: 0.85 | Y24: 0.85
M25: 5 | N25: American Elec Pwr | Q25: 0.55 | R25: 0.55 | S25: 0.5 | T25: 0.75 | U25: 0.75 | V25: 0.75 | W25: 0.75 | X25: 0.75 | Y25: 0.75
M26: 6 | N26: Avangrid, Inc. | Q26: 0.4 | R26: 0.4 | S26: 0.4 | T26: 0.8 | U26: 0.85 | V26: 0.85 | W26: 0.85 | X26: 0.85 | Y26: 0.85
L27: Avista Corp. | M27: 7 | N27: Avista Corp. | Q27: 0.65 | R27: 0.6 | S27: 0.6 | T27: 0.9 | U27: 0.95 | V27: 0.95 | W27: 0.95 | X27: 0.9 | Y27: 0.9
L28: Black Hills Corp. | M28: 8 | N28: Black Hills Corp. | Q28: 0.8 | R28: 0.7 | S28: 0.65 | T28: 0.95 | U28: 1 | V28: 1 | W28: 1 | X28: 0.95 | Y28: 0.95
L29: CenterPoint Energy | M29: 9 | N29: CenterPoint Energy | Q29: 0.8 | R29: 0.8 | S29: 0.7 | T29: 1.1 | U29: 1.15 | V29: 1.15 | W29: 1.15 | X29: 1.15 | Y29: 1.1
L30: CMS Energy Corp. | M30: 10 | N30: CMS Energy Corp. | Q30: 0.55 | R30: 0.55 | S30: 0.5 | T30: 0.8 | U30: 0.75 | V30: 0.8 | W30: 0.8 | X30: 0.8 | Y30: 0.8
M31: 11 | N31: Consolidated Edison | Q31: 0.45 | R31: 0.45 | S31: 0.4 | T31: 0.75 | U31: 0.75 | V31: 0.75 | W31: 0.75 | X31: 0.75 | Y31: 0.75
L32: Dominion Energy | M32: 12 | N32: Dominion Energy | Q32: 0.55 | R32: 0.55 | S32: 0.5 | T32: 0.8 | U32: 0.8 | V32: 0.85 | W32: 0.85 | X32: 0.8 | Y32: 0.85
L33: DTE Energy Co. | M33: 13 | N33: DTE Energy Co. | Q33: 0.55 | R33: 0.55 | S33: 0.5 | T33: 0.9 | U33: 0.95 | V33: 0.95 | W33: 0.95 | X33: 0.95 | Y33: 0.95
L34: Duke Energy Corp. | M34: 14 | N34: Duke Energy Corp. | Q34: 0.5 | R34: 0.5 | S34: 0.45 | T34: 0.85 | U34: 0.85 | V34: 0.9 | W34: 0.85 | X34: 0.85 | Y34: 0.85
L35: Edison International | M35: 15 | N35: Edison International | Q35: 0.6 | R35: 0.6 | S35: 0.55 | T35: 0.9 | U35: 0.95 | V35: 1 | W35: 0.95 | X35: 0.95 | Y35: 0.95
L36: Emera Inc. | M36: 16 | N36: Emera Inc. | Q36: 0.55 | R36: 0.55 | S36: 0.5 | T36: 0.75 | U36: 0.75 | V36: 0.8 | W36: 0.75 | X36: 0.75 | Y36: 0.7
L37: Entergy Corp. | M37: 17 | N37: Entergy Corp. | Q37: 0.6 | R37: 0.6 | S37: 0.6 | T37: 0.95 | U37: 0.95 | V37: 0.95 | W37: 0.95 | X37: 0.95 | Y37: 0.95
M38: 18 | N38: Evergy Inc. | Q38: n/a | R38: n/a | S38: n/a | T38: n/a | U38: 0.95 | V38: 0.95 | W38: 0.95 | X38: 0.9 | Y38: 0.9
M39: 19 | N39: Eversource Energy | Q39: 0.6 | R39: 0.6 | S39: 0.55 | T39: 0.9 | U39: 0.9 | V39: 0.9 | W39: 0.9 | X39: 0.9 | Y39: 0.9
L40: Exelon Corp. | M40: 20 | N40: Exelon Corp. | Q40: 0.7 | R40: 0.7 | S40: 0.65 | T40: 0.95 | U40: 0.95 | V40: 0.95 | W40: 0.95 | X40: n/a | Y40: n/a
M41: 21 | N41: FirstEnergy Corp. | Q41: 0.65 | R41: 0.6 | S41: 0.6 | T41: 0.85 | U41: 0.85 | V41: 0.85 | W41: 0.85 | X41: 0.85 | Y41: 0.85
M42: 22 | N42: Fortis Inc. | Q42: 0.65 | R42: 0.65 | S42: 0.6 | T42: 0.8 | U42: 0.75 | V42: 0.75 | W42: 0.75 | X42: 0.7 | Y42: 0.7
L43: Hawaiian Elec. | M43: 23 | N43: Hawaiian Elec. | Q43: 0.6 | R43: 0.55 | S43: 0.55 | T43: 0.8 | U43: 0.8 | V43: 0.85 | W43: 0.85 | X43: 0.8 | Y43: 0.85
L44: IDACORP, Inc. | M44: 24 | N44: IDACORP, Inc. | Q44: 0.6 | R44: 0.55 | S44: 0.5 | T44: 0.8 | U44: 0.8 | V44: 0.85 | W44: 0.8 | X44: 0.8 | Y44: 0.8
M45: 25 | N45: NextEra Energy, Inc. | Q45: 0.6 | R45: 0.55 | S45: 0.5 | T45: 0.85 | U45: 0.9 | V45: 0.95 | W45: 0.9 | X45: 0.95 | Y45: 0.95
L46: NorthWestern Corp. | M46: 26 | N46: NorthWestern Corp. | Q46: 0.6 | R46: 0.6 | S46: 0.55 | T46: 0.9 | U46: 0.95 | V46: 0.95 | W46: 0.95 | X46: 0.9 | Y46: 0.9
M47: 27 | N47: OGE Energy Corp. | Q47: 0.85 | R47: 0.8 | S47: 0.7 | T47: 1.05 | U47: 1.05 | V47: 1.05 | W47: 1.05 | X47: 1.05 | Y47: 1
L48: Otter Tail Corp. | M48: 28 | N48: Otter Tail Corp. | Q48: 0.7 | R48: 0.65 | S48: 0.7 | T48: 0.85 | U48: 0.85 | V48: 0.9 | W48: 0.9 | X48: 0.85 | Y48: 0.85
M49: 29 | N49: Pinnacle West Capital | Q49: 0.55 | R49: 0.55 | S49: 0.45 | T49: 0.85 | U49: 0.9 | V49: 0.95 | W49: 0.9 | X49: 0.9 | Y49: 0.9
M50: 30 | N50: PNM Resources | Q50: 0.65 | R50: 0.6 | S50: 0.5 | T50: 0.95 | U50: 0.95 | V50: 0.95 | W50: 0.95 | X50: 0.9 | Y50: 0.9
M51: 31 | N51: Portland General Elec. | Q51: 0.6 | R51: 0.6 | S51: 0.55 | T51: 0.85 | U51: 0.9 | V51: 0.9 | W51: 0.9 | X51: 0.85 | Y51: 0.85
M52: 32 | N52: PPL Corp. | Q52: 0.7 | R52: 0.65 | S52: 0.65 | T52: 1.1 | U52: 1.1 | V52: 1.1 | W52: 1.1 | X52: 1.1 | Y52: 1.05
L53: Pub Sv Enterprise Grp. | M53: 33 | N53: Pub Sv Enterprise Grp. | Q53: 0.65 | R53: 0.65 | S53: 0.6 | T53: 0.9 | U53: 0.9 | V53: 0.95 | W53: 0.9 | X53: 0.9 | Y53: 0.9
L54: Sempra Energy | M54: 34 | N54: Sempra Energy | Q54: 0.75 | R54: 0.75 | S54: 0.65 | T54: 0.95 | U54: 0.95 | V54: 1 | W54: 0.95 | X54: 0.95 | Y54: 0.95
L55: Southern Company | M55: 35 | N55: Southern Company | Q55: 0.5 | R55: 0.5 | S55: 0.5 | T55: 0.9 | U55: 0.95 | V55: 0.95 | W55: 0.95 | X55: 0.9 | Y55: 0.9
M56: 36 | N56: WEC Energy Group | Q56: 0.55 | R56: 0.5 | S56: 0.45 | T56: 0.8 | U56: 0.8 | V56: 0.8 | W56: 0.8 | X56: 0.8 | Y56: 0.8
M57: 37 | N57: Xcel Energy Inc. | Q57: 0.5 | R57: 0.5 | S57: 0.45 | T57: 0.8 | U57: 0.8 | V57: 0.8 | W57: 0.8 | X57: 0.8 | Y57: 0.8
N58: All Electric Utilities | Q58: =AVERAGE(Q21:Q57) -> 0.6128571429 | R58: 0.5928571429 | S58: 0.5485714286 | T58: 0.8728571429 | U58: 0.8888888889 | V58: 0.9069444444 | W58: 0.8944444444 | X58: 0.88 | Y58: 0.8771428571
N59: Utility Group | Q59: =AVERAGE(Q27:Q30,Q32:Q37,Q40,Q43:Q44,Q46,Q48,Q53:Q55) -> 0.625 | R59: 0.6083333333 | S59: 0.5694444444 | T59: 0.8861111111 | U59: 0.9027777778 | V59: 0.9305555556 | W59: 0.9138888889 | X59: 0.8911764706 | Y59: 0.8911764706
M61: 1 | N61: Atmos Energy Corp. | Q61: 0.6 | R61: 0.6 | S61: 0.55 | T61: 0.8 | U61: 0.8 | V61: 0.8 | W61: 0.8 | X61: 0.8 | Y61: 0.95
M62: =M61+1 -> 2 | N62: Chesapeake Utilities | Q62: 0.7 | R62: 0.65 | S62: 0.6 | T62: 0.75 | U62: 0.8 | V62: 0.8 | W62: 0.8 | X62: 0.8 | Y62: 0.85
M63: 3 | N63: New Jersey Resources | Q63: 0.7 | R63: 0.7 | S63: 0.65 | T63: 0.9 | U63: 0.95 | V63: 1 | W63: 1 | X63: 0.95 | Y63: 0.8
M64: 4 | N64: NiSource Inc. | Q64: 0.55 | R64: 0.55 | S64: 0.55 | T64: 0.85 | U64: 0.85 | V64: 0.85 | W64: 0.85 | X64: 0.85 | Y64: 0.8
M65: 5 | N65: Northwest Natural | Q65: 0.65 | R65: 0.6 | S65: 0.55 | T65: 0.8 | U65: 0.8 | V65: 0.85 | W65: 0.85 | X65: 0.8 | Y65: 0.9
M66: 6 | N66: ONE Gas, Inc. | Q66: 0.65 | R66: 0.65 | S66: 0.6 | T66: 0.8 | U66: 0.8 | V66: 0.8 | W66: 0.8 | X66: 0.8 | Y66: 0.85
M67: 7 | N67: Southwest Gas | Q67: 0.7 | R67: 0.7 | S67: 0.65 | T67: 0.9 | U67: 0.95 | V67: 0.95 | W67: 0.95 | X67: 0.9 | Y67: =AVERAGE(Y60:Y66) -> 0.8583333333
M68: 8 | N68: Spire Inc. | Q68: 0.65 | R68: 0.65 | S68: 0.6 | T68: 0.8 | U68: 0.85 | V68: 0.85 | W68: 0.85 | X68: 0.8
N69: Gas Group | Q69: =AVERAGE(Q61:Q68) -> 0.65 | R69: 0.6375 | S69: 0.59375 | T69: 0.825 | U69: 0.85 | V69: 0.8625 | W69: 0.8625 | X69: =AVERAGE(X61:X68) -> 0.8375
N72: =Q19 -> (a) | O72: Value Line S&I 2/15/2019
N73: =R19 -> (b) | O73: Value Line S&I 8/30/2019
N74: =S19 -> (c) | O74: Value Line S&I 2/14/2020
N75: =T19 -> (d) | O75: Value Line S&I 8/28/2020
N76: =U19 -> (e) | O76: Value Line S&I 2/26/2021
N77: =V19 -> (f) | O77: Value Line S&I 8/27/2021
N78: =W19 -> (g) | O78: Value Line S&I 2/4/2022
N79: =Y19 -> (i) | O79: Value Line S&I 8/26/2022

Sheet Table 1
C4: April | G4: Change
A5: Series | C5: 2023 | E5: 2021 | G5: (bps)
A6: 10-Year Treasury Bonds | C6: ='Bond Yields'!H14 -> 0.0346 | E6: =AVERAGE(C18:C29) -> 0.014425 | G6: =(C6-E6)*10000 -> 201.75
A8: 30-Year Treasury Bonds | C8: ='Bond Yields'!G14 -> 0.0369 | E8: =AVERAGE(E18:E29) -> 0.020525 | G8: =(C8-E8)*10000 -> 163.75
A10: Baa Utility Bonds | C10: ='Bond Yields'!C14 -> 0.05466111111 | E10: =AVERAGE(G18:G29) -> 0.03353888889 | G10: =(C10-E10)*10000 -> 211.2222222
A12: Source: https://fred.stlouisfed.org/series/GS30; Moody's Credit Trends.
C17: 10-yr | E17: 30-yr | G17: Baa
A18: 2021-01-02 | C18: 0.0108 | E18: 0.0182 | G18: 0.0318
A19: 2021-02-01 | C19: 0.0126 | E19: 0.0204 | G19: 0.0337
A20: 2021-03-03 | C20: 0.0161 | E20: 0.0234 | G20: 0.0372
A21: 2021-04-02 | C21: 0.0164 | E21: 0.023 | G21: 0.0357
A22: 2021-05-02 | C22: 0.0162 | E22: 0.0232 | G22: 0.0358
A23: 2021-06-01 | C23: 0.0152 | E23: 0.0216 | G23: 0.0341
A24: 2021-07-01 | C24: 0.0132 | E24: 0.0194 | G24: 0.032
A25: 2021-08-05 | C25: 0.0128 | E25: 0.0192 | G25: 0.0319
A26: 2021-09-04 | C26: 0.0137 | E26: 0.0194 | G26: 0.03186666667
A27: 2021-10-04 | C27: 0.0158 | E27: 0.0206 | G27: 0.0332
A28: 2021-11-03 | C28: 0.0156 | E28: 0.0194 | G28: 0.0325
A29: 2021-12-03 | C29: 0.0147 | E29: 0.0185 | G29: 0.0327

Sheet Tables 2 & 7
H2: Value Line
H3: Safety | J3: Financial
D4: S&P | F4: Moody's | H4: Rank | J4: Strength | L4: Beta
B5: Utility Group | D5: ='Proxy Group Risk Measures'!E27 -> BBB+ | F5: ='Proxy Group Risk Measures'!H27 -> Baa2 | H5: ='Proxy Group Risk Measures'!K27 -> 2 | J5: ='Proxy Group Risk Measures'!M27 -> A | L5: ='Proxy Group Risk Measures'!P27 -> 0.8911764706
B6: ='Proxy Group Criteria'!C54 -> Kentucky Power | D6: ='Proxy Group Criteria'!F54 -> BBB | F6: ='Proxy Group Criteria'!I54 -> Baa3 | H6: ='Proxy Group Criteria'!L12 -> 1 | J6: ='Proxy Group Criteria'!N12 -> A+ | L6: ='Proxy Group Criteria'!P12 -> 0.75
H12: Value Line
H13: Safety | J13: Financial
D14: S&P | F14: Moody's | H14: Rank | J14: Strength | L14: Beta
B15: Non-Utility Group | D15: ='Proxy Group Risk Measures'!E95 -> A- | F15: ='Proxy Group Risk Measures'!H95 -> A2 | H15: ='Proxy Group Risk Measures'!K95 -> 1 | J15: ='Proxy Group Risk Measures'!M95 -> A+ | L15: ='Proxy Group Risk Measures'!P95 -> 0.803
B16: =B5 -> Utility Group | D16: ='Proxy Group Risk Measures'!E27 -> BBB+ | F16: ='Proxy Group Risk Measures'!H27 -> Baa2 | H16: ='Proxy Group Risk Measures'!K27 -> 2 | J16: ='Proxy Group Risk Measures'!M27 -> A | L16: ='Proxy Group Risk Measures'!P27 -> 0.8911764706
B17: =B6 -> Kentucky Power | D17: =D6 -> BBB | F17: =F6 -> Baa3 | H17: =H6 -> 1 | J17: =J6 -> A+ | L17: =L6 -> 0.75
B19: Note: Kentucky Power's Value Line ratings are for its parent company, AEP.

Sheet Table 3
C3: Low | E3: High | G3: Average
B4: Q2-21 | C4: =MIN('Table 3-Chron 2021'!G22:G23,'Table 3-Chron 2021'!G25:G34)/100 -> 0.4921 | D4: -- | E4: =MAX('Table 3-Chron 2021'!G22:G23,'Table 3-Chron 2021'!G25:G34)/100 -> 0.5207 | G4: =AVERAGE('Table 3-Chron 2021'!G22:G23,'Table 3-Chron 2021'!G25:G34)/100 -> 0.5107571429
B5: Q3-21 | C5: =MIN('Table 3-Chron 2021'!G37:G57)/100 -> 0.4 | D5: -- | E5: =MAX('Table 3-Chron 2021'!G37:G57)/100 -> 0.525 | G5: =AVERAGE('Table 3-Chron 2021'!G37:G57)/100 -> 0.5015416667
B6: Q4-21 | C6: =MIN('Table 3-Chron 2021'!$G$60:$G$62,'Table 3-Chron 2021'!$G$64:$G$80,'Table 3-Chron 2021'!$G$82:$G$85,'Table 3-Chron 2021'!$G$87:$G$91)/100 -> 0.4851 | D6: -- | E6: =MAX('Table 3-Chron 2021'!$G$60:$G$62,'Table 3-Chron 2021'!$G$64:$G$80,'Table 3-Chron 2021'!$G$82:$G$85,'Table 3-Chron 2021'!$G$87:$G$91)/100 -> 0.55 | G6: =AVERAGE('Table 3-Chron 2021'!$G$60:$G$62,'Table 3-Chron 2021'!$G$64:$G$80,'Table 3-Chron 2021'!$G$82:$G$85,'Table 3-Chron 2021'!$G$87:$G$91)/100 -> 0.51519375
B7: Q1-22 | C7: =MIN('Table 3-Chron 2022'!$H$5:$H$11,'Table 3-Chron 2022'!$H$13,'Table 3-Chron 2022'!$H$15:$H$21)/100 -> 0.48 | D7: -- | E7: =MAX('Table 3-Chron 2022'!$H$5:$H$11,'Table 3-Chron 2022'!$H$13,'Table 3-Chron 2022'!$H$15:$H$21)/100 -> 0.5569 | G7: =AVERAGE('Table 3-Chron 2022'!$H$5:$H$11,'Table 3-Chron 2022'!$H$13,'Table 3-Chron 2022'!$H$15:$H$21)/100 -> 0.5180363636
B8: Q2-22 | C8: =MIN('Table 3-Chron 2022'!$H$25:$H$38)/100 -> 0.4454 | D8: -- | E8: =MAX('Table 3-Chron 2022'!$H$25:$H$38)/100 -> 0.52 | G8: =AVERAGE('Table 3-Chron 2022'!$H$25:$H$38)/100 -> 0.5004285714
B9: Q3-22 | C9: =MIN('Table 3-Chron 2022'!$H$41:$H$53)/100 -> 0.4829 | D9: -- | E9: =MAX('Table 3-Chron 2022'!$H$41:$H$53)/100 -> 0.5337 | G9: =AVERAGE('Table 3-Chron 2022'!$H$41:$H$53)/100 -> 0.5118571429
B10: Q4-22 | C10: =MIN('Table 3-Chron 2022'!$H$56:$H$66,'Table 3-Chron 2022'!$H$68:$H$74,'Table 3-Chron 2022'!$H$76:$H$91)/100 -> 0.4507 | D10: -- | E10: =MAX('Table 3-Chron 2022'!$H$56:$H$66,'Table 3-Chron 2022'!$H$68:$H$74,'Table 3-Chron 2022'!$H$76:$H$91)/100 -> 0.5822 | G10: =AVERAGE('Table 3-Chron 2022'!$H$56:$H$66,'Table 3-Chron 2022'!$H$68:$H$74,'Table 3-Chron 2022'!$H$76:$H$91)/100 -> 0.5145
B11: Q1-23 | C11: ='Table 3-Chron 2023'!H23/100 -> 0.425 | D11: -- | E11: ='Table 3-Chron 2023'!H24/100 -> 0.525 | G11: ='Table 3-Chron 2023'!H22/100 -> 0.509
B12: Average | C12: =AVERAGE(C4:C11) -> 0.45765 | D12: -- | E12: =AVERAGE(E4:E11) -> 0.5391875 | G12: =AVERAGE(G4:G11) -> 0.5101643297
A13: Source: S&P Global Market Intelligence, Major Rate Case Decision, RRA Regulatory Focus (Apr. 26, 2023, Feb. 10, 2022, & Feb., 2023). Excludes capital structures that include cost-free items.

Sheet Table 3-Chron 2021
A2: Table 5: Electric and gas utility decisions
A3: Electric utility decisions
A4: Date | C4: Co. | D4: State | E4: ROR (%) | F4: ROE (%) | G4: Common equity as % of capital | H4: Test year | I4: Rate base | J4: Rate change amount ($M) | K4: Footnotes
A5: 2021-01-13 | C5: Kentucky Power Co. | D5: KY | E5: 6.19 | F5: 9.3 | G5: 43.25 | H5: 2020-03-31 | I5: Year-end | J5: 52.419332
A6: 2021-01-14 | C6: Cross Texas Transmission LLC | D6: TX | E6: — | F6: — | G6: — | H6: — | I6: — | J6: -8.85 | K6: B,T
A7: 2021-01-14 | C7: Electric Transmission Texas LLC | D7: TX | E7: — | F7: — | G7: — | H7: 2020-09-30 | I7: — | J7: -8.3 | K7: B,T
A8: 2021-01-14 | C8: Southern California Edison Co. | D8: CA | E8: — | F8: — | G8: — | H8: 2021-12-31 | I8: Average | J8: 391.3 | K8: B,1
A9: 2021-01-27 | C9: Northern Indiana Public Service Co. | D9: IN | E9: — | F9: — | G9: — | H9: 2020-07-31 | I9: Year-end | J9: 12.53026 | K9: LIR,2
A10: 2021-02-24 | C10: Virginia Electric and Power Co. | D10: VA | E10: 6.88 | F10: 9.2 | G10: 52.07 | H10: 2022-03-31 | I10: Average | J10: -7.7873 | K10: LIR,3
A11: 2021-02-24 | C11: Virginia Electric and Power Co. | D11: VA | E11: 6.88 | F11: 9.2 | G11: 52.07 | H11: 2022-03-31 | I11: Average | J11: 16.458 | K11: LIR,4
A12: 2021-02-24 | C12: Virginia Electric and Power Co. | D12: VA | E12: 6.95 | F12: 9.34 | G12: 52.07 | H12: 2022-03-31 | I12: Average | J12: 13.031 | K12: LIR,5
A13: 2021-02-24 | C13: Virginia Electric and Power Co. | D13: VA | E13: 7.4 | F13: 10.2 | G13: 52.07 | H13: 2022-03-31 | I13: Average | J13: -0.053 | K13: LIR,6
A14: 2021-02-24 | C14: Virginia Electric and Power Co. | D14: VA | E14: 7.4 | F14: 10.2 | G14: 52.07 | H14: 2022-03-31 | I14: Average | J14: 14.205 | K14: LIR,7
A15: 2021-02-26 | C15: Virginia Electric and Power Co. | D15: VA | E15: 6.88 | F15: 9.2 | G15: 52.07 | H15: 2022-03-31 | I15: Average | J15: 28.221 | K15: B, LIR,8
A16: 2021-03-09 | C16: Oklahoma Gas and Electric Co. | D16: AR | E16: 5.31 | F16: — | G16: 37.92 | H16: 2020-03-31 | I16: Average | J16: 6.679386 | K16: B,*,9
A17: 2021-03-31 | C17: Duke Energy Carolinas LLC | D17: NC | E17: 7.04 | F17: 9.6 | G17: 52 | H17: 2018-12-31 | I17: Year-end | J17: 328.3 | K17: B, I | L17: =AVERAGE(G$17:G$19,G$5:G$15) -> 51.181 | M17: average
A18: 2021-03-31 | C18: Virginia Electric and Power Co. | D18: VA | E18: 6.88 | F18: 9.2 | G18: 52.07 | H18: 2022-05-31 | I18: Average | J18: 9.551 | K18: LIR,10 | L18: =MAX(G$17:G$19,G$5:G$15) -> 52.07 | M18: high
A19: 2021-03-31 | C19: Virginia Electric and Power Co. | D19: VA | E19: 6.88 | F19: 9.2 | G19: 52.07 | H19: 2021-05-31 | I19: Average | J19: 2.905 | K19: LIR,11 | L19: =MIN(G$17:G$19,G$5:G$15) -> 43.25 | M19: low
A20: 2021 | C20: 1st quarter averages | E20: 6.79 | F20: 9.46 | G20: 49.98 | J20: 850.6
C21: 1st quarter total observations | E21: 11 | F21: 10 | G21: 11 | J21: 15
A22: 2021-04-16 | C22: Duke Energy Progress LLC | D22: NC | E22: 6.92 | F22: 9.6 | G22: 52 | H22: 2018-12-31 | I22: Year-end | J22: 308.197 | K22: B, I
A23: 2021-04-30 | C23: Virginia Electric and Power Co. | D23: VA | E23: 6.88 | F23: 9.2 | G23: 52.07 | H23: 2022-05-31 | I23: Average | J23: 10.366 | K23: LIR,12
A24: 2021-05-04 | C24: Duke Energy Florida LLC | D24: FL | E24: 6.14 | F24: 9.85 | G24: 44.84 | H24: 2022-12-31 | I24: Year-end | J24: 195.4 | K24: B, Z,*
A25: 2021-05-18 | C25: PacifiCorp | D25: WY | E25: 7.19 | F25: 9.5 | G25: 51 | H25: 2021-12-31 | I25: Average | J25: 6.982603
A26: 2021-05-26 | C26: Southern Indiana Gas and Electric Co. | D26: IN | E26: — | F26: — | G26: — | H26: 2021-10-31 | I26: Year-end | J26: 10.114159 | K26: LIR,2
A27: 2021-06-04 | C27: Potomac Electric Power Co. | D27: DC | E27: 7.17 | F27: 9.28 | G27: 50.68 | H27: 2022-12-31 | I27: Average | J27: 108.6 | K27: D, Z
A28: 2021-06-09 | C28: Virginia Electric and Power Co. | D28: VA | E28: 6.88 | F28: 9.2 | G28: 52.07 | H28: 2021-07-31 | I28: Average | J28: 1.179 | K28: B, LIR,13
A29: 2021-06-22 | C29: Cleco Power LLC | D29: LA | E29: — | F29: — | G29: — | H29: — | I29: — | J29: 49 | K29: B,14
A30: 2021-06-23 | C30: El Paso Electric Co. | D30: NM | E30: 7.18 | F30: 9 | G30: 49.21 | H30: 2019-12-31 | I30: Year-end | J30: -4.294537
A31: 2021-06-28 | C31: Potomac Electric Power Co. | D31: MD | E31: 7.21 | F31: 9.55 | G31: 50.5 | H31: 2024-03-31 | I31: Average | J31: 52.244254 | K31: D, Z
A32: 2021-06-30 | C32: Kentucky Utilities Co. | D32: KY | E32: — | F32: 9.43 | G32: — | H32: 2022-06-30 | I32: — | J32: 106.32 | K32: B,15 | L32: =AVERAGE(G$22:G$23,G$25:G$34) -> 51.07571429 | M32: average
A33: 2021-06-30 | C33: Louisville Gas and Electric Co. | D33: KY | E33: — | F33: 9.43 | G33: — | H33: 2022-06-30 | I33: — | J33: 72.72 | K33: B,15 | L33: =MAX(G$22:G$23,G$25:G$34) -> 52.07 | M33: high
A34: 2021-06-30 | C34: Northern States Power Co. | D34: MN | E34: — | F34: — | G34: — | H34: — | I34: — | J34: — | K34: W | L34: =MIN(G$22:G$23,G$25:G$34) -> 49.21 | M34: low
C35: 2nd quarter averages | E35: 6.95 | F35: 9.4 | G35: 50.3 | J35: 916.8
C36: 2nd quarter total observations | E36: 8 | F36: 10 | G36: 8 | J36: 12
A37: 2021-07-01 | C37: Virginia Electric and Power Co. | D37: VA | E37: 7.4 | F37: 10.2 | G37: 52.07 | H37: 2022-08-31 | I37: Average | J37: 14.428 | K37: LIR,16
A38: 2021-07-01 | C38: Virginia Electric and Power Co. | D38: VA | E38: 6.88 | F38: 9.2 | G38: 52.07 | H38: 2022-08-31 | I38: Average | J38: -0.132 | K38: LIR,17
A39: 2021-07-14 | C39: Atlantic City Electric Co. | D39: NJ | E39: 6.99 | F39: 9.6 | G39: 50.21 | H39: 2020-12-31 | I39: Year-end | J39: 41 | K39: B, D
A40: 2021-07-15 | C40: Sharyland Utilities, LLC | D40: TX | E40: 5.75 | F40: 9.38 | G40: 40 | H40: 2020-06-30 | I40: Year-end | J40: 2.592208 | K40: B,T
A41: 2021-07-21 | C41: Dominion Energy South Carolina Inc. | D41: SC | E41: 7.59 | F41: 9.5 | G41: 51.62 | H41: 2019-12-31 | I41: Year-end | J41: 61.6 | K41: B
A42: 2021-07-28 | C42: Northern Indiana Public Service Co. | D42: IN | E42: — | F42: — | G42: — | H42: 2021-01-31 | I42: Year-end | J42: 10.562769 | K42: LIR,2
A43: 2021-07-29 | C43: Appalachian Power Co. | D43: VA | E43: — | F43: 9.2 | G43: — | H43: 2022-06-30 | I43: Year-end | J43: 5.942989 | K43: LIR,18
A44: 2021-08-04 | C44: Virginia Electric and Power Co. | D44: VA | E44: 6.88 | F44: 9.2 | G44: 52.07 | H44: 2022-07-31 | I44: Average | J44: 167.76 | K44: LIR,19
A45: 2021-08-05 | C45: Delmarva Power & Light Co. | D45: DE | E45: 6.8 | F45: 9.6 | G45: — | H45: 2021-03-31 | I45: Average | J45: 16.729583 | K45: D, I
A46: 2021-08-11 | C46: Wisconsin Electric Power Co. | D46: WI | E46: — | F46: — | G46: — | H46: 2022-12-31 | I46: — | J46: 0 | K46: 20
A47: 2021-08-11 | C47: Wisconsin Public Service Corp. | D47: WI | E47: — | F47: — | G47: — | H47: 2022-12-31 | I47: — | J47: 0 | K47: 20
A48: 2021-08-18 | C48: Northern States Power Co. | D48: ND | E48: 6.97 | F48: 9.5 | G48: 52.5 | H48: 2021-12-31 | I48: Average | J48: 27.174 | K48: B, I
A49: 2021-08-19 | C49: Southern California Edison Co. | D49: CA | E49: 7.68 | F49: — | G49: — | H49: 2021-12-31 | I49: Average | J49: 489.302 | K49: Z
A50: 2021-08-23 | C50: Appalachian Power Co. | D50: VA | E50: 7.07 | F50: — | G50: 50.32 | H50: 2022-09-30 | I50: Average | J50: 27.437 | K50: LIR,21
A51: 2021-08-31 | C51: Green Mountain Power Corp. | D51: VT | E51: 6.67 | F51: 8.57 | G51: 50.42 | H51: 2022-09-30 | I51: Average | J51: 28.887 | K51: 22
A52: 2021-09-01 | C52: Avista Corp. | D52: ID | E52: 7.05 | F52: 9.4 | G52: 50 | H52: 2019-12-31 | I52: Average | J52: 18.6 | K52: B, Z
A53: 2021-09-02 | C53: Appalachian Power Co. | D53: WV | E53: — | F53: — | G53: — | H53: 2021-02-28 | I53: — | J53: 6 | K53: LIR,23
A54: 2021-09-03 | C54: Virginia Electric and Power Co. | D54: VA | E54: 6.88 | F54: 9.2 | G54: 52.07 | H54: 2022-10-31 | I54: Average | J54: -16.582 | K54: B, LIR,24
A55: 2021-09-07 | C55: Virginia Electric and Power Co. | D55: VA | E55: — | F55: — | G55: — | H55: 2022-08-31 | I55: — | J55: 14.151958 | K55: LIR,25 | L55: =AVERAGE(G$37:G$57) -> 50.15416667 | M55: average
A56: 2021-09-08 | C56: Massachusetts Electric Co. | D56: MA | E56: — | F56: — | G56: — | H56: — | I56: — | J56: 51.464515 | K56: D,26 | L56: =MAX(G$37:G$57) -> 52.5 | M56: high
A57: 2021-09-27 | C57: Avista Corp. | D57: WA | E57: 7.12 | F57: 9.4 | G57: 48.5 | H57: 2019-12-31 | I57: Average | J57: 13.578 | K57: B | L57: =MIN(G$37:G$57) -> 40 | M57: low
C58: 3rd quarter averages | E58: 6.98 | F58: 9.38 | G58: 50.15 | J58: 980.5
C59: 3rd quarter total observations | E59: 14 | F59: 13 | G59: 12 | J59: 21
A60: 2021-10-13 | C60: AES Indiana | D60: IN | E60: — | F60: — | G60: — | H60: 2021-03-31 | I60: Year-end | J60: 8.67 | K60: LIR
A61: 2021-10-13 | C61: Duke Energy Indiana LLC | D61: IN | E61: — | F61: — | G61: — | H61: 2020-12-31 | I61: — | J61: -2.796014 | K61: LIR
A62: 2021-10-21 | C62: Appalachian Power Co. | D62: VA | E62: 7.07 | F62: 9.2 | G62: 50.32 | H62: 2022-11-30 | I62: Average | J62: 4.834562 | K62: LIR,27
A63: 2021-10-21 | C63: Tampa Electric Co. | D63: FL | E63: 6.26 | F63: 9.95 | G63: 45.07 | H63: 2022-12-31 | I63: Average | J63: 302.36 | K63: B, Z,*
A64: 2021-10-26 | C64: Florida Power & Light Co. | D64: FL | E64: — | F64: 10.6 | G64: — | H64: 2023-12-31 | I64: Year-end | J64: 1252 | K64: B, Z
A65: 2021-10-26 | C65: Virginia Electric and Power Co. | D65: VA | E65: 6.88 | F65: 9.2 | G65: 52.07 | H65: 2022-11-30 | I65: Average | J65: 216.146 | K65: LIR,28
A66: 2021-10-28 | C66: UGI Utilities Inc. | D66: PA | E66: — | F66: — | G66: — | H66: 2022-09-30 | I66: — | J66: 6.15 | K66: B, D
A67: 2021-10-28 | C67: Versant Power | D67: ME | E67: 6.57 | F67: 9.35 | G67: 49 | H67: 2019-12-31 | I67: Average | J67: 15.423687 | K67: D
A68: 2021-11-02 | C68: Arizona Public Service Co. | D68: AZ | E68: 6.62 | F68: 8.7 | G68: 54.67 | H68: 2019-06-30 | I68: Year-end | J68: -119.821
A69: 2021-11-02 | C69: Georgia Power Co. | D69: GA | E69: — | F69: — | G69: — | H69: 2022-11-30 | I69: — | J69: 302 | K69: B, LIR,29
A70: 2021-11-04 | C70: Otter Tail Power Co. | D70: MN | E70: 7.18 | F70: 9.48 | G70: 52.5 | H70: 2021-12-31 | I70: Average | J70: 17.911362 | K70: I
A71: 2021-11-17 | C71: Ohio Power Co. | D71: OH | E71: 7.28 | F71: 9.7 | G71: 54.43 | H71: 2020-11-30 | I71: Date Certain | J71: 294.729 | K71: B, D
A72: 2021-11-18 | C72: Central Hudson Gas & Electric Corp. | D72: NY | E72: 6.48 | F72: 9 | G72: 50 | H72: 2022-06-30 | I72: Average | J72: -3.017 | K72: B, D, Z
A73: 2021-11-18 | C73: Northern States Power Co. | D73: WI | E73: 7.31 | F73: 10 | G73: 52.5 | H73: 2023-12-31 | I73: Average | J73: 52.431502 | K73: B, Z
A74: 2021-11-18 | C74: PECO Energy Co. | D74: PA | E74: — | F74: — | G74: — | H74: 2022-12-31 | I74: — | J74: 167.7 | K74: B, D
A75: 2021-11-18 | C75: Southwestern Electric Power Co. | D75: TX | E75: 6.69 | F75: 9.25 | G75: 49.37 | H75: 2020-03-31 | I75: Year-end | J75: 55.425191
A76: 2021-11-18 | C76: Virginia Electric and Power Co. | D76: VA | E76: 6.92 | F76: 9.35 | G76: 51.92 | H76: 2022-12-31 | I76: — | J76: -50 | K76: B,30
A77: 2021-11-18 | C77: Wisconsin Power and Light Co. | D77: WI | E77: 7.48 | F77: 10 | G77: 52.5 | H77: 2023-12-31 | I77: Average | J77: 70.325 | K77: B, Z
A78: 2021-11-23 | C78: Madison Gas and Electric Co. | D78: WI | E78: 7.18 | F78: 9.8 | G78: 55 | H78: 2022-12-31 | I78: Average | J78: 20.525821 | K78: B
A79: 2021-11-24 | C79: Southern Indiana Gas and Electric Co. | D79: IN | E79: — | F79: — | G79: — | H79: 2021-04-30 | I79: Year-end | J79: 11.510359 | K79: LIR,2
A80: 2021-12-01 | C80: Commonwealth Edison Co. | D80: IL | E80: 5.72 | F80: 7.36 | G80: 48.7 | H80: 2020-12-31 | I80: Year-end | J80: 31.939 | K80: D,9
A81: 2021-12-07 | C81: Entergy Arkansas LLC | D81: AR | E81: 5.17 | F81: 9.65 | G81: 37.75 | H81: 2022-12-31 | I81: Average | J81: 72.140839 | K81: B,9,*
A82: 2021-12-08 | C82: Virginia Electric and Power Co. | D82: VA | E82: 6.81 | F82: 9.2 | G82: 51.82 | H82: 2023-03-31 | I82: Average | J82: -10.866 | K82: LIR, Z,31
A83: 2021-12-13 | C83: Ameren Illinois Co. | D83: IL | E83: 5.78 | F83: 7.36 | G83: 51 | H83: 2020-12-31 | I83: Year-end | J83: 42.843 | K83: D,9
A84: 2021-12-15 | C84: Rockland Electric Co. | D84: NJ | E84: 7.08 | F84: 9.6 | G84: 48.51 | H84: 2021-09-30 | I84: Year-end | J84: 9.65 | K84: B, D
A85: 2021-12-16 | C85: Duquesne Light Co. | D85: PA | E85: — | F85: — | G85: — | H85: 2022-12-31 | I85: — | J85: 74.2 | K85: B, D
A86: 2021-12-22 | C86: Consumers Energy Co. | D86: MI | E86: 5.62 | F86: 9.9 | G86: 41.84 | H86: 2022-12-31 | I86: Average | J86: 27.118 | K86: *
A87: 2021-12-22 | C87: NSTAR Electric Co. | D87: MA | E87: — | F87: — | G87: — | H87: — | I87: — | J87: 36.846769 | K87: D,26
A88: 2021-12-22 | C88: Union Electric Co. | D88: MO | E88: — | F88: — | G88: — | H88: 2020-12-31 | I88: Year-end | J88: 220 | K88: B
A89: 2021-12-28 | C89: Public Service Co. of Oklahoma | D89: OK | E89: 6.74 | F89: 9.4 | G89: — | H89: 2020-12-31 | I89: — | J89: 153.4 | K89: B | L89: =AVERAGE(G$87:G$91,G$82:G$85,G$64:G$80,G$60:G$62) -> 51.519375 | M89: average
A90: 2021-12-29 | C90: Monongahela Power Co. | D90: WV | E90: — | F90: — | G90: — | H90: 2021-06-30 | I90: — | J90: 19.571689 | K90: LIR,32 | L90: =MAX(G$87:G$91,G$82:G$85,G$64:G$80,G$60:G$62) -> 55 | M90: high
A91: 2021-12-30 | C91: PacifiCorp | D91: ID | E91: — | F91: — | G91: — | H91: — | I91: — | J91: 8 | K91: B | L91: =MIN(G$87:G$91,G$82:G$85,G$64:G$80,G$60:G$62) -> 48.51 | M91: low
C92: 4th quarter averages | E92: 6.64 | F92: 9.34 | G92: 49.94578947 | J92: 3289.540405
C93: 4th quarter total observations | E93: 20 | F93: 21 | G93: 19 | J93: 32
A94: 2021 | C94: Annual averages | E94: 6.81 | F94: 9.38 | G94: 50.0584 | J94: 6037.479584
C95: Annual total observations | E95: 53 | F95: 54 | G95: 50 | J95: 80
A98: Data compiled Jan. 26, 2022.
A99: ROR = rate of return
A100: Source: Regulatory Research Associates, a group within S&P Global Market Intelligence
A102: Footnotes
A103: A | B103: Average.
A104: B | B104: Order followed stipulation or settlement by the parties. Decision particulars not necessarily precedent-setting or specifically adopted by the regulatory body.
A105: D | B105: Applies to electric delivery only.
A106: I | B106: Interim rates implemented prior to the issuance of final order, normally under bond and subject to refund.
A107: LIR | B107: Limited-issue rider proceeding.
A108: NA | B108: Not available at the time of publication.
A109: T | B109: Transmission-only case.
A110: W | B110: Case was withdrawn.
A111: Z | B111: Rate change implemented in multiple steps.
A112: * | B112: Capital structure includes cost-free items or tax credit balances at the overall rate of return.
A114: 1 | B114: Case pertains to the company's Track 2 proceeding dedicated solely to recovery of 2020 recorded costs in wildfire mitigation memorandum and balancing accounts.
A115: 2 | B115: Case established the rates to be charged to customers under the company's "transmission, distribution, and storage system improvement charge" statute.
A116: 3 | B116: Rate change was approved under Rider B, which is the mechanism through which the company recovers the costs associated with the conversion of the Altavista, Hopewell and Southampton power stations to burn biomass fuels.
A117: 4 | B117: Rate change was approved under Rider GV, which is the mechanism through which the Co. recovers its investment in the Greensville County generation facility.
A118: 5 | B118: Rate change was approved under Rider R, which is the mechanism through which the company recovers its investment in the Bear Garden power plant.
A119: 6 | B119: Rate change was approved under Rider S, which is the mechanism through which the company recovers its investment in the Virginia City Hybrid Energy Center.
A120: 7 | B120: Rate change was approved under Rider W, which is the mechanism through which the company recovers its investment in the Warren County generation facility.
A121: 8 | B121: Rate change was approved under Rider U, which is the mechanism through which the company recovers its investment in projects to underground certain "at risk" distribution facilities.
A122: 9 | B122: Rate change approved under company's formula rate plan.
A123: 10 | B123: Rate change was approved under Rider US-3, which is the mechanism through which the company recovers its investment related to two utility-scale solar generation facilities, the 142-MW Colonial Trail West Solar Facility and the 98-MW AC Spring Grove 1 Solar Facility.
A124: 11 | B124: Rate change approved under US-4, which is the mechanism through which the company will recover its investment in the roughly 100-MW utility-scale solar generation facility, Sadler Solar Facility, located in Greensville County, VA.
A125: 12 | B125: Rate change approved under Rider CE, which is the mechanism through which the company recovers its investment under the Clean Economy Act.
A126: 13 | B126: Rate change approved under the company's rural broadband pilot program.
A127: 14 | B127: The adopted settlement provides for the company to operate under a formula rate plan that incorporates a 9.5% ROE.
A128: 15 | B128: Reflects terms of commission-modified settlement.
A129: 16 | B129: Rate change was approved under Rider BW, which is the mechanism through which the company recovers its investment in the natural gas-fired combined-cycle Brunswick County Power Station.
A130: 17 | B130: Rate change was approved under Rider US-2, which is the mechanism through which the company recovers its investment in three utility-scale solar facilities: Scott Solar, Whitehouse Solar and Woodland Solar.
A131: 18 | B131: Rate change approved under the company's energy conservation programs.
A132: 19 | B132: Rate change was approved under Rider RGGI, which is intended to reflect projected and actual costs related to the purchase of allowances through the Regional Greenhouse Gas Initiative.
A133: 20 | B133: Company agreed to forgo biennial rates in exchange for certain accounting amortizations.
A134: 21 | B134: Rate change pertains to company's projects to meet state and federal environmental regulations.
A135: 22 | B135: Reflects authorization under company's multi-year alternative regulation plan.
A136: 23 | B136: Rate change associated with certain expanded net energy costs.
A137: 24 | B137: Rate change approved under Rider E, which is the mechanism through which the company recovers the costs to comply with the U.S. Environmental Protection Agency and Virginia Waste Management Board regulations.
A138: 25 | B138: Rate change associated with the recovery of costs related to the company's demand-side management and energy conservation programs.
A139: 26 | B139: Rate change authorized under performance-based regulation plan.
A140: 27 | B140: Rate change approved under broadband capacity rate adjustment clause, known as RAC-BC, which is associated with the company's middle mile broadband capacity pilot project.
A141: 28 | B141: Rate change approved under Rider CCR, which is the mechanism through which the company recovers the costs to comply with state law that imposes additional environmental requirements on the state's coal plants.
A142: 29 | B142: Reflects recovery of costs related to the construction of two new reactors at the Alvin W. Vogtle Nuclear Plant.
A143: 30 | B143: Decision was issued in triennial earnings review. The authorized ROE is not associated with the approved rate change and is for prospective use in future rider adjustments and to assess under- or over-earnings in the next review.
A144: 31 | B144: Rate change under Rider GV, which is the mechanism through which the company recovers costs related to the Greensville Power Station.
A145: 32 | B145: Rate change under company's expanded net energy cost proceeding.
A146: 33 | B146: The commission rejected the company's rate case filing. The PUC upheld its decision on reconsideration in a March 26, 2021 ruling.
A147: 34 | B147: Case involves company's gas system reliability surcharge.
A148: 35 | B148: Lake Tahoe operating region.
A149: 36 | B149: Northern California operating region.
A150: 37 | B150: Southern California Division operating region.
A151: 38 | B151: Case involves company's infrastructure system replacement surcharge rider.
A152: 39 | B152: Rate change under company's annual rate mechanism.
A153: 40 | B153: Case involves company's pipe replacement program rider.
A154: 41 | B154: Rate change under performance-based ratemaking plan.
A155: 42 | B155: Rate change occurred under a rider that pertains to investment made under Virginia Steps to Advance Virginia Energy, or SAVE, infrastructure program.
A156: 43 | B156: Reflects rate change under Georgia Rate Adjustment Mechanism.
A157: 44 | B157: Rate change under the company's infrastructure replacement and expansion program.

Sheet Table 3-Chron 2022
B2: Table 5: Electric and gas utility decisions
B3: Date | D3: Company | E3: State | F3: ROR (%) | G3: ROE (%) | H3: Common equity as % of capital | I3: Test year | J3: Rate base | K3: Rate change amount ($M) | L3: Footnotes
D4: Electric utility decisions
B5: 2022-01-20 | D5: Niagara Mohawk Power Corp. | E5: NY | F5: 6.08 | G5: 9 | H5: 48 | I5: 2022-06-30 | J5: Average | K5: 49.379 | L5: B, D, Z
B6: 2022-01-26 | D6: Northern Indiana Public Service Co. | E6: IN | F6: — | G6: — | H6: — | I6: 2021-07-31 | J6: Year-end | K6: 10.802646 | L6: LIR,1
B7: 2022-01-28 | D7: Appalachian Power Co. | E7: VA | F7: 6.82 | G7: 9.2 | H7: 48.29 | I7: 2023-04-30 | J7: Average | K7: -0.900566 | L7: LIR,2
B8: 2022-02-08 | D8: Virginia Electric and Power Co. | E8: VA | F8: — | G8: — | H8: — | I8: 2023-03-31 | J8: — | K8: -2.978 | L8: B, LIR,Z,3
B9: 2022-02-08 | D9: Virginia Electric and Power Co. | E9: VA | F9: 7.33 | G9: 10.2 | H9: 51.82 | I9: 2023-03-31 | J9: Average | K9: 1.342 | L9: LIR,4
B10: 2022-02-10 | D10: Virginia Electric and Power Co. | E10: VA | F10: 6.81 | G10: 9.2 | H10: 51.82 | I10: 2023-03-31 | J10: Average | K10: -7.384355 | L10: LIR,5
B11: 2022-02-16 | D11: Southwestern Public Service Co. | E11: NM | F11: 7.07 | G11: 9.35 | H11: 54.72 | I11: 2020-09-30 | J11: Year-end | K11: 62.423334 | L11: B
B12: 2022-02-23 | D12: Indiana Michigan Power Co. | E12: IN | F12: 5.78 | G12: 9.7 | H12: 40.7 | I12: 2022-12-31 | J12: Year-end | K12: -94.70468 | L12: B, Z,*
B13: 2022-03-02 | D13: Delmarva Power & Light Co. | E13: MD | F13: — | G13: — | H13: — | I13: 2021-09-30 | J13: — | K13: 12.5 | L13: B, D
B14: 2022-03-04 | D14: Oklahoma Gas and Electric Co. | E14: AR | F14: 5.23 | G14: — | H14: 37.95 | I14: 2021-03-31 | J14: Average | K14: 4.238207 | L14: B,*,6
B15: 2022-03-09 | D15: Empire District Electric Co. | E15: MO | F15: — | G15: — | H15: — | I15: 2020-09-30 | J15: Year-end | K15: 35.515913 | L15: B
B16: 2022-03-09 | D16: Virginia Electric and Power Co. | E16: VA | F16: 6.9 | G16: 9.35 | H16: 51.92 | I16: 2023-03-31 | J16: Average | K16: 15.212 | L16: LIR,7
B17: 2022-03-11 | D17: Virginia Electric and Power Co. | E17: VA | F17: 6.9 | G17: 9.35 | H17: 51.92 | I17: 2023-03-31 | J17: Average | K17: 2.041 | L17: LIR,Z,8
B18: 2022-03-15 | D18: Virginia Electric and Power Co. | E18: VA | F18: 6.81 | G18: 9.2 | H18: 51.82 | I18: 2023-04-30 | J18: Average | K18: 60.657 | L18: LIR,9
B19: 2022-03-16 | D19: Public Service Co. of Colorado | E19: CO | F19: 6.82 | G19: 9.3 | H19: 55.69 | I19: 2021-12-31 | J19: Average | K19: 298.808692 | L19: B | M19: =AVERAGE(H$5:H$11,H$15:H$21) -> 51.80363636 | N19: average
B20: 2022-03-18 | D20: Virginia Electric and Power Co. | E20: VA | F20: 6.81 | G20: 9.2 | H20: 51.92 | I20: 2023-05-31 | J20: Average | K20: 5.119 | L20: LIR,10 | M20: =MAX(H$5:H$11,H$15:H$21) -> 55.69 | N20: high
B21: 2022-03-24 | D21: Virginia Electric and Power Co. | E21: VA | F21: 6.81 | G21: 9.2 | H21: 51.92 | I21: 2023-05-02 | J21: Average | K21: 11.316 | L21: LIR,11 | M21: =MIN(H$5:H$11,H$15:H$21) -> 48 | N21: low
D22: Q1 averages/total | F22: 6.63 | G22: 9.35 | H22: 49.88384615 | K22: 463.387191
D23: Observations | F23: 13 | G23: 12 | H23: 13 | K23: 17
B24: 2022-04-01 | D24: Virginia Electric and Power Co. | E24: VA | F24: — | G24: — | H24: — | I24: — | J24: — | K24: — | L24: LIR,W,12
B25: 2022-04-14 | D25: Orange and Rockland Utilities Inc. | E25: NY | F25: 6.77 | G25: 9.2 | H25: 48 | I25: 2022-12-31 | J25: Average | K25: 4.939 | L25: B, D, Z
B26: 2022-04-25 | D26: Portland General Electric Co. | E26: OR | F26: 6.81 | G26: 9.5 | H26: 50 | I26: 2022-12-31 | J26: Average | K26: 10 | L26: B
B27: 2022-05-12 | D27: Southwestern Public Service Co. | E27: TX | F27: — | G27: — | H27: — | I27: 2020-12-31 | J27: Year-end | K27: 88.5 | L27: B
B28: 2022-05-12 | D28: Unitil Energy Systems Inc. | E28: NH | F28: 7.42 | G28: 9.2 | H28: 52 | I28: 2020-12-31 | J28: — | K28: 5.883395 | L28: B, D, Z, I
B29: 2022-05-13 | D29: Virginia Electric and Power Co. | E29: VA | F29: 6.9 | G29: 9.2 | H29: 51.92 | I29: 2022-05-31 | J29: Average | K29: 55.527 | L29: LIR,13
B30: 2022-05-23 | D30: Southwestern Electric Power Co. | E30: AR | F30: 4.74 | G30: 9.5 | H30: 44.54 | I30: 2021-04-30 | J30: Year-end | K30: 39.324545
B31: 2022-05-25 | D31: Kentucky Utilities Co. | E31: VA | F31: — | G31: — | H31: — | I31: 2020-12-31 | J31: — | K31: 6.5 | L31: B
B32: 2022-05-25 | D32: Southern Indiana Gas and Electric Co. | E32: IN | F32: — | G32: — | H32: — | I32: 2021-10-31 | J32: Year-end | K32: 12.643431 | L32: LIR,1
B33: 2022-05-26 | D33: Empire District Electric Co. | E33: KS | F33: — | G33: — | H33: — | I33: 2020-06-30 | J33: — | K33: -0.636091 | L33: B,14
B34: 2022-05-26 | D34: Virginia Electric and Power Co. | E34: VA | F34: 7.42 | G34: 10.35 | H34: 51.92 | I34: 2022-08-31 | J34: Average | K34: 32.386 | L34: LIR,Z,15
B35: 2022-06-02 | D35: Idaho Power Co. | E35: ID | F35: — | G35: — | H35: — | I35: — | J35: — | K35: 18.754499 | L35: LIR,16
B36: 2022-06-09 | D36: Virginia Electric and Power Co. | E36: VA | F36: 6.9 | G36: 9.2 | H36: 51.92 | I36: 2023-08-31 | J36: Average | K36: 1.92083 | L36: LIR,17 | M36: =AVERAGE(H$24:H$38) -> 50.04285714 | N36: average
B37: 2022-06-15 | D37: Virginia Electric and Power Co. | E37: VA | F37: — | G37: — | H37: — | I37: — | J37: — | K37: 167.76 | L37: LIR,12 | M37: =MAX(H$24:H$38) -> 52 | N37: high
B38: 2022-06-30 | D38: Southern California Edison Co. | E38: CA | F38: — | G38: — | H38: — | I38: 2021-12-31 | J38: Average | K38: 385.24 | L38: LIR,18 | M38: =MIN(H$24:H$38) -> 44.54 | N38: low
D39: Q2 averages/total | F39: 6.71 | G39: 9.45 | H39: 50.04 | K39: 828.742609
D40: Observations | F40: 7 | G40: 7 | H40: 7 | K40: 14
B41: 2022-07-01 | D41: Virginia Electric and Power Co. | E41: VA | F41: 6.09 | G41: 9.35 | H41: 51.92 | I41: 2023-08-31 | J41: Average | K41: 106.664 | L41: B, LIR,19
B42: 2022-07-15 | D42: Appalachian Power Co. | E42: VA | F42: 9.82 | G42: 9.2 | H42: 48.29 | I42: 2023-07-31 | J42: Average | K42: 32.069614 | L42: LIR,20
B43: 2022-07-15 | D43: Appalachian Power Co. | E43: VA | F43: — | G43: — | H43: — | I43: 2023-08-31 | J43: Year-end | K43: 2.331056 | L43: LIR,21
B44: 2022-07-27 | D44: Northern Indiana Public Service Co. | E44: IN | F44: — | G44: — | H44: — | I44: 2022-01-31 | J44: Year-end | K44: 21.179043 | L44: LIR,1
B45: 2022-08-01 | D45: Appalachian Power Co. | E45: WV | F45: — | G45: — | H45: — | I45: 2021-09-30 | J45: — | K45: 12.316315 | L45: B, LIR,22
B46: 2022-08-05 | D46: Virginia Electric and Power Co. | E46: VA | F46: 6.81 | G46: 9.2 | H46: 51.82 | I46: 2023-08-31 | J46: Average | K46: 78.702 | L46: LIR,23
B47: 2022-08-10 | D47: Virginia Electric and Power Co. | E47: VA | F47: — | G47: — | H47: — | I47: 2023-08-31 | J47: — | K47: 16.823142 | L47: LIR,24
B48: 2022-08-16 | D48: Tampa Electric Co. | E48: FL | F48: — | G48: 10.2 | H48: — | I48: — | J48: — | K48: 10 | L48: B,LIR,25
B49: 2022-08-31 | D49: Green Mountain Power Corp. | E49: VT | F49: 6.3 | G49: 8.57 | H49: 49.98 | I49: 2023-09-30 | J49: Average | K49: 14.223 | L49: Z
B50: 2022-09-08 | D50: Oklahoma Gas and Electric Co. | E50: OK | F50: — | G50: 9.5 | H50: 53.37 | I50: 2021-09-30 | J50: — | K50: 30 | L50: B
B51: 2022-09-15 | D51: El Paso Electric Co. | E51: TX | F51: 7.5 | G51: 9.35 | H51: 51 | I51: 2020-12-31 | J51: Year-end | K51: 33.02 | L51: B,I | M51: =AVERAGE(H$41:H$53) -> 51.18571429 | N51: average
B52: 2022-09-21 | D52: Virginia Electric and Power Co. | E52: VA | F52: 6.9 | G52: 9.35 | H52: 51.92 | I52: 2023-10-31 | J52: Average | K52: 32.894 | L52: LIR,26 | M52: =MAX(H$41:H$53) -> 53.37 | N52: high
B53: 2022-09-26 | D53: Massachusetts Electric Co. | E53: MA | F53: — | G53: — | H53: — | I53: — | J53: — | K53: 43.940278 | L53: D,27 | M53: =MIN(H$41:H$53) -> 48.29 | N53: low
D54: Q3 averages/total | F54: 7.24 | G54: 9.34 | H54: 51.19 | K54: 434.2
D55: Observations | F55: 6 | G55: 8 | H55: 7 | K55: 13
B56: 2022-10-04 | D56: Duke Energy Florida LLC | E56: FL | F56: — | G56: 10.1 | H56: — | I56: — | J56: — | K56: 24.428 | L56: B, LIR,28
B57: 2022-10-04 | D57: Florida Power & Light Co. | E57: FL | F57: — | G57: 10.8 | H57: — | I57: — | J57: — | K57: 0 | L57: B, LIR,29
B58: 2022-10-12 | D58: AES Indiana | E58: IN | F58: — | G58: — | H58: — | I58: 2022-03-31 | J58: Year-end | K58: 21.34 | L58: LIR,1
B59: 2022-10-12 | D59: Duke Energy Indiana LLC | E59: IN | F59: — | G59: — | H59: — | I59: 2021-12-31 | J59: Year-end | K59: -0.914193 | L59: LIR,1
B60: 2022-10-20 | D60: Virginia Electric and Power Co. | E60: VA | F60: 6.9 | G60: 9.35 | H60: 51.92 | I60: 2023-11-30 | J60: Average | K60: 14.817066 | L60: LIR,30
B61: 2022-10-25 | D61: Kingsport Power Co. | E61: TN | F61: 6.02 | G61: 9.5 | H61: 48.9 | I61: 2021-06-30 | J61: Average | K61: 5.75 | L61: B
B62: 2022-10-31 | D62: Virginia Electric and Power Co. | E62: VA | F62: 6.83 | G62: 9.35 | H62: 52.29 | I62: 2023-11-30 | J62: Average | K62: 6.252865 | L62: LIR,31
B63: 2022-11-03 | D63: Pacific Gas and Electric Co. | E63: CA | F63: 7.81 | G63: 10.25 | H63: 52 | I63: 2022-12-31 | J63: — | K63: — | L63: 32
B64: 2022-11-03 | D64: San Diego Gas & Electric Co. | E64: CA | F64: 7.55 | G64: 10.2 | H64: 52 | I64: 2022-12-31 | J64: — | K64: — | L64: 32
B65: 2022-11-03 | D65: Southern California Edison Co. | E65: CA | F65: 7.68 | G65: 10.3 | H65: 52 | I65: 2022-12-31 | J65: — | K65: — | L65: 32
B66: 2022-11-17 | D66: Commonwealth Edison Co. | E66: IL | F66: 5.94 | G66: 7.85 | H66: 49.45 | I66: 2021-12-31 | J66: Year-end | K66: 223.391 | L66: D,33
B67: 2022-11-18 | D67: DTE Electric Co. | E67: MI | F67: 5.42 | G67: 9.9 | H67: 39.62 | I67: 2023-10-31 | J67: Average | K67: 30.557 | L67: *
B68: 2022-11-21 | D68: Appalachian Power Co. | E68: VA | F68: 6.81 | G68: — | H68: 48.29 | I68: 2023-11-30 | J68: Average | K68: 5.453 | L68: LIR,34
B69: 2022-11-21 | D69: Evergy Metro Inc. | E69: MO | F69: — | G69: — | H69: — | I69: 2021-06-30 | J69: — | K69: 25 | L69: B
B70: 2022-11-21 | D70: Evergy Missouri West Inc. | E70: MO | F70: — | G70: — | H70: — | I70: 2021-06-30 | J70: — | K70: 30.096109 | L70: B
B71: 2022-11-23 | D71: Southern Indiana Gas and Electric Co. | E71: IN | F71: — | G71: — | H71: — | I71: 2022-04-30 | J71: Year-end | K71: 14.663078 | L71: LIR,1
B72: 2022-11-29 | D72: Appalachian Power Co. | E72: VA | F72: 6.84 | G72: — | H72: 49.78 | I72: 2024-01-31 | J72: Average | K72: -6.49217 | L72: LIR,35
B73: 2022-11-30 | D73: NSTAR Electric Co. | E73: MA | F73: 7.06 | G73: 9.8 | H73: 53.21 | I73: 2020-12-31 | J73: Year-end | K73: 64.255303 | L73: D, Z,36
B74: 2022-12-01 | D74: Ameren Illinois Co. | E74: IL | F74: 5.9 | G74: 7.85 | H74: 50 | I74: 2021-12-31 | J74: Year-end | K74: 63.121 | L74: D,33
B75: 2022-12-02 | D75: Entergy Arkansas LLC | E75: AR | F75: 5.25 | G75: — | H75: 37.77 | I75: 2023-12-31 | J75: Average | K75: 79.727034 | L75: B,*,37
B76: 2022-12-06 | D76: Tampa Electric Co. | E76: FL | F76: 6.38 | G76: 10.2 | H76: 45.07 | I76: — | J76: — | K76: 91.011994 | L76: B,LIR,38
B77: 2022-12-12 | D77: Avista Corp. | E77: WA | F77: 7.03 | G77: — | H77: — | I77: — | J77: — | K77: 38 | L77: B, Z
B78: 2022-12-14 | D78: Delmarva Power & Light Co. | E78: MD | F78: 6.62 | G78: 9.6 | H78: 50.5 | I78: 2025-12-31 | J78: Average | K78: 28.91653 | L78: B, D, Z
B79: 2022-12-14 | D79: Duke Energy Ohio Inc. | E79: OH | F79: 6.86 | G79: 9.5 | H79: 50.5 | I79: 2022-03-31 | J79: Date Certain | K79: 22.594133 | L79: B, D
B80: 2022-12-14 | D80: The Dayton Power and Light Co. | E80: OH | F80: 7.43 | G80: 10 | H80: 53.87 | I80: 2021-05-31 | J80: Date Certain | K80: 75.616813 | L80: D
B81: 2022-12-15 | D81: Pacific Gas and Electric Co. | E81: CA | F81: 7.27 | G81: 10 | H81: 52 | I81: 2023-12-31 | J81: — | K81: -9 | L81: 32
B82: 2022-12-15 | D82: San Diego Gas & Electric Co. | E82: CA | F82: 7.18 | G82: 9.95 | H82: 52 | I82: 2023-12-31 | J82: — | K82: -16 | L82: 32
B83: 2022-12-15 | D83: Southern California Edison Co. | E83: CA | F83: 7.44 | G83: 10.05 | H83: 52 | I83: 2023-12-31 | J83: — | K83: -106 | L83: 32
B84: 2022-12-16 | D84: PacifiCorp | E84: OR | F84: 7.11 | G84: 9.5 | H84: 50 | I84: 2023-12-31 | J84: Year-end | K84: 51.413 | L84: B
B85: 2022-12-20 | D85: Georgia Power Co. | E85: GA | F85: 7.43 | G85: 10.5 | H85: 56 | I85: 2023-07-31 | J85: Average | K85: 995.5 | L85: B, Z
B86: 2022-12-22 | D86: Puget Sound Energy Inc. | E86: WA | F86: 7.16 | G86: 9.4 | H86: 49 | I86: 2021-06-30 | J86: Average | K86: 223.047819 | L86: B, Z
B87: 2022-12-22 | D87: Wisconsin Public Service Corp. | E87: WI | F87: 7.52 | G87: 9.8 | H87: 53.4 | I87: 2023-12-31 | J87: Average | K87: 113.183
B88: 2022-12-27 | D88: Sierra Pacific Power Co. | E88: NV | F88: 6.98 | G88: 9.56 | H88: 52.4 | I88: 2021-12-31 | J88: Year-end | K88: 57.821
B89: 2022-12-29 | D89: Empire District Electric Co. | E89: OK | F89: — | G89: 9.3 | H89: — | I89: 2021-06-30 | J89: — | K89: 5.1 | L89: B, Z | M89: =AVERAGE(H$76:H$91,H$68:H$74,H$56:H$66) -> 51.45 | N89: average
B90: 2022-12-29 | D90: Wisconsin Electric Power Co. | E90: WI | F90: 8.77 | G90: 9.8 | H90: 58.22 | I90: 2023-12-31 | J90: Average | K90: 280.524 | M90: =MAX(H$76:H$91,H$68:H$74,H$56:H$66) -> 58.22 | N90: high
B91: 2022-12-30 | D91: Monongahela Power Co. | E91: WV | F91: — | G91: — | H91: — | I91: 2022-06-30 | J91: — | K91: 91.898347 | L91: B,LIR,39 | M91: =MIN(H$76:H$91,H$68:H$74,H$56:H$66) -> 45.07 | N91: low
D92: Q4 averages/total | F92: 6.93 | G92: 9.71 | H92: 50.47 | K92: 2545.1
D93: Observations | F93: 27 | G93: 26 | H93: 26 | K93: 33
B94: 2022 | D94: Annual:Averages/total | F94: 6.86 | G94: 9.54 | H94: 50.36 | K94: 4271.4
D95: Observations | F95: 53 | G95: 53 | H95: 53 | K95: 77
B98: Data compiled Jan. 27, 2023.
B99: ROR = rate of return.
B100: Source: Regulatory Research Associates, a group within S&P Global Commodity Insights.
B101: © 2023 S&P Global.
B103: Footnotes
B104: A | C104: Average.
B105: B | C105: Order followed stipulation or settlement by the parties. Decision particulars not necessarily precedent-setting or specifically adopted by the regulatory body.
B106: D | C106: Applies to electric delivery only.
B107: I | C107: Interim rates implemented prior to the issuance of final order, normally under bond and subject to refund.
B108: LIR | C108: Limited-issue rider proceeding.
B109: NA | C109: Not available at the time of publication.
B110: T | C110: Transmission-only case.
B111: W | C111: Case was withdrawn.
B112: Z | C112: Rate change implemented in multiple steps.
B113: * | C113: Capital structure includes cost-free items or tax credit balances at the overall rate of return.
B115: 1 | C115: Case established the rates to be charged to customers under the company's "transmission, distribution, and storage system improvement charge" statute.
B116: 2 | C116: Rate change approved under the company's generation rider adjustment clause, which is the mechanism through which the company recovers its investment in the Dresden Generating Plant.
B117: 3 | C117: Rate change approved under Rider S, which is the mechanism through which the company recovers its investment in the Virginia City Hybrid Energy Center.
B118: 4 | C118: Rate change approved under Rider W, which is the mechanism through which the company recovers its investment in the Warren County generation facility.
B119: 5 | C119: Rate change approved under Rider B, which is the mechanism through which the company recovers the costs associated with the conversion of the Altavista, Hopewell and Southampton power stations to burn biomass fuels.
B120: 6 | C120: Rate change approved under company's formula rate plan.
B121: 7 | C121: Rate change approved under Rider U, which is the mechanism through which the company recovers its investment in projects to underground certain "at risk" distribution facilities.
B122: 8 | C122: Rate change approved under Rider R, which is the mechanism through which the company recovers its investment in the Bear Garden power plant.
B123: 9 | C123: Rate change approved under Rider CE, which is the mechanism through which the company recovers its investment under the Clean Economy Act.
B124: 10 | C124: Rate change approved under Rider US-4, which is the mechanism through which the company recovers its investment in the 100 MW utility-scale solar generation plant, known as the Sadler Solar Facility.
B125: 11 | C125: Rate change approved under Rider US-3, which is the mechanism through which the company recovers its investment in two utility-scale solar generation facilities — the 142 MW Colonial Trail West Solar Facility and the 98 MW AC Spring Grove 1 Solar Facility.
B126: 12 | C126: Rate change approved under Rider RGGI, which is the mechanism through which the company recovers costs incurred for participation in the Regional Greenhouse Gas Initiative. As part of the decision, Rider RGGI was suspended.
B127: 13 | C127: Rate change approved under Rider GT, which is the mechanism through which the company recovers its investments in its Grid Transformation Plan, a 10-year plan to transform its distribution grid to meet the changing landscape of the energy industry while continuing to provide reliable service to customers.
B128: 14 | C128: Rate change approved under an abbreviated rate case filing.
B129: 15 | C129: Rate change approved under Rider BW, which is the mechanism through which the company recovers its investment in the Brunswick County Power Station.
B130: 16 | C130: Rate change associated with Jim Bridger power plant.
B131: 17 | C131: Rate change approved under Rider US-2, which is the mechanism through which the company recovers its investment in three utility-scale solar facilities — Scott Solar, Whitehouse Solar and Woodland Solar.
B132: 18 | C132: Rate change approved for the recovery of incremental 2020 wildfire expenses.
B133: 19 | C133: Rate change approved under Rider SNA, which is the mechanism through which the company recovers its investment in the Surry and North Anna nuclear plants.
B134: 20 | C134: Rate change approved under Rider RPS-RAC, which is the mechanism that reflects the total revenue requirement approved under new renewable portfolio standard rider.
B135: 21 | C135: Rate change approved under Rider RAC-EE, which is the mechanism through which the company recovers costs associated with energy conservation programs. State statutes permits the company to earn a return on the program costs (shown as rate base) as an incentive. The return is equal to the most recently approved ROE, which for Appalachian Power would be the 9.2% ROE approved in its November 2020 triennial earnings review order.
B136: 22 | C136: Rate change authorized under modified rate base cost recovery mechanism.
B137: 23 | C137: Rate change approved under Rider OSW, which is the mechanism through which the company recovers its investment in the Coastal Virginia Offshore Wind Project.
B138: 24 | C138: Rate change approved under Rider DSM, which is the mechanism through which the company recovers the costs of its energy conservation and demand-side management programs.
B139: 25 | C139: Reflects ROE modification permitted under trigger provisions of previously adopted settlement that allows company to increase its authorized return on equity in response to rise in federal government bond yields.
B140: 26 | C140: Rate change approved under Rider E, which is the mechanism through which the company recovers costs incurred to comply with the U.S. Environmental Protection Agency and Virginia Waste Management Board regulations related to the storage and disposal of coal combustion residuals, or CCR, commonly referred to as coal ash, produced at limited number of company facilities — Bremo, Chesterfield, Clover and Mt. Storm Power Stations — that continue to burn coal to produce electricity.
B141: 27 | C141: Rate change authorized under performance-based regulation plan.
B142: 28 | C142: Limited proceeding to implement the ROE trigger provisions of an approved 2021 settlement that permitted the utility's authorized ROE to be increased by 25 basis points to be within a range of 9.10% to 11.10% with a midpoint of 10.10% due to a rise in the U.S. 30-year U.S. Treasury Bond yield rate.
B143: 29 | C143: Limited proceeding to implement ROE trigger provisions of an approved settlement that permits the utility to increase its authorized ROE range to 9.8% to 11.8% with a midpoint of 10.8% due to a rise in the U.S. 30-year U.S. Treasury Bond yield rate.
B144: 30 | C144: Rate change approved under Rider CCR, which is the mechanism through which the company recovers the costs to comply with state law that imposes additional environmental requirements on the state's coal plants.
B145: 31 | C145: This case pertains to the company's rural broadband pilot program.
B146: 32 | C146: Case involved only the determination of cost-of-capital parameters.
B147: 33 | C147: Rate change authorized under formula rate plan. The calculation of the ROE was formulaic and reflected an ROE that is the result of applying a 580-basis-point premium to the 12-month average 30-year Treasury bond yield.
B148: 34 | C148: Rate change authorized under Rider ERAC, which pertains to the company's projects to meet state and federal environmental regulations.
B149: 35 | C149: Rate change approved under broadband capacity rate adjustment clause, known as RAC-BC, which is associated with the company's middle mile broadband capacity pilot project.
B150: 36 | C150: Performance-based regulation plan adopted.
B151: 37 | C151: Rate change pursuant to company's formula rate plan.
B152: 38 | C152: Limited issue proceeding to implement ROE trigger provisons that authorized the utility's ROE to be incresed by 25 basis points to a new mid-point of 10.20% and the authorized range adjusted to 9.25% to 11.25%, effective as of July 1, 2022.
B153: 39 | C153: Electric rate change under expanded net energy cost proceeding.
B154: 40 | C154: Rate change occurred under a rider that pertains to investment made under Virginia Steps to Advance Virginia Energy, or SAVE, infrastructure program.
B155: 41 | C155: Rate change authorized under company's gas system reliability surcharge rider.
B156: 42 | C156: Authorized for company's Northern division. Settlement was silent on most traditional rate case parameters; however, an overall return of 6.6% is implied.
B157: 43 | C157: Authorized for company's Southern division. Settlement was silent on most traditional rate case parameters; however, an overall return of 6.3% is implied.
B158: 44 | C158: Rate change approved under company's system integrity program rider.
B159: 45 | C159: Rate change approved under company's infrastructure system replacement surcharge rider.
B160: 46 | C160: Rate request rejected as "moot" by commission in light of accompanying base rate case decision.
B161: 47 | C161: Rate change approved under company's annual review mechanism.
B162: 48 | C162: Commission revised the settlement with respect to ROE and capital structure.
B163: 49 | C163: Rate change approved under the company's infrastructure replacement and expansion program rider.

Sheet Table 3-Chron 2023
B2: Table 5: Electric and gas utility decisions
B3: El;ectric utility decisions
B4: Date | D4: Company | E4: State | F4: ROR (%) | G4: ROE (%) | H4: Common equity as % of capital | I4: Test year | J4: Rate base | K4: Rate change amount ($) | L4: Footnotes
B5: 2023-01-19 | D5: Consumers Energy Co. | E5: MI | F5: — | G5: 9.9 | H5: — | I5: 2023-12-31 | J5: Average | K5: 155 | L5: B
B6: 2023-01-23 | D6: Minnesota Power Enterprises Inc. | E6: MN | F6: 7.12 | G6: 9.65 | H6: 52.5 | I6: 2022-12-31 | J6: Average | K6: 58.6 | L6: I
B7: 2023-01-25 | D7: Northern Indiana Public Service Co. LLC | E7: IN | F7: — | G7: — | H7: — | I7: 2022-07-31 | J7: Year-end | K7: 6.5599 | L7: LIR,1
B8: 2023-01-26 | D8: Cheyenne Light, Fuel and Power Co. | E8: WY | F8: 7.48 | G8: 9.75 | H8: 52 | I8: 2021-12-31 | J8: Year-end | K8: 20.101815 | L8: B
B9: 2023-01-26 | D9: Virginia Electric and Power Co. | E9: VA | F9: 6.83 | G9: 9.35 | H9: 52.29 | I9: 2024-03-31 | J9: Average | K9: 16.888 | L9: LIR, Z,2
B10: 2023-02-02 | D10: Pacific Gas and Electric Co. | E10: CA | F10: — | G10: — | H10: — | I10: — | J10: — | K10: 1037.899 | L10: B, LIR,3
B11: 2023-02-03 | D11: Appalachian Power Co. | E11: WV | F11: — | G11: — | H11: — | I11: 2022-02-28 | J11: — | K11: 0 | L11: LIR,4
B12: 2023-02-09 | D12: Duke Energy Progress LLC | E12: SC | F12: 6.83 | G12: 9.6 | H12: 52.43 | I12: 2021-12-31 | J12: Year-end | K12: 52.297 | L12: B
B13: 2023-02-16 | D13: Electric Transmission Texas LLC | E13: TX | F13: — | G13: — | H13: — | I13: 2022-06-30 | J13: — | K13: -14 | L13: T,B
B14: 2023-02-17 | D14: Southwestern Electric Power Co. | E14: LA | F14: — | G14: 9.5 | H14: — | I14: — | J14: — | K14: 27 | L14: B
B15: 2023-02-21 | D15: Electric Transmission Texas LLC | E15: TX | F15: — | G15: — | H15: — | I15: 2022-09-30 | J15: Year-end | K15: — | L15: T,B
B16: 2023-02-23 | D16: Virginia Electric and Power Co. | E16: VA | F16: 7.36 | G16: 10.35 | H16: 52.29 | I16: 2024-03-31 | J16: Average | K16: -15.596 | L16: LIR, Z,5
B17: 2023-02-27 | D17: Virginia Electric and Power Co. | E17: VA | F17: 6.83 | G17: 9.35 | H17: 52.29 | I17: 2024-03-31 | J17: Average | K17: -20.690001 | L17: LIR,6
B18: 2023-03-02 | D18: Oklahoma Gas and Electric Co. | E18: AR | F18: 5.33 | G18: — | H18: 38.57 | I18: 2022-03-31 | J18: Average | K18: 9.592322 | L18: B,*,7
B19: 2023-03-09 | D19: Oncor Electric Delivery Co. LLC | E19: TX | F19: 6.65 | G19: 9.7 | H19: 42.5 | I19: 2021-12-31 | J19: Year-end | K19: 100.535525 | L19: D
B20: 2023-03-23 | D20: Wind Energy Transmission Texas LLC | E20: TX | F20: — | G20: — | H20: — | I20: — | J20: — | K20: -8.7 | L20: B,T
B21: 2023-03-24 | D21: Upper Peninsula Power Co. | E21: MI | F21: — | G21: 9.9 | H21: — | I21: 2024-06-30 | J21: Average | K21: 10.8 | L21: B
A22: 2023 | H22: =AVERAGE(H19:H21,H5:H17) -> 50.9
H23: =MIN(H19:H21,H5:H17) -> 42.5
H24: =MAX(H19:H21,H5:H17) -> 52.5
B26: Data compiled April 20, 2023.
B27: ROR = rate of return.
B28: Source: Regulatory Research Associates, a group within S&P Global Commodity Insights.
B29: © 2023 S&P Global.
B31: Footnotes
B32: A | C32: Average.
B33: B | C33: Order followed stipulation or settlement by the parties. Decision particulars not necessarily precedent-setting or specifically adopted by the regulatory body.
B34: D | C34: Applies to electric delivery only.
B35: I | C35: Interim rates implemented prior to the issuance of final order, normally under bond and subject to refund.
B36: LIR | C36: Limited-issue rider proceeding.
B37: NA | C37: Not available at the time of publication.
B38: T | C38: Transmission-only case.
B39: W | C39: Case was withdrawn.
B40: Z | C40: Rate change implemented in multiple steps.
B41: * | C41: Capital structure includes cost-free items or tax credit balances at the overall rate of return.
B43: 1 | C43: Case established the rates to be charged to customers under the company's "transmission, distribution, and storage system improvement charge" statute.
B44: 2 | C44: Rate change approved under Rider B, which is the mechanism through which the company recovers the costs associated with the conversion of the Altavista, Hopewell and Southampton power stations to burn biomass fuels.
B45: 3 | C45: Rate increase authorized for the recovery of expenditures related to wildfire mitigation, COVID-19 costs and several other activities.
B46: 4 | C46: Electric rate change under expanded net energy cost proceeding.
B47: 5 | C47: Rate change approved under Rider W, which is the mechanism through which the company recovers its investment in the Warren County generation facility.
B48: 6 | C48: Rate change approved under Rider U, which is the mechanism through which the company recovers its investment in projects to underground certain "at risk" distribution facilities.
B49: 7 | C49: Rate change approved under company's formula rate plan.
B50: 8 | C50: Rate change approved under renewable natural gas rider.
B51: 9 | C51: Rate change approved under system integrity program rider.

Sheet Proxy Group Criteria
A1: PROXY GROUP SELECTION
F4: (a) | I4: (b) | L4: (c) | R4: (c)
F5: S&P | I5: Moody's | L5: Value Line | V5: Override:
F6: Credit | I6: Issuer | L6: Safety | N6: Financial | R6: Market | T6: Gas | V6: "Y" for Incl.
B7: Included | C7: SYM | D7: Company | F7: Rating | I7: Rating | L7: Rank | N7: Strength | P7: Beta | R7: Cap | T7: Utility | V7: "X" for Excl. | W7: Comments
A8: =A7+1 -> 1 | B8: =IF(AND(AND(G8<=$G$55,G8>=$G$56),AND(J8<=$J$55,J8>=$J$56),L8<=$L$55,V8<>"X"),"Y",IF(V8="Y","Y","")) ->  | C8: ='Electric Utility Data'!B8 -> AQN | D8: ='Electric Utility Data'!C8 -> Algonquin Pwr & Util | F8: ='Electric Utility Data'!AA8 -> BBB | G8: =VLOOKUP(F8,'Ordinal Ratings'!$A$6:$B$28,2,FALSE) -> 9 | I8: ='Electric Utility Data'!AB8 -> NR | J8: =VLOOKUP(I8,'Ordinal Ratings'!I$6:J$25,2,FALSE) -> -- | L8: ='Electric Utility Data'!W8 -> n/a | N8: ='Electric Utility Data'!Y8 -> n/a | P8: ='Electric Utility Data'!X8 -> 0.9 | R8: ='Electric Utility Data'!AC8 -> 5608 | T8: Y | V8: X | W8: Data potentially impacted by planned acquisition.
A9: =A8+1 -> 2 | C9: ='Electric Utility Data'!B9 -> ALE | D9: ='Electric Utility Data'!C9 -> ALLETE | F9: ='Electric Utility Data'!AA9 -> BBB | G9: =VLOOKUP(F9,'Ordinal Ratings'!$A$6:$B$28,2,FALSE) -> 9 | I9: ='Electric Utility Data'!AB9 -> Baa1 | J9: =VLOOKUP(I9,'Ordinal Ratings'!I$6:J$25,2,FALSE) -> 8 | L9: ='Electric Utility Data'!W9 -> 2 | N9: ='Electric Utility Data'!Y9 -> A | P9: ='Electric Utility Data'!X9 -> 0.9 | R9: ='Electric Utility Data'!AC9 -> 3500 | T9: Y
A10: 3 | C10: ='Electric Utility Data'!B10 -> LNT | D10: ='Electric Utility Data'!C10 -> Alliant Energy | F10: ='Electric Utility Data'!AA10 -> A- | G10: =VLOOKUP(F10,'Ordinal Ratings'!$A$6:$B$28,2,FALSE) -> 7 | I10: ='Electric Utility Data'!AB10 -> Baa2 | J10: =VLOOKUP(I10,'Ordinal Ratings'!I$6:J$25,2,FALSE) -> 9 | L10: ='Electric Utility Data'!W10 -> 2 | N10: ='Electric Utility Data'!Y10 -> A | P10: ='Electric Utility Data'!X10 -> 0.85 | R10: ='Electric Utility Data'!AC10 -> 12900 | T10: Y
A11: 4 | C11: ='Electric Utility Data'!B11 -> AEE | D11: ='Electric Utility Data'!C11 -> Ameren Corp. | F11: ='Electric Utility Data'!AA11 -> BBB+ | G11: =VLOOKUP(F11,'Ordinal Ratings'!$A$6:$B$28,2,FALSE) -> 8 | I11: ='Electric Utility Data'!AB11 -> Baa1 | J11: =VLOOKUP(I11,'Ordinal Ratings'!I$6:J$25,2,FALSE) -> 8 | L11: ='Electric Utility Data'!W11 -> 1 | N11: ='Electric Utility Data'!Y11 -> A | P11: ='Electric Utility Data'!X11 -> 0.85 | R11: ='Electric Utility Data'!AC11 -> 22000 | T11: Y
A12: 5 | C12: ='Electric Utility Data'!B12 -> AEP | D12: ='Electric Utility Data'!C12 -> American Elec Pwr | F12: ='Electric Utility Data'!AA12 -> A- | G12: =VLOOKUP(F12,'Ordinal Ratings'!$A$6:$B$28,2,FALSE) -> 7 | I12: ='Electric Utility Data'!AB12 -> Baa2 | J12: =VLOOKUP(I12,'Ordinal Ratings'!I$6:J$25,2,FALSE) -> 9 | L12: ='Electric Utility Data'!W12 -> 1 | N12: ='Electric Utility Data'!Y12 -> A+ | P12: ='Electric Utility Data'!X12 -> 0.75 | R12: ='Electric Utility Data'!AC12 -> 45400 | T12: N
A13: 6 | C13: ='Electric Utility Data'!B13 -> AGR | D13: ='Electric Utility Data'!C13 -> Avangrid, Inc. | F13: ='Electric Utility Data'!AA13 -> BBB+ | G13: =VLOOKUP(F13,'Ordinal Ratings'!$A$6:$B$28,2,FALSE) -> 8 | I13: ='Electric Utility Data'!AB13 -> Baa2 | J13: =VLOOKUP(I13,'Ordinal Ratings'!I$6:J$25,2,FALSE) -> 9 | L13: ='Electric Utility Data'!W13 -> 2 | N13: ='Electric Utility Data'!Y13 -> B++ | P13: ='Electric Utility Data'!X13 -> 0.85 | R13: ='Electric Utility Data'!AC13 -> 16300 | T13: Y | V13: X | W13: Planned acquisition of PNM Resources.
A14: 7 | B14: Y | C14: ='Electric Utility Data'!B14 -> AVA | D14: ='Electric Utility Data'!C14 -> Avista Corp. | F14: ='Electric Utility Data'!AA14 -> BBB | G14: =VLOOKUP(F14,'Ordinal Ratings'!$A$6:$B$28,2,FALSE) -> 9 | I14: ='Electric Utility Data'!AB14 -> Baa2 | J14: =VLOOKUP(I14,'Ordinal Ratings'!I$6:J$25,2,FALSE) -> 9 | L14: ='Electric Utility Data'!W14 -> 2 | N14: ='Electric Utility Data'!Y14 -> B++ | P14: ='Electric Utility Data'!X14 -> 0.9 | R14: ='Electric Utility Data'!AC14 -> 3200 | T14: Y
A15: 8 | B15: Y | C15: ='Electric Utility Data'!B15 -> BKH | D15: ='Electric Utility Data'!C15 -> Black Hills Corp. | F15: ='Electric Utility Data'!AA15 -> BBB+ | G15: =VLOOKUP(F15,'Ordinal Ratings'!$A$6:$B$28,2,FALSE) -> 8 | I15: ='Electric Utility Data'!AB15 -> Baa2 | J15: =VLOOKUP(I15,'Ordinal Ratings'!I$6:J$25,2,FALSE) -> 9 | L15: ='Electric Utility Data'!W15 -> 2 | N15: ='Electric Utility Data'!Y15 -> A | P15: ='Electric Utility Data'!X15 -> 0.95 | R15: ='Electric Utility Data'!AC15 -> 4600 | T15: Y
A16: 9 | B16: Y | C16: ='Electric Utility Data'!B16 -> CNP | D16: ='Electric Utility Data'!C16 -> CenterPoint Energy | F16: ='Electric Utility Data'!AA16 -> BBB+ | G16: =VLOOKUP(F16,'Ordinal Ratings'!$A$6:$B$28,2,FALSE) -> 8 | I16: ='Electric Utility Data'!AB16 -> Baa2 | J16: =VLOOKUP(I16,'Ordinal Ratings'!I$6:J$25,2,FALSE) -> 9 | L16: ='Electric Utility Data'!W16 -> 3 | N16: ='Electric Utility Data'!Y16 -> B++ | P16: ='Electric Utility Data'!X16 -> 1.1 | R16: ='Electric Utility Data'!AC16 -> 17900 | T16: Y
A17: 10 | B17: Y | C17: ='Electric Utility Data'!B17 -> CMS | D17: ='Electric Utility Data'!C17 -> CMS Energy Corp. | F17: ='Electric Utility Data'!AA17 -> BBB+ | G17: =VLOOKUP(F17,'Ordinal Ratings'!$A$6:$B$28,2,FALSE) -> 8 | I17: ='Electric Utility Data'!AB17 -> Baa2 | J17: =VLOOKUP(I17,'Ordinal Ratings'!I$6:J$25,2,FALSE) -> 9 | L17: ='Electric Utility Data'!W17 -> 2 | N17: ='Electric Utility Data'!Y17 -> A | P17: ='Electric Utility Data'!X17 -> 0.8 | R17: ='Electric Utility Data'!AC17 -> 17400 | T17: Y
A18: 11 | C18: ='Electric Utility Data'!B18 -> ED | D18: ='Electric Utility Data'!C18 -> Consolidated Edison | F18: ='Electric Utility Data'!AA18 -> A- | G18: =VLOOKUP(F18,'Ordinal Ratings'!$A$6:$B$28,2,FALSE) -> 7 | I18: ='Electric Utility Data'!AB18 -> Baa2 | J18: =VLOOKUP(I18,'Ordinal Ratings'!I$6:J$25,2,FALSE) -> 9 | L18: ='Electric Utility Data'!W18 -> 1 | N18: ='Electric Utility Data'!Y18 -> A+ | P18: ='Electric Utility Data'!X18 -> 0.8 | R18: ='Electric Utility Data'!AC18 -> 33700 | T18: Y | V18: X | W18: Selling its non-regulated renewables portfolio to RWE for $6.8B (VL 11/11/22). This is 10.3% of total assets.
A19: 12 | B19: Y | C19: ='Electric Utility Data'!B19 -> D | D19: ='Electric Utility Data'!C19 -> Dominion Energy | F19: ='Electric Utility Data'!AA19 -> BBB+ | G19: =VLOOKUP(F19,'Ordinal Ratings'!$A$6:$B$28,2,FALSE) -> 8 | I19: ='Electric Utility Data'!AB19 -> Baa2 | J19: =VLOOKUP(I19,'Ordinal Ratings'!I$6:J$25,2,FALSE) -> 9 | L19: ='Electric Utility Data'!W19 -> 2 | N19: ='Electric Utility Data'!Y19 -> B++ | P19: ='Electric Utility Data'!X19 -> 0.8 | R19: ='Electric Utility Data'!AC19 -> 52200 | T19: Y
A20: 13 | B20: Y | C20: ='Electric Utility Data'!B20 -> DTE | D20: ='Electric Utility Data'!C20 -> DTE Energy Co. | F20: ='Electric Utility Data'!AA20 -> BBB+ | G20: =VLOOKUP(F20,'Ordinal Ratings'!$A$6:$B$28,2,FALSE) -> 8 | I20: ='Electric Utility Data'!AB20 -> Baa2 | J20: =VLOOKUP(I20,'Ordinal Ratings'!I$6:J$25,2,FALSE) -> 9 | L20: ='Electric Utility Data'!W20 -> 2 | N20: ='Electric Utility Data'!Y20 -> A | P20: ='Electric Utility Data'!X20 -> 0.95 | R20: ='Electric Utility Data'!AC20 -> 22900 | T20: Y
A21: 14 | B21: Y | C21: ='Electric Utility Data'!B21 -> DUK | D21: ='Electric Utility Data'!C21 -> Duke Energy Corp. | F21: ='Electric Utility Data'!AA21 -> BBB+ | G21: =VLOOKUP(F21,'Ordinal Ratings'!$A$6:$B$28,2,FALSE) -> 8 | I21: ='Electric Utility Data'!AB21 -> Baa2 | J21: =VLOOKUP(I21,'Ordinal Ratings'!I$6:J$25,2,FALSE) -> 9 | L21: ='Electric Utility Data'!W21 -> 2 | N21: ='Electric Utility Data'!Y21 -> A | P21: ='Electric Utility Data'!X21 -> 0.85 | R21: ='Electric Utility Data'!AC21 -> 78300 | T21: Y
A22: 15 | B22: Y | C22: ='Electric Utility Data'!B22 -> EIX | D22: ='Electric Utility Data'!C22 -> Edison International | F22: ='Electric Utility Data'!AA22 -> BBB | G22: =VLOOKUP(F22,'Ordinal Ratings'!$A$6:$B$28,2,FALSE) -> 9 | I22: ='Electric Utility Data'!AB22 -> Baa2 | J22: =VLOOKUP(I22,'Ordinal Ratings'!I$6:J$25,2,FALSE) -> 9 | L22: ='Electric Utility Data'!W22 -> 3 | N22: ='Electric Utility Data'!Y22 -> B++ | P22: ='Electric Utility Data'!X22 -> 0.95 | R22: ='Electric Utility Data'!AC22 -> 25900 | T22: N
A23: 16 | B23: Y | C23: ='Electric Utility Data'!B23 -> EMA | D23: ='Electric Utility Data'!C23 -> Emera Inc. | F23: ='Electric Utility Data'!AA23 -> BBB | G23: =VLOOKUP(F23,'Ordinal Ratings'!$A$6:$B$28,2,FALSE) -> 9 | I23: ='Electric Utility Data'!AB23 -> Baa3 | J23: =VLOOKUP(I23,'Ordinal Ratings'!I$6:J$25,2,FALSE) -> 10 | L23: ='Electric Utility Data'!W23 -> 2 | N23: ='Electric Utility Data'!Y23 -> B++ | P23: ='Electric Utility Data'!X23 -> 0.7 | R23: ='Electric Utility Data'!AC23 -> 14300 | T23: N
A24: 17 | B24: Y | C24: ='Electric Utility Data'!B24 -> ETR | D24: ='Electric Utility Data'!C24 -> Entergy Corp. | F24: ='Electric Utility Data'!AA24 -> BBB+ | G24: =VLOOKUP(F24,'Ordinal Ratings'!$A$6:$B$28,2,FALSE) -> 8 | I24: ='Electric Utility Data'!AB24 -> Baa2 | J24: =VLOOKUP(I24,'Ordinal Ratings'!I$6:J$25,2,FALSE) -> 9 | L24: ='Electric Utility Data'!W24 -> 2 | N24: ='Electric Utility Data'!Y24 -> B++ | P24: ='Electric Utility Data'!X24 -> 0.95 | R24: ='Electric Utility Data'!AC24 -> 23000 | T24: Y
A25: 18 | C25: ='Electric Utility Data'!B25 -> EVRG | D25: ='Electric Utility Data'!C25 -> Evergy Inc. | F25: ='Electric Utility Data'!AA25 -> A- | G25: =VLOOKUP(F25,'Ordinal Ratings'!$A$6:$B$28,2,FALSE) -> 7 | I25: ='Electric Utility Data'!AB25 -> Baa2 | J25: =VLOOKUP(I25,'Ordinal Ratings'!I$6:J$25,2,FALSE) -> 9 | L25: ='Electric Utility Data'!W25 -> 2 | N25: ='Electric Utility Data'!Y25 -> B++ | P25: ='Electric Utility Data'!X25 -> 0.9 | R25: ='Electric Utility Data'!AC25 -> 13800 | T25: Y
A26: 19 | C26: ='Electric Utility Data'!B26 -> ES | D26: ='Electric Utility Data'!C26 -> Eversource Energy | F26: ='Electric Utility Data'!AA26 -> A- | G26: =VLOOKUP(F26,'Ordinal Ratings'!$A$6:$B$28,2,FALSE) -> 7 | I26: ='Electric Utility Data'!AB26 -> Baa1 | J26: =VLOOKUP(I26,'Ordinal Ratings'!I$6:J$25,2,FALSE) -> 8 | L26: ='Electric Utility Data'!W26 -> 1 | N26: ='Electric Utility Data'!Y26 -> A | P26: ='Electric Utility Data'!X26 -> 0.9 | R26: ='Electric Utility Data'!AC26 -> 28300 | T26: N
A27: 20 | B27: Y | C27: ='Electric Utility Data'!B27 -> EXC | D27: ='Electric Utility Data'!C27 -> Exelon Corp. | F27: ='Electric Utility Data'!AA27 -> BBB+ | G27: =VLOOKUP(F27,'Ordinal Ratings'!$A$6:$B$28,2,FALSE) -> 8 | I27: ='Electric Utility Data'!AB27 -> Baa2 | J27: =VLOOKUP(I27,'Ordinal Ratings'!I$6:J$25,2,FALSE) -> 9 | L27: ='Electric Utility Data'!W27 -> 2 | N27: ='Electric Utility Data'!Y27 -> B++ | P27: ='Electric Utility Data'!X27 -> n/a | R27: ='Electric Utility Data'!AC27 -> 41500 | T27: Y
A28: 21 | C28: ='Electric Utility Data'!B28 -> FE | D28: ='Electric Utility Data'!C28 -> FirstEnergy Corp. | F28: ='Electric Utility Data'!AA28 -> BBB- | G28: =VLOOKUP(F28,'Ordinal Ratings'!$A$6:$B$28,2,FALSE) -> 10 | I28: ='Electric Utility Data'!AB28 -> Ba1 | J28: =VLOOKUP(I28,'Ordinal Ratings'!I$6:J$25,2,FALSE) -> 11 | L28: ='Electric Utility Data'!W28 -> 3 | N28: ='Electric Utility Data'!Y28 -> B+ | P28: ='Electric Utility Data'!X28 -> 0.85 | R28: ='Electric Utility Data'!AC28 -> 23600 | T28: Y
A29: 22 | C29: ='Electric Utility Data'!B29 -> FTS | D29: ='Electric Utility Data'!C29 -> Fortis Inc. | F29: ='Electric Utility Data'!AA29 -> A- | G29: =VLOOKUP(F29,'Ordinal Ratings'!$A$6:$B$28,2,FALSE) -> 7 | I29: ='Electric Utility Data'!AB29 -> Baa3 | J29: =VLOOKUP(I29,'Ordinal Ratings'!I$6:J$25,2,FALSE) -> 10 | L29: ='Electric Utility Data'!W29 -> 2 | N29: ='Electric Utility Data'!Y29 -> B++ | P29: ='Electric Utility Data'!X29 -> 0.7 | R29: ='Electric Utility Data'!AC29 -> 26400 | T29: N
A30: 23 | B30: Y | C30: ='Electric Utility Data'!B30 -> HE | D30: ='Electric Utility Data'!C30 -> Hawaiian Elec. | F30: ='Electric Utility Data'!AA30 -> BBB- | G30: =VLOOKUP(F30,'Ordinal Ratings'!$A$6:$B$28,2,FALSE) -> 10 | I30: ='Electric Utility Data'!AB30 -> NR | J30: =VLOOKUP(I30,'Ordinal Ratings'!I$6:J$25,2,FALSE) -> -- | L30: ='Electric Utility Data'!W30 -> 2 | N30: ='Electric Utility Data'!Y30 -> A | P30: ='Electric Utility Data'!X30 -> 0.85 | R30: ='Electric Utility Data'!AC30 -> 4600 | T30: Y | V30: Y | W30: S&P rating meets criteria.
A31: 24 | B31: Y | C31: ='Electric Utility Data'!B31 -> IDA | D31: ='Electric Utility Data'!C31 -> IDACORP, Inc. | F31: ='Electric Utility Data'!AA31 -> BBB | G31: =VLOOKUP(F31,'Ordinal Ratings'!$A$6:$B$28,2,FALSE) -> 9 | I31: ='Electric Utility Data'!AB31 -> Baa2 | J31: =VLOOKUP(I31,'Ordinal Ratings'!I$6:J$25,2,FALSE) -> 9 | L31: ='Electric Utility Data'!W31 -> 1 | N31: ='Electric Utility Data'!Y31 -> A+ | P31: ='Electric Utility Data'!X31 -> 0.8 | R31: ='Electric Utility Data'!AC31 -> 5500 | T31: N
A32: 25 | C32: ='Electric Utility Data'!B32 -> NEE | D32: ='Electric Utility Data'!C32 -> NextEra Energy, Inc. | F32: ='Electric Utility Data'!AA32 -> A- | G32: =VLOOKUP(F32,'Ordinal Ratings'!$A$6:$B$28,2,FALSE) -> 7 | I32: ='Electric Utility Data'!AB32 -> Baa1 | J32: =VLOOKUP(I32,'Ordinal Ratings'!I$6:J$25,2,FALSE) -> 8 | L32: ='Electric Utility Data'!W32 -> 1 | N32: ='Electric Utility Data'!Y32 -> A+ | P32: ='Electric Utility Data'!X32 -> 0.95 | R32: ='Electric Utility Data'!AC32 -> 149100 | T32: Y
A33: 26 | B33: Y | C33: ='Electric Utility Data'!B33 -> NWE | D33: ='Electric Utility Data'!C33 -> NorthWestern Corp. | F33: ='Electric Utility Data'!AA33 -> BBB | G33: =VLOOKUP(F33,'Ordinal Ratings'!$A$6:$B$28,2,FALSE) -> 9 | I33: ='Electric Utility Data'!AB33 -> Baa2 | J33: =VLOOKUP(I33,'Ordinal Ratings'!I$6:J$25,2,FALSE) -> 9 | L33: ='Electric Utility Data'!W33 -> 2 | N33: ='Electric Utility Data'!Y33 -> B++ | P33: ='Electric Utility Data'!X33 -> 0.9 | R33: ='Electric Utility Data'!AC33 -> 3400 | T33: N
A34: 27 | C34: ='Electric Utility Data'!B34 -> OGE | D34: ='Electric Utility Data'!C34 -> OGE Energy Corp. | F34: ='Electric Utility Data'!AA34 -> BBB+ | G34: =VLOOKUP(F34,'Ordinal Ratings'!$A$6:$B$28,2,FALSE) -> 8 | I34: ='Electric Utility Data'!AB34 -> Baa1 | J34: =VLOOKUP(I34,'Ordinal Ratings'!I$6:J$25,2,FALSE) -> 8 | L34: ='Electric Utility Data'!W34 -> 2 | N34: ='Electric Utility Data'!Y34 -> A | P34: ='Electric Utility Data'!X34 -> 1 | R34: ='Electric Utility Data'!AC34 -> 7300 | T34: N
A35: 28 | B35: Y | C35: ='Electric Utility Data'!B35 -> OTTR | D35: ='Electric Utility Data'!C35 -> Otter Tail Corp. | F35: ='Electric Utility Data'!AA35 -> BBB | G35: =VLOOKUP(F35,'Ordinal Ratings'!$A$6:$B$28,2,FALSE) -> 9 | I35: ='Electric Utility Data'!AB35 -> Baa2 | J35: =VLOOKUP(I35,'Ordinal Ratings'!I$6:J$25,2,FALSE) -> 9 | L35: ='Electric Utility Data'!W35 -> 2 | N35: ='Electric Utility Data'!Y35 -> A | P35: ='Electric Utility Data'!X35 -> 0.9 | R35: ='Electric Utility Data'!AC35 -> 3000 | T35: N
A36: 29 | C36: ='Electric Utility Data'!B36 -> PNW | D36: ='Electric Utility Data'!C36 -> Pinnacle West Capital | F36: ='Electric Utility Data'!AA36 -> BBB+ | G36: =VLOOKUP(F36,'Ordinal Ratings'!$A$6:$B$28,2,FALSE) -> 8 | I36: ='Electric Utility Data'!AB36 -> Baa1 | J36: =VLOOKUP(I36,'Ordinal Ratings'!I$6:J$25,2,FALSE) -> 8 | L36: ='Electric Utility Data'!W36 -> 2 | N36: ='Electric Utility Data'!Y36 -> A | P36: ='Electric Utility Data'!X36 -> 0.9 | R36: ='Electric Utility Data'!AC36 -> 8500 | T36: N
A37: 30 | C37: ='Electric Utility Data'!B37 -> PNM | D37: ='Electric Utility Data'!C37 -> PNM Resources | F37: ='Electric Utility Data'!AA37 -> BBB | G37: =VLOOKUP(F37,'Ordinal Ratings'!$A$6:$B$28,2,FALSE) -> 9 | I37: ='Electric Utility Data'!AB37 -> Baa3 | J37: =VLOOKUP(I37,'Ordinal Ratings'!I$6:J$25,2,FALSE) -> 10 | L37: ='Electric Utility Data'!W37 -> 2 | N37: ='Electric Utility Data'!Y37 -> B++ | P37: ='Electric Utility Data'!X37 -> 0.9 | R37: ='Electric Utility Data'!AC37 -> 4200 | T37: N | V37: X | W37: Planned acquisition by AVANGRID.
A38: 31 | C38: ='Electric Utility Data'!B38 -> POR | D38: ='Electric Utility Data'!C38 -> Portland General Elec. | F38: ='Electric Utility Data'!AA38 -> BBB+ | G38: =VLOOKUP(F38,'Ordinal Ratings'!$A$6:$B$28,2,FALSE) -> 8 | I38: ='Electric Utility Data'!AB38 -> A3 | J38: =VLOOKUP(I38,'Ordinal Ratings'!I$6:J$25,2,FALSE) -> 7 | L38: ='Electric Utility Data'!W38 -> 2 | N38: ='Electric Utility Data'!Y38 -> B++ | P38: ='Electric Utility Data'!X38 -> 0.85 | R38: ='Electric Utility Data'!AC38 -> 4400 | T38: N
A39: 32 | C39: ='Electric Utility Data'!B39 -> PPL | D39: ='Electric Utility Data'!C39 -> PPL Corp. | F39: ='Electric Utility Data'!AA39 -> A- | G39: =VLOOKUP(F39,'Ordinal Ratings'!$A$6:$B$28,2,FALSE) -> 7 | I39: ='Electric Utility Data'!AB39 -> Baa1 | J39: =VLOOKUP(I39,'Ordinal Ratings'!I$6:J$25,2,FALSE) -> 8 | L39: ='Electric Utility Data'!W39 -> 3 | N39: ='Electric Utility Data'!Y39 -> B++ | P39: ='Electric Utility Data'!X39 -> 1.05 | R39: ='Electric Utility Data'!AC39 -> 21700 | T39: Y
A40: 33 | B40: Y | C40: ='Electric Utility Data'!B40 -> PEG | D40: ='Electric Utility Data'!C40 -> Pub Sv Enterprise Grp. | F40: ='Electric Utility Data'!AA40 -> BBB+ | G40: =VLOOKUP(F40,'Ordinal Ratings'!$A$6:$B$28,2,FALSE) -> 8 | I40: ='Electric Utility Data'!AB40 -> Baa2 | J40: =VLOOKUP(I40,'Ordinal Ratings'!I$6:J$25,2,FALSE) -> 9 | L40: ='Electric Utility Data'!W40 -> 1 | N40: ='Electric Utility Data'!Y40 -> A++ | P40: ='Electric Utility Data'!X40 -> 0.9 | R40: ='Electric Utility Data'!AC40 -> 30500 | T40: Y
A41: 34 | B41: Y | C41: ='Electric Utility Data'!B41 -> SRE | D41: ='Electric Utility Data'!C41 -> Sempra Energy | F41: ='Electric Utility Data'!AA41 -> BBB+ | G41: =VLOOKUP(F41,'Ordinal Ratings'!$A$6:$B$28,2,FALSE) -> 8 | I41: ='Electric Utility Data'!AB41 -> Baa2 | J41: =VLOOKUP(I41,'Ordinal Ratings'!I$6:J$25,2,FALSE) -> 9 | L41: ='Electric Utility Data'!W41 -> 2 | N41: ='Electric Utility Data'!Y41 -> A | P41: ='Electric Utility Data'!X41 -> 0.95 | R41: ='Electric Utility Data'!AC41 -> 49400 | T41: Y
A42: 35 | B42: Y | C42: ='Electric Utility Data'!B42 -> SO | D42: ='Electric Utility Data'!C42 -> Southern Company | F42: ='Electric Utility Data'!AA42 -> BBB+ | G42: =VLOOKUP(F42,'Ordinal Ratings'!$A$6:$B$28,2,FALSE) -> 8 | I42: ='Electric Utility Data'!AB42 -> Baa2 | J42: =VLOOKUP(I42,'Ordinal Ratings'!I$6:J$25,2,FALSE) -> 9 | L42: ='Electric Utility Data'!W42 -> 2 | N42: ='Electric Utility Data'!Y42 -> A | P42: ='Electric Utility Data'!X42 -> 0.9 | R42: ='Electric Utility Data'!AC42 -> 71300 | T42: Y
A43: 36 | C43: ='Electric Utility Data'!B43 -> WEC | D43: ='Electric Utility Data'!C43 -> WEC Energy Group | F43: ='Electric Utility Data'!AA43 -> A- | G43: =VLOOKUP(F43,'Ordinal Ratings'!$A$6:$B$28,2,FALSE) -> 7 | I43: ='Electric Utility Data'!AB43 -> Baa1 | J43: =VLOOKUP(I43,'Ordinal Ratings'!I$6:J$25,2,FALSE) -> 8 | L43: ='Electric Utility Data'!W43 -> 1 | N43: ='Electric Utility Data'!Y43 -> A+ | P43: ='Electric Utility Data'!X43 -> 0.8 | R43: ='Electric Utility Data'!AC43 -> 28400 | T43: Y
A44: 37 | C44: ='Electric Utility Data'!B44 -> XEL | D44: ='Electric Utility Data'!C44 -> Xcel Energy Inc. | F44: ='Electric Utility Data'!AA44 -> A- | G44: =VLOOKUP(F44,'Ordinal Ratings'!$A$6:$B$28,2,FALSE) -> 7 | I44: ='Electric Utility Data'!AB44 -> Baa1 | J44: =VLOOKUP(I44,'Ordinal Ratings'!I$6:J$25,2,FALSE) -> 8 | L44: ='Electric Utility Data'!W44 -> 1 | N44: ='Electric Utility Data'!Y44 -> A+ | P44: ='Electric Utility Data'!X44 -> 0.8 | R44: ='Electric Utility Data'!AC44 -> 39400 | T44: Y
C46: =IF(AND(H46<=$G$55,H46>=$G$56,W46<>"X"),"Y",IF(AND(K46<=$J$55,K46>=$J$56,W46<>"X"),"Y",IF(W46="Y","Y",""))) -> 
A47: (a) | B47: ='Electric Utility Data'!B50 -> Issuer credit rating from www.standardandpoors.com (retrieved Mar. 28, 2023).
A48: (b) | B48: ='Electric Utility Data'!B51 -> Long-term rating from www.moodys.com (retrieved Mar. 28, 2023).
A49: (c) | B49: ='Electric Utility Data'!B49 -> The Value Line Investment Survey (Jan. 20, Feb. 10 and Mar. 10, 2023).
L52: Safety | N52: Financial
B53: =COUNTIF(B8:B44,"Y") -> 18 | C53: Proxy Group Criteria | F53: S&P | I53: Moodys | L53: Rank | N53: Strength
C54: Kentucky Power | F54: BBB | G54: =VLOOKUP(F54,'Ordinal Ratings'!$A$6:$B$28,2,FALSE) -> 9 | I54: Baa3 | J54: =VLOOKUP(I54,'Ordinal Ratings'!I$6:J$25,2,FALSE) -> 10 | L54: =L12 -> 1 | N54: =N12 -> A+
C55: Low Rating | F55: =VLOOKUP(G55,'Ordinal Ratings'!$B$6:$C$26,2,FALSE) -> BBB- | G55: =G54+1 -> 10 | I55: =VLOOKUP(J55,'Ordinal Ratings'!$J$6:$K$24,2,FALSE) -> Baa3 | J55: 10 | L55: 3 | N55: B+
C56: High Rating | F56: =VLOOKUP(G56,'Ordinal Ratings'!$B$6:$C$26,2,FALSE) -> BBB+ | G56: =G54-1 -> 8 | I56: =VLOOKUP(J56,'Ordinal Ratings'!$J$6:$K$24,2,FALSE) -> Baa2 | J56: =J54-1 -> 9 | L56: 1 | N56: A++
C65: =IF($B8="Y",C8,"zzz") -> zzz | D65: zzz
C66: zzz | D66: zzz
C67: zzz | D67: zzz
C68: zzz | D68: zzz
C69: zzz | D69: zzz
C70: zzz | D70: zzz
C71: AVA | D71: Avista Corp.
C72: BKH | D72: Black Hills Corp.
C73: CNP | D73: CenterPoint Energy
C74: CMS | D74: CMS Energy Corp.
C75: zzz | D75: zzz
C76: D | D76: Dominion Energy
C77: DTE | D77: DTE Energy Co.
C78: DUK | D78: Duke Energy Corp.
C79: EIX | D79: Edison International
C80: EMA | D80: Emera Inc.
C81: ETR | D81: Entergy Corp.
C82: zzz | D82: zzz
C83: zzz | D83: zzz
C84: EXC | D84: Exelon Corp.
C85: zzz | D85: zzz
C86: zzz | D86: zzz
C87: HE | D87: Hawaiian Elec.
C88: IDA | D88: IDACORP, Inc.
C89: =IF(#REF!="Y",#REF!,"zzz") ->  | D89: =IF(#REF!="Y",#REF!,"zzz") -> 
C90: =IF($B32="Y",C32,"zzz") -> zzz | D90: zzz
C91: NWE | D91: NorthWestern Corp.
C92: =IF(#REF!="Y",#REF!,"zzz") ->  | D92: =IF(#REF!="Y",#REF!,"zzz") -> 
C93: =IF($B34="Y",C34,"zzz") -> zzz | D93: zzz
C94: =IF($B35="Y",C35,"zzz") -> OTTR | D94: Otter Tail Corp.
C95: =IF($B36="Y",C36,"zzz") -> zzz | D95: zzz
C96: =IF($B37="Y",C37,"zzz") -> zzz | D96: zzz
C97: =IF($B38="Y",C38,"zzz") -> zzz | D97: zzz
C98: =IF($B39="Y",C39,"zzz") -> zzz | D98: zzz
C99: =IF($B40="Y",C40,"zzz") -> PEG | D99: Pub Sv Enterprise Grp.
C100: =IF($B41="Y",C41,"zzz") -> SRE | D100: Sempra Energy
C101: =IF($B42="Y",C42,"zzz") -> SO | D101: Southern Company
C102: =IF($B43="Y",C43,"zzz") -> zzz | D102: zzz
C103: =IF($B44="Y",C44,"zzz") -> zzz | D103: zzz

Sheet Proxy Group Ticker
B2: SYM | C2: Company
A3: =A2+1 -> 1 | B3: ='Proxy Group Criteria'!C71 -> AVA | C3: ='Proxy Group Criteria'!D71 -> Avista Corp.
A4: =A3+1 -> 2 | B4: ='Proxy Group Criteria'!C72 -> BKH | C4: ='Proxy Group Criteria'!D72 -> Black Hills Corp.
A5: 3 | B5: ='Proxy Group Criteria'!C73 -> CNP | C5: ='Proxy Group Criteria'!D73 -> CenterPoint Energy
A6: 4 | B6: ='Proxy Group Criteria'!C74 -> CMS | C6: ='Proxy Group Criteria'!D74 -> CMS Energy Corp.
A7: 5 | B7: ='Proxy Group Criteria'!C76 -> D | C7: ='Proxy Group Criteria'!D76 -> Dominion Energy
A8: 6 | B8: ='Proxy Group Criteria'!C77 -> DTE | C8: ='Proxy Group Criteria'!D77 -> DTE Energy Co.
A9: 7 | B9: ='Proxy Group Criteria'!C78 -> DUK | C9: ='Proxy Group Criteria'!D78 -> Duke Energy Corp.
A10: 8 | B10: ='Proxy Group Criteria'!C79 -> EIX | C10: ='Proxy Group Criteria'!D79 -> Edison International
A11: 9 | B11: ='Proxy Group Criteria'!C80 -> EMA | C11: ='Proxy Group Criteria'!D80 -> Emera Inc.
A12: 10 | B12: ='Proxy Group Criteria'!C81 -> ETR | C12: ='Proxy Group Criteria'!D81 -> Entergy Corp.
A13: 11 | B13: ='Proxy Group Criteria'!C84 -> EXC | C13: ='Proxy Group Criteria'!D84 -> Exelon Corp.
A14: 12 | B14: ='Proxy Group Criteria'!C87 -> HE | C14: ='Proxy Group Criteria'!D87 -> Hawaiian Elec.
A15: 13 | B15: ='Proxy Group Criteria'!C88 -> IDA | C15: ='Proxy Group Criteria'!D88 -> IDACORP, Inc.
A16: 14 | B16: ='Proxy Group Criteria'!C91 -> NWE | C16: ='Proxy Group Criteria'!D91 -> NorthWestern Corp.
A17: 15 | B17: ='Proxy Group Criteria'!C94 -> OTTR | C17: ='Proxy Group Criteria'!D94 -> Otter Tail Corp.
A18: 16 | B18: ='Proxy Group Criteria'!C99 -> PEG | C18: ='Proxy Group Criteria'!D99 -> Pub Sv Enterprise Grp.
A19: 17 | B19: ='Proxy Group Criteria'!C100 -> SRE | C19: ='Proxy Group Criteria'!D100 -> Sempra Energy
A20: 18 | B20: ='Proxy Group Criteria'!C101 -> SO | C20: ='Proxy Group Criteria'!D101 -> Southern Company
A21: 19 | B21: ='Proxy Group Criteria'!C67 -> zzz | C21: ='Proxy Group Criteria'!D67 -> zzz
A22: 20 | B22: ='Proxy Group Criteria'!C69 -> zzz | C22: ='Proxy Group Criteria'!D69 -> zzz
A23: 21 | B23: ='Proxy Group Criteria'!C82 -> zzz | C23: ='Proxy Group Criteria'!D82 -> zzz
A24: 22 | B24: ='Proxy Group Criteria'!C86 -> zzz | C24: ='Proxy Group Criteria'!D86 -> zzz
A25: 23 | B25: ='Proxy Group Criteria'!C66 -> zzz | C25: ='Proxy Group Criteria'!D66 -> zzz
A26: 24 | B26: ='Proxy Group Criteria'!C68 -> zzz | C26: ='Proxy Group Criteria'!D68 -> zzz
A27: 25 | B27: ='Proxy Group Criteria'!C93 -> zzz | C27: ='Proxy Group Criteria'!D93 -> zzz
A28: 26 | B28: ='Proxy Group Criteria'!C95 -> zzz | C28: ='Proxy Group Criteria'!D95 -> zzz
A29: 27 | B29: ='Proxy Group Criteria'!C97 -> zzz | C29: ='Proxy Group Criteria'!D97 -> zzz
A30: 28 | B30: ='Proxy Group Criteria'!C83 -> zzz | C30: ='Proxy Group Criteria'!D83 -> zzz
A31: 29 | B31: ='Proxy Group Criteria'!C90 -> zzz | C31: ='Proxy Group Criteria'!D90 -> zzz
A32: 30 | B32: ='Proxy Group Criteria'!C98 -> zzz | C32: ='Proxy Group Criteria'!D98 -> zzz
A33: 31 | B33: ='Proxy Group Criteria'!C102 -> zzz | C33: ='Proxy Group Criteria'!D102 -> zzz
A34: 32 | B34: ='Proxy Group Criteria'!C103 -> zzz | C34: ='Proxy Group Criteria'!D103 -> zzz
A35: 33 | B35: ='Proxy Group Criteria'!C75 -> zzz | C35: ='Proxy Group Criteria'!D75 -> zzz
A36: 34 | B36: ='Proxy Group Criteria'!C70 -> zzz | C36: ='Proxy Group Criteria'!D70 -> zzz
A37: 35 | B37: ='Proxy Group Criteria'!C85 -> zzz | C37: ='Proxy Group Criteria'!D85 -> zzz
A38: 36 | B38: ='Proxy Group Criteria'!C65 -> zzz | C38: ='Proxy Group Criteria'!D65 -> zzz
A39: 37 | B39: ='Proxy Group Criteria'!C96 -> zzz | C39: ='Proxy Group Criteria'!D96 -> zzz
A40: 38

Sheet Exhibit List
A1: Tab | B1: Designation | C1: Title I | D1: Title II
A2: 2 | B2: Exhibit AMM-2 | C2: ROE ANALYSIS | D2: SUMMARY OF RESULTS
A3: 3 (1) | B3: Exhibit AMM-3 | C3: REGULATORY MECHANISMS | D3: UTILITY GROUP
A4: 3 (2-4) | B4: Exhibit AMM-3 | C4: REGULATORY MECHANISMS | D4: UTILITY GROUP OPERATING COS.
A5: 4 (1) | B5: Exhibit AMM-4 | C5: CAPITAL STRUCTURE | D5: UTILITY GROUP
A6: 4 (2-3) | B6: Exhibit AMM-4 | C6: CAPITAL STRUCTURE | D6: UTILITY GROUP OPERATING SUBSIDIARIES
A7: 5 (1) | B7: Exhibit AMM-5 | C7: DCF MODEL - UTILITY GROUP | D7: DIVIDEND YIELD
A8: 5 (2) | B8: Exhibit AMM-5 | C8: DCF MODEL - UTILITY GROUP | D8: GROWTH RATES
A9: 5 (3) | B9: Exhibit AMM-5 | C9: DCF MODEL - UTILITY GROUP | D9: COST OF EQUITY ESTIMATES
A10: 6 | B10: Exhibit AMM-6 | C10: BR+SV GROWTH RATE | D10: UTILITY GROUP
A11: 7 (1) | B11: Exhibit AMM-7 | C11: CAPM | D11: UTILITY GROUP
A12: 8 (1) | B12: Exhibit AMM-8 | C12: ECAPM | D12: UTILITY GROUP
A13: 9 (1) | B13: Exhibit AMM-9 | C13: RISK PREMIUM METHOD | D13: COST OF EQUITY ESTIMATE
A14: 9 (2) | B14: Exhibit AMM-9 | C14: RISK PREMIUM METHOD | D14: AUTHORIZED RETURNS
A15: 9 (3) | B15: Exhibit AMM-9 | C15: RISK PREMIUM METHOD | D15: REGRESSION RESULTS
A16: 10 | B16: Exhibit AMM-10 | C16: EXPECTED EARNINGS APPROACH | D16: UTILITY GROUP
A17: 11 | B17: Exhibit AMM-11 | C17: FLOTATION COST STUDY | D17: ELECTRIC & GAS UTILITIES
A18: 12 (1) | B18: Exhibit AMM-12 | C18: DCF MODEL - NON-UTILITY GROUP | D18: DIVIDEND YIELD
A19: 12 (2) | B19: Exhibit AMM-12 | C19: DCF MODEL - NON-UTILITY GROUP | D19: GROWTH RATES
A20: 12 (3) | B20: Exhibit AMM-12 | C20: DCF MODEL - NON-UTILITY GROUP | D20: DCF COST OF EQUITY ESTIMATES

Sheet 2
A1: ='Exhibit List'!C2 -> ROE ANALYSIS | I1: ='Exhibit List'!B2 -> Exhibit AMM-2
I2: Page 1 of 1
A3: ='Exhibit List'!D2 -> SUMMARY OF RESULTS
B6: Method | F6: Average
B7: DCF
C8: Value Line | F8: ='5 (3)'!D28 -> 0.09185200871
C9: IBES | F9: ='5 (3)'!F28 -> 0.101668232
C10: Zacks | F10: ='5 (3)'!H28 -> 0.09491303965
C11: Internal br + sv | F11: ='5 (3)'!K28 -> 0.0915024954
B13: CAPM | F13: ='7'!M28 -> 0.1114176471
B15: ECAPM | F15: ='8'!R28 -> 0.1135397059
B17: Utility Risk Premium | F17: ='9 (1)'!G23 -> 0.10571158
B19: Expected Earnings | F19: ='10'!H28 -> 0.1122311699
B22: ROE Recommendation
B24: Cost of Equity | E24: 0.1 | F24: -- | G24: 0.11
B26: Flotation Cost Adjustment
C27: Electric Group Dividend Yield | F27: ='5 (1)'!H28 -> 0.03836797724
C28: Flotation Cost Expense Factor | F28: ='11'!K43 -> 0.02563644915
D29: Flotation Cost Adjustment | F29: =F27*F28 -> 0.0009836186976
B31: Recommended ROE Range
C32: Range | E32: =E24+F29 -> 0.1009836187 | F32: -- | G32: =G24+F29 -> 0.1109836187
C33: Midpoint | F33: =AVERAGE(E32,G32) -> 0.1059836187
O39: Utility | U39: Non-Utility
L41: Growth Rate | N41: Average | P41: Midpoint | S41: Growth Rate | U41: Average | W41: Midpoint
L42: Value Line | N42: =F8 -> 0.09185200871 | P42: =AVERAGE('5 (3)'!O28:O29) -> 0.1005809089 | S42: Value Line | U42: ='12 (3)'!D59 -> 0.1088435743 | W42: =AVERAGE('12 (3)'!L59:L60) -> 0.1193636095
L43: IBES | N43: =F9 -> 0.101668232 | P43: =AVERAGE('5 (3)'!P28:P29) -> 0.09436329324 | S43: IBES | U43: ='12 (3)'!F59 -> 0.1038480173 | W43: =AVERAGE('12 (3)'!M59:M60) -> 0.1073779274
L44: Zacks | N44: =F10 -> 0.09491303965 | P44: =AVERAGE('5 (3)'!Q28:Q29) -> 0.0970442513 | S44: Zacks | U44: ='12 (3)'!H59 -> 0.1094076645 | W44: =AVERAGE('12 (3)'!N59:N60) -> 0.1212507527
L45: br + sv | N45: =F11 -> 0.0915024954 | P45: =AVERAGE('5 (3)'!R28:R29) -> 0.09307778513
U46: =AVERAGE(U42:U44) -> 0.1073664187

Sheet 3 (1)
H4: =COUNTIFS(H13:H30,"✓",J13:J30,"✓") -> 1
A5: ='Exhibit List'!C3 -> REGULATORY MECHANISMS | X5: ='Exhibit List'!B3 -> Exhibit AMM-3
X6: Page 1 of 4
A7: ='Exhibit List'!D3 -> UTILITY GROUP
D9: Type of Adjustment Clause (a) | V9: (b) | W9: (c)
F10: Conserv. | L10: New Capital | V10: Future | W10: Formula
F11: Program | H11: Decoupling | L11: Trad. | N11: Renewables/ | P11: Delivery | R11: Environ. | T11: Trans. | V11: Test | W11: Rates /
B12: Company | D12: Fuel/PPA | F12: Expense | H12: Full | J12: Partial | L12: Generation | N12: Non-Trad. | P12: Infra. | R12: Compliance | T12: Costs | V12: Year | W12: MRP
A13: =A12+1 -> 1 | B13: Avista Corp. | D13: ✓ | F13: ✓ | H13: ✓ | J13: -- | L13: -- | N13: -- | P13: -- | R13: -- | T13: -- | V13: P | W13: ✓ | Y13: AVA | Z13: Avista Corp.
A14: =A13+1 -> 2 | B14: Black Hills Corp. | D14: ✓ | F14: ✓ | H14: -- | J14: ✓ | L14: ✓ | N14: ✓ | P14: -- | R14: ✓ | T14: ✓ | V14: O | W14: ✓ | Y14: BKH | Z14: Black Hills Corp.
A15: 3 | B15: CenterPoint Energy | D15: ✓ | F15: ✓ | H15: -- | J15: ✓ | L15: -- | N15: -- | P15: ✓ | R15: ✓ | T15: ✓ | V15: -- | W15: ✓ | Y15: CNP | Z15: CenterPoint Energy
A16: 4 | B16: CMS Energy Corp. | D16: ✓ | F16: ✓ | H16: -- | J16: -- | L16: -- | N16: ✓ | P16: -- | R16: -- | T16: ✓ | V16: C | W16: -- | Y16: CMS | Z16: CMS Energy Corp.
A17: 5 | B17: Dominion Energy | D17: ✓ | F17: ✓ | H17: -- | J17: -- | L17: ✓ | N17: ✓ | P17: ✓ | R17: ✓ | T17: ✓ | V17: -- | W17: ✓ | Y17: D | Z17: Dominion Energy
A18: 6 | B18: DTE Energy Co. | D18: ✓ | F18: ✓ | H18: -- | J18: -- | L18: -- | N18: ✓ | P18: -- | R18: -- | T18: ✓ | V18: C | W18: -- | Y18: DTE | Z18: DTE Energy Co.
A19: 7 | B19: Duke Energy Corp. | D19: ✓ | F19: ✓ | H19: -- | J19: ✓ | L19: ✓ | N19: ✓ | P19: ✓ | R19: ✓ | T19: ✓ | V19: C,O,P | W19: ✓ | Y19: DUK | Z19: Duke Energy Corp.
A20: 8 | B20: Edison International | D20: ✓ | F20: -- | H20: ✓ | J20: -- | L20: -- | N20: -- | P20: -- | R20: -- | T20: -- | V20: C | W20: ✓ | Y20: EIX | Z20: Edison International
A21: 9 | B21: Emera Inc. | D21: ✓ | F21: ✓ | H21: -- | J21: -- | L21: ✓ | N21: ✓ | P21: -- | R21: ✓ | T21: -- | V21: C | W21: ✓ | Y21: EMA | Z21: Emera Inc.
A22: 10 | B22: Entergy Corp. | D22: ✓ | F22: ✓ | H22: -- | J22: ✓ | L22: ✓ | N22: ✓ | P22: ✓ | R22: ✓ | T22: ✓ | V22: O,P | W22: ✓ | Y22: ETR | Z22: Entergy Corp.
A23: 11 | B23: Exelon Corp. | D23: D | F23: ✓ | H23: ✓ | J23: ✓ | L23: -- | N23: ✓ | P23: ✓ | R23: ✓ | T23: ✓ | V23: O,P | W23: ✓ | Y23: EXC | Z23: Exelon Corp.
A24: 12 | B24: Hawaiian Elec. | D24: ✓ | F24: ✓ | H24: -- | J24: -- | L24: -- | N24: ✓ | P24: -- | R24: -- | T24: -- | V24: C | W24: ✓ | Y24: HE | Z24: Hawaiian Elec.
A25: 13 | B25: IDACORP, Inc. | D25: ✓ | F25: ✓ | H25: ✓ | J25: -- | L25: -- | N25: -- | P25: -- | R25: -- | T25: -- | V25: C,P | W25: -- | Y25: IDA | Z25: IDACORP, Inc.
A26: 14 | B26: NorthWestern Corp. | D26: ✓ | F26: ✓ | H26: -- | J26: -- | L26: -- | N26: -- | P26: -- | R26: -- | T26: -- | V26: -- | W26: -- | Y26: NWE | Z26: NorthWestern Corp.
A27: 15 | B27: Otter Tail Corp. | D27: ✓ | F27: ✓ | H27: -- | J27: -- | L27: ✓ | N27: ✓ | P27: ✓ | R27: ✓ | T27: ✓ | V27: C,O | W27: ✓ | Y27: OTTR | Z27: Otter Tail Corp.
A28: 16 | B28: Pub Sv Enterprise Grp. | D28: D | F28: ✓ | H28: -- | J28: ✓ | L28: -- | N28: -- | P28: ✓ | R28: ✓ | T28: -- | V28: P | W28: -- | Y28: PEG | Z28: Pub Sv Enterprise Grp.
A29: 17 | B29: Sempra Energy | D29: ✓ | F29: ✓ | H29: ✓ | J29: -- | L29: -- | N29: -- | P29: ✓ | R29: -- | T29: ✓ | V29: C | W29: ✓ | Y29: SRE | Z29: Sempra Energy
A30: 18 | B30: Southern Company | D30: ✓ | F30: -- | H30: -- | J30: ✓ | L30: ✓ | N30: ✓ | P30: -- | R30: ✓ | T30: -- | V30: C,O | W30: ✓ | Y30: SO | Z30: Southern Company
A33: Notes
A34: D - Delivery-only utility.
A35: C - Fully-forecasted test years commonly used in the state listed for this operating company.
A36: O - Fully-forecasted test years occasionally used in the state listed for this operating company.
A37: P - Partially-forecasted test years commonly or occasionally used in the state listed for this operating company.
A39: ="Source: "&'3 (1)'!X5 & ", pages 2-4, contain operating company data that are aggregated into the parent company data on this page." -> Source: Exhibit AMM-3, pages 2-4, contain operating company data that are aggregated into the parent company data on this page.

Sheet 3 (2-4)
A6: REGULATORY MECHANISMS
A8: ELECTRIC GROUP OPERATING COS.
D10: Type of Adjustment Clause (a) | V10: (b) | W10: (c)
F11: Conserv. | L11: New Capital | V11: Future | W11: Formula
F12: Program | H12: Decoupling | L12: Trad. | N12: Renewables/ | P12: Delivery | R12: Environ. | T12: Trans. | V12: Test | W12: Rates /
B13: Company | C13: State | D13: Fuel/PPA | F13: Expense | H13: Full | J13: Partial | L13: Generation | N13: Non-Trad. | P13: Infra. | R13: Compliance | T13: Costs | V13: Year | W13: MRP
A14: 1 | B14: AVISTA CORP.
B15: Alaska Electric Light & Power Co. | C15: AK | D15: ✓ | F15: -- | H15: -- | J15: -- | L15: -- | N15: -- | P15: -- | R15: -- | T15: -- | V15: -- | W15: --
B16: Avista Corp. | C16: ID | D16: ✓ | E16: * | F16: ✓ | H16: ✓ | I16: * | J16: -- | L16: -- | N16: -- | P16: -- | R16: -- | T16: -- | V16: P | W16: --
B17: Avista Corp. | C17: WA | D17: ✓ | E17: * | F17: ✓ | H17: ✓ | J17: -- | K17: * | L17: -- | N17: -- | P17: -- | R17: -- | T17: -- | V17: -- | W17: ✓
A18: 2 | B18: BLACK HILLS CORP.
B19: Black Hills Colorado Electric Inc. | C19: CO | D19: ✓ | F19: ✓ | H19: -- | J19: -- | L19: ✓ | M19: * | N19: ✓ | P19: -- | R19: -- | T19: ✓ | V19: -- | W19: ✓
B20: Black Hills Power Inc. | C20: SD | D20: ✓ | F20: -- | H20: -- | J20: -- | L20: -- | N20: -- | P20: -- | R20: ✓ | S20: * | T20: ✓ | U20: * | V20: -- | W20: --
B21: Cheyenne Light Fuel & Power Co. | C21: WY | D21: ✓ | F21: ✓ | H21: -- | J21: ✓ | K21: * | L21: -- | N21: -- | P21: -- | R21: -- | T21: -- | V21: O | W21: --
A22: 3 | B22: CENTERPOINT ENERGY
B23: Southern Indiana Gas & Electric Co. | C23: IN | D23: ✓ | F23: ✓ | H23: -- | J23: ✓ | K23: * | L23: -- | N23: -- | P23: ✓ | Q23: * | R23: ✓ | S23: * | T23: ✓ | V23: -- | W23: ✓
B24: CenterPoint Energy Houston Electric LLC | C24: TX | D24: -- | E24: * | F24: ✓ | H24: -- | J24: -- | L24: -- | N24: -- | P24: ✓ | R24: -- | T24: ✓ | V24: -- | W24: ✓
A25: 4 | B25: CMS ENERGY
B26: Consumers Energy Co. | C26: MI | D26: ✓ | F26: ✓ | H26: -- | I26: * | J26: -- | L26: -- | N26: ✓ | P26: -- | R26: -- | T26: ✓ | U26: * | V26: C | W26: --
A27: 5 | B27: DOMINION ENERGY
B28: Virginia Electric & Power Co. | C28: NC | D28: ✓ | F28: ✓ | G28: * | H28: -- | J28: -- | K28: * | L28: -- | N28: ✓ | O28: * | P28: -- | R28: ✓ | T28: -- | V28: -- | W28: --
B29: Dominion Energy South Carolina | C29: SC | D29: ✓ | F29: ✓ | H29: -- | J29: -- | L29: ✓ | M29: * | N29: -- | P29: -- | R29: ✓ | T29: -- | V29: -- | W29: ✓
B30: Virginia Electric & Power Co. | C30: VA | D30: ✓ | F30: ✓ | H30: -- | J30: -- | L30: ✓ | N30: ✓ | P30: ✓ | R30: ✓ | T30: ✓ | V30: -- | W30: ✓
A31: 6 | B31: DTE ENERGY CO.
B32: DTE Electric Co. | C32: MI | D32: ✓ | F32: ✓ | H32: -- | I32: * | J32: -- | L32: -- | N32: ✓ | P32: -- | R32: -- | T32: ✓ | U32: * | V32: C | W32: --
A33: 7 | B33: DUKE ENERGY
B34: Duke Energy Florida LLC | C34: FL | D34: ✓ | F34: ✓ | H34: -- | J34: -- | L34: ✓ | M34: * | N34: ✓ | O34: * | P34: -- | Q34: * | R34: ✓ | T34: -- | V34: C | W34: ✓
B35: Duke Energy Indiana LLC | C35: IN | D35: ✓ | F35: ✓ | H35: -- | J35: ✓ | K35: * | L35: -- | N35: ✓ | P35: ✓ | Q35: * | R35: ✓ | S35: * | T35: ✓ | V35: -- | W35: ✓
B36: Duke Energy Kentucky Inc. | C36: KY | D36: ✓ | F36: ✓ | H36: -- | J36: ✓ | K36: * | L36: -- | N36: -- | P36: -- | R36: ✓ | T36: -- | V36: O | W36: --
B37: Duke Energy Carolinas LLC | C37: NC | D37: ✓ | F37: ✓ | G37: * | H37: -- | J37: -- | K37: * | L37: -- | N37: ✓ | O37: * | P37: -- | R37: ✓ | T37: -- | V37: -- | W37: --
B38: Duke Energy Progress LLC | C38: NC | D38: ✓ | F38: ✓ | G38: * | H38: -- | J38: -- | K38: * | L38: -- | N38: ✓ | O38: * | P38: -- | R38: ✓ | T38: -- | V38: -- | W38: --
B39: Duke Energy Ohio Inc. | C39: OH | D39: D | E39: * | F39: ✓ | G39: * | H39: -- | J39: ✓ | K39: * | L39: -- | N39: ✓ | P39: ✓ | Q39: * | R39: -- | T39: ✓ | V39: P | W39: ✓
B40: Duke Energy Progress LLC | C40: SC | D40: ✓ | F40: ✓ | H40: -- | J40: -- | L40: -- | M40: * | N40: -- | P40: -- | R40: ✓ | T40: -- | V40: -- | W40: ✓
B41: Duke Energy Carolinas LLC | C41: SC | D41: ✓ | F41: ✓ | H41: -- | J41: -- | L41: -- | M41: * | N41: -- | P41: -- | R41: ✓ | T41: -- | V41: -- | W41: ✓
A42: 8 | B42: EDISON INTERNATIONAL
B43: Southern California Edison Co. | C43: CA | D43: ✓ | F43: -- | H43: ✓ | J43: -- | L43: -- | N43: -- | P43: -- | R43: -- | T43: -- | V43: C | W43: ✓
A44: 9 | B44: EMERA INC.
B45: Tampa Electric Co. | C45: FL | D45: ✓ | F45: ✓ | H45: -- | J45: -- | L45: ✓ | M45: * | N45: ✓ | O45: * | P45: -- | Q45: * | R45: ✓ | T45: -- | V45: C | W45: ✓
A46: 10 | B46: ENTERGY CORP.
B47: Entergy Arkansas LLC | C47: AR | D47: ✓ | F47: ✓ | H47: -- | J47: ✓ | K47: * | L47: ✓ | M47: * | N47: ✓ | O47: * | P47: ✓ | Q47: * | R47: -- | T47: ✓ | V47: P | W47: ✓
B48: Entergy New Orleans LLC | C48: LA | D48: ✓ | F48: ✓ | H48: -- | J48: -- | L48: -- | N48: ✓ | P48: -- | R48: ✓ | S48: * | T48: ✓ | U48: * | V48: O | W48: ✓
B49: Entergy Louisiana LLC | C49: LA | D49: ✓ | F49: ✓ | G49: * | H49: -- | J49: ✓ | K49: * | L49: -- | N49: -- | P49: -- | R49: ✓ | T49: -- | V49: O | W49: ✓
B50: Entergy Mississippi LLC | C50: MS | D50: ✓ | F50: -- | H50: -- | J50: ✓ | K50: * | L50: -- | N50: -- | P50: -- | R50: -- | T50: ✓ | V50: O | W50: ✓
B51: Entergy Texas Inc. | C51: TX | D51: ✓ | E51: * | F51: ✓ | H51: -- | J51: -- | L51: ✓ | M51: * | N51: -- | P51: ✓ | R51: -- | T51: ✓ | V51: -- | W51: ✓
A52: 11 | B52: EXELON CORP.
B53: Delmarva Power & Light Co. | C53: DE | D53: D | E53: * | F53: ✓ | H53: -- | J53: -- | L53: -- | N53: -- | P53: ✓ | Q53: * | R53: -- | T53: ✓ | V53: P | W53: --
B54: Potomac Electric Power Co. | C54: DC | D54: D | E54: * | F54: -- | H54: -- | J54: ✓ | K54: * | L54: -- | N54: ✓ | O54: * | P54: ✓ | Q54: * | R54: -- | T54: -- | V54: P | W54: --
B55: Commonwealth Edison Co. | C55: IL | D55: D | E55: * | F55: ✓ | H55: -- | J55: -- | L55: -- | N55: ✓ | P55: ✓ | Q55: * | R55: ✓ | S55: * | T55: ✓ | V55: O | W55: ✓
B56: Baltimore Gas & Electric Co. | C56: MD | D56: D | E56: * | F56: ✓ | H56: ✓ | J56: -- | L56: -- | N56: -- | P56: -- | R56: -- | T56: -- | V56: P | W56: --
B57: Delmarva Power & Light Co. | C57: MD | D57: D | E57: * | F57: ✓ | H57: ✓ | J57: -- | L57: -- | N57: -- | P57: -- | R57: -- | T57: -- | V57: P | W57: --
B58: Potomac Electric Power Co. | C58: MD | D58: D | E58: * | F58: ✓ | H58: ✓ | J58: -- | L58: -- | N58: -- | P58: ✓ | Q58: * | R58: -- | T58: -- | V58: P | W58: --
B59: Atlantic City Electric Co. | C59: NJ | D59: D | E59: * | F59: ✓ | G59: * | H59: -- | J59: ✓ | K59: * | L59: -- | N59: -- | P59: ✓ | Q59: * | R59: ✓ | S59: * | T59: -- | V59: P | W59: --
B60: PECO Energy Co. | C60: PA | D60: D | E60: * | F60: ✓ | H60: -- | J60: -- | L60: -- | N60: -- | P60: ✓ | Q60: * | R60: -- | T60: ✓ | V60: O | W60: --
A61: 12 | B61: HAWAIIAN ELEC.
B62: Hawaiian Electric Co. | C62: HI | D62: ✓ | F62: ✓ | H62: -- | J62: -- | L62: -- | N62: ✓ | O62: * | P62: -- | R62: -- | T62: -- | V62: C | W62: ✓
B63: Hawaii Electric Light Co. | C63: HI | D63: ✓ | F63: ✓ | H63: -- | J63: -- | L63: -- | N63: -- | P63: -- | R63: -- | T63: -- | V63: C | W63: ✓
B64: Maui Electric Co. | C64: HI | D64: ✓ | F64: ✓ | H64: -- | J64: -- | L64: -- | N64: ✓ | O64: * | P64: -- | R64: -- | T64: -- | V64: C | W64: ✓
A65: 13 | B65: IDACORP, INC.
B66: Idaho Power Co. | C66: ID | D66: ✓ | E66: * | F66: ✓ | H66: ✓ | I66: * | J66: -- | L66: -- | N66: -- | P66: -- | R66: -- | T66: -- | V66: P | W66: --
B67: Idaho Power Co. | C67: OR | D67: ✓ | F67: ✓ | H67: -- | J67: -- | L67: -- | N67: -- | P67: -- | R67: -- | T67: -- | V67: C | W67: --
A68: 14 | B68: NORTHWESTERN CORP.
B69: NorthWestern Corp. | C69: MT | D69: ✓ | E69: * | F69: ✓ | H69: -- | J69: -- | L69: -- | N69: -- | P69: -- | R69: -- | T69: -- | V69: -- | W69: --
B70: NorthWestern Corp. | C70: SD | D70: ✓ | F70: ✓ | H70: -- | J70: -- | L70: -- | N70: -- | P70: -- | R70: -- | T70: -- | V70: -- | W70: --
A71: 15 | B71: OTTER TAIL CORP.
B72: Otter Tail Power Co. | C72: MN | D72: ✓ | F72: ✓ | H72: -- | J72: -- | L72: -- | N72: ✓ | P72: -- | R72: ✓ | T72: ✓ | V72: C | W72: --
B73: Otter Tail Power Co. | C73: ND | D73: ✓ | F73: -- | H73: -- | J73: -- | L73: ✓ | M73: * | N73: ✓ | O73: * | P73: ✓ | Q73: * | R73: ✓ | S73: * | T73: ✓ | U73: * | V73: O | W73: ✓
B74: Otter Tail Power Corp. | C74: SD | D74: ✓ | F74: ✓ | H74: -- | J74: -- | L74: ✓ | M74: * | N74: -- | P74: ✓ | R74: ✓ | T74: -- | V74: -- | W74: --
A75: 16 | B75: PUB SV ENTERPRISE GRP
B76: Public Service Electric & Gas Co. | C76: NJ | D76: D | E76: * | F76: ✓ | G76: * | H76: -- | J76: ✓ | K76: * | L76: -- | N76: -- | P76: ✓ | Q76: * | R76: ✓ | S76: * | T76: -- | V76: P | W76: --
A77: 17 | B77: SEMPRA ENERGY
B78: San Diego Gas & Electric Co. | C78: CA | D78: ✓ | F78: -- | H78: ✓ | J78: -- | L78: -- | N78: -- | P78: -- | R78: -- | T78: -- | V78: C | W78: ✓
B79: Oncor Electric Delivery Co. | C79: TX | D79: D | E79: * | F79: ✓ | H79: -- | J79: -- | L79: -- | N79: -- | P79: ✓ | R79: -- | T79: ✓ | V79: -- | W79: ✓
A80: 18 | B80: SOUTHERN CO.
B81: Alabama Power Co. | C81: AL | D81: ✓ | E81: * | F81: -- | H81: -- | J81: -- | L81: ✓ | M81: * | N81: ✓ | P81: -- | R81: ✓ | S81: * | T81: -- | V81: C | W81: ✓
B82: Georgia Power Co. | C82: GA | D82: ✓ | F82: -- | H82: -- | J82: -- | L82: ✓ | M82: * | N82: -- | P82: -- | R82: ✓ | S82: * | T82: -- | V82: C | W82: ✓
B83: Mississippi Power Co. | C83: MS | D83: ✓ | F83: -- | H83: -- | J83: ✓ | K83: * | L83: -- | N83: -- | P83: -- | R83: ✓ | S83: * | T83: -- | V83: O | W83: ✓
A85: (a) | B85: S&P Global Market Intelligence, Adjustment clauses: A state by state overview, Regulatory Focus Topical Special Report (Jul. 18, 2022).
A86: (b) | B86: Edison Electric Institute, Alternative Regulation for Emerging Utility Challenges: 2015 Update (Nov. 11, 2015).
A87: (c) | B87: Formula rates and Multiyear Rate plans approved in the state listed for this operating company. See, U.S. Department of Energy, State Performance-Based Regulation Using Multiyear Rate Plans for U.S. Electric Utilities,GRID Modernization Laboratory Consortium (Jul. 2017); The Brattle Group, Exploring the Use of Alternative Regulatory Mechanisms to Establish New Base Rates, Joint Utilities of Maryland (Mar. 29, 2018).
A90: Notes
A91: D - Delivery-only utility.
A92: C - Fully-forecasted test years commonly used in the state listed for this operating company.
A93: O - Fully-forecasted test years occasionally used in the state listed for this operating company.
A94: P - Partially-forecasted test years commonly or occasionally used in the state listed for this operating company.
A95: * For additional context around the specific recovery mechanisms available to the particular operating companies in each state, see the source document.
B100: HAWAIIAN ELEC. | D100: ✓ | F100: ✓ | H100: -- | J100: -- | L100: -- | N100: ✓ | P100: -- | R100: -- | T100: -- | V100: C | W100: ✓

Sheet 4 (1)
A1: ='Exhibit List'!C5 -> CAPITAL STRUCTURE | K1: ='Exhibit List'!B5 -> Exhibit AMM-4
K2: Page 1 of 3
A3: ='Exhibit List'!D5 -> UTILITY GROUP
D6: At Year-end 2022 (a) | H6: Value Line Projected (b) | M6: At Year-end 2022 ($millions)
F7: Common | J7: Common | M7: Current | N7: Long-Tern | P7: Common
B8: Company | D8: Debt | E8: Preferred | F8: Equity | H8: Debt | I8: Preferred | J8: Equity | M8: Maturities | N8: Debt | O8: Preferred | P8: Equity | Q8: Total
A9: =A8+1 -> 1 | B9: ='Proxy Group Ticker'!C3 -> Avista Corp. | D9: =SUM(M9,N9)/Q9 -> 0.4956628397 | E9: =O9/$Q9 -> 0 | F9: =P9/$Q9 -> 0.5043371603 | H9: =VLOOKUP('Proxy Group Ticker'!$B3,vldatabase,13,FALSE) -> 0.485 | I9: =1-J9-H9 -> 0 | J9: =VLOOKUP('Proxy Group Ticker'!$B3,vldatabase,15,FALSE) -> 0.515 | M9: 13.5 | N9: 2281.013 | O9: 0 | P9: 2334.668 | Q9: =SUM(M9:P9) -> 4629.181
A10: 2 | B10: ='Proxy Group Ticker'!C4 -> Black Hills Corp. | D10: =SUM(M10,N10)/Q10 -> 0.5721691415 | E10: =O10/$Q10 -> 0 | F10: =P10/$Q10 -> 0.4278308585 | H10: =VLOOKUP('Proxy Group Ticker'!$B4,vldatabase,13,FALSE) -> 0.5 | I10: =1-J10-H10 -> 0 | J10: =VLOOKUP('Proxy Group Ticker'!$B4,vldatabase,15,FALSE) -> 0.5 | M10: 525 | N10: 3607.34 | O10: 0 | P10: 3089.895 | Q10: 7222.235
A11: 3 | B11: ='Proxy Group Ticker'!C5 -> CenterPoint Energy | D11: 0.6193328279 | E11: 0.02994692949 | F11: 0.3507202426 | H11: =VLOOKUP('Proxy Group Ticker'!$B5,vldatabase,13,FALSE) -> 0.55 | I11: 0.025 | J11: =VLOOKUP('Proxy Group Ticker'!$B5,vldatabase,15,FALSE) -> 0.425 | M11: 1502 | N11: 14836 | O11: 790 | P11: 9252 | Q11: 26380
A12: 4 | B12: ='Proxy Group Ticker'!C6 -> CMS Energy Corp. | D12: 0.6518610194 | E12: 0.01026769344 | F12: 0.3378712871 | H12: =VLOOKUP('Proxy Group Ticker'!$B6,vldatabase,13,FALSE) -> 0.615 | I12: 0.01 | J12: =VLOOKUP('Proxy Group Ticker'!$B6,vldatabase,15,FALSE) -> 0.375 | M12: 1099 | N12: 13122 | O12: 224 | P12: 7371 | Q12: 21816
A13: 5 | B13: ='Proxy Group Ticker'!C7 -> Dominion Energy | D13: 0.6024723395 | E13: 0.02542203718 | F13: 0.3721056234 | H13: =VLOOKUP('Proxy Group Ticker'!$B7,vldatabase,13,FALSE) -> 0.57 | I13: 0.02 | J13: =VLOOKUP('Proxy Group Ticker'!$B7,vldatabase,15,FALSE) -> 0.41 | M13: 3341 | N13: 38914 | O13: 1783 | P13: 26098 | Q13: 70136
A14: 6 | B14: ='Proxy Group Ticker'!C8 -> DTE Energy Co. | D14: 0.6337418128 | E14: 0 | F14: 0.3662581872 | H14: =VLOOKUP('Proxy Group Ticker'!$B8,vldatabase,13,FALSE) -> 0.61 | I14: 0 | J14: =VLOOKUP('Proxy Group Ticker'!$B8,vldatabase,15,FALSE) -> 0.39 | M14: 1124 | N14: 16873 | O14: 0 | P14: 10401 | Q14: 28398
A15: 7 | B15: ='Proxy Group Ticker'!C9 -> Duke Energy Corp. | D15: 0.5786638281 | E15: 0.01594240582 | F15: 0.405393766 | H15: =VLOOKUP('Proxy Group Ticker'!$B9,vldatabase,13,FALSE) -> 0.61 | I15: 0.015 | J15: =VLOOKUP('Proxy Group Ticker'!$B9,vldatabase,15,FALSE) -> 0.375 | M15: 4154 | N15: 67061 | O15: 1962 | P15: 49891 | Q15: 123068
A16: 8 | B16: ='Proxy Group Ticker'!C10 -> Edison International | D16: 0.6284641971 | E16: 0.04194143466 | F16: 0.3295943682 | H16: =VLOOKUP('Proxy Group Ticker'!$B10,vldatabase,13,FALSE) -> 0.605 | I16: 0.075 | J16: =VLOOKUP('Proxy Group Ticker'!$B10,vldatabase,15,FALSE) -> 0.32 | M16: 2614 | N16: 27025 | O16: 1978 | P16: 15544 | Q16: 47161
A17: 9 | B17: ='Proxy Group Ticker'!C11 -> Emera Inc. | D17: 0.5878453835 | E17: 0.0512266292 | F17: 0.3609279873 | H17: =VLOOKUP('Proxy Group Ticker'!$B11,vldatabase,13,FALSE) -> 0.5696846389 | I17: 0 | J17: =VLOOKUP('Proxy Group Ticker'!$B11,vldatabase,15,FALSE) -> 0.4303153611 | M17: 574 | N17: 15744 | O17: 1422 | P17: 10019 | Q17: 27759
A18: 10 | B18: ='Proxy Group Ticker'!C12 -> Entergy Corp. | D18: 0.6612603597 | E18: 0.005594788832 | F18: 0.3331448514 | H18: =VLOOKUP('Proxy Group Ticker'!$B12,vldatabase,13,FALSE) -> 0.67 | I18: 0 | J18: =VLOOKUP('Proxy Group Ticker'!$B12,vldatabase,15,FALSE) -> 0.33 | M18: 2309.037 | N18: 23623.512 | O18: 219.41 | P18: 13064.892 | Q18: 39216.851
A19: 11 | B19: ='Proxy Group Ticker'!C13 -> Exelon Corp. | D19: 0.5997282345 | E19: 0 | F19: 0.4002717655 | H19: =VLOOKUP('Proxy Group Ticker'!$B13,vldatabase,13,FALSE) -> 0.645 | I19: 0 | J19: =VLOOKUP('Proxy Group Ticker'!$B13,vldatabase,15,FALSE) -> 0.355 | M19: 1802 | N19: 35272 | O19: 0 | P19: 24744 | Q19: 61818
A20: 12 | B20: ='Proxy Group Ticker'!C14 -> Hawaiian Elec. | D20: 0.5793046013 | E20: 0.006449820685 | F20: 0.4142455781 | H20: =VLOOKUP('Proxy Group Ticker'!$B14,vldatabase,13,FALSE) -> 0.5 | I20: 0.005 | J20: =VLOOKUP('Proxy Group Ticker'!$B14,vldatabase,15,FALSE) -> 0.495 | M20: 0 | N20: 3080.1 | O20: 34.293 | P20: 2202.499 | Q20: 5316.892
A21: 13 | B21: ='Proxy Group Ticker'!C15 -> IDACORP, Inc. | D21: 0.4380615162 | E21: 0 | F21: 0.5619384838 | H21: =VLOOKUP('Proxy Group Ticker'!$B15,vldatabase,13,FALSE) -> 0.5 | I21: 0 | J21: =VLOOKUP('Proxy Group Ticker'!$B15,vldatabase,15,FALSE) -> 0.5 | M21: 0 | N21: 2194.145 | O21: 0 | P21: 2814.615 | Q21: 5008.76
A22: 14 | B22: ='Proxy Group Ticker'!C16 -> NorthWestern Corp. | D22: 0.4826330983 | E22: 0 | F22: 0.5173669017 | H22: =VLOOKUP('Proxy Group Ticker'!$B16,vldatabase,13,FALSE) -> 0.49 | I22: 0 | J22: =VLOOKUP('Proxy Group Ticker'!$B16,vldatabase,15,FALSE) -> 0.51 | M22: 3.098 | N22: 2483.156 | O22: 0 | P22: 2665.183 | Q22: 5151.437
A23: 15 | B23: ='Proxy Group Ticker'!C17 -> Otter Tail Corp. | D23: 0.4036086732 | E23: 0 | F23: 0.5963913268 | H23: =VLOOKUP('Proxy Group Ticker'!$B17,vldatabase,13,FALSE) -> 0.425 | I23: 0 | J23: =VLOOKUP('Proxy Group Ticker'!$B17,vldatabase,15,FALSE) -> 0.575 | M23: 0 | N23: 823.821 | O23: 0 | P23: 1217.317 | Q23: 2041.138
A24: 16 | B24: ='Proxy Group Ticker'!C18 -> Pub Sv Enterprise Grp. | D24: 0.5682568634 | E24: 0 | F24: 0.4317431366 | H24: =VLOOKUP('Proxy Group Ticker'!$B18,vldatabase,13,FALSE) -> 0.545 | I24: 0 | J24: =VLOOKUP('Proxy Group Ticker'!$B18,vldatabase,15,FALSE) -> 0.455 | M24: 1575 | N24: 16495 | O24: 0 | P24: 13729 | Q24: 31799
A25: 17 | B25: ='Proxy Group Ticker'!C19 -> Sempra Energy | D25: 0.4489849677 | E25: 0.01561182917 | F25: 0.5354032031 | H25: =VLOOKUP('Proxy Group Ticker'!$B19,vldatabase,13,FALSE) -> 0.46 | I25: 0.015 | J25: =VLOOKUP('Proxy Group Ticker'!$B19,vldatabase,15,FALSE) -> 0.525 | M25: 1019 | N25: 24548 | O25: 889 | P25: 30488 | Q25: 56944
A26: 18 | B26: ='Proxy Group Ticker'!C20 -> Southern Company | D26: 0.6140511663 | E26: 0 | F26: 0.3859488337 | H26: =VLOOKUP('Proxy Group Ticker'!$B20,vldatabase,13,FALSE) -> 0.63 | I26: 0 | J26: =VLOOKUP('Proxy Group Ticker'!$B20,vldatabase,15,FALSE) -> 0.37 | M26: 4285 | N26: 50656 | O26: 0 | P26: 34532 | Q26: 89473
B28: Minimum | D28: =MIN(D9:D26) -> 0.4036086732 | E28: =MIN(E9:E26) -> 0 | F28: =MIN(F9:F26) -> 0.3295943682 | H28: =MIN(H9:H26) -> 0.425 | I28: =MIN(I9:I26) -> 0 | J28: =MIN(J9:J26) -> 0.32
B29: Maximum | D29: =MAX(D9:D26) -> 0.6612603597 | E29: =MAX(E9:E26) -> 0.0512266292 | F29: =MAX(F9:F26) -> 0.5963913268 | H29: =MAX(H9:H26) -> 0.67 | I29: =MAX(I9:I26) -> 0.075 | J29: =MAX(J9:J26) -> 0.575
B31: Average | D31: =AVERAGE(D9:D26) -> 0.5647834928 | E31: =AVERAGE(E9:E26) -> 0.01124464269 | F31: =AVERAGE(F9:F26) -> 0.4239718645 | H31: =AVERAGE(H9:H26) -> 0.5544269244 | I31: =AVERAGE(I9:I26) -> 0.009166666667 | J31: =AVERAGE(J9:J26) -> 0.436406409
A34: (a) | B34: 2022 SEC Form 10-K reports.
A35: (b) | B35: ='Electric Utility Data'!B49 -> The Value Line Investment Survey (Jan. 20, Feb. 10 and Mar. 10, 2023).

Sheet 4 (2-3)
A1: ='Exhibit List'!C6 -> CAPITAL STRUCTURE | G1: ='Exhibit List'!B6 -> Exhibit AMM-4
A3: ='Exhibit List'!D6 -> UTILITY GROUP OPERATING SUBSIDIARIES
D6: At Year-End 2022 (a) | I6: At Year-end 2021/22 ($millions)
B7: Operating Company | D7: Debt | E7: Preferred | F7: Common Equity | I7: Debt | J7: Preferred | K7: Common Equity | L7: Total | M7: Source: 10-K unless otherwise noted
A8: 1 | B8: BLACK HILLS CORP.
B9: Black Hills Power | D9: =I9/L9 -> 0.4986578398 | E9: =J9/L9 -> 0 | F9: =K9/L9 -> 0.5013421602 | I9: 547.645962 | J9: 0 | K9: 550.59399 | L9: =SUM(I9:K9) -> 1098.239952 | M9: FERC Form 1 (2022)
B10: Cheyenne Light Fuel & Power | D10: 0.5715441384 | E10: 0 | F10: 0.4284558616 | I10: 330.757291 | J10: 0 | K10: 247.950929 | L10: 578.70822 | M10: FERC Form 1 (2022)
B11: Black Hills/Colorado Electric Utility Co | D11: 0.5208152163 | E11: 0 | F11: 0.4791847837 | I11: 475.49142 | J11: 0 | K11: 437.483864 | L11: 912.975284 | M11: FERC Form 1 (2022)
A12: 2 | B12: CENTERPOINT ENERGY
B13: Centerpoint Energy Houston Electric | D13: =I13/L13 -> 0.5596863712 | E13: =J13/L13 -> 0 | F13: =K13/L13 -> 0.4403136288 | I13: 6353 | J13: 0 | K13: 4998 | L13: =SUM(I13:K13) -> 11351 | M13: 0
A14: 3 | B14: CMS ENERGY
B15: Consumers Energy Co. | D15: =I15/L15 -> 0.5020105924 | E15: =J15/L15 -> 0.001814437034 | F15: =K15/L15 -> 0.4961749706 | I15: 10237 | J15: 37 | K15: 10118 | L15: =SUM(I15:K15) -> 20392 | M15: 0
A16: 4 | B16: DOMINION ENERGY
B17: Virginia Electric & Power | D17: =I17/L17 -> 0.4835280024 | E17: =J17/L17 -> 0 | F17: =K17/L17 -> 0.5164719976 | I17: 16145 | J17: 0 | K17: 17245 | L17: 33390 | M17: 0
B18: Dominion Energy South Carolina | D18: 0.4519535803 | E18: 1.216615251e-05 | F18: 0.5480342535 | I18: 3714.843948 | J18: 0.1 | K18: 4504.581485 | L18: 8219.525433 | M18: FERC Form 1 (2022)
A19: 5 | B19: DTE ENERGY CO.
B20: DTE Electric Co. | D20: =I20/L20 -> 0.5004769119 | E20: =J20/L20 -> 0 | F20: =K20/L20 -> 0.4995230881 | I20: 8920 | J20: 0 | K20: 8903 | L20: 17823 | M20: 0
A21: 6 | B21: DUKE ENERGY
B22: Duke Energy Carolinas | D22: =I22/L22 -> 0.4802073516 | E22: =J22/L22 -> 0 | F22: =K22/L22 -> 0.5197926484 | I22: 14266 | J22: 0 | K22: 15442 | L22: =SUM(I22:K22) -> 29708 | M22: 0
B23: Duke Energy Florida | D23: 0.5183109118 | E23: 0 | F23: 0.4816890882 | I23: 9709 | J23: 0 | K23: 9023 | L23: =SUM(I23:K23) -> 18732 | M23: 0
B24: Duke Energy Indiana | D24: 0.4780244173 | E24: 0 | F24: 0.5219755827 | I24: 4307 | J24: 0 | K24: 4703 | L24: =SUM(I24:K24) -> 9010 | M24: 0
B25: Duke Energy Ohio | D25: 0.4050680315 | E25: 0 | F25: 0.5949319685 | I25: 3245 | J25: 0 | K25: 4766 | L25: 8011 | M25: 0
B26: Duke Energy Progress | D26: 0.5181809684 | E26: 0 | F26: 0.4818190316 | I26: 11087 | J26: 0 | K26: 10309 | L26: 21396 | M26: 0
B27: Duke Energy Kentucky | D27: 0.4703216188 | E27: 0 | F27: 0.5296783812 | I27: 781.558225 | J27: 0 | K27: 880.194486 | L27: 1661.752711 | M27: FERC Form 1 (2022)
A28: 7 | B28: EDISON INTERNATIONAL
B29: Southern California Edison Co. | D29: =I29/L29 -> 0.5581227283 | E29: =J29/L29 -> 0.04134163709 | F29: =K29/L29 -> 0.4005356346 | I29: 26258 | J29: 1945 | K29: 18844 | L29: 47047 | M29: 0
A30: 8 | B30: EMERA INC.
B31: Tampa Electric Co. | D31: =I31/L31 -> 0.4190756425 | E31: =J31/L31 -> 0 | F31: =K31/L31 -> 0.5809243575 | I31: 3195.343453 | J31: 0 | K31: 4429.398071 | L31: =SUM(I31:K31) -> 7624.741524 | M31: FERC Form 1 (2022)
A32: 9 | B32: ENTERGY CORP.
B33: Entergy Arkansas Inc. | D33: =I33/L33 -> 0.5241991542 | E33: =J33/L33 -> 0 | F33: =K33/L33 -> 0.4758008458 | I33: 4166.5 | J33: 0 | K33: 3781.815 | L33: =SUM(I33:K33) -> 7948.315 | M33: 0
B34: Entergy Louisiana LLC | D34: 0.5298497403 | E34: 0 | F34: 0.4701502597 | I34: 10698.922 | J34: 0 | K34: 9493.448 | L34: 20192.37 | M34: 0
B35: Entergy Mississippi Inc. | D35: 0.5332323184 | E35: 0 | F35: 0.4667676816 | I35: 2331.096 | J35: 0 | K35: 2040.537 | L35: 4371.633 | M35: 0
B36: Entergy New Orleans Inc. | D36: 0.5242055266 | E36: 0 | F36: 0.4757944734 | I36: 774.326 | J36: 0 | K36: 702.816 | L36: 1477.142 | M36: 0
B37: Entergy Texas Inc. | D37: 0.5194114332 | E37: 0.00695020639 | F37: 0.4736383604 | I37: 2895.913 | J37: 38.75 | K37: 2640.711 | L37: 5575.374 | M37: 0
A38: 10 | B38: EVERGY, INC.
B39: Evergy Metro | D39: =I39/L39 -> 0.4787580363 | E39: =J39/L39 -> 0 | F39: =K39/L39 -> 0.5212419637 | I39: 2926.6 | J39: 0 | K39: 3186.3 | L39: =SUM(I39:K39) -> 6112.9 | M39: 0
B40: Evergy Kansas Central | D40: 0.4662198169 | E40: 0 | F40: 0.5337801831 | I40: 3936.9 | J40: 0 | K40: 4507.4 | L40: 8444.3 | M40: 0
A41: 11 | B41: EXELON CORP.
B42: Delmarva Power and Light | D42: =I42/L42 -> 0.4984567901 | E42: =J42/L42 -> 0 | F42: =K42/L42 -> 0.5015432099 | I42: 1938 | J42: 0 | K42: 1950 | L42: =SUM(I42:K42) -> 3888 | M42: 0
B43: Baltimore Gas & Electric Co. | D43: 0.4601334354 | E43: 0 | F43: 0.5398665646 | I43: 4207 | J43: 0 | K43: 4936 | L43: 9143 | M43: 0
B44: Commonweath Edison Co. | D44: 0.4451778968 | E44: 0 | F44: 0.5548221032 | I44: 10723 | J44: 0 | K44: 13364 | L44: 24087 | M44: 0
B45: PECO Energy Co. | D45: 0.462979052 | E45: 0 | F45: 0.537020948 | I45: 4796 | J45: 0 | K45: 5563 | L45: 10359 | M45: 0
B46: Potomac Electric Power Co. | D46: 0.4979423868 | E46: 0 | F46: 0.5020576132 | I46: 3751 | J46: 0 | K46: 3782 | L46: 7533 | M46: 0
B47: Atlantic City Electric Co. | D47: 0.5005698006 | E47: 0 | F47: 0.4994301994 | I47: 1757 | J47: 0 | K47: 1753 | L47: 3510 | M47: 0
A48: 12 | B48: HAWAIIAN ELEC.
B49: Hawaiian Electric Co. | D49: =I49/L49 -> 0.4146444288 | E49: =J49/L49 -> 0.008439735494 | F49: =K49/L49 -> 0.5769158357 | I49: 1684.816 | J49: 34.293 | K49: 2344.17 | L49: 4063.279
A50: 13 | B50: IDACORP
B51: Idaho Power Co. | D51: =I51/L51 -> 0.4546689383 | E51: =J51/L51 -> 0 | F51: =K51/L51 -> 0.5453310617 | I51: 2194.145 | J51: 0 | K51: 2631.663 | L51: 4825.808 | M51: 0
A52: 14 | B52: NORTHWESTERN CORP.
B53: NorthWestern Corporation | D53: =I53/L53 -> 0.4966424696 | E53: =J53/L53 -> 0 | F53: =K53/L53 -> 0.5033575304 | I53: 2629.626944 | J53: 0 | K53: 2665.181907 | L53: 5294.808851 | M53: FERC Form 1 (2022)
A54: 15 | B54: OTTER TAIL CORP.
B55: Otter Tail Power Co. | D55: =I55/L55 -> 0.4509694999 | E55: =J55/L55 -> 0 | F55: =K55/L55 -> 0.5490305001 | I55: 747 | J55: 0 | K55: 909.431311 | L55: 1656.431311 | M55: FERC Form 1 (2022)
A56: 16 | B56: PUB SV ENTERPRISE GRP
B57: Pub Service Electric & Gas Co. | D57: =I57/L57 -> 0.4473888223 | E57: =J57/L57 -> 0 | F57: =K57/L57 -> 0.5526111777 | I57: 12696 | J57: 0 | K57: 15682 | L57: 28378 | M57: 0
A58: 17 | B58: SEMPRA ENERGY
B59: San Diego Gas & Electric | D59: =I59/L59 -> 0.4977566056 | E59: =J59/L59 -> 0 | F59: =K59/L59 -> 0.5022433944 | I59: 8986 | J59: 0 | K59: 9067 | L59: 18053 | M59: 0
B60: Oncor Electric Delivery | D60: 0.4327340265 | E60: 0 | F60: 0.5672659735 | I60: 10389.52927 | J60: 0 | K60: 13619.5124 | L60: 24009.04167 | M60: FERC Form 1 (2022)
A61: 18 | B61: SOUTHERN CO.
B62: Alabama Power Co. | D62: =I62/L62 -> 0.4763185016 | E62: =J62/L62 -> 0 | F62: =K62/L62 -> 0.5236814984 | I62: 10630 | J62: 0 | K62: 11687 | L62: 22317 | M62: 0
B63: Georgia Power Co. | D63: 0.4415422886 | E63: 0 | F63: 0.5584577114 | I63: 14910 | J63: 0 | K63: 18858 | L63: 33768 | M63: 0
B64: Mississippi Power Co. | D64: 0.4444764097 | E64: 0 | F64: 0.5555235903 | I64: 1545 | J64: 0 | K64: 1931 | L64: =SUM(I64:K64) -> 3476 | M64: 0
B67: Minimum | D67: =MIN(D8:D64) -> 0.4050680315 | E67: =MIN(E8:E64) -> 0 | F67: =MIN(F8:F64) -> 0.4005356346
B68: Maximum | D68: =MAX(D8:D64) -> 0.5715441384 | E68: =MAX(E8:E64) -> 0.04134163709 | F68: =MAX(F8:F64) -> 0.5949319685
B70: Average | D70: =AVERAGE(D8:D64) -> 0.4854938898 | E70: =AVERAGE(E8:E64) -> 0.00150149185 | F70: =AVERAGE(F8:F64) -> 0.5130046184
A73: (a) 2022 SEC Form 10-K and FERC Form 1 reports.

Sheet 5 (1)
A1: ='Exhibit List'!C7 -> DCF MODEL - UTILITY GROUP | I1: ='Exhibit List'!B7 -> Exhibit AMM-5
I2: Page 1 of 3
A3: ='Exhibit List'!D7 -> DIVIDEND YIELD
D7: (a) | F7: (b)
B8: Company | D8: Price | F8: Dividends | H8: Yield
A9: =A8+1 -> 1 | B9: =VLOOKUP('Proxy Group Ticker'!B3,vldatabase,2,FALSE) -> Avista Corp. | D9: =HLOOKUP('Proxy Group Ticker'!B3,stockprice,33,FALSE) -> 41.105 | F9: =VLOOKUP('Proxy Group Ticker'!B3,vldatabase,4,FALSE) -> 1.84 | H9: =F9/D9 -> 0.04476341078
A10: 2 | B10: =VLOOKUP('Proxy Group Ticker'!B4,vldatabase,2,FALSE) -> Black Hills Corp. | D10: =HLOOKUP('Proxy Group Ticker'!B4,stockprice,33,FALSE) -> 61.801 | F10: =VLOOKUP('Proxy Group Ticker'!B4,vldatabase,4,FALSE) -> 2.5 | H10: =F10/D10 -> 0.04045241986
A11: 3 | B11: =VLOOKUP('Proxy Group Ticker'!B5,vldatabase,2,FALSE) -> CenterPoint Energy | D11: =HLOOKUP('Proxy Group Ticker'!B5,stockprice,33,FALSE) -> 28.46166667 | F11: =VLOOKUP('Proxy Group Ticker'!B5,vldatabase,4,FALSE) -> 0.76 | H11: 0.02670258242
A12: 4 | B12: =VLOOKUP('Proxy Group Ticker'!B6,vldatabase,2,FALSE) -> CMS Energy Corp. | D12: =HLOOKUP('Proxy Group Ticker'!B6,stockprice,33,FALSE) -> 60.09566667 | F12: =VLOOKUP('Proxy Group Ticker'!B6,vldatabase,4,FALSE) -> 1.95 | H12: 0.03244826305
A13: 5 | B13: =VLOOKUP('Proxy Group Ticker'!B7,vldatabase,2,FALSE) -> Dominion Energy | D13: =HLOOKUP('Proxy Group Ticker'!B7,stockprice,33,FALSE) -> 55.51133333 | F13: =VLOOKUP('Proxy Group Ticker'!B7,vldatabase,4,FALSE) -> 2.75 | H13: 0.04953943339
A14: 6 | B14: =VLOOKUP('Proxy Group Ticker'!B8,vldatabase,2,FALSE) -> DTE Energy Co. | D14: =HLOOKUP('Proxy Group Ticker'!B8,stockprice,33,FALSE) -> 108.7133333 | F14: =VLOOKUP('Proxy Group Ticker'!B8,vldatabase,4,FALSE) -> 3.81 | H14: 0.03504629914
A15: 7 | B15: =VLOOKUP('Proxy Group Ticker'!B9,vldatabase,2,FALSE) -> Duke Energy Corp. | D15: =HLOOKUP('Proxy Group Ticker'!B9,stockprice,33,FALSE) -> 95.48833333 | F15: =VLOOKUP('Proxy Group Ticker'!B9,vldatabase,4,FALSE) -> 4.02 | H15: 0.04209938387
A16: 8 | B16: =VLOOKUP('Proxy Group Ticker'!B10,vldatabase,2,FALSE) -> Edison International | D16: =HLOOKUP('Proxy Group Ticker'!B10,stockprice,33,FALSE) -> 67.47166667 | F16: =VLOOKUP('Proxy Group Ticker'!B10,vldatabase,4,FALSE) -> 2.95 | H16: 0.04372205617
A17: 9 | B17: =VLOOKUP('Proxy Group Ticker'!B11,vldatabase,2,FALSE) -> Emera Inc. | D17: =HLOOKUP('Proxy Group Ticker'!B11,stockprice,33,FALSE) -> 54.3046664 | F17: =VLOOKUP('Proxy Group Ticker'!B11,vldatabase,4,FALSE) -> 2.76 | H17: 0.05082436157
A18: 10 | B18: =VLOOKUP('Proxy Group Ticker'!B12,vldatabase,2,FALSE) -> Entergy Corp. | D18: =HLOOKUP('Proxy Group Ticker'!B12,stockprice,33,FALSE) -> 104.691 | F18: =VLOOKUP('Proxy Group Ticker'!B12,vldatabase,4,FALSE) -> 4.28 | H18: 0.04088221528
A19: 11 | B19: =VLOOKUP('Proxy Group Ticker'!B13,vldatabase,2,FALSE) -> Exelon Corp. | D19: =HLOOKUP('Proxy Group Ticker'!B13,stockprice,33,FALSE) -> 41.20833333 | F19: =VLOOKUP('Proxy Group Ticker'!B13,vldatabase,4,FALSE) -> 1.44 | H19: 0.03494438827
A20: 12 | B20: =VLOOKUP('Proxy Group Ticker'!B14,vldatabase,2,FALSE) -> Hawaiian Elec. | D20: =HLOOKUP('Proxy Group Ticker'!B14,stockprice,33,FALSE) -> 39.01966667 | F20: =VLOOKUP('Proxy Group Ticker'!B14,vldatabase,4,FALSE) -> 1.44 | H20: 0.03690446698
A21: 13 | B21: =VLOOKUP('Proxy Group Ticker'!B15,vldatabase,2,FALSE) -> IDACORP, Inc. | D21: =HLOOKUP('Proxy Group Ticker'!B15,stockprice,33,FALSE) -> 104.1616667 | F21: =VLOOKUP('Proxy Group Ticker'!B15,vldatabase,4,FALSE) -> 3.16 | H21: 0.0303374562
A22: 14 | B22: =VLOOKUP('Proxy Group Ticker'!B16,vldatabase,2,FALSE) -> NorthWestern Corp. | D22: =HLOOKUP('Proxy Group Ticker'!B16,stockprice,33,FALSE) -> 56.80533333 | F22: =VLOOKUP('Proxy Group Ticker'!B16,vldatabase,4,FALSE) -> 2.56 | H22: 0.04506619097
A23: 15 | B23: =VLOOKUP('Proxy Group Ticker'!B17,vldatabase,2,FALSE) -> Otter Tail Corp. | D23: =HLOOKUP('Proxy Group Ticker'!B17,stockprice,33,FALSE) -> 69.989 | F23: =VLOOKUP('Proxy Group Ticker'!B17,vldatabase,4,FALSE) -> 1.76 | H23: 0.02514680878
A24: 16 | B24: =VLOOKUP('Proxy Group Ticker'!B18,vldatabase,2,FALSE) -> Pub Sv Enterprise Grp. | D24: =HLOOKUP('Proxy Group Ticker'!B18,stockprice,33,FALSE) -> 59.493 | F24: =VLOOKUP('Proxy Group Ticker'!B18,vldatabase,4,FALSE) -> 2.28 | H24: 0.03832383642
A25: 17 | B25: =VLOOKUP('Proxy Group Ticker'!B19,vldatabase,2,FALSE) -> Sempra Energy | D25: =HLOOKUP('Proxy Group Ticker'!B19,stockprice,33,FALSE) -> 149.162 | F25: =VLOOKUP('Proxy Group Ticker'!B19,vldatabase,4,FALSE) -> 4.8 | H25: 0.03217977769
A26: 18 | B26: =VLOOKUP('Proxy Group Ticker'!B20,vldatabase,2,FALSE) -> Southern Company | D26: =HLOOKUP('Proxy Group Ticker'!B20,stockprice,33,FALSE) -> 65.955 | F26: =VLOOKUP('Proxy Group Ticker'!B20,vldatabase,4,FALSE) -> 2.72 | H26: 0.04124023956
B28: Average | H28: =AVERAGE(H9:H26) -> 0.03836797724
A31: (a) | B31: ='Stock Price (Utility)'!B37 -> Average of closing prices for 30 trading days ended Mar. 29, 2023.
A32: (b) | B32: ='Electric Utility Data'!B48 -> The Value Line Investment Survey, Summary & Index (Mar. 31, 2023).
F35: Min | H35: =MIN(H9:H26) -> 0.02514680878
F36: Max | H36: =MAX(H9:H26) -> 0.05082436157

Sheet 5 (2)
A1: ='Exhibit List'!C8 -> DCF MODEL - UTILITY GROUP | K1: ='Exhibit List'!B8 -> Exhibit AMM-5
K2: Page 2 of 3
A3: ='Exhibit List'!D8 -> GROWTH RATES
D6: (a) | F6: (b) | H6: (c) | J6: (d)
D7: Earnings Growth | J7: br+sv
B8: Company | D8: V Line | F8: IBES | H8: Zacks | J8: Growth
A9: =A8+1 -> 1 | B9: ='5 (1)'!B9 -> Avista Corp. | D9: =VLOOKUP('Proxy Group Ticker'!B3,vldatabase,19,FALSE) -> 0.035 | F9: =VLOOKUP('Proxy Group Ticker'!B3,vldatabase,30,FALSE) -> 0.052 | H9: =VLOOKUP('Proxy Group Ticker'!B3,vldatabase,31,FALSE) -> 0.0518 | J9: ='6'!Q9 -> 0.04312266151
A10: 2 | B10: ='5 (1)'!B10 -> Black Hills Corp. | D10: =VLOOKUP('Proxy Group Ticker'!B4,vldatabase,19,FALSE) -> 0.06 | F10: =VLOOKUP('Proxy Group Ticker'!B4,vldatabase,30,FALSE) -> 0.054 | H10: =VLOOKUP('Proxy Group Ticker'!B4,vldatabase,31,FALSE) -> 0.022 | J10: ='6'!Q10 -> 0.06199337684
A11: 3 | B11: ='5 (1)'!B11 -> CenterPoint Energy | D11: =VLOOKUP('Proxy Group Ticker'!B5,vldatabase,19,FALSE) -> 0.065 | F11: =VLOOKUP('Proxy Group Ticker'!B5,vldatabase,30,FALSE) -> -0.0107 | H11: =VLOOKUP('Proxy Group Ticker'!B5,vldatabase,31,FALSE) -> 0.07 | J11: ='6'!Q11 -> 0.04918548928
A12: 4 | B12: ='5 (1)'!B12 -> CMS Energy Corp. | D12: =VLOOKUP('Proxy Group Ticker'!B6,vldatabase,19,FALSE) -> 0.065 | F12: =VLOOKUP('Proxy Group Ticker'!B6,vldatabase,30,FALSE) -> 0.08 | H12: =VLOOKUP('Proxy Group Ticker'!B6,vldatabase,31,FALSE) -> 0.0804 | J12: ='6'!Q12 -> 0.06521087669
A13: 5 | B13: ='5 (1)'!B13 -> Dominion Energy | D13: =VLOOKUP('Proxy Group Ticker'!B7,vldatabase,19,FALSE) -> 0.04 | F13: =VLOOKUP('Proxy Group Ticker'!B7,vldatabase,30,FALSE) -> 0.0605 | H13: =VLOOKUP('Proxy Group Ticker'!B7,vldatabase,31,FALSE) -> 0.1489 | J13: ='6'!Q13 -> 0.05927132091
A14: 6 | B14: ='5 (1)'!B14 -> DTE Energy Co. | D14: =VLOOKUP('Proxy Group Ticker'!B8,vldatabase,19,FALSE) -> 0.045 | F14: =VLOOKUP('Proxy Group Ticker'!B8,vldatabase,30,FALSE) -> 0.074 | H14: =VLOOKUP('Proxy Group Ticker'!B8,vldatabase,31,FALSE) -> 0.06 | J14: ='6'!Q14 -> 0.06166834947
A15: 7 | B15: ='5 (1)'!B15 -> Duke Energy Corp. | D15: =VLOOKUP('Proxy Group Ticker'!B9,vldatabase,19,FALSE) -> 0.05 | F15: =VLOOKUP('Proxy Group Ticker'!B9,vldatabase,30,FALSE) -> 0.053 | H15: =VLOOKUP('Proxy Group Ticker'!B9,vldatabase,31,FALSE) -> 0.0544 | J15: ='6'!Q15 -> 0.0363662726
A16: 8 | B16: ='5 (1)'!B16 -> Edison International | D16: =VLOOKUP('Proxy Group Ticker'!B10,vldatabase,19,FALSE) -> 0.16 | F16: =VLOOKUP('Proxy Group Ticker'!B10,vldatabase,30,FALSE) -> 0.07 | H16: =VLOOKUP('Proxy Group Ticker'!B10,vldatabase,31,FALSE) -> 0.0297 | J16: ='6'!Q16 -> 0.0665454424
A17: 9 | B17: ='5 (1)'!B17 -> Emera Inc. | D17: =VLOOKUP('Proxy Group Ticker'!B11,vldatabase,19,FALSE) -> 0.075 | F17: =VLOOKUP('Proxy Group Ticker'!B11,vldatabase,30,FALSE) -> 0.0431 | H17: =VLOOKUP('Proxy Group Ticker'!B11,vldatabase,31,FALSE) -> n/a | J17: ='6'!Q17 -> 0.04487099612
A18: 10 | B18: ='5 (1)'!B18 -> Entergy Corp. | D18: =VLOOKUP('Proxy Group Ticker'!B12,vldatabase,19,FALSE) -> 0.005 | F18: =VLOOKUP('Proxy Group Ticker'!B12,vldatabase,30,FALSE) -> 0.066 | H18: =VLOOKUP('Proxy Group Ticker'!B12,vldatabase,31,FALSE) -> 0.06 | J18: ='6'!Q18 -> 0.03163847719
A19: 11 | B19: ='5 (1)'!B19 -> Exelon Corp. | D19: =VLOOKUP('Proxy Group Ticker'!B13,vldatabase,19,FALSE) -> n/a | F19: =VLOOKUP('Proxy Group Ticker'!B13,vldatabase,30,FALSE) -> 0.063 | H19: =VLOOKUP('Proxy Group Ticker'!B13,vldatabase,31,FALSE) -> 0.0663 | J19: ='6'!Q19 -> 0.04450229167
A20: 12 | B20: ='5 (1)'!B20 -> Hawaiian Elec. | D20: =VLOOKUP('Proxy Group Ticker'!B14,vldatabase,19,FALSE) -> 0.045 | F20: =VLOOKUP('Proxy Group Ticker'!B14,vldatabase,30,FALSE) -> 0.013 | H20: =VLOOKUP('Proxy Group Ticker'!B14,vldatabase,31,FALSE) -> 0.0308 | J20: ='6'!Q20 -> 0.04578455377
A21: 13 | B21: ='5 (1)'!B21 -> IDACORP, Inc. | D21: =VLOOKUP('Proxy Group Ticker'!B15,vldatabase,19,FALSE) -> 0.045 | F21: =VLOOKUP('Proxy Group Ticker'!B15,vldatabase,30,FALSE) -> 0.03 | H21: =VLOOKUP('Proxy Group Ticker'!B15,vldatabase,31,FALSE) -> 0.0301 | J21: ='6'!Q21 -> 0.03626529441
A22: 14 | B22: ='5 (1)'!B22 -> NorthWestern Corp. | D22: =VLOOKUP('Proxy Group Ticker'!B16,vldatabase,19,FALSE) -> 0.035 | F22: =VLOOKUP('Proxy Group Ticker'!B16,vldatabase,30,FALSE) -> 0.045 | H22: =VLOOKUP('Proxy Group Ticker'!B16,vldatabase,31,FALSE) -> 0.0174 | J22: ='6'!Q22 -> 0.0354672847
A23: 15 | B23: ='5 (1)'!B23 -> Otter Tail Corp. | D23: =VLOOKUP('Proxy Group Ticker'!B17,vldatabase,19,FALSE) -> 0.045 | F23: =VLOOKUP('Proxy Group Ticker'!B17,vldatabase,30,FALSE) -> 0.09 | H23: =VLOOKUP('Proxy Group Ticker'!B17,vldatabase,31,FALSE) -> n/a | J23: ='6'!Q23 -> 0.04688494558
A24: 16 | B24: ='5 (1)'!B24 -> Pub Sv Enterprise Grp. | D24: =VLOOKUP('Proxy Group Ticker'!B18,vldatabase,19,FALSE) -> 0.045 | F24: =VLOOKUP('Proxy Group Ticker'!B18,vldatabase,30,FALSE) -> 0.024 | H24: =VLOOKUP('Proxy Group Ticker'!B18,vldatabase,31,FALSE) -> 0.0433 | J24: ='6'!Q24 -> 0.04906444564
A25: 17 | B25: ='5 (1)'!B25 -> Sempra Energy | D25: =VLOOKUP('Proxy Group Ticker'!B19,vldatabase,19,FALSE) -> 0.07 | F25: =VLOOKUP('Proxy Group Ticker'!B19,vldatabase,30,FALSE) -> 0.0414 | H25: =VLOOKUP('Proxy Group Ticker'!B19,vldatabase,31,FALSE) -> 0.0543 | J25: ='6'!Q25 -> 0.04721256047
A26: 18 | B26: ='5 (1)'!B26 -> Southern Company | D26: =VLOOKUP('Proxy Group Ticker'!B20,vldatabase,19,FALSE) -> 0.065 | F26: =VLOOKUP('Proxy Group Ticker'!B20,vldatabase,30,FALSE) -> 0.073 | H26: =VLOOKUP('Proxy Group Ticker'!B20,vldatabase,31,FALSE) -> 0.04 | J26: ='6'!Q26 -> 0.0680143988
A29: (a) | B29: ='Electric Utility Data'!B49 -> The Value Line Investment Survey (Jan. 20, Feb. 10 and Mar. 10, 2023).
A30: (b) | B30: ='Electric Utility Data'!B52 -> www.finance.yahoo.com (retreived Mar. 30, 2023).
A31: (c) | B31: ='Electric Utility Data'!B53 -> www.zacks.com (retrieved Mar. 30, 2023).
A32: (d) | B32: ="See "&'6'!Q1& "." -> See Exhibit AMM-6.

Sheet 5 (3)
A1: ='Exhibit List'!C9 -> DCF MODEL - UTILITY GROUP | L1: ='Exhibit List'!B9 -> Exhibit AMM-5
L2: Page 3 of 3
A3: ='Exhibit List'!D9 -> COST OF EQUITY ESTIMATES
D6: (a) | F6: (a) | H6: (a) | K6: (a)
K7: br+sv
B8: Company | D8: V Line | F8: IBES | H8: Zacks | K8: Growth
A9: =A8+1 -> 1 | B9: ='5 (1)'!B9 -> Avista Corp. | D9: =IF('5 (2)'!D9="n/a","n/a",'5 (1)'!$H9+'5 (2)'!D9) -> 0.07976341078 | F9: =IF('5 (2)'!F9="n/a","n/a",'5 (1)'!$H9+'5 (2)'!F9) -> 0.09676341078 | H9: =IF('5 (2)'!H9="n/a","n/a",'5 (1)'!$H9+'5 (2)'!H9) -> 0.09656341078 | K9: =IF('5 (2)'!J9="n/a","n/a",'5 (1)'!$H9+'5 (2)'!J9) -> 0.08788607228 | O9: =IF(D9="n/a","n/a",IF(D9<$D$34,"LOW",IF(D9>$D$35,"HIGH",D9))) -> 0.07976341078 | P9: =IF(F9="n/a","n/a",IF(F9<$D$34,"LOW",IF(F9>$D$35,"HIGH",F9))) -> 0.09676341078 | Q9: =IF(H9="n/a","n/a",IF(H9<$D$34,"LOW",IF(H9>$D$35,"HIGH",H9))) -> 0.09656341078 | R9: =IF(K9="n/a","n/a",IF(K9<$D$34,"LOW",IF(K9>$D$35,"HIGH",K9))) -> 0.08788607228
A10: =A9+1 -> 2 | B10: ='5 (1)'!B10 -> Black Hills Corp. | D10: =IF('5 (2)'!D10="n/a","n/a",'5 (1)'!$H10+'5 (2)'!D10) -> 0.1004524199 | F10: =IF('5 (2)'!F10="n/a","n/a",'5 (1)'!$H10+'5 (2)'!F10) -> 0.09445241986 | H10: =IF('5 (2)'!H10="n/a","n/a",'5 (1)'!$H10+'5 (2)'!H10) -> 0.06245241986 | K10: =IF('5 (2)'!J10="n/a","n/a",'5 (1)'!$H10+'5 (2)'!J10) -> 0.1024457967 | O10: =IF(D10="n/a","n/a",IF(D10<$D$34,"LOW",IF(D10>$D$35,"HIGH",D10))) -> 0.1004524199 | P10: =IF(F10="n/a","n/a",IF(F10<$D$34,"LOW",IF(F10>$D$35,"HIGH",F10))) -> 0.09445241986 | Q10: =IF(H10="n/a","n/a",IF(H10<$D$34,"LOW",IF(H10>$D$35,"HIGH",H10))) -> LOW | R10: =IF(K10="n/a","n/a",IF(K10<$D$34,"LOW",IF(K10>$D$35,"HIGH",K10))) -> 0.1024457967
A11: 3 | B11: ='5 (1)'!B11 -> CenterPoint Energy | D11: =IF('5 (2)'!D11="n/a","n/a",'5 (1)'!$H11+'5 (2)'!D11) -> 0.09170258242 | F11: =IF('5 (2)'!F11="n/a","n/a",'5 (1)'!$H11+'5 (2)'!F11) -> 0.01600258242 | H11: =IF('5 (2)'!H11="n/a","n/a",'5 (1)'!$H11+'5 (2)'!H11) -> 0.09670258242 | K11: =IF('5 (2)'!J11="n/a","n/a",'5 (1)'!$H11+'5 (2)'!J11) -> 0.0758880717 | O11: 0.09170258242 | P11: LOW | Q11: 0.09670258242 | R11: 0.0758880717
A12: 4 | B12: ='5 (1)'!B12 -> CMS Energy Corp. | D12: =IF('5 (2)'!D12="n/a","n/a",'5 (1)'!$H12+'5 (2)'!D12) -> 0.09744826305 | F12: =IF('5 (2)'!F12="n/a","n/a",'5 (1)'!$H12+'5 (2)'!F12) -> 0.112448263 | H12: =IF('5 (2)'!H12="n/a","n/a",'5 (1)'!$H12+'5 (2)'!H12) -> 0.112848263 | K12: =IF('5 (2)'!J12="n/a","n/a",'5 (1)'!$H12+'5 (2)'!J12) -> 0.09765913974 | O12: 0.09744826305 | P12: 0.112448263 | Q12: 0.112848263 | R12: 0.09765913974
A13: 5 | B13: ='5 (1)'!B13 -> Dominion Energy | D13: =IF('5 (2)'!D13="n/a","n/a",'5 (1)'!$H13+'5 (2)'!D13) -> 0.08953943339 | F13: =IF('5 (2)'!F13="n/a","n/a",'5 (1)'!$H13+'5 (2)'!F13) -> 0.1100394334 | H13: =IF('5 (2)'!H13="n/a","n/a",'5 (1)'!$H13+'5 (2)'!H13) -> 0.1984394334 | K13: =IF('5 (2)'!J13="n/a","n/a",'5 (1)'!$H13+'5 (2)'!J13) -> 0.1088107543 | O13: 0.08953943339 | P13: 0.1100394334 | Q13: HIGH | R13: 0.1088107543
A14: 6 | B14: ='5 (1)'!B14 -> DTE Energy Co. | D14: =IF('5 (2)'!D14="n/a","n/a",'5 (1)'!$H14+'5 (2)'!D14) -> 0.08004629914 | F14: =IF('5 (2)'!F14="n/a","n/a",'5 (1)'!$H14+'5 (2)'!F14) -> 0.1090462991 | H14: =IF('5 (2)'!H14="n/a","n/a",'5 (1)'!$H14+'5 (2)'!H14) -> 0.09504629914 | K14: =IF('5 (2)'!J14="n/a","n/a",'5 (1)'!$H14+'5 (2)'!J14) -> 0.09671464861 | O14: 0.08004629914 | P14: 0.1090462991 | Q14: 0.09504629914 | R14: 0.09671464861
A15: 7 | B15: ='5 (1)'!B15 -> Duke Energy Corp. | D15: =IF('5 (2)'!D15="n/a","n/a",'5 (1)'!$H15+'5 (2)'!D15) -> 0.09209938387 | F15: =IF('5 (2)'!F15="n/a","n/a",'5 (1)'!$H15+'5 (2)'!F15) -> 0.09509938387 | H15: =IF('5 (2)'!H15="n/a","n/a",'5 (1)'!$H15+'5 (2)'!H15) -> 0.09649938387 | K15: =IF('5 (2)'!J15="n/a","n/a",'5 (1)'!$H15+'5 (2)'!J15) -> 0.07846565646 | O15: 0.09209938387 | P15: 0.09509938387 | Q15: 0.09649938387 | R15: 0.07846565646
A16: 8 | B16: ='5 (1)'!B16 -> Edison International | D16: =IF('5 (2)'!D16="n/a","n/a",'5 (1)'!$H16+'5 (2)'!D16) -> 0.2037220562 | F16: =IF('5 (2)'!F16="n/a","n/a",'5 (1)'!$H16+'5 (2)'!F16) -> 0.1137220562 | H16: =IF('5 (2)'!H16="n/a","n/a",'5 (1)'!$H16+'5 (2)'!H16) -> 0.07342205617 | K16: =IF('5 (2)'!J16="n/a","n/a",'5 (1)'!$H16+'5 (2)'!J16) -> 0.1102674986 | O16: HIGH | P16: 0.1137220562 | Q16: LOW | R16: 0.1102674986
A17: 9 | B17: ='5 (1)'!B17 -> Emera Inc. | D17: =IF('5 (2)'!D17="n/a","n/a",'5 (1)'!$H17+'5 (2)'!D17) -> 0.1258243616 | F17: =IF('5 (2)'!F17="n/a","n/a",'5 (1)'!$H17+'5 (2)'!F17) -> 0.09392436157 | H17: =IF('5 (2)'!H17="n/a","n/a",'5 (1)'!$H17+'5 (2)'!H17) -> n/a | K17: =IF('5 (2)'!J17="n/a","n/a",'5 (1)'!$H17+'5 (2)'!J17) -> 0.09569535769 | O17: 0.1258243616 | P17: 0.09392436157 | Q17: n/a | R17: 0.09569535769
A18: 10 | B18: ='5 (1)'!B18 -> Entergy Corp. | D18: =IF('5 (2)'!D18="n/a","n/a",'5 (1)'!$H18+'5 (2)'!D18) -> 0.04588221528 | F18: =IF('5 (2)'!F18="n/a","n/a",'5 (1)'!$H18+'5 (2)'!F18) -> 0.1068822153 | H18: =IF('5 (2)'!H18="n/a","n/a",'5 (1)'!$H18+'5 (2)'!H18) -> 0.1008822153 | K18: =IF('5 (2)'!J18="n/a","n/a",'5 (1)'!$H18+'5 (2)'!J18) -> 0.07252069247 | O18: LOW | P18: 0.1068822153 | Q18: 0.1008822153 | R18: LOW
A19: 11 | B19: ='5 (1)'!B19 -> Exelon Corp. | D19: =IF('5 (2)'!D19="n/a","n/a",'5 (1)'!$H19+'5 (2)'!D19) -> n/a | F19: =IF('5 (2)'!F19="n/a","n/a",'5 (1)'!$H19+'5 (2)'!F19) -> 0.09794438827 | H19: =IF('5 (2)'!H19="n/a","n/a",'5 (1)'!$H19+'5 (2)'!H19) -> 0.1012443883 | K19: =IF('5 (2)'!J19="n/a","n/a",'5 (1)'!$H19+'5 (2)'!J19) -> 0.07944667994 | O19: n/a | P19: 0.09794438827 | Q19: 0.1012443883 | R19: 0.07944667994
A20: 12 | B20: ='5 (1)'!B20 -> Hawaiian Elec. | D20: =IF('5 (2)'!D20="n/a","n/a",'5 (1)'!$H20+'5 (2)'!D20) -> 0.08190446698 | F20: =IF('5 (2)'!F20="n/a","n/a",'5 (1)'!$H20+'5 (2)'!F20) -> 0.04990446698 | H20: =IF('5 (2)'!H20="n/a","n/a",'5 (1)'!$H20+'5 (2)'!H20) -> 0.06770446698 | K20: =IF('5 (2)'!J20="n/a","n/a",'5 (1)'!$H20+'5 (2)'!J20) -> 0.08268902075 | O20: 0.08190446698 | P20: LOW | Q20: LOW | R20: 0.08268902075
A21: 13 | B21: ='5 (1)'!B21 -> IDACORP, Inc. | D21: =IF('5 (2)'!D21="n/a","n/a",'5 (1)'!$H21+'5 (2)'!D21) -> 0.0753374562 | F21: =IF('5 (2)'!F21="n/a","n/a",'5 (1)'!$H21+'5 (2)'!F21) -> 0.0603374562 | H21: =IF('5 (2)'!H21="n/a","n/a",'5 (1)'!$H21+'5 (2)'!H21) -> 0.0604374562 | K21: =IF('5 (2)'!J21="n/a","n/a",'5 (1)'!$H21+'5 (2)'!J21) -> 0.06660275061 | O21: 0.0753374562 | P21: LOW | Q21: LOW | R21: LOW
A22: 14 | B22: ='5 (1)'!B22 -> NorthWestern Corp. | D22: =IF('5 (2)'!D22="n/a","n/a",'5 (1)'!$H22+'5 (2)'!D22) -> 0.08006619097 | F22: =IF('5 (2)'!F22="n/a","n/a",'5 (1)'!$H22+'5 (2)'!F22) -> 0.09006619097 | H22: =IF('5 (2)'!H22="n/a","n/a",'5 (1)'!$H22+'5 (2)'!H22) -> 0.06246619097 | K22: =IF('5 (2)'!J22="n/a","n/a",'5 (1)'!$H22+'5 (2)'!J22) -> 0.08053347567 | O22: 0.08006619097 | P22: 0.09006619097 | Q22: LOW | R22: 0.08053347567
A23: 15 | B23: ='5 (1)'!B23 -> Otter Tail Corp. | D23: =IF('5 (2)'!D23="n/a","n/a",'5 (1)'!$H23+'5 (2)'!D23) -> 0.07014680878 | F23: =IF('5 (2)'!F23="n/a","n/a",'5 (1)'!$H23+'5 (2)'!F23) -> 0.1151468088 | H23: =IF('5 (2)'!H23="n/a","n/a",'5 (1)'!$H23+'5 (2)'!H23) -> n/a | K23: =IF('5 (2)'!J23="n/a","n/a",'5 (1)'!$H23+'5 (2)'!J23) -> 0.07203175436 | O23: LOW | P23: 0.1151468088 | Q23: n/a | R23: LOW
A24: 16 | B24: ='5 (1)'!B24 -> Pub Sv Enterprise Grp. | D24: =IF('5 (2)'!D24="n/a","n/a",'5 (1)'!$H24+'5 (2)'!D24) -> 0.08332383642 | F24: =IF('5 (2)'!F24="n/a","n/a",'5 (1)'!$H24+'5 (2)'!F24) -> 0.06232383642 | H24: =IF('5 (2)'!H24="n/a","n/a",'5 (1)'!$H24+'5 (2)'!H24) -> 0.08162383642 | K24: =IF('5 (2)'!J24="n/a","n/a",'5 (1)'!$H24+'5 (2)'!J24) -> 0.08738828206 | O24: 0.08332383642 | P24: LOW | Q24: 0.08162383642 | R24: 0.08738828206
A25: 17 | B25: ='5 (1)'!B25 -> Sempra Energy | D25: =IF('5 (2)'!D25="n/a","n/a",'5 (1)'!$H25+'5 (2)'!D25) -> 0.1021797777 | F25: =IF('5 (2)'!F25="n/a","n/a",'5 (1)'!$H25+'5 (2)'!F25) -> 0.07357977769 | H25: =IF('5 (2)'!H25="n/a","n/a",'5 (1)'!$H25+'5 (2)'!H25) -> 0.08647977769 | K25: =IF('5 (2)'!J25="n/a","n/a",'5 (1)'!$H25+'5 (2)'!J25) -> 0.07939233816 | O25: 0.1021797777 | P25: 0.07357977769 | Q25: 0.08647977769 | R25: 0.07939233816
A26: 18 | B26: ='5 (1)'!B26 -> Southern Company | D26: =IF('5 (2)'!D26="n/a","n/a",'5 (1)'!$H26+'5 (2)'!D26) -> 0.1062402396 | F26: =IF('5 (2)'!F26="n/a","n/a",'5 (1)'!$H26+'5 (2)'!F26) -> 0.1142402396 | H26: =IF('5 (2)'!H26="n/a","n/a",'5 (1)'!$H26+'5 (2)'!H26) -> 0.08124023956 | K26: =IF('5 (2)'!J26="n/a","n/a",'5 (1)'!$H26+'5 (2)'!J26) -> 0.1092546384 | O26: 0.1062402396 | P26: 0.1142402396 | Q26: 0.08124023956 | R26: 0.1092546384
B28: Average (b) | D28: =AVERAGE(O9:O26) -> 0.09185200871 | F28: =AVERAGE(P9:P26) -> 0.101668232 | H28: =AVERAGE(Q9:Q26) -> 0.09491303965 | K28: =AVERAGE(R9:R26) -> 0.0915024954 | N28: Min | O28: =MIN(O9:O26) -> 0.0753374562 | P28: =MIN(P9:P26) -> 0.07357977769 | Q28: =MIN(Q9:Q26) -> 0.08124023956 | R28: =MIN(R9:R26) -> 0.0758880717
N29: Max | O29: =MAX(O9:O26) -> 0.1258243616 | P29: =MAX(P9:P26) -> 0.1151468088 | Q29: =MAX(Q9:Q26) -> 0.112848263 | R29: =MAX(R9:R26) -> 0.1102674986
N30: Midpoint | O30: =AVERAGE(O28,O29) -> 0.1005809089 | P30: =AVERAGE(P28,P29) -> 0.09436329324 | Q30: =AVERAGE(Q28,Q29) -> 0.0970442513 | R30: =AVERAGE(R28,R29) -> 0.09307778513
A31: (a) | B31: ="Sum of dividend yield (" & L1 & ", p. 1) and respective growth rate (" & L1 & ", p. 2)." -> Sum of dividend yield (Exhibit AMM-5, p. 1) and respective growth rate (Exhibit AMM-5, p. 2).
A32: (b) | B32: Excludes highlighted values.
B34: Threshold Min | D34: 0.07344
B35: Threshold Max | D35: 0.159

Sheet 6
A1: ='Exhibit List'!$C$10 -> BR+SV GROWTH RATE | Q1: ='Exhibit List'!$B$10 -> Exhibit AMM-6 | R1: =A1 -> BR+SV GROWTH RATE | AH1: =Q1 -> Exhibit AMM-6
Q2: Page 1 of 2 | AH2: Page 2 of 2
A3: ='Exhibit List'!$D$10 -> UTILITY GROUP | R3: =A3 -> UTILITY GROUP
C6: (a) | D6: (a) | E6: (a) | G6: (b) | H6: (c) | I6: (d) | J6: (e) | M6: (f) | N6: (g) | T6: (a) | U6: (a) | V6: (h) | X6: (a) | Y6: (a) | Z6: (h) | AA6: (i) | AB6: (a) | AC6: (a) | AE6: (j) | AF6: (a) | AG6: (a) | AH6: (i)
C7: 2027 | I7: Adjustment | M7: "sv" Factor | T7: 2022 | X7: 2027 | AA7: Chg | AB7: 2027 | AF7: Common Shares
B8: Company | C8: EPS | D8: DPS | E8: BVPS | G8: b | H8: r | I8: Factor | J8: Adjusted r | K8: br | M8: s | N8: v | O8: sv | Q8: br + sv | S8: Company | T8: Eq Ratio | U8: Tot Cap | V8: Com Eq | X8: Eq Ratio | Y8: Tot Cap | Z8: Com Eq | AA8: Equity | AB8: High | AC8: Low | AD8: Avg. | AE8: M/B | AF8: 2022 | AG8: 2027 | AH8: Growth
A9: =A8+1 -> 1 | B9: ='Proxy Group Ticker'!C3 -> Avista Corp. | C9: =VLOOKUP('Proxy Group Ticker'!$B3,vldatabase,7,FALSE) -> 2.85 | D9: =VLOOKUP('Proxy Group Ticker'!$B3,vldatabase,8,FALSE) -> 2.05 | E9: =VLOOKUP('Proxy Group Ticker'!$B3,vldatabase,9,FALSE) -> 34.95 | G9: =IF(E9="n/a", "n/a",+(C9-D9)/C9) -> 0.2807017544 | H9: =IF(E9="n/a","n/a",C9/E9) -> 0.08154506438 | I9: =IF(AA9="n/a","n/a",2*(1+AA9)/(2+AA9)) -> 1.030461228 | J9: =IF(H9="n/a","n/a",H9*I9) -> 0.08402902714 | K9: =IF(G9="n/a","n/a",G9*J9) -> 0.02358709534 | M9: =IF(AE9="n/a","n/a",AE9*AH9) -> 0.04981352793 | N9: =IF(AE9="n/a","n/a",1-1/AE9) -> 0.392173913 | O9: =IF(M9="n/a","n/a",M9*N9) -> 0.01953556617 | Q9: =IF(K9="n/a","n/a",K9+O9) -> 0.04312266151 | R9: =A9 -> 1 | S9: =B9 -> Avista Corp. | T9: =VLOOKUP('Proxy Group Ticker'!$B3,vldatabase,14,FALSE) -> 0.525 | U9: =VLOOKUP('Proxy Group Ticker'!$B3,vldatabase,16,FALSE) -> 4104.7 | V9: =IF(U9="n/a","n/a",T9*U9) -> 2154.9675 | X9: =VLOOKUP('Proxy Group Ticker'!$B3,vldatabase,15,FALSE) -> 0.515 | Y9: =VLOOKUP('Proxy Group Ticker'!$B3,vldatabase,17,FALSE) -> 5675 | Z9: =IF(Y9="n/a","n/a",X9*Y9) -> 2922.625 | AA9: =IF(V9="n/a","n/a",(+Z9/V9)^(1/5)-1) -> 0.06283653295 | AB9: =VLOOKUP('Proxy Group Ticker'!$B3,vldatabase,5,FALSE) -> 65 | AC9: =VLOOKUP('Proxy Group Ticker'!$B3,vldatabase,6,FALSE) -> 50 | AD9: =IF(AB9="n/a","n/a",AVERAGE(AB9:AC9)) -> 57.5 | AE9: =IF(AD9="n/a","n/a",AD9/E9) -> 1.645207439 | AF9: =VLOOKUP('Proxy Group Ticker'!$B3,vldatabase,10,FALSE) -> 71.5 | AG9: =VLOOKUP('Proxy Group Ticker'!$B3,vldatabase,11,FALSE) -> 83 | AH9: =IF(AF9="n/a","n/a",(+AG9/AF9)^(1/5)-1) -> 0.03027796176
A10: =A9+1 -> 2 | B10: ='Proxy Group Ticker'!C4 -> Black Hills Corp. | C10: =VLOOKUP('Proxy Group Ticker'!$B4,vldatabase,7,FALSE) -> 5.25 | D10: =VLOOKUP('Proxy Group Ticker'!$B4,vldatabase,8,FALSE) -> 2.95 | E10: =VLOOKUP('Proxy Group Ticker'!$B4,vldatabase,9,FALSE) -> 50.75 | G10: =IF(E10="n/a", "n/a",+(C10-D10)/C10) -> 0.4380952381 | H10: =IF(E10="n/a","n/a",C10/E10) -> 0.1034482759 | I10: =IF(AA10="n/a","n/a",2*(1+AA10)/(2+AA10)) -> 1.02969389 | J10: =IF(H10="n/a","n/a",H10*I10) -> 0.1065200575 | K10: =IF(G10="n/a","n/a",G10*J10) -> 0.04666592997 | M10: =IF(AE10="n/a","n/a",AE10*AH10) -> 0.03395901401 | N10: =IF(AE10="n/a","n/a",1-1/AE10) -> 0.4513513514 | O10: =IF(M10="n/a","n/a",M10*N10) -> 0.01532744687 | Q10: =IF(K10="n/a","n/a",K10+O10) -> 0.06199337684 | R10: =A10 -> 2 | S10: =B10 -> Black Hills Corp. | T10: =VLOOKUP('Proxy Group Ticker'!$B4,vldatabase,14,FALSE) -> 0.403 | U10: =VLOOKUP('Proxy Group Ticker'!$B4,vldatabase,16,FALSE) -> 6914 | V10: =IF(U10="n/a","n/a",T10*U10) -> 2786.342 | X10: =VLOOKUP('Proxy Group Ticker'!$B4,vldatabase,15,FALSE) -> 0.5 | Y10: =VLOOKUP('Proxy Group Ticker'!$B4,vldatabase,17,FALSE) -> 7500 | Z10: =IF(Y10="n/a","n/a",X10*Y10) -> 3750 | AA10: =IF(V10="n/a","n/a",(+Z10/V10)^(1/5)-1) -> 0.0612051997 | AB10: =VLOOKUP('Proxy Group Ticker'!$B4,vldatabase,5,FALSE) -> 105 | AC10: =VLOOKUP('Proxy Group Ticker'!$B4,vldatabase,6,FALSE) -> 80 | AD10: =IF(AB10="n/a","n/a",AVERAGE(AB10:AC10)) -> 92.5 | AE10: =IF(AD10="n/a","n/a",AD10/E10) -> 1.822660099 | AF10: =VLOOKUP('Proxy Group Ticker'!$B4,vldatabase,10,FALSE) -> 64.74 | AG10: =VLOOKUP('Proxy Group Ticker'!$B4,vldatabase,11,FALSE) -> 71 | AH10: =IF(AF10="n/a","n/a",(+AG10/AF10)^(1/5)-1) -> 0.01863156715
A11: 3 | B11: ='Proxy Group Ticker'!C5 -> CenterPoint Energy | C11: =VLOOKUP('Proxy Group Ticker'!$B5,vldatabase,7,FALSE) -> 1.85 | D11: =VLOOKUP('Proxy Group Ticker'!$B5,vldatabase,8,FALSE) -> 0.95 | E11: =VLOOKUP('Proxy Group Ticker'!$B5,vldatabase,9,FALSE) -> 19 | G11: 0.4864864865 | H11: 0.09736842105 | I11: 1.018679209 | J11: 0.09918718614 | K11: 0.04825322569 | M11: 0.002542537054 | N11: 0.3666666667 | O11: 0.0009322635863 | Q11: 0.04918548928 | R11: 3 | S11: CenterPoint Energy | T11: =VLOOKUP('Proxy Group Ticker'!$B5,vldatabase,14,FALSE) -> 0.39 | U11: =VLOOKUP('Proxy Group Ticker'!$B5,vldatabase,16,FALSE) -> 25675 | V11: 10013.25 | X11: =VLOOKUP('Proxy Group Ticker'!$B5,vldatabase,15,FALSE) -> 0.425 | Y11: =VLOOKUP('Proxy Group Ticker'!$B5,vldatabase,17,FALSE) -> 28400 | Z11: 12070 | AA11: 0.03806952662 | AB11: =VLOOKUP('Proxy Group Ticker'!$B5,vldatabase,5,FALSE) -> 35 | AC11: =VLOOKUP('Proxy Group Ticker'!$B5,vldatabase,6,FALSE) -> 25 | AD11: 30 | AE11: 1.578947368 | AF11: =VLOOKUP('Proxy Group Ticker'!$B5,vldatabase,10,FALSE) -> 628.92 | AG11: =VLOOKUP('Proxy Group Ticker'!$B5,vldatabase,11,FALSE) -> 634 | AH11: 0.001610273467
A12: 4 | B12: ='Proxy Group Ticker'!C6 -> CMS Energy Corp. | C12: =VLOOKUP('Proxy Group Ticker'!$B6,vldatabase,7,FALSE) -> 3.75 | D12: =VLOOKUP('Proxy Group Ticker'!$B6,vldatabase,8,FALSE) -> 2.3 | E12: =VLOOKUP('Proxy Group Ticker'!$B6,vldatabase,9,FALSE) -> 26 | G12: 0.3866666667 | H12: 0.1442307692 | I12: 1.01052498 | J12: 0.1457487952 | K12: 0.05635620079 | M12: 0.01475779317 | N12: 0.6 | O12: 0.008854675903 | Q12: 0.06521087669 | R12: 4 | S12: CMS Energy Corp. | T12: =VLOOKUP('Proxy Group Ticker'!$B6,vldatabase,14,FALSE) -> 0.345 | U12: =VLOOKUP('Proxy Group Ticker'!$B6,vldatabase,16,FALSE) -> 20350 | V12: 7020.75 | X12: =VLOOKUP('Proxy Group Ticker'!$B6,vldatabase,15,FALSE) -> 0.375 | Y12: =VLOOKUP('Proxy Group Ticker'!$B6,vldatabase,17,FALSE) -> 20800 | Z12: 7800 | AA12: 0.02127386644 | AB12: =VLOOKUP('Proxy Group Ticker'!$B6,vldatabase,5,FALSE) -> 75 | AC12: =VLOOKUP('Proxy Group Ticker'!$B6,vldatabase,6,FALSE) -> 55 | AD12: 65 | AE12: 2.5 | AF12: =VLOOKUP('Proxy Group Ticker'!$B6,vldatabase,10,FALSE) -> 291.3 | AG12: =VLOOKUP('Proxy Group Ticker'!$B6,vldatabase,11,FALSE) -> 300 | AH12: 0.005903117269
A13: 5 | B13: ='Proxy Group Ticker'!C7 -> Dominion Energy | C13: =VLOOKUP('Proxy Group Ticker'!$B7,vldatabase,7,FALSE) -> 5.1 | D13: =VLOOKUP('Proxy Group Ticker'!$B7,vldatabase,8,FALSE) -> 3.3 | E13: =VLOOKUP('Proxy Group Ticker'!$B7,vldatabase,9,FALSE) -> 43.4 | G13: 0.3529411765 | H13: 0.1175115207 | I13: 1.039181993 | J13: 0.1221158564 | K13: 0.04309971401 | M13: 0.03046585821 | N13: 0.5308108108 | O13: 0.0161716069 | Q13: 0.05927132091 | R13: 5 | S13: Dominion Energy | T13: =VLOOKUP('Proxy Group Ticker'!$B7,vldatabase,14,FALSE) -> 0.385 | U13: =VLOOKUP('Proxy Group Ticker'!$B7,vldatabase,16,FALSE) -> 66344 | V13: 25542.44 | X13: =VLOOKUP('Proxy Group Ticker'!$B7,vldatabase,15,FALSE) -> 0.41 | Y13: =VLOOKUP('Proxy Group Ticker'!$B7,vldatabase,17,FALSE) -> 92200 | Z13: 37802 | AA13: 0.08155965649 | AB13: =VLOOKUP('Proxy Group Ticker'!$B7,vldatabase,5,FALSE) -> 105 | AC13: =VLOOKUP('Proxy Group Ticker'!$B7,vldatabase,6,FALSE) -> 80 | AD13: 92.5 | AE13: 2.131336406 | AF13: =VLOOKUP('Proxy Group Ticker'!$B7,vldatabase,10,FALSE) -> 810.4 | AG13: =VLOOKUP('Proxy Group Ticker'!$B7,vldatabase,11,FALSE) -> 870 | AH13: 0.01429425131
A14: 6 | B14: ='Proxy Group Ticker'!C8 -> DTE Energy Co. | C14: =VLOOKUP('Proxy Group Ticker'!$B8,vldatabase,7,FALSE) -> 8.3 | D14: =VLOOKUP('Proxy Group Ticker'!$B8,vldatabase,8,FALSE) -> 4.65 | E14: =VLOOKUP('Proxy Group Ticker'!$B8,vldatabase,9,FALSE) -> 60.75 | G14: 0.4397590361 | H14: 0.1366255144 | I14: 1.019238194 | J14: 0.1392539425 | K14: 0.06123817954 | M14: 0.0007314128618 | N14: 0.5881355932 | O14: 0.0004301699374 | Q14: 0.06166834947 | R14: 6 | S14: DTE Energy Co. | T14: =VLOOKUP('Proxy Group Ticker'!$B8,vldatabase,14,FALSE) -> 0.37 | U14: =VLOOKUP('Proxy Group Ticker'!$B8,vldatabase,16,FALSE) -> 28000 | V14: 10360 | X14: =VLOOKUP('Proxy Group Ticker'!$B8,vldatabase,15,FALSE) -> 0.39 | Y14: =VLOOKUP('Proxy Group Ticker'!$B8,vldatabase,17,FALSE) -> 32200 | Z14: 12558 | AA14: 0.03923112326 | AB14: =VLOOKUP('Proxy Group Ticker'!$B8,vldatabase,5,FALSE) -> 170 | AC14: =VLOOKUP('Proxy Group Ticker'!$B8,vldatabase,6,FALSE) -> 125 | AD14: 147.5 | AE14: 2.427983539 | AF14: =VLOOKUP('Proxy Group Ticker'!$B8,vldatabase,10,FALSE) -> 205.69 | AG14: =VLOOKUP('Proxy Group Ticker'!$B8,vldatabase,11,FALSE) -> 206 | AH14: 0.0003012429244
A15: 7 | B15: ='Proxy Group Ticker'!C9 -> Duke Energy Corp. | C15: =VLOOKUP('Proxy Group Ticker'!$B9,vldatabase,7,FALSE) -> 6.8 | D15: =VLOOKUP('Proxy Group Ticker'!$B9,vldatabase,8,FALSE) -> 4.3 | E15: =VLOOKUP('Proxy Group Ticker'!$B9,vldatabase,9,FALSE) -> 70 | G15: 0.3676470588 | H15: 0.09714285714 | I15: 1.013316719 | J15: 0.09843648123 | K15: 0.03618988281 | M15: 0.0004363326372 | N15: 0.4042553191 | O15: 0.0001763897895 | Q15: 0.0363662726 | R15: 7 | S15: Duke Energy Corp. | T15: =VLOOKUP('Proxy Group Ticker'!$B9,vldatabase,14,FALSE) -> 0.431 | U15: =VLOOKUP('Proxy Group Ticker'!$B9,vldatabase,16,FALSE) -> 109744 | V15: 47299.664 | X15: =VLOOKUP('Proxy Group Ticker'!$B9,vldatabase,15,FALSE) -> 0.375 | Y15: =VLOOKUP('Proxy Group Ticker'!$B9,vldatabase,17,FALSE) -> 144100 | Z15: 54037.5 | AA15: 0.02699289388 | AB15: =VLOOKUP('Proxy Group Ticker'!$B9,vldatabase,5,FALSE) -> 135 | AC15: =VLOOKUP('Proxy Group Ticker'!$B9,vldatabase,6,FALSE) -> 100 | AD15: 117.5 | AE15: 1.678571429 | AF15: =VLOOKUP('Proxy Group Ticker'!$B9,vldatabase,10,FALSE) -> 769 | AG15: =VLOOKUP('Proxy Group Ticker'!$B9,vldatabase,11,FALSE) -> 770 | AH15: 0.0002599428477
A16: 8 | B16: ='Proxy Group Ticker'!C10 -> Edison International | C16: =VLOOKUP('Proxy Group Ticker'!$B10,vldatabase,7,FALSE) -> 6.3 | D16: =VLOOKUP('Proxy Group Ticker'!$B10,vldatabase,8,FALSE) -> 3.5 | E16: =VLOOKUP('Proxy Group Ticker'!$B10,vldatabase,9,FALSE) -> 47.45 | G16: 0.4444444444 | H16: 0.1327713383 | I16: 1.033723901 | J16: 0.1372489057 | K16: 0.06099951362 | M16: 0.01055362278 | N16: 0.5255 | O16: 0.005545928773 | Q16: 0.0665454424 | R16: 8 | S16: Edison International | T16: =VLOOKUP('Proxy Group Ticker'!$B10,vldatabase,14,FALSE) -> 0.332 | U16: =VLOOKUP('Proxy Group Ticker'!$B10,vldatabase,16,FALSE) -> 41959 | V16: 13930.388 | X16: =VLOOKUP('Proxy Group Ticker'!$B10,vldatabase,15,FALSE) -> 0.32 | Y16: =VLOOKUP('Proxy Group Ticker'!$B10,vldatabase,17,FALSE) -> 61000 | Z16: 19520 | AA16: 0.06980178966 | AB16: =VLOOKUP('Proxy Group Ticker'!$B10,vldatabase,5,FALSE) -> 120 | AC16: =VLOOKUP('Proxy Group Ticker'!$B10,vldatabase,6,FALSE) -> 80 | AD16: 100 | AE16: 2.10748156 | AF16: =VLOOKUP('Proxy Group Ticker'!$B10,vldatabase,10,FALSE) -> 380.38 | AG16: =VLOOKUP('Proxy Group Ticker'!$B10,vldatabase,11,FALSE) -> 390 | AH16: 0.005007694011
A17: 9 | B17: ='Proxy Group Ticker'!C11 -> Emera Inc. | C17: =VLOOKUP('Proxy Group Ticker'!$B11,vldatabase,7,FALSE) -> 4.7 | D17: =VLOOKUP('Proxy Group Ticker'!$B11,vldatabase,8,FALSE) -> 3.06 | E17: =VLOOKUP('Proxy Group Ticker'!$B11,vldatabase,9,FALSE) -> 45.35 | G17: 0.3489361702 | H17: 0.1036383682 | I17: 1.010483147 | J17: 0.1047248244 | K17: 0.03654227917 | M17: 0.01849580481 | N17: 0.4503030303 | O17: 0.008328716953 | Q17: 0.04487099612 | R17: 9 | S17: Emera Inc. | T17: =VLOOKUP('Proxy Group Ticker'!$B11,vldatabase,14,FALSE) -> 0.4205586839 | U17: =VLOOKUP('Proxy Group Ticker'!$B11,vldatabase,16,FALSE) -> 27171 | V17: 11427 | X17: =VLOOKUP('Proxy Group Ticker'!$B11,vldatabase,15,FALSE) -> 0.4303153611 | Y17: =VLOOKUP('Proxy Group Ticker'!$B11,vldatabase,17,FALSE) -> 29490 | Z17: 12690 | AA17: 0.02118841427 | AB17: =VLOOKUP('Proxy Group Ticker'!$B11,vldatabase,5,FALSE) -> 95 | AC17: =VLOOKUP('Proxy Group Ticker'!$B11,vldatabase,6,FALSE) -> 70 | AD17: 82.5 | AE17: 1.819184123 | AF17: =VLOOKUP('Proxy Group Ticker'!$B11,vldatabase,10,FALSE) -> 266 | AG17: =VLOOKUP('Proxy Group Ticker'!$B11,vldatabase,11,FALSE) -> 279.8 | AH17: 0.01016708785
A18: 10 | B18: ='Proxy Group Ticker'!C12 -> Entergy Corp. | C18: =VLOOKUP('Proxy Group Ticker'!$B12,vldatabase,7,FALSE) -> 6.5 | D18: =VLOOKUP('Proxy Group Ticker'!$B12,vldatabase,8,FALSE) -> 5 | E18: =VLOOKUP('Proxy Group Ticker'!$B12,vldatabase,9,FALSE) -> 73 | G18: 0.2307692308 | H18: 0.08904109589 | I18: 1.028870909 | J18: 0.09161179325 | K18: 0.02114118306 | M18: 0.0277175744 | N18: 0.3787234043 | O18: 0.01049729413 | Q18: 0.03163847719 | R18: 10 | S18: Entergy Corp. | T18: =VLOOKUP('Proxy Group Ticker'!$B12,vldatabase,14,FALSE) -> 0.352 | U18: =VLOOKUP('Proxy Group Ticker'!$B12,vldatabase,16,FALSE) -> 36810 | V18: 12957.12 | X18: =VLOOKUP('Proxy Group Ticker'!$B12,vldatabase,15,FALSE) -> 0.33 | Y18: =VLOOKUP('Proxy Group Ticker'!$B12,vldatabase,17,FALSE) -> 52410 | Z18: 17295.3 | AA18: 0.05945843677 | AB18: =VLOOKUP('Proxy Group Ticker'!$B12,vldatabase,5,FALSE) -> 135 | AC18: =VLOOKUP('Proxy Group Ticker'!$B12,vldatabase,6,FALSE) -> 100 | AD18: 117.5 | AE18: 1.609589041 | AF18: =VLOOKUP('Proxy Group Ticker'!$B12,vldatabase,10,FALSE) -> 211.18 | AG18: =VLOOKUP('Proxy Group Ticker'!$B12,vldatabase,11,FALSE) -> 230 | AH18: 0.01722028026
A19: 11 | B19: ='Proxy Group Ticker'!C13 -> Exelon Corp. | C19: =VLOOKUP('Proxy Group Ticker'!$B13,vldatabase,7,FALSE) -> 3 | D19: =VLOOKUP('Proxy Group Ticker'!$B13,vldatabase,8,FALSE) -> 1.8 | E19: =VLOOKUP('Proxy Group Ticker'!$B13,vldatabase,9,FALSE) -> 28.75 | G19: 0.4 | H19: 0.1043478261 | I19: 0.9820119575 | J19: 0.102470813 | K19: 0.04098832518 | M19: 0.007767715393 | N19: 0.4523809524 | O19: 0.003513966487 | Q19: 0.04450229167 | R19: 11 | S19: Exelon Corp. | T19: =VLOOKUP('Proxy Group Ticker'!$B13,vldatabase,14,FALSE) -> 0.491 | U19: =VLOOKUP('Proxy Group Ticker'!$B13,vldatabase,16,FALSE) -> 70107 | V19: 34422.537 | X19: =VLOOKUP('Proxy Group Ticker'!$B13,vldatabase,15,FALSE) -> 0.355 | Y19: =VLOOKUP('Proxy Group Ticker'!$B13,vldatabase,17,FALSE) -> 81000 | Z19: 28755 | AA19: -0.03534038073 | AB19: =VLOOKUP('Proxy Group Ticker'!$B13,vldatabase,5,FALSE) -> 60 | AC19: =VLOOKUP('Proxy Group Ticker'!$B13,vldatabase,6,FALSE) -> 45 | AD19: 52.5 | AE19: 1.826086957 | AF19: =VLOOKUP('Proxy Group Ticker'!$B13,vldatabase,10,FALSE) -> 979 | AG19: =VLOOKUP('Proxy Group Ticker'!$B13,vldatabase,11,FALSE) -> 1000 | AH19: 0.004253748905
A20: 12 | B20: ='Proxy Group Ticker'!C14 -> Hawaiian Elec. | C20: =VLOOKUP('Proxy Group Ticker'!$B14,vldatabase,7,FALSE) -> 2.6 | D20: =VLOOKUP('Proxy Group Ticker'!$B14,vldatabase,8,FALSE) -> 1.6 | E20: =VLOOKUP('Proxy Group Ticker'!$B14,vldatabase,9,FALSE) -> 25.5 | G20: 0.3846153846 | H20: 0.1019607843 | I20: 1.020940342 | J20: 0.104095878 | K20: 0.04003687616 | M20: 0.01240975848 | N20: 0.4631578947 | O20: 0.005747677613 | Q20: 0.04578455377 | R20: 12 | S20: Hawaiian Elec. | T20: =VLOOKUP('Proxy Group Ticker'!$B14,vldatabase,14,FALSE) -> 0.528 | U20: =VLOOKUP('Proxy Group Ticker'!$B14,vldatabase,16,FALSE) -> 4524.1 | V20: 2388.7248 | X20: =VLOOKUP('Proxy Group Ticker'!$B14,vldatabase,15,FALSE) -> 0.495 | Y20: =VLOOKUP('Proxy Group Ticker'!$B14,vldatabase,17,FALSE) -> 5950 | Z20: 2945.25 | AA20: 0.0427764373 | AB20: =VLOOKUP('Proxy Group Ticker'!$B14,vldatabase,5,FALSE) -> 55 | AC20: =VLOOKUP('Proxy Group Ticker'!$B14,vldatabase,6,FALSE) -> 40 | AD20: 47.5 | AE20: 1.862745098 | AF20: =VLOOKUP('Proxy Group Ticker'!$B14,vldatabase,10,FALSE) -> 109.31 | AG20: =VLOOKUP('Proxy Group Ticker'!$B14,vldatabase,11,FALSE) -> 113 | AH20: 0.00666208087
A21: 13 | B21: ='Proxy Group Ticker'!C15 -> IDACORP, Inc. | C21: =VLOOKUP('Proxy Group Ticker'!$B15,vldatabase,7,FALSE) -> 6.1 | D21: =VLOOKUP('Proxy Group Ticker'!$B15,vldatabase,8,FALSE) -> 4 | E21: =VLOOKUP('Proxy Group Ticker'!$B15,vldatabase,9,FALSE) -> 67.3 | G21: 0.3442622951 | H21: 0.09063893016 | I21: 1.023769736 | J21: 0.09279339359 | K21: 0.03194526665 | M21: 0.01011161877 | N21: 0.4272340426 | O21: 0.004320027765 | Q21: 0.03626529441 | R21: 13 | S21: IDACORP, Inc. | T21: =VLOOKUP('Proxy Group Ticker'!$B15,vldatabase,14,FALSE) -> 0.572 | U21: =VLOOKUP('Proxy Group Ticker'!$B15,vldatabase,16,FALSE) -> 4669.1 | V21: 2670.7252 | X21: =VLOOKUP('Proxy Group Ticker'!$B15,vldatabase,15,FALSE) -> 0.5 | Y21: =VLOOKUP('Proxy Group Ticker'!$B15,vldatabase,17,FALSE) -> 6775 | Z21: 3387.5 | AA21: 0.04869698623 | AB21: =VLOOKUP('Proxy Group Ticker'!$B15,vldatabase,5,FALSE) -> 130 | AC21: =VLOOKUP('Proxy Group Ticker'!$B15,vldatabase,6,FALSE) -> 105 | AD21: 117.5 | AE21: 1.745913819 | AF21: =VLOOKUP('Proxy Group Ticker'!$B15,vldatabase,10,FALSE) -> 50.52 | AG21: =VLOOKUP('Proxy Group Ticker'!$B15,vldatabase,11,FALSE) -> 52 | AH21: 0.005791591008
A22: 14 | B22: ='Proxy Group Ticker'!C16 -> NorthWestern Corp. | C22: =VLOOKUP('Proxy Group Ticker'!$B16,vldatabase,7,FALSE) -> 4 | D22: =VLOOKUP('Proxy Group Ticker'!$B16,vldatabase,8,FALSE) -> 2.68 | E22: =VLOOKUP('Proxy Group Ticker'!$B16,vldatabase,9,FALSE) -> 50 | G22: 0.33 | H22: 0.08 | I22: 1.027696137 | J22: 0.08221569093 | K22: 0.02713117801 | M22: 0.03612312902 | N22: 0.2307692308 | O22: 0.008336106697 | Q22: 0.0354672847 | R22: 14 | S22: NorthWestern Corp. | T22: =VLOOKUP('Proxy Group Ticker'!$B16,vldatabase,14,FALSE) -> 0.478 | U22: =VLOOKUP('Proxy Group Ticker'!$B16,vldatabase,16,FALSE) -> 4893.1 | V22: 2338.9018 | X22: =VLOOKUP('Proxy Group Ticker'!$B16,vldatabase,15,FALSE) -> 0.51 | Y22: =VLOOKUP('Proxy Group Ticker'!$B16,vldatabase,17,FALSE) -> 6050 | Z22: 3085.5 | AA22: 0.05697012566 | AB22: =VLOOKUP('Proxy Group Ticker'!$B16,vldatabase,5,FALSE) -> 75 | AC22: =VLOOKUP('Proxy Group Ticker'!$B16,vldatabase,6,FALSE) -> 55 | AD22: 65 | AE22: 1.3 | AF22: =VLOOKUP('Proxy Group Ticker'!$B16,vldatabase,10,FALSE) -> 54.06 | AG22: =VLOOKUP('Proxy Group Ticker'!$B16,vldatabase,11,FALSE) -> 62 | AH22: 0.02778702232
A23: 15 | B23: ='Proxy Group Ticker'!C17 -> Otter Tail Corp. | C23: =VLOOKUP('Proxy Group Ticker'!$B17,vldatabase,7,FALSE) -> 3.65 | D23: =VLOOKUP('Proxy Group Ticker'!$B17,vldatabase,8,FALSE) -> 2.2 | E23: =VLOOKUP('Proxy Group Ticker'!$B17,vldatabase,9,FALSE) -> 34.25 | G23: 0.397260274 | H23: 0.1065693431 | I23: 1.019548547 | J23: 0.1086526189 | K23: 0.04316336915 | M23: 0.007866746927 | N23: 0.4730769231 | O23: 0.003721576431 | Q23: 0.04688494558 | R23: 15 | S23: Otter Tail Corp. | T23: =VLOOKUP('Proxy Group Ticker'!$B17,vldatabase,14,FALSE) -> 0.585 | U23: =VLOOKUP('Proxy Group Ticker'!$B17,vldatabase,16,FALSE) -> 2041.1 | V23: 1194.0435 | X23: =VLOOKUP('Proxy Group Ticker'!$B17,vldatabase,15,FALSE) -> 0.575 | Y23: =VLOOKUP('Proxy Group Ticker'!$B17,vldatabase,17,FALSE) -> 2525 | Z23: 1451.875 | AA23: 0.03987662428 | AB23: =VLOOKUP('Proxy Group Ticker'!$B17,vldatabase,5,FALSE) -> 75 | AC23: =VLOOKUP('Proxy Group Ticker'!$B17,vldatabase,6,FALSE) -> 55 | AD23: 65 | AE23: 1.897810219 | AF23: =VLOOKUP('Proxy Group Ticker'!$B17,vldatabase,10,FALSE) -> 41.63 | AG23: =VLOOKUP('Proxy Group Ticker'!$B17,vldatabase,11,FALSE) -> 42.5 | AH23: 0.004145170496
A24: 16 | B24: ='Proxy Group Ticker'!C18 -> Pub Sv Enterprise Grp. | C24: =VLOOKUP('Proxy Group Ticker'!$B18,vldatabase,7,FALSE) -> 4.5 | D24: =VLOOKUP('Proxy Group Ticker'!$B18,vldatabase,8,FALSE) -> 2.8 | E24: =VLOOKUP('Proxy Group Ticker'!$B18,vldatabase,9,FALSE) -> 33.75 | G24: 0.3777777778 | H24: 0.1333333333 | I24: 1.015053529 | J24: 0.1353404705 | K24: 0.0511286222 | M24: -0.003656541323 | N24: 0.564516129 | O24: -0.002064176553 | Q24: 0.04906444564 | R24: 16 | S24: Pub Sv Enterprise Grp. | T24: =VLOOKUP('Proxy Group Ticker'!$B18,vldatabase,14,FALSE) -> 0.487 | U24: =VLOOKUP('Proxy Group Ticker'!$B18,vldatabase,16,FALSE) -> 29657 | V24: 14442.959 | X24: =VLOOKUP('Proxy Group Ticker'!$B18,vldatabase,15,FALSE) -> 0.455 | Y24: =VLOOKUP('Proxy Group Ticker'!$B18,vldatabase,17,FALSE) -> 36900 | Z24: 16789.5 | AA24: 0.03056720211 | AB24: =VLOOKUP('Proxy Group Ticker'!$B18,vldatabase,5,FALSE) -> 85 | AC24: =VLOOKUP('Proxy Group Ticker'!$B18,vldatabase,6,FALSE) -> 70 | AD24: 77.5 | AE24: 2.296296296 | AF24: =VLOOKUP('Proxy Group Ticker'!$B18,vldatabase,10,FALSE) -> 504 | AG24: =VLOOKUP('Proxy Group Ticker'!$B18,vldatabase,11,FALSE) -> 500 | AH24: -0.00159236477
A25: 17 | B25: ='Proxy Group Ticker'!C19 -> Sempra Energy | C25: =VLOOKUP('Proxy Group Ticker'!$B19,vldatabase,7,FALSE) -> 11.25 | D25: =VLOOKUP('Proxy Group Ticker'!$B19,vldatabase,8,FALSE) -> 5.82 | E25: =VLOOKUP('Proxy Group Ticker'!$B19,vldatabase,9,FALSE) -> 102.65 | G25: 0.4826666667 | H25: 0.1095957136 | I25: 1.02242303 | J25: 0.1120531815 | K25: 0.05408433562 | M25: -0.01450997461 | N25: 0.4735897436 | O25: -0.006871775154 | Q25: 0.04721256047 | R25: 17 | S25: Sempra Energy | T25: =VLOOKUP('Proxy Group Ticker'!$B19,vldatabase,14,FALSE) -> 0.533 | U25: =VLOOKUP('Proxy Group Ticker'!$B19,vldatabase,16,FALSE) -> 47069 | V25: 25087.777 | X25: =VLOOKUP('Proxy Group Ticker'!$B19,vldatabase,15,FALSE) -> 0.525 | Y25: =VLOOKUP('Proxy Group Ticker'!$B19,vldatabase,17,FALSE) -> 59800 | Z25: 31395 | AA25: 0.04587470945 | AB25: =VLOOKUP('Proxy Group Ticker'!$B19,vldatabase,5,FALSE) -> 225 | AC25: =VLOOKUP('Proxy Group Ticker'!$B19,vldatabase,6,FALSE) -> 165 | AD25: 195 | AE25: 1.899659036 | AF25: =VLOOKUP('Proxy Group Ticker'!$B19,vldatabase,10,FALSE) -> 316.92 | AG25: =VLOOKUP('Proxy Group Ticker'!$B19,vldatabase,11,FALSE) -> 305 | AH25: -0.007638199453
A26: 18 | B26: ='Proxy Group Ticker'!C20 -> Southern Company | C26: =VLOOKUP('Proxy Group Ticker'!$B20,vldatabase,7,FALSE) -> 5.15 | D26: =VLOOKUP('Proxy Group Ticker'!$B20,vldatabase,8,FALSE) -> 3.1 | E26: =VLOOKUP('Proxy Group Ticker'!$B20,vldatabase,9,FALSE) -> 32.25 | G26: 0.3980582524 | H26: 0.1596899225 | I26: 1.021614403 | J26: 0.1631415248 | K26: 0.06493983026 | M26: 0.004954281057 | N26: 0.6205882353 | O26: 0.003074568538 | Q26: 0.0680143988 | R26: 18 | S26: Southern Company | T26: =VLOOKUP('Proxy Group Ticker'!$B20,vldatabase,14,FALSE) -> 0.356 | U26: =VLOOKUP('Proxy Group Ticker'!$B20,vldatabase,16,FALSE) -> 78285 | V26: 27869.46 | X26: =VLOOKUP('Proxy Group Ticker'!$B20,vldatabase,15,FALSE) -> 0.37 | Y26: =VLOOKUP('Proxy Group Ticker'!$B20,vldatabase,17,FALSE) -> 93500 | Z26: 34595 | AA26: 0.04418381238 | AB26: =VLOOKUP('Proxy Group Ticker'!$B20,vldatabase,5,FALSE) -> 100 | AC26: =VLOOKUP('Proxy Group Ticker'!$B20,vldatabase,6,FALSE) -> 70 | AD26: 85 | AE26: 2.635658915 | AF26: =VLOOKUP('Proxy Group Ticker'!$B20,vldatabase,10,FALSE) -> 1060 | AG26: =VLOOKUP('Proxy Group Ticker'!$B20,vldatabase,11,FALSE) -> 1070 | AH26: 0.001879712519
R28: (a) | S28: ='Proxy Group Risk Measures'!B32 -> The Value Line Investment Survey (Jan. 20, Feb. 10 and Mar. 10, 2023).
R29: (b) | S29: "b" is the retention ratio, computed as (EPS-DPS)/EPS.
R30: (c) | S30: "r" is the rate of return on book equity, computed as EPS/BVPS.
R31: (d) | S31: Computed using the formula 2*(1+5-Yr. Change in Equity)/(2+5 Yr. Change in Equity).
R32: (e) | S32: Product of average year-end "r" for 2027 and Adjustment Factor.
R33: (f) | S33: Product of change in common shares outstanding and M/B Ratio.
R34: (g) | S34: Computed as 1 - B/M Ratio.
R35: (h) | S35: Product of total capital and equity ratio.
R36: (i) | S36: Five-year rate of change.
R37: (j) | S37: Average of High and Low expected market prices divided by 2027 BVPS.

Sheet 7
A1: ='Exhibit List'!C11 -> CAPM | N1: ='Exhibit List'!B11 -> Exhibit AMM-7
N2: Page 1 of 1
A3: ='Exhibit List'!D11 -> UTILITY GROUP
D5: (a) | E5: (b) | G5: (c) | I5: (d) | K5: (e) | L5: (f)
D6: Market Return (Rm)
D7: Div | E7: Proj. | F7: Cost of | G7: Risk-Free | H7: Risk | J7: Unadjusted | K7: Market | L7: Size | M7: CAPM
B8: Company | D8: Yield | E8: Growth | F8: Equity | G8: Rate | H8: Premium | I8: Beta | J8: Ke | K8: Cap | L8: Adjustment | M8: Result
A9: =A8+1 -> 1 | B9: =VLOOKUP('Proxy Group Ticker'!$B3,vldatabase,2,FALSE) -> Avista Corp. | D9: =ROUND('2023 03 Market DCF'!$J$402,3) -> 0.021 | E9: =ROUND('2023 03 Market DCF'!$P$403,3) -> 0.095 | F9: =D9+E9 -> 0.116 | G9: =ROUND('Bond Yields'!$G$16,3) -> 0.038 | H9: =F9-G9 -> 0.078 | I9: =VLOOKUP('Proxy Group Ticker'!$B3,vldatabase,23,FALSE) -> 0.9 | J9: =IF(I9="n/a","n/a",I9*H9+G9) -> 0.1082 | K9: =VLOOKUP('Proxy Group Ticker'!$B3,vldatabase,28,FALSE) -> 3200 | L9: =IF(K9>'Size Premium'!$A$5,'Size Premium'!$B$5,IF(K9>'Size Premium'!$A$6,'Size Premium'!$B$6,IF(K9>'Size Premium'!$A$7,'Size Premium'!$B$7,IF(K9>'Size Premium'!$A$8,'Size Premium'!$B$8,IF(K9>'Size Premium'!$A$9,'Size Premium'!$B$9,IF(K9>'Size Premium'!$A$10,'Size Premium'!$B$10,IF(K9>'Size Premium'!$A$11,'Size Premium'!$B$11,IF(K9>'Size Premium'!$A$12,'Size Premium'!$B$12,"ERROR")))))))) -> 0.0093 | M9: =IF(J9="n/a","n/a",(J9+L9)) -> 0.1175 | Q9: =IF(J9="n/a","n/a",IF(J9<$D$41,"LOW",IF(J9>$D$42,"HIGH",J9))) -> 0.1082 | T9: =IF(M9="n/a","n/a",IF(M9<$D$41,"LOW",IF(TRUNC(M9,3)>$D$42,"HIGH",M9))) -> 0.1175
A10: =A9+1 -> 2 | B10: =VLOOKUP('Proxy Group Ticker'!$B4,vldatabase,2,FALSE) -> Black Hills Corp. | D10: =ROUND('2023 03 Market DCF'!$J$402,3) -> 0.021 | E10: =ROUND('2023 03 Market DCF'!$P$403,3) -> 0.095 | F10: =D10+E10 -> 0.116 | G10: =ROUND('Bond Yields'!$G$16,3) -> 0.038 | H10: =F10-G10 -> 0.078 | I10: =VLOOKUP('Proxy Group Ticker'!$B4,vldatabase,23,FALSE) -> 0.95 | J10: =IF(I10="n/a","n/a",I10*H10+G10) -> 0.1121 | K10: =VLOOKUP('Proxy Group Ticker'!$B4,vldatabase,28,FALSE) -> 4600 | L10: =IF(K10>'Size Premium'!$A$5,'Size Premium'!$B$5,IF(K10>'Size Premium'!$A$6,'Size Premium'!$B$6,IF(K10>'Size Premium'!$A$7,'Size Premium'!$B$7,IF(K10>'Size Premium'!$A$8,'Size Premium'!$B$8,IF(K10>'Size Premium'!$A$9,'Size Premium'!$B$9,IF(K10>'Size Premium'!$A$10,'Size Premium'!$B$10,IF(K10>'Size Premium'!$A$11,'Size Premium'!$B$11,IF(K10>'Size Premium'!$A$12,'Size Premium'!$B$12,"ERROR")))))))) -> 0.0058 | M10: =IF(J10="n/a","n/a",(J10+L10)) -> 0.1179 | Q10: 0.1121 | T10: 0.1179
A11: 3 | B11: =VLOOKUP('Proxy Group Ticker'!$B5,vldatabase,2,FALSE) -> CenterPoint Energy | D11: =ROUND('2023 03 Market DCF'!$J$402,3) -> 0.021 | E11: =ROUND('2023 03 Market DCF'!$P$403,3) -> 0.095 | F11: 0.116 | G11: =ROUND('Bond Yields'!$G$16,3) -> 0.038 | H11: 0.078 | I11: =VLOOKUP('Proxy Group Ticker'!$B5,vldatabase,23,FALSE) -> 1.1 | J11: 0.1238 | K11: =VLOOKUP('Proxy Group Ticker'!$B5,vldatabase,28,FALSE) -> 17900 | L11: =IF(K11>'Size Premium'!$A$5,'Size Premium'!$B$5,IF(K11>'Size Premium'!$A$6,'Size Premium'!$B$6,IF(K11>'Size Premium'!$A$7,'Size Premium'!$B$7,IF(K11>'Size Premium'!$A$8,'Size Premium'!$B$8,IF(K11>'Size Premium'!$A$9,'Size Premium'!$B$9,IF(K11>'Size Premium'!$A$10,'Size Premium'!$B$10,IF(K11>'Size Premium'!$A$11,'Size Premium'!$B$11,IF(K11>'Size Premium'!$A$12,'Size Premium'!$B$12,"ERROR")))))))) -> 0.0045 | M11: 0.1283 | Q11: 0.1238 | T11: 0.1283
A12: 4 | B12: =VLOOKUP('Proxy Group Ticker'!$B6,vldatabase,2,FALSE) -> CMS Energy Corp. | D12: =ROUND('2023 03 Market DCF'!$J$402,3) -> 0.021 | E12: =ROUND('2023 03 Market DCF'!$P$403,3) -> 0.095 | F12: 0.116 | G12: =ROUND('Bond Yields'!$G$16,3) -> 0.038 | H12: 0.078 | I12: =VLOOKUP('Proxy Group Ticker'!$B6,vldatabase,23,FALSE) -> 0.8 | J12: 0.1004 | K12: =VLOOKUP('Proxy Group Ticker'!$B6,vldatabase,28,FALSE) -> 17400 | L12: =IF(K12>'Size Premium'!$A$5,'Size Premium'!$B$5,IF(K12>'Size Premium'!$A$6,'Size Premium'!$B$6,IF(K12>'Size Premium'!$A$7,'Size Premium'!$B$7,IF(K12>'Size Premium'!$A$8,'Size Premium'!$B$8,IF(K12>'Size Premium'!$A$9,'Size Premium'!$B$9,IF(K12>'Size Premium'!$A$10,'Size Premium'!$B$10,IF(K12>'Size Premium'!$A$11,'Size Premium'!$B$11,IF(K12>'Size Premium'!$A$12,'Size Premium'!$B$12,"ERROR")))))))) -> 0.0045 | M12: 0.1049 | Q12: 0.1004 | T12: 0.1049
A13: 5 | B13: =VLOOKUP('Proxy Group Ticker'!$B7,vldatabase,2,FALSE) -> Dominion Energy | D13: =ROUND('2023 03 Market DCF'!$J$402,3) -> 0.021 | E13: =ROUND('2023 03 Market DCF'!$P$403,3) -> 0.095 | F13: 0.116 | G13: =ROUND('Bond Yields'!$G$16,3) -> 0.038 | H13: 0.078 | I13: =VLOOKUP('Proxy Group Ticker'!$B7,vldatabase,23,FALSE) -> 0.8 | J13: 0.1004 | K13: =VLOOKUP('Proxy Group Ticker'!$B7,vldatabase,28,FALSE) -> 52200 | L13: =IF(K13>'Size Premium'!$A$5,'Size Premium'!$B$5,IF(K13>'Size Premium'!$A$6,'Size Premium'!$B$6,IF(K13>'Size Premium'!$A$7,'Size Premium'!$B$7,IF(K13>'Size Premium'!$A$8,'Size Premium'!$B$8,IF(K13>'Size Premium'!$A$9,'Size Premium'!$B$9,IF(K13>'Size Premium'!$A$10,'Size Premium'!$B$10,IF(K13>'Size Premium'!$A$11,'Size Premium'!$B$11,IF(K13>'Size Premium'!$A$12,'Size Premium'!$B$12,"ERROR")))))))) -> -0.0026 | M13: 0.0978 | Q13: 0.1004 | T13: 0.0978
A14: 6 | B14: =VLOOKUP('Proxy Group Ticker'!$B8,vldatabase,2,FALSE) -> DTE Energy Co. | D14: =ROUND('2023 03 Market DCF'!$J$402,3) -> 0.021 | E14: =ROUND('2023 03 Market DCF'!$P$403,3) -> 0.095 | F14: 0.116 | G14: =ROUND('Bond Yields'!$G$16,3) -> 0.038 | H14: 0.078 | I14: =VLOOKUP('Proxy Group Ticker'!$B8,vldatabase,23,FALSE) -> 0.95 | J14: 0.1121 | K14: =VLOOKUP('Proxy Group Ticker'!$B8,vldatabase,28,FALSE) -> 22900 | L14: =IF(K14>'Size Premium'!$A$5,'Size Premium'!$B$5,IF(K14>'Size Premium'!$A$6,'Size Premium'!$B$6,IF(K14>'Size Premium'!$A$7,'Size Premium'!$B$7,IF(K14>'Size Premium'!$A$8,'Size Premium'!$B$8,IF(K14>'Size Premium'!$A$9,'Size Premium'!$B$9,IF(K14>'Size Premium'!$A$10,'Size Premium'!$B$10,IF(K14>'Size Premium'!$A$11,'Size Premium'!$B$11,IF(K14>'Size Premium'!$A$12,'Size Premium'!$B$12,"ERROR")))))))) -> 0.0045 | M14: 0.1166 | Q14: 0.1121 | T14: 0.1166
A15: 7 | B15: =VLOOKUP('Proxy Group Ticker'!$B9,vldatabase,2,FALSE) -> Duke Energy Corp. | D15: =ROUND('2023 03 Market DCF'!$J$402,3) -> 0.021 | E15: =ROUND('2023 03 Market DCF'!$P$403,3) -> 0.095 | F15: 0.116 | G15: =ROUND('Bond Yields'!$G$16,3) -> 0.038 | H15: 0.078 | I15: =VLOOKUP('Proxy Group Ticker'!$B9,vldatabase,23,FALSE) -> 0.85 | J15: 0.1043 | K15: =VLOOKUP('Proxy Group Ticker'!$B9,vldatabase,28,FALSE) -> 78300 | L15: =IF(K15>'Size Premium'!$A$5,'Size Premium'!$B$5,IF(K15>'Size Premium'!$A$6,'Size Premium'!$B$6,IF(K15>'Size Premium'!$A$7,'Size Premium'!$B$7,IF(K15>'Size Premium'!$A$8,'Size Premium'!$B$8,IF(K15>'Size Premium'!$A$9,'Size Premium'!$B$9,IF(K15>'Size Premium'!$A$10,'Size Premium'!$B$10,IF(K15>'Size Premium'!$A$11,'Size Premium'!$B$11,IF(K15>'Size Premium'!$A$12,'Size Premium'!$B$12,"ERROR")))))))) -> -0.0026 | M15: 0.1017 | Q15: 0.1043 | T15: 0.1017
A16: 8 | B16: =VLOOKUP('Proxy Group Ticker'!$B10,vldatabase,2,FALSE) -> Edison International | D16: =ROUND('2023 03 Market DCF'!$J$402,3) -> 0.021 | E16: =ROUND('2023 03 Market DCF'!$P$403,3) -> 0.095 | F16: 0.116 | G16: =ROUND('Bond Yields'!$G$16,3) -> 0.038 | H16: 0.078 | I16: =VLOOKUP('Proxy Group Ticker'!$B10,vldatabase,23,FALSE) -> 0.95 | J16: 0.1121 | K16: =VLOOKUP('Proxy Group Ticker'!$B10,vldatabase,28,FALSE) -> 25900 | L16: =IF(K16>'Size Premium'!$A$5,'Size Premium'!$B$5,IF(K16>'Size Premium'!$A$6,'Size Premium'!$B$6,IF(K16>'Size Premium'!$A$7,'Size Premium'!$B$7,IF(K16>'Size Premium'!$A$8,'Size Premium'!$B$8,IF(K16>'Size Premium'!$A$9,'Size Premium'!$B$9,IF(K16>'Size Premium'!$A$10,'Size Premium'!$B$10,IF(K16>'Size Premium'!$A$11,'Size Premium'!$B$11,IF(K16>'Size Premium'!$A$12,'Size Premium'!$B$12,"ERROR")))))))) -> 0.0045 | M16: 0.1166 | Q16: 0.1121 | T16: 0.1166
A17: 9 | B17: =VLOOKUP('Proxy Group Ticker'!$B11,vldatabase,2,FALSE) -> Emera Inc. | D17: =ROUND('2023 03 Market DCF'!$J$402,3) -> 0.021 | E17: =ROUND('2023 03 Market DCF'!$P$403,3) -> 0.095 | F17: 0.116 | G17: =ROUND('Bond Yields'!$G$16,3) -> 0.038 | H17: 0.078 | I17: =VLOOKUP('Proxy Group Ticker'!$B11,vldatabase,23,FALSE) -> 0.7 | J17: 0.0926 | K17: =VLOOKUP('Proxy Group Ticker'!$B11,vldatabase,28,FALSE) -> 14300 | L17: =IF(K17>'Size Premium'!$A$5,'Size Premium'!$B$5,IF(K17>'Size Premium'!$A$6,'Size Premium'!$B$6,IF(K17>'Size Premium'!$A$7,'Size Premium'!$B$7,IF(K17>'Size Premium'!$A$8,'Size Premium'!$B$8,IF(K17>'Size Premium'!$A$9,'Size Premium'!$B$9,IF(K17>'Size Premium'!$A$10,'Size Premium'!$B$10,IF(K17>'Size Premium'!$A$11,'Size Premium'!$B$11,IF(K17>'Size Premium'!$A$12,'Size Premium'!$B$12,"ERROR")))))))) -> 0.0045 | M17: 0.0971 | Q17: 0.0926 | T17: 0.0971
A18: 10 | B18: =VLOOKUP('Proxy Group Ticker'!$B12,vldatabase,2,FALSE) -> Entergy Corp. | D18: =ROUND('2023 03 Market DCF'!$J$402,3) -> 0.021 | E18: =ROUND('2023 03 Market DCF'!$P$403,3) -> 0.095 | F18: 0.116 | G18: =ROUND('Bond Yields'!$G$16,3) -> 0.038 | H18: 0.078 | I18: =VLOOKUP('Proxy Group Ticker'!$B12,vldatabase,23,FALSE) -> 0.95 | J18: 0.1121 | K18: =VLOOKUP('Proxy Group Ticker'!$B12,vldatabase,28,FALSE) -> 23000 | L18: =IF(K18>'Size Premium'!$A$5,'Size Premium'!$B$5,IF(K18>'Size Premium'!$A$6,'Size Premium'!$B$6,IF(K18>'Size Premium'!$A$7,'Size Premium'!$B$7,IF(K18>'Size Premium'!$A$8,'Size Premium'!$B$8,IF(K18>'Size Premium'!$A$9,'Size Premium'!$B$9,IF(K18>'Size Premium'!$A$10,'Size Premium'!$B$10,IF(K18>'Size Premium'!$A$11,'Size Premium'!$B$11,IF(K18>'Size Premium'!$A$12,'Size Premium'!$B$12,"ERROR")))))))) -> 0.0045 | M18: 0.1166 | Q18: 0.1121 | T18: 0.1166
A19: 11 | B19: =VLOOKUP('Proxy Group Ticker'!$B13,vldatabase,2,FALSE) -> Exelon Corp. | D19: =ROUND('2023 03 Market DCF'!$J$402,3) -> 0.021 | E19: =ROUND('2023 03 Market DCF'!$P$403,3) -> 0.095 | F19: 0.116 | G19: =ROUND('Bond Yields'!$G$16,3) -> 0.038 | H19: 0.078 | I19: =VLOOKUP('Proxy Group Ticker'!$B13,vldatabase,23,FALSE) -> n/a | J19: n/a | K19: =VLOOKUP('Proxy Group Ticker'!$B13,vldatabase,28,FALSE) -> 41500 | L19: =IF(K19>'Size Premium'!$A$5,'Size Premium'!$B$5,IF(K19>'Size Premium'!$A$6,'Size Premium'!$B$6,IF(K19>'Size Premium'!$A$7,'Size Premium'!$B$7,IF(K19>'Size Premium'!$A$8,'Size Premium'!$B$8,IF(K19>'Size Premium'!$A$9,'Size Premium'!$B$9,IF(K19>'Size Premium'!$A$10,'Size Premium'!$B$10,IF(K19>'Size Premium'!$A$11,'Size Premium'!$B$11,IF(K19>'Size Premium'!$A$12,'Size Premium'!$B$12,"ERROR")))))))) -> -0.0026 | M19: n/a | Q19: n/a | T19: n/a
A20: 12 | B20: =VLOOKUP('Proxy Group Ticker'!$B14,vldatabase,2,FALSE) -> Hawaiian Elec. | D20: =ROUND('2023 03 Market DCF'!$J$402,3) -> 0.021 | E20: =ROUND('2023 03 Market DCF'!$P$403,3) -> 0.095 | F20: 0.116 | G20: =ROUND('Bond Yields'!$G$16,3) -> 0.038 | H20: 0.078 | I20: =VLOOKUP('Proxy Group Ticker'!$B14,vldatabase,23,FALSE) -> 0.85 | J20: 0.1043 | K20: =VLOOKUP('Proxy Group Ticker'!$B14,vldatabase,28,FALSE) -> 4600 | L20: =IF(K20>'Size Premium'!$A$5,'Size Premium'!$B$5,IF(K20>'Size Premium'!$A$6,'Size Premium'!$B$6,IF(K20>'Size Premium'!$A$7,'Size Premium'!$B$7,IF(K20>'Size Premium'!$A$8,'Size Premium'!$B$8,IF(K20>'Size Premium'!$A$9,'Size Premium'!$B$9,IF(K20>'Size Premium'!$A$10,'Size Premium'!$B$10,IF(K20>'Size Premium'!$A$11,'Size Premium'!$B$11,IF(K20>'Size Premium'!$A$12,'Size Premium'!$B$12,"ERROR")))))))) -> 0.0058 | M20: 0.1101 | Q20: 0.1043 | T20: 0.1101
A21: 13 | B21: =VLOOKUP('Proxy Group Ticker'!$B15,vldatabase,2,FALSE) -> IDACORP, Inc. | D21: =ROUND('2023 03 Market DCF'!$J$402,3) -> 0.021 | E21: =ROUND('2023 03 Market DCF'!$P$403,3) -> 0.095 | F21: 0.116 | G21: =ROUND('Bond Yields'!$G$16,3) -> 0.038 | H21: 0.078 | I21: =VLOOKUP('Proxy Group Ticker'!$B15,vldatabase,23,FALSE) -> 0.8 | J21: 0.1004 | K21: =VLOOKUP('Proxy Group Ticker'!$B15,vldatabase,28,FALSE) -> 5500 | L21: =IF(K21>'Size Premium'!$A$5,'Size Premium'!$B$5,IF(K21>'Size Premium'!$A$6,'Size Premium'!$B$6,IF(K21>'Size Premium'!$A$7,'Size Premium'!$B$7,IF(K21>'Size Premium'!$A$8,'Size Premium'!$B$8,IF(K21>'Size Premium'!$A$9,'Size Premium'!$B$9,IF(K21>'Size Premium'!$A$10,'Size Premium'!$B$10,IF(K21>'Size Premium'!$A$11,'Size Premium'!$B$11,IF(K21>'Size Premium'!$A$12,'Size Premium'!$B$12,"ERROR")))))))) -> 0.0058 | M21: 0.1062 | Q21: 0.1004 | T21: 0.1062
A22: 14 | B22: =VLOOKUP('Proxy Group Ticker'!$B16,vldatabase,2,FALSE) -> NorthWestern Corp. | D22: =ROUND('2023 03 Market DCF'!$J$402,3) -> 0.021 | E22: =ROUND('2023 03 Market DCF'!$P$403,3) -> 0.095 | F22: 0.116 | G22: =ROUND('Bond Yields'!$G$16,3) -> 0.038 | H22: 0.078 | I22: =VLOOKUP('Proxy Group Ticker'!$B16,vldatabase,23,FALSE) -> 0.9 | J22: 0.1082 | K22: =VLOOKUP('Proxy Group Ticker'!$B16,vldatabase,28,FALSE) -> 3400 | L22: =IF(K22>'Size Premium'!$A$5,'Size Premium'!$B$5,IF(K22>'Size Premium'!$A$6,'Size Premium'!$B$6,IF(K22>'Size Premium'!$A$7,'Size Premium'!$B$7,IF(K22>'Size Premium'!$A$8,'Size Premium'!$B$8,IF(K22>'Size Premium'!$A$9,'Size Premium'!$B$9,IF(K22>'Size Premium'!$A$10,'Size Premium'!$B$10,IF(K22>'Size Premium'!$A$11,'Size Premium'!$B$11,IF(K22>'Size Premium'!$A$12,'Size Premium'!$B$12,"ERROR")))))))) -> 0.0093 | M22: 0.1175 | Q22: 0.1082 | T22: 0.1175
A23: 15 | B23: =VLOOKUP('Proxy Group Ticker'!$B17,vldatabase,2,FALSE) -> Otter Tail Corp. | D23: =ROUND('2023 03 Market DCF'!$J$402,3) -> 0.021 | E23: =ROUND('2023 03 Market DCF'!$P$403,3) -> 0.095 | F23: 0.116 | G23: =ROUND('Bond Yields'!$G$16,3) -> 0.038 | H23: 0.078 | I23: =VLOOKUP('Proxy Group Ticker'!$B17,vldatabase,23,FALSE) -> 0.9 | J23: 0.1082 | K23: =VLOOKUP('Proxy Group Ticker'!$B17,vldatabase,28,FALSE) -> 3000 | L23: =IF(K23>'Size Premium'!$A$5,'Size Premium'!$B$5,IF(K23>'Size Premium'!$A$6,'Size Premium'!$B$6,IF(K23>'Size Premium'!$A$7,'Size Premium'!$B$7,IF(K23>'Size Premium'!$A$8,'Size Premium'!$B$8,IF(K23>'Size Premium'!$A$9,'Size Premium'!$B$9,IF(K23>'Size Premium'!$A$10,'Size Premium'!$B$10,IF(K23>'Size Premium'!$A$11,'Size Premium'!$B$11,IF(K23>'Size Premium'!$A$12,'Size Premium'!$B$12,"ERROR")))))))) -> 0.0093 | M23: 0.1175 | Q23: 0.1082 | T23: 0.1175
A24: 16 | B24: =VLOOKUP('Proxy Group Ticker'!$B18,vldatabase,2,FALSE) -> Pub Sv Enterprise Grp. | D24: =ROUND('2023 03 Market DCF'!$J$402,3) -> 0.021 | E24: =ROUND('2023 03 Market DCF'!$P$403,3) -> 0.095 | F24: 0.116 | G24: =ROUND('Bond Yields'!$G$16,3) -> 0.038 | H24: 0.078 | I24: =VLOOKUP('Proxy Group Ticker'!$B18,vldatabase,23,FALSE) -> 0.9 | J24: 0.1082 | K24: =VLOOKUP('Proxy Group Ticker'!$B18,vldatabase,28,FALSE) -> 30500 | L24: =IF(K24>'Size Premium'!$A$5,'Size Premium'!$B$5,IF(K24>'Size Premium'!$A$6,'Size Premium'!$B$6,IF(K24>'Size Premium'!$A$7,'Size Premium'!$B$7,IF(K24>'Size Premium'!$A$8,'Size Premium'!$B$8,IF(K24>'Size Premium'!$A$9,'Size Premium'!$B$9,IF(K24>'Size Premium'!$A$10,'Size Premium'!$B$10,IF(K24>'Size Premium'!$A$11,'Size Premium'!$B$11,IF(K24>'Size Premium'!$A$12,'Size Premium'!$B$12,"ERROR")))))))) -> 0.0045 | M24: 0.1127 | Q24: 0.1082 | T24: 0.1127
A25: 17 | B25: =VLOOKUP('Proxy Group Ticker'!$B19,vldatabase,2,FALSE) -> Sempra Energy | D25: =ROUND('2023 03 Market DCF'!$J$402,3) -> 0.021 | E25: =ROUND('2023 03 Market DCF'!$P$403,3) -> 0.095 | F25: 0.116 | G25: =ROUND('Bond Yields'!$G$16,3) -> 0.038 | H25: 0.078 | I25: =VLOOKUP('Proxy Group Ticker'!$B19,vldatabase,23,FALSE) -> 0.95 | J25: 0.1121 | K25: =VLOOKUP('Proxy Group Ticker'!$B19,vldatabase,28,FALSE) -> 49400 | L25: =IF(K25>'Size Premium'!$A$5,'Size Premium'!$B$5,IF(K25>'Size Premium'!$A$6,'Size Premium'!$B$6,IF(K25>'Size Premium'!$A$7,'Size Premium'!$B$7,IF(K25>'Size Premium'!$A$8,'Size Premium'!$B$8,IF(K25>'Size Premium'!$A$9,'Size Premium'!$B$9,IF(K25>'Size Premium'!$A$10,'Size Premium'!$B$10,IF(K25>'Size Premium'!$A$11,'Size Premium'!$B$11,IF(K25>'Size Premium'!$A$12,'Size Premium'!$B$12,"ERROR")))))))) -> -0.0026 | M25: 0.1095 | Q25: 0.1121 | T25: 0.1095
A26: 18 | B26: =VLOOKUP('Proxy Group Ticker'!$B20,vldatabase,2,FALSE) -> Southern Company | D26: =ROUND('2023 03 Market DCF'!$J$402,3) -> 0.021 | E26: =ROUND('2023 03 Market DCF'!$P$403,3) -> 0.095 | F26: 0.116 | G26: =ROUND('Bond Yields'!$G$16,3) -> 0.038 | H26: 0.078 | I26: =VLOOKUP('Proxy Group Ticker'!$B20,vldatabase,23,FALSE) -> 0.9 | J26: 0.1082 | K26: =VLOOKUP('Proxy Group Ticker'!$B20,vldatabase,28,FALSE) -> 71300 | L26: =IF(K26>'Size Premium'!$A$5,'Size Premium'!$B$5,IF(K26>'Size Premium'!$A$6,'Size Premium'!$B$6,IF(K26>'Size Premium'!$A$7,'Size Premium'!$B$7,IF(K26>'Size Premium'!$A$8,'Size Premium'!$B$8,IF(K26>'Size Premium'!$A$9,'Size Premium'!$B$9,IF(K26>'Size Premium'!$A$10,'Size Premium'!$B$10,IF(K26>'Size Premium'!$A$11,'Size Premium'!$B$11,IF(K26>'Size Premium'!$A$12,'Size Premium'!$B$12,"ERROR")))))))) -> -0.0026 | M26: 0.1056 | Q26: 0.1082 | T26: 0.1056
B28: Average (g) | J28: =AVERAGE(Q9:Q26) -> 0.1075117647 | M28: =AVERAGE(T9:T26) -> 0.1114176471 | S28: Min | T28: =MIN(T9:T26) -> 0.0971
S29: Max | T29: =MAX(T9:T26) -> 0.1283
A30: (a) | B30: ="Weighted average for dividend-paying stocks in the S&P 500 based on data from "&'2023 03 Market DCF'!B411&"." -> Weighted average for dividend-paying stocks in the S&P 500 based on data from www.valueline.com (retrieved Mar. 16, 2023)..
A31: (b) | B31: ="Average of weighted average earnings growth rates from IBES, Value Line, and Zacks for dividend-paying stocks in the S&P 500 based on data from "&'2023 03 Market DCF'!B412&", "&'2023 03 Market DCF'!B411&", and "&'2023 03 Market DCF'!B413&". Eliminated growth rates that were greater than 20%, as well as all negative values." -> Average of weighted average earnings growth rates from IBES, Value Line, and Zacks for dividend-paying stocks in the S&P 500 based on data from Refinitiv, as provided by fidelity.com (retrieved Mar. 16, 2023), www.valueline.com (retrieved Mar. 16, 2023)., and www.zacks.com (retrieved Mar. 16, 2023). Eliminated growth rates that were greater than 20%, as well as all negative values.
A34: (c) | B34: ="Average yield on 30-year Treasury bonds for six-months ending "&'Bond Yields'!B14&" based on data from "&'Bond Yields'!B19&"." -> Average yield on 30-year Treasury bonds for six-months ending Apr. 2023 based on data from Moody's Investors Service.
A35: (d) | B35: ='Electric Utility Data'!B48 -> The Value Line Investment Survey, Summary & Index (Mar. 31, 2023).
A36: (e) | B36: ='Electric Utility Data'!B49 -> The Value Line Investment Survey (Jan. 20, Feb. 10 and Mar. 10, 2023).
A37: (f) | B37: ='Size Premium'!A18 -> Kroll, 2023 Supplementary CRSP Decile Size Study Data Exhibits.
A38: (g) | B38: Excludes highlighted values.
A41: Threshold Min | D41: ='5 (3)'!D34 -> 0.07344 | H41: =MIN(M9:M26) -> 0.0971
A42: Threshold Max | D42: ='5 (3)'!D35 -> 0.159 | H42: =MAX(M9:M26) -> 0.1283

Sheet 8
A1: ='Exhibit List'!C12 -> ECAPM | S1: ='Exhibit List'!B12 -> Exhibit AMM-8
S2: Page 1 of 1
A3: ='Exhibit List'!D12 -> UTILITY GROUP
D5: (a) | E5: (b) | G5: (c) | I5: (d) | K5: (e) | L5: (d) | P5: (f) | Q5: (g)
D6: Market Return (Rm)
D7: Div | E7: Proj. | F7: Cost of | G7: Risk-Free | H7: Risk | I7: Unadjusted RP | K7: Beta Adjusted RP | O7: Unadjusted | P7: Market | Q7: Size | R7: ECAPM
B8: Company | D8: Yield | E8: Growth | F8: Equity | G8: Rate | H8: Premium | I8: Weight | J8: RP1 | K8: Beta | L8: Weight | M8: RP2 | N8: Total RP | O8: Ke | P8: Cap | Q8: Adjustment | R8: Result
A9: =A8+1 -> 1 | B9: ='7'!B9 -> Avista Corp. | D9: =ROUND('2023 03 Market DCF'!$J$402,3) -> 0.021 | E9: =ROUND('2023 03 Market DCF'!$P$403,3) -> 0.095 | F9: =D9+E9 -> 0.116 | G9: =ROUND('Bond Yields'!$G$16,3) -> 0.038 | H9: =F9-G9 -> 0.078 | I9: 0.25 | J9: =I9*H9 -> 0.0195 | K9: ='7'!I9 -> 0.9 | L9: 0.75 | M9: =IF(K9="n/a","n/a",H9*K9*L9) -> 0.05265 | N9: =IF(K9="n/a","n/a",J9+M9) -> 0.07215 | O9: =IF(K9="n/a","n/a",N9+G9) -> 0.11015 | P9: ='7'!K9 -> 3200 | Q9: =IF(P9>'Size Premium'!$A$5,'Size Premium'!$B$5,IF(P9>'Size Premium'!$A$6,'Size Premium'!$B$6,IF(P9>'Size Premium'!$A$7,'Size Premium'!$B$7,IF(P9>'Size Premium'!$A$8,'Size Premium'!$B$8,IF(P9>'Size Premium'!$A$9,'Size Premium'!$B$9,IF(P9>'Size Premium'!$A$10,'Size Premium'!$B$10,IF(P9>'Size Premium'!$A$11,'Size Premium'!$B$11,IF(P9>'Size Premium'!$A$12,'Size Premium'!$B$12,"ERROR")))))))) -> 0.0093 | R9: =IF(K9="n/a","n/a",O9+Q9) -> 0.11945 | V9: =IF(O9="n/a","n/a",IF(O9<$E$41,"LOW",IF(O9>$E$42,"HIGH",O9))) -> 0.11015 | Y9: =IF(R9="n/a","n/a",IF(R9<$E$41,"LOW",IF(TRUNC(R9,3)>$E$42,"HIGH",R9))) -> 0.11945
A10: =A9+1 -> 2 | B10: ='7'!B10 -> Black Hills Corp. | D10: =ROUND('2023 03 Market DCF'!$J$402,3) -> 0.021 | E10: =ROUND('2023 03 Market DCF'!$P$403,3) -> 0.095 | F10: =D10+E10 -> 0.116 | G10: =ROUND('Bond Yields'!$G$16,3) -> 0.038 | H10: =F10-G10 -> 0.078 | I10: 0.25 | J10: =I10*H10 -> 0.0195 | K10: ='7'!I10 -> 0.95 | L10: 0.75 | M10: =IF(K10="n/a","n/a",H10*K10*L10) -> 0.055575 | N10: =IF(K10="n/a","n/a",J10+M10) -> 0.075075 | O10: =IF(K10="n/a","n/a",N10+G10) -> 0.113075 | P10: ='7'!K10 -> 4600 | Q10: =IF(P10>'Size Premium'!$A$5,'Size Premium'!$B$5,IF(P10>'Size Premium'!$A$6,'Size Premium'!$B$6,IF(P10>'Size Premium'!$A$7,'Size Premium'!$B$7,IF(P10>'Size Premium'!$A$8,'Size Premium'!$B$8,IF(P10>'Size Premium'!$A$9,'Size Premium'!$B$9,IF(P10>'Size Premium'!$A$10,'Size Premium'!$B$10,IF(P10>'Size Premium'!$A$11,'Size Premium'!$B$11,IF(P10>'Size Premium'!$A$12,'Size Premium'!$B$12,"ERROR")))))))) -> 0.0058 | R10: =IF(K10="n/a","n/a",O10+Q10) -> 0.118875 | V10: 0.113075 | Y10: 0.118875
A11: 3 | B11: ='7'!B11 -> CenterPoint Energy | D11: =ROUND('2023 03 Market DCF'!$J$402,3) -> 0.021 | E11: =ROUND('2023 03 Market DCF'!$P$403,3) -> 0.095 | F11: 0.116 | G11: =ROUND('Bond Yields'!$G$16,3) -> 0.038 | H11: 0.078 | I11: 0.25 | J11: 0.0195 | K11: ='7'!I11 -> 1.1 | L11: 0.75 | M11: 0.06435 | N11: 0.08385 | O11: 0.12185 | P11: ='7'!K11 -> 17900 | Q11: =IF(P11>'Size Premium'!$A$5,'Size Premium'!$B$5,IF(P11>'Size Premium'!$A$6,'Size Premium'!$B$6,IF(P11>'Size Premium'!$A$7,'Size Premium'!$B$7,IF(P11>'Size Premium'!$A$8,'Size Premium'!$B$8,IF(P11>'Size Premium'!$A$9,'Size Premium'!$B$9,IF(P11>'Size Premium'!$A$10,'Size Premium'!$B$10,IF(P11>'Size Premium'!$A$11,'Size Premium'!$B$11,IF(P11>'Size Premium'!$A$12,'Size Premium'!$B$12,"ERROR")))))))) -> 0.0045 | R11: 0.12635 | V11: 0.12185 | Y11: 0.12635
A12: 4 | B12: ='7'!B12 -> CMS Energy Corp. | D12: =ROUND('2023 03 Market DCF'!$J$402,3) -> 0.021 | E12: =ROUND('2023 03 Market DCF'!$P$403,3) -> 0.095 | F12: 0.116 | G12: =ROUND('Bond Yields'!$G$16,3) -> 0.038 | H12: 0.078 | I12: 0.25 | J12: 0.0195 | K12: ='7'!I12 -> 0.8 | L12: 0.75 | M12: 0.0468 | N12: 0.0663 | O12: 0.1043 | P12: ='7'!K12 -> 17400 | Q12: =IF(P12>'Size Premium'!$A$5,'Size Premium'!$B$5,IF(P12>'Size Premium'!$A$6,'Size Premium'!$B$6,IF(P12>'Size Premium'!$A$7,'Size Premium'!$B$7,IF(P12>'Size Premium'!$A$8,'Size Premium'!$B$8,IF(P12>'Size Premium'!$A$9,'Size Premium'!$B$9,IF(P12>'Size Premium'!$A$10,'Size Premium'!$B$10,IF(P12>'Size Premium'!$A$11,'Size Premium'!$B$11,IF(P12>'Size Premium'!$A$12,'Size Premium'!$B$12,"ERROR")))))))) -> 0.0045 | R12: 0.1088 | V12: 0.1043 | Y12: 0.1088
A13: 5 | B13: ='7'!B13 -> Dominion Energy | D13: =ROUND('2023 03 Market DCF'!$J$402,3) -> 0.021 | E13: =ROUND('2023 03 Market DCF'!$P$403,3) -> 0.095 | F13: 0.116 | G13: =ROUND('Bond Yields'!$G$16,3) -> 0.038 | H13: 0.078 | I13: 0.25 | J13: 0.0195 | K13: ='7'!I13 -> 0.8 | L13: 0.75 | M13: 0.0468 | N13: 0.0663 | O13: 0.1043 | P13: ='7'!K13 -> 52200 | Q13: =IF(P13>'Size Premium'!$A$5,'Size Premium'!$B$5,IF(P13>'Size Premium'!$A$6,'Size Premium'!$B$6,IF(P13>'Size Premium'!$A$7,'Size Premium'!$B$7,IF(P13>'Size Premium'!$A$8,'Size Premium'!$B$8,IF(P13>'Size Premium'!$A$9,'Size Premium'!$B$9,IF(P13>'Size Premium'!$A$10,'Size Premium'!$B$10,IF(P13>'Size Premium'!$A$11,'Size Premium'!$B$11,IF(P13>'Size Premium'!$A$12,'Size Premium'!$B$12,"ERROR")))))))) -> -0.0026 | R13: 0.1017 | V13: 0.1043 | Y13: 0.1017
A14: 6 | B14: ='7'!B14 -> DTE Energy Co. | D14: =ROUND('2023 03 Market DCF'!$J$402,3) -> 0.021 | E14: =ROUND('2023 03 Market DCF'!$P$403,3) -> 0.095 | F14: 0.116 | G14: =ROUND('Bond Yields'!$G$16,3) -> 0.038 | H14: 0.078 | I14: 0.25 | J14: 0.0195 | K14: ='7'!I14 -> 0.95 | L14: 0.75 | M14: 0.055575 | N14: 0.075075 | O14: 0.113075 | P14: ='7'!K14 -> 22900 | Q14: =IF(P14>'Size Premium'!$A$5,'Size Premium'!$B$5,IF(P14>'Size Premium'!$A$6,'Size Premium'!$B$6,IF(P14>'Size Premium'!$A$7,'Size Premium'!$B$7,IF(P14>'Size Premium'!$A$8,'Size Premium'!$B$8,IF(P14>'Size Premium'!$A$9,'Size Premium'!$B$9,IF(P14>'Size Premium'!$A$10,'Size Premium'!$B$10,IF(P14>'Size Premium'!$A$11,'Size Premium'!$B$11,IF(P14>'Size Premium'!$A$12,'Size Premium'!$B$12,"ERROR")))))))) -> 0.0045 | R14: 0.117575 | V14: 0.113075 | Y14: 0.117575
A15: 7 | B15: ='7'!B15 -> Duke Energy Corp. | D15: =ROUND('2023 03 Market DCF'!$J$402,3) -> 0.021 | E15: =ROUND('2023 03 Market DCF'!$P$403,3) -> 0.095 | F15: 0.116 | G15: =ROUND('Bond Yields'!$G$16,3) -> 0.038 | H15: 0.078 | I15: 0.25 | J15: 0.0195 | K15: ='7'!I15 -> 0.85 | L15: 0.75 | M15: 0.049725 | N15: 0.069225 | O15: 0.107225 | P15: ='7'!K15 -> 78300 | Q15: =IF(P15>'Size Premium'!$A$5,'Size Premium'!$B$5,IF(P15>'Size Premium'!$A$6,'Size Premium'!$B$6,IF(P15>'Size Premium'!$A$7,'Size Premium'!$B$7,IF(P15>'Size Premium'!$A$8,'Size Premium'!$B$8,IF(P15>'Size Premium'!$A$9,'Size Premium'!$B$9,IF(P15>'Size Premium'!$A$10,'Size Premium'!$B$10,IF(P15>'Size Premium'!$A$11,'Size Premium'!$B$11,IF(P15>'Size Premium'!$A$12,'Size Premium'!$B$12,"ERROR")))))))) -> -0.0026 | R15: 0.104625 | V15: 0.107225 | Y15: 0.104625
A16: 8 | B16: ='7'!B16 -> Edison International | D16: =ROUND('2023 03 Market DCF'!$J$402,3) -> 0.021 | E16: =ROUND('2023 03 Market DCF'!$P$403,3) -> 0.095 | F16: 0.116 | G16: =ROUND('Bond Yields'!$G$16,3) -> 0.038 | H16: 0.078 | I16: 0.25 | J16: 0.0195 | K16: ='7'!I16 -> 0.95 | L16: 0.75 | M16: 0.055575 | N16: 0.075075 | O16: 0.113075 | P16: ='7'!K16 -> 25900 | Q16: =IF(P16>'Size Premium'!$A$5,'Size Premium'!$B$5,IF(P16>'Size Premium'!$A$6,'Size Premium'!$B$6,IF(P16>'Size Premium'!$A$7,'Size Premium'!$B$7,IF(P16>'Size Premium'!$A$8,'Size Premium'!$B$8,IF(P16>'Size Premium'!$A$9,'Size Premium'!$B$9,IF(P16>'Size Premium'!$A$10,'Size Premium'!$B$10,IF(P16>'Size Premium'!$A$11,'Size Premium'!$B$11,IF(P16>'Size Premium'!$A$12,'Size Premium'!$B$12,"ERROR")))))))) -> 0.0045 | R16: 0.117575 | V16: 0.113075 | Y16: 0.117575
A17: 9 | B17: ='7'!B17 -> Emera Inc. | D17: =ROUND('2023 03 Market DCF'!$J$402,3) -> 0.021 | E17: =ROUND('2023 03 Market DCF'!$P$403,3) -> 0.095 | F17: 0.116 | G17: =ROUND('Bond Yields'!$G$16,3) -> 0.038 | H17: 0.078 | I17: 0.25 | J17: 0.0195 | K17: ='7'!I17 -> 0.7 | L17: 0.75 | M17: 0.04095 | N17: 0.06045 | O17: 0.09845 | P17: ='7'!K17 -> 14300 | Q17: =IF(P17>'Size Premium'!$A$5,'Size Premium'!$B$5,IF(P17>'Size Premium'!$A$6,'Size Premium'!$B$6,IF(P17>'Size Premium'!$A$7,'Size Premium'!$B$7,IF(P17>'Size Premium'!$A$8,'Size Premium'!$B$8,IF(P17>'Size Premium'!$A$9,'Size Premium'!$B$9,IF(P17>'Size Premium'!$A$10,'Size Premium'!$B$10,IF(P17>'Size Premium'!$A$11,'Size Premium'!$B$11,IF(P17>'Size Premium'!$A$12,'Size Premium'!$B$12,"ERROR")))))))) -> 0.0045 | R17: 0.10295 | V17: 0.09845 | Y17: 0.10295
A18: 10 | B18: ='7'!B18 -> Entergy Corp. | D18: =ROUND('2023 03 Market DCF'!$J$402,3) -> 0.021 | E18: =ROUND('2023 03 Market DCF'!$P$403,3) -> 0.095 | F18: 0.116 | G18: =ROUND('Bond Yields'!$G$16,3) -> 0.038 | H18: 0.078 | I18: 0.25 | J18: 0.0195 | K18: ='7'!I18 -> 0.95 | L18: 0.75 | M18: 0.055575 | N18: 0.075075 | O18: 0.113075 | P18: ='7'!K18 -> 23000 | Q18: =IF(P18>'Size Premium'!$A$5,'Size Premium'!$B$5,IF(P18>'Size Premium'!$A$6,'Size Premium'!$B$6,IF(P18>'Size Premium'!$A$7,'Size Premium'!$B$7,IF(P18>'Size Premium'!$A$8,'Size Premium'!$B$8,IF(P18>'Size Premium'!$A$9,'Size Premium'!$B$9,IF(P18>'Size Premium'!$A$10,'Size Premium'!$B$10,IF(P18>'Size Premium'!$A$11,'Size Premium'!$B$11,IF(P18>'Size Premium'!$A$12,'Size Premium'!$B$12,"ERROR")))))))) -> 0.0045 | R18: 0.117575 | V18: 0.113075 | Y18: 0.117575
A19: 11 | B19: ='7'!B19 -> Exelon Corp. | D19: =ROUND('2023 03 Market DCF'!$J$402,3) -> 0.021 | E19: =ROUND('2023 03 Market DCF'!$P$403,3) -> 0.095 | F19: 0.116 | G19: =ROUND('Bond Yields'!$G$16,3) -> 0.038 | H19: 0.078 | I19: 0.25 | J19: 0.0195 | K19: ='7'!I19 -> n/a | L19: 0.75 | M19: n/a | N19: n/a | O19: n/a | P19: ='7'!K19 -> 41500 | Q19: =IF(P19>'Size Premium'!$A$5,'Size Premium'!$B$5,IF(P19>'Size Premium'!$A$6,'Size Premium'!$B$6,IF(P19>'Size Premium'!$A$7,'Size Premium'!$B$7,IF(P19>'Size Premium'!$A$8,'Size Premium'!$B$8,IF(P19>'Size Premium'!$A$9,'Size Premium'!$B$9,IF(P19>'Size Premium'!$A$10,'Size Premium'!$B$10,IF(P19>'Size Premium'!$A$11,'Size Premium'!$B$11,IF(P19>'Size Premium'!$A$12,'Size Premium'!$B$12,"ERROR")))))))) -> -0.0026 | R19: n/a | V19: n/a | Y19: n/a
A20: 12 | B20: ='7'!B20 -> Hawaiian Elec. | D20: =ROUND('2023 03 Market DCF'!$J$402,3) -> 0.021 | E20: =ROUND('2023 03 Market DCF'!$P$403,3) -> 0.095 | F20: 0.116 | G20: =ROUND('Bond Yields'!$G$16,3) -> 0.038 | H20: 0.078 | I20: 0.25 | J20: 0.0195 | K20: ='7'!I20 -> 0.85 | L20: 0.75 | M20: 0.049725 | N20: 0.069225 | O20: 0.107225 | P20: ='7'!K20 -> 4600 | Q20: =IF(P20>'Size Premium'!$A$5,'Size Premium'!$B$5,IF(P20>'Size Premium'!$A$6,'Size Premium'!$B$6,IF(P20>'Size Premium'!$A$7,'Size Premium'!$B$7,IF(P20>'Size Premium'!$A$8,'Size Premium'!$B$8,IF(P20>'Size Premium'!$A$9,'Size Premium'!$B$9,IF(P20>'Size Premium'!$A$10,'Size Premium'!$B$10,IF(P20>'Size Premium'!$A$11,'Size Premium'!$B$11,IF(P20>'Size Premium'!$A$12,'Size Premium'!$B$12,"ERROR")))))))) -> 0.0058 | R20: 0.113025 | V20: 0.107225 | Y20: 0.113025
A21: 13 | B21: ='7'!B21 -> IDACORP, Inc. | D21: =ROUND('2023 03 Market DCF'!$J$402,3) -> 0.021 | E21: =ROUND('2023 03 Market DCF'!$P$403,3) -> 0.095 | F21: 0.116 | G21: =ROUND('Bond Yields'!$G$16,3) -> 0.038 | H21: 0.078 | I21: 0.25 | J21: 0.0195 | K21: ='7'!I21 -> 0.8 | L21: 0.75 | M21: 0.0468 | N21: 0.0663 | O21: 0.1043 | P21: ='7'!K21 -> 5500 | Q21: =IF(P21>'Size Premium'!$A$5,'Size Premium'!$B$5,IF(P21>'Size Premium'!$A$6,'Size Premium'!$B$6,IF(P21>'Size Premium'!$A$7,'Size Premium'!$B$7,IF(P21>'Size Premium'!$A$8,'Size Premium'!$B$8,IF(P21>'Size Premium'!$A$9,'Size Premium'!$B$9,IF(P21>'Size Premium'!$A$10,'Size Premium'!$B$10,IF(P21>'Size Premium'!$A$11,'Size Premium'!$B$11,IF(P21>'Size Premium'!$A$12,'Size Premium'!$B$12,"ERROR")))))))) -> 0.0058 | R21: 0.1101 | V21: 0.1043 | Y21: 0.1101
A22: 14 | B22: ='7'!B22 -> NorthWestern Corp. | D22: =ROUND('2023 03 Market DCF'!$J$402,3) -> 0.021 | E22: =ROUND('2023 03 Market DCF'!$P$403,3) -> 0.095 | F22: 0.116 | G22: =ROUND('Bond Yields'!$G$16,3) -> 0.038 | H22: 0.078 | I22: 0.25 | J22: 0.0195 | K22: ='7'!I22 -> 0.9 | L22: 0.75 | M22: 0.05265 | N22: 0.07215 | O22: 0.11015 | P22: ='7'!K22 -> 3400 | Q22: =IF(P22>'Size Premium'!$A$5,'Size Premium'!$B$5,IF(P22>'Size Premium'!$A$6,'Size Premium'!$B$6,IF(P22>'Size Premium'!$A$7,'Size Premium'!$B$7,IF(P22>'Size Premium'!$A$8,'Size Premium'!$B$8,IF(P22>'Size Premium'!$A$9,'Size Premium'!$B$9,IF(P22>'Size Premium'!$A$10,'Size Premium'!$B$10,IF(P22>'Size Premium'!$A$11,'Size Premium'!$B$11,IF(P22>'Size Premium'!$A$12,'Size Premium'!$B$12,"ERROR")))))))) -> 0.0093 | R22: 0.11945 | V22: 0.11015 | Y22: 0.11945
A23: 15 | B23: ='7'!B23 -> Otter Tail Corp. | D23: =ROUND('2023 03 Market DCF'!$J$402,3) -> 0.021 | E23: =ROUND('2023 03 Market DCF'!$P$403,3) -> 0.095 | F23: 0.116 | G23: =ROUND('Bond Yields'!$G$16,3) -> 0.038 | H23: 0.078 | I23: 0.25 | J23: 0.0195 | K23: ='7'!I23 -> 0.9 | L23: 0.75 | M23: 0.05265 | N23: 0.07215 | O23: 0.11015 | P23: ='7'!K23 -> 3000 | Q23: =IF(P23>'Size Premium'!$A$5,'Size Premium'!$B$5,IF(P23>'Size Premium'!$A$6,'Size Premium'!$B$6,IF(P23>'Size Premium'!$A$7,'Size Premium'!$B$7,IF(P23>'Size Premium'!$A$8,'Size Premium'!$B$8,IF(P23>'Size Premium'!$A$9,'Size Premium'!$B$9,IF(P23>'Size Premium'!$A$10,'Size Premium'!$B$10,IF(P23>'Size Premium'!$A$11,'Size Premium'!$B$11,IF(P23>'Size Premium'!$A$12,'Size Premium'!$B$12,"ERROR")))))))) -> 0.0093 | R23: 0.11945 | V23: 0.11015 | Y23: 0.11945
A24: 16 | B24: ='7'!B24 -> Pub Sv Enterprise Grp. | D24: =ROUND('2023 03 Market DCF'!$J$402,3) -> 0.021 | E24: =ROUND('2023 03 Market DCF'!$P$403,3) -> 0.095 | F24: 0.116 | G24: =ROUND('Bond Yields'!$G$16,3) -> 0.038 | H24: 0.078 | I24: 0.25 | J24: 0.0195 | K24: ='7'!I24 -> 0.9 | L24: 0.75 | M24: 0.05265 | N24: 0.07215 | O24: 0.11015 | P24: ='7'!K24 -> 30500 | Q24: =IF(P24>'Size Premium'!$A$5,'Size Premium'!$B$5,IF(P24>'Size Premium'!$A$6,'Size Premium'!$B$6,IF(P24>'Size Premium'!$A$7,'Size Premium'!$B$7,IF(P24>'Size Premium'!$A$8,'Size Premium'!$B$8,IF(P24>'Size Premium'!$A$9,'Size Premium'!$B$9,IF(P24>'Size Premium'!$A$10,'Size Premium'!$B$10,IF(P24>'Size Premium'!$A$11,'Size Premium'!$B$11,IF(P24>'Size Premium'!$A$12,'Size Premium'!$B$12,"ERROR")))))))) -> 0.0045 | R24: 0.11465 | V24: 0.11015 | Y24: 0.11465
A25: 17 | B25: ='7'!B25 -> Sempra Energy | D25: =ROUND('2023 03 Market DCF'!$J$402,3) -> 0.021 | E25: =ROUND('2023 03 Market DCF'!$P$403,3) -> 0.095 | F25: 0.116 | G25: =ROUND('Bond Yields'!$G$16,3) -> 0.038 | H25: 0.078 | I25: 0.25 | J25: 0.0195 | K25: ='7'!I25 -> 0.95 | L25: 0.75 | M25: 0.055575 | N25: 0.075075 | O25: 0.113075 | P25: ='7'!K25 -> 49400 | Q25: =IF(P25>'Size Premium'!$A$5,'Size Premium'!$B$5,IF(P25>'Size Premium'!$A$6,'Size Premium'!$B$6,IF(P25>'Size Premium'!$A$7,'Size Premium'!$B$7,IF(P25>'Size Premium'!$A$8,'Size Premium'!$B$8,IF(P25>'Size Premium'!$A$9,'Size Premium'!$B$9,IF(P25>'Size Premium'!$A$10,'Size Premium'!$B$10,IF(P25>'Size Premium'!$A$11,'Size Premium'!$B$11,IF(P25>'Size Premium'!$A$12,'Size Premium'!$B$12,"ERROR")))))))) -> -0.0026 | R25: 0.110475 | V25: 0.113075 | Y25: 0.110475
A26: 18 | B26: ='7'!B26 -> Southern Company | D26: =ROUND('2023 03 Market DCF'!$J$402,3) -> 0.021 | E26: =ROUND('2023 03 Market DCF'!$P$403,3) -> 0.095 | F26: 0.116 | G26: =ROUND('Bond Yields'!$G$16,3) -> 0.038 | H26: 0.078 | I26: 0.25 | J26: 0.0195 | K26: ='7'!I26 -> 0.9 | L26: 0.75 | M26: 0.05265 | N26: 0.07215 | O26: 0.11015 | P26: ='7'!K26 -> 71300 | Q26: =IF(P26>'Size Premium'!$A$5,'Size Premium'!$B$5,IF(P26>'Size Premium'!$A$6,'Size Premium'!$B$6,IF(P26>'Size Premium'!$A$7,'Size Premium'!$B$7,IF(P26>'Size Premium'!$A$8,'Size Premium'!$B$8,IF(P26>'Size Premium'!$A$9,'Size Premium'!$B$9,IF(P26>'Size Premium'!$A$10,'Size Premium'!$B$10,IF(P26>'Size Premium'!$A$11,'Size Premium'!$B$11,IF(P26>'Size Premium'!$A$12,'Size Premium'!$B$12,"ERROR")))))))) -> -0.0026 | R26: 0.10755 | V26: 0.11015 | Y26: 0.10755
B28: Average (h) | O28: =AVERAGE(V9:V26) -> 0.1096338235 | R28: =AVERAGE(Y9:Y26) -> 0.1135397059 | X28: Min | Y28: =MIN(Y9:Y26) -> 0.1017
B29: Midpoint (h) | R29: =AVERAGE(Y28:Y30) -> 0.114025
X30: Max | Y30: =MAX(Y9:Y26) -> 0.12635
A31: (a) | B31: ='7'!B30 -> Weighted average for dividend-paying stocks in the S&P 500 based on data from www.valueline.com (retrieved Mar. 16, 2023)..
A32: (b) | B32: ='7'!B31 -> Average of weighted average earnings growth rates from IBES, Value Line, and Zacks for dividend-paying stocks in the S&P 500 based on data from Refinitiv, as provided by fidelity.com (retrieved Mar. 16, 2023), www.valueline.com (retrieved Mar. 16, 2023)., and www.zacks.com (retrieved Mar. 16, 2023). Eliminated growth rates that were greater than 20%, as well as all negative values.
A34: (c) | B34: ="Average yield on 30-year Treasury bonds for six-months ending "&'Bond Yields'!B14&" based on data from "&'Bond Yields'!B19&"." -> Average yield on 30-year Treasury bonds for six-months ending Apr. 2023 based on data from Moody's Investors Service.
A35: (d) | B35: Roger A. Morin, New Regulatory Finance, Pub. Util. Reports, Inc. (2006) at 190.
A36: (e) | B36: ='7'!B35 -> The Value Line Investment Survey, Summary & Index (Mar. 31, 2023).
A37: (f) | B37: ='Electric Utility Data'!B49 -> The Value Line Investment Survey (Jan. 20, Feb. 10 and Mar. 10, 2023).
A38: (g) | B38: ='7'!B37 -> Kroll, 2023 Supplementary CRSP Decile Size Study Data Exhibits.
A39: (h) | B39: Excludes highlighted values.
A41: Threshold Min | E41: ='5 (3)'!D34 -> 0.07344
A42: Threshold Max | E42: ='5 (3)'!D35 -> 0.159

Sheet 9 (1)
A1: ='Exhibit List'!C13 -> RISK PREMIUM METHOD | H1: ='Exhibit List'!B13 -> Exhibit AMM-9
H2: Page 1 of 3
A3: ='Exhibit List'!D13 -> COST OF EQUITY ESTIMATE
B7: Current Equity Risk Premium
B8: (a) | C8: Avg. Yield over Study Period | G8: =ROUND(+'9 (2)'!O32,4) -> 0.0783
B9: (b) | C9: Average Utility Bond Yield | G9: ='Bond Yields'!F16 -> 0.0537
D10: Change in Bond Yield | G10: =-G8+G9 -> -0.0246
B12: (c) | C12: Risk Premium/Interest Rate Relationship | G12: =ROUND('9 (3)'!B45,4) -> -0.4273
D13: Adjustment to Average Risk Premium | G13: =G10*G12 -> 0.01051158
B15: (a) | C15: Average Risk Premium over Study Period | G15: =ROUND('9 (2)'!Q32,4) -> 0.0389
D16: Adjusted Risk Premium | G16: =G13+G15 -> 0.04941158
B19: Implied Cost of Equity
B20: (b) | C20: Baa Utility Bond Yield | G20: ='Bond Yields'!C16 -> 0.0563
C21: Adjusted Equity Risk Premium | G21: =G16 -> 0.04941158
C23: Risk Premium Cost of Equity | G23: =G20+G21 -> 0.10571158
B27: (a) | C27: =H1 & ", page 2." -> Exhibit AMM-9, page 2.
B28: (b) | C28: ="Average bond yield on all utility bonds and 'Baa' subset for six-months ending "&'Bond Yields'!B14&" based on data from Moody's Investors Service at www.credittrends.com." -> Average bond yield on all utility bonds and 'Baa' subset for six-months ending Apr. 2023 based on data from Moody's Investors Service at www.credittrends.com.
B30: (c) | C30: =H1 & ", page 3." -> Exhibit AMM-9, page 3.

Sheet 9 (2)
A1: ='Exhibit List'!C14 -> RISK PREMIUM METHOD | R1: ='Exhibit List'!B14 -> Exhibit AMM-9
R2: Page 2 of 3
A3: ='Exhibit List'!D14 -> AUTHORIZED RETURNS
D5: (a) | F5: (b) | M5: (a) | O5: (b)
D6: Allowed | F6: Average Utility | H6: Risk | M6: Allowed | O6: Average Utility | Q6: Risk
B7: Year | D7: ROE | F7: Bond Yield | H7: Premium | K7: Year | M7: ROE | O7: Bond Yield | Q7: Premium
B8: 1974 | D8: 0.131 | F8: 0.0927 | H8: =D8-F8 -> 0.0383 | K8: =B32+1 -> 1999 | M8: 0.1072 | O8: 0.0755 | Q8: =M8-O8 -> 0.0317
B9: =B8+1 -> 1975 | D9: 0.132 | F9: 0.0988 | H9: 0.0332 | K9: =K8+1 -> 2000 | M9: 0.1158 | O9: 0.0809 | Q9: 0.0349
B10: 1976 | D10: 0.131 | F10: 0.0917 | H10: 0.0393 | K10: 2001 | M10: 0.1107 | O10: 0.0772 | Q10: 0.0335
B11: 1977 | D11: 0.133 | F11: 0.0858 | H11: 0.0472 | K11: 2002 | M11: 0.1121 | O11: 0.0753 | Q11: 0.0368
B12: 1978 | D12: 0.132 | F12: 0.0922 | H12: 0.0398 | K12: 2003 | M12: 0.1096 | O12: 0.0661 | Q12: 0.0435
B13: 1979 | D13: 0.135 | F13: 0.1039 | H13: 0.0311 | K13: 2004 | M13: 0.1081 | O13: 0.062 | Q13: 0.0461
B14: 1980 | D14: 0.1423 | F14: 0.1315 | H14: 0.0108 | K14: 2005 | M14: 0.1051 | O14: 0.0567 | Q14: 0.0484
B15: 1981 | D15: 0.1522 | F15: 0.1562 | H15: -0.004 | K15: 2006 | M15: 0.1034 | O15: 0.0608 | Q15: 0.0426
B16: 1982 | D16: 0.1578 | F16: 0.1533 | H16: 0.0045 | K16: 2007 | M16: 0.1032 | O16: 0.0611 | Q16: 0.0421
B17: 1983 | D17: 0.1536 | F17: 0.1331 | H17: 0.0205 | K17: 2008 | M17: 0.1037 | O17: 0.0665 | Q17: 0.0372
B18: 1984 | D18: 0.1532 | F18: 0.1403 | H18: 0.0129 | K18: 2009 | M18: 0.1052 | O18: 0.0628 | Q18: 0.0424
B19: 1985 | D19: 0.152 | F19: 0.1229 | H19: 0.0291 | K19: 2010 | M19: 0.1029 | O19: 0.0556 | Q19: 0.0473
B20: 1986 | D20: 0.1393 | F20: 0.0946 | H20: 0.0447 | K20: 2011 | M20: 0.1019 | O20: 0.0513 | Q20: 0.0506
B21: 1987 | D21: 0.1299 | F21: 0.0998 | H21: 0.0301 | K21: 2012 | M21: 0.1002 | O21: 0.0426 | Q21: 0.0576
B22: 1988 | D22: 0.1279 | F22: 0.1045 | H22: 0.0234 | K22: 2013 | M22: 0.0982 | O22: 0.0455 | Q22: 0.0527
B23: 1989 | D23: 0.1297 | F23: 0.0966 | H23: 0.0331 | K23: 2014 | M23: 0.0976 | O23: 0.0441 | Q23: 0.0535
B24: 1990 | D24: 0.127 | F24: 0.0976 | H24: 0.0294 | K24: 2015 | M24: 0.096 | O24: 0.0437 | Q24: 0.0523
B25: 1991 | D25: 0.1254 | F25: 0.0921 | H25: 0.0333 | K25: 2016 | M25: 0.096 | O25: 0.0411 | Q25: 0.0549
B26: 1992 | D26: 0.1209 | F26: 0.0857 | H26: 0.0352 | K26: 2017 | M26: 0.0968 | O26: 0.0407 | Q26: 0.0561
B27: 1993 | D27: 0.1146 | F27: 0.0756 | H27: 0.039 | K27: 2018 | M27: 0.0956 | O27: 0.0434 | Q27: 0.0522
B28: 1994 | D28: 0.1121 | F28: 0.083 | H28: 0.0291 | K28: =K27+1 -> 2019 | M28: 0.0965 | O28: 0.0386 | Q28: 0.0579
B29: 1995 | D29: 0.1158 | F29: 0.0791 | H29: 0.0367 | K29: 2020 | M29: 0.0939 | O29: 0.0307 | Q29: 0.0632
B30: 1996 | D30: 0.114 | F30: 0.0774 | H30: 0.0366 | K30: 2021 | M30: 0.0939 | O30: 0.0314 | Q30: 0.0625
B31: 1997 | D31: 0.1133 | F31: 0.0763 | H31: 0.037 | K31: 2022 | M31: 0.0952 | O31: 0.0476 | Q31: 0.0476
B32: =B31+1 -> 1998 | D32: 0.1177 | F32: 0.07 | H32: =D32-F32 -> 0.0477 | K32: Average | M32: =AVERAGE(D8:D32,M8:M31) -> 0.1171734694 | O32: =AVERAGE(F8:F32,O8:O31) -> 0.07828367347 | Q32: =AVERAGE(H8:H32,Q8:Q31) -> 0.03888979592
A34: (a) | B34: S&P Global Market Intelligence, Major Rate Case Decisions, RRA Regulatory Focus; UtilityScope Regulatory Service, Argus. Data for "general" rate cases (excluding limited-issue rider cases) beginning in 2006 (the first year such data presented by RRA).
A36: (b) | B36: Moody's Investors Service.
U37: Ind. | V37: Dep.
U38: X | V38: Y
T40: 1974 | U40: 0.0927 | V40: 0.0383
T41: 1975 | U41: 0.0988 | V41: 0.0332
T42: 1976 | U42: 0.0917 | V42: 0.0393
T43: 1977 | U43: 0.0858 | V43: 0.0472
T44: 1978 | U44: 0.0922 | V44: 0.0398
T45: 1979 | U45: 0.1039 | V45: 0.0311
T46: 1980 | U46: 0.1315 | V46: 0.0108
T47: 1981 | U47: 0.1562 | V47: -0.004
T48: 1982 | U48: 0.1533 | V48: 0.0045
T49: 1983 | U49: 0.1331 | V49: 0.0205
T50: 1984 | U50: 0.1403 | V50: 0.0129
T51: 1985 | U51: 0.1229 | V51: 0.0291
T52: 1986 | U52: 0.0946 | V52: 0.0447
T53: 1987 | U53: 0.0998 | V53: 0.0301
T54: 1988 | U54: 0.1045 | V54: 0.0234
T55: 1989 | U55: 0.0966 | V55: 0.0331
T56: 1990 | U56: 0.0976 | V56: 0.0294
T57: 1991 | U57: 0.0921 | V57: 0.0333
T58: 1992 | U58: 0.0857 | V58: 0.0352
T59: 1993 | U59: 0.0756 | V59: 0.039
T60: 1994 | U60: 0.083 | V60: 0.0291
T61: 1995 | U61: 0.0791 | V61: 0.0367
T62: 1996 | U62: 0.0774 | V62: 0.0366
T63: 1997 | U63: 0.0763 | V63: 0.037
T64: 1998 | U64: 0.07 | V64: 0.0477
T65: 1999 | U65: 0.0755 | V65: 0.0317
T66: 2000 | U66: 0.0809 | V66: 0.0349
T67: 2001 | U67: 0.0772 | V67: 0.0335
T68: 2002 | U68: 0.0753 | V68: 0.0368
T69: 2003 | U69: 0.0661 | V69: 0.0435
T70: 2004 | U70: 0.062 | V70: 0.0461
T71: 2005 | U71: 0.0567 | V71: 0.0484
T72: 2006 | U72: 0.0608 | V72: 0.0426
T73: 2007 | U73: 0.0611 | V73: 0.0421
T74: 2008 | U74: 0.0665 | V74: 0.0372
T75: 2009 | U75: 0.0628 | V75: 0.0424
T76: 2010 | U76: 0.0556 | V76: 0.0473
T77: 2011 | U77: 0.0513 | V77: 0.0506
T78: 2012 | U78: 0.0426 | V78: 0.0576
T79: 2013 | U79: 0.0455 | V79: 0.0527
T80: 2014 | U80: 0.0441 | V80: 0.0535
T81: 2015 | U81: 0.0437 | V81: 0.0523
T82: 2016 | U82: 0.0411 | V82: 0.0549
T83: 2017 | U83: 0.0407 | V83: 0.0561
T84: 2018 | U84: 0.0434 | V84: 0.0522
T85: 2019 | U85: 0.0386 | V85: 0.0579
T86: 2020 | U86: 0.0307 | V86: 0.0632
T87: 2021 | U87: 0.0314 | V87: 0.0625
T88: 2022 | U88: 0.0476 | V88: 0.0476

Sheet 9 (3)
A1: ='Exhibit List'!C15 -> RISK PREMIUM METHOD | I1: ='Exhibit List'!B15 -> Exhibit AMM-9
I2: Page 3 of 3
A3: ='Exhibit List'!D15 -> REGRESSION RESULTS
A28: SUMMARY OUTPUT
A30: Regression Statistics
A31: Multiple R | B31: 0.941588074
A32: R Square | B32: 0.886588101
A33: Adjusted R Square | B33: 0.8841750819
A34: Standard Error | B34: 0.004800935063
A35: Observations | B35: 49
A37: ANOVA
B38: df | C38: SS | D38: MS | E38: F | F38: Significance F
A39: Regression | B39: 1 | C39: 0.008468622956 | D39: 0.008468622956 | E39: 367.4185964 | F39: 7.46570984e-24
A40: Residual | B40: 47 | C40: 0.001083301942 | D40: 2.304897748e-05
A41: Total | B41: 48 | C41: 0.009551924898
B43: Coefficients | C43: Standard Error | D43: t Stat | E43: P-value | F43: Lower 95% | G43: Upper 95% | H43: Lower 95.0% | I43: Upper 95.0%
A44: Intercept | B44: 0.07233708187 | C44: 0.001874886756 | D44: 38.58210724 | E44: 3.068709381e-37 | F44: 0.06856529623 | G44: 0.07610886752 | H44: 0.06856529623 | I44: 0.07610886752
A45: X Variable 1 | B45: -0.4272574915 | C45: 0.02228995129 | D45: -19.16816623 | E45: 7.46570984e-24 | F45: -0.4720990896 | G45: -0.3824158935 | H45: -0.4720990896 | I45: -0.3824158935

Sheet 10
A1: ='Exhibit List'!C16 -> EXPECTED EARNINGS APPROACH | J1: ='Exhibit List'!B16 -> Exhibit AMM-10
J2: Page 1 of 1
A3: ='Exhibit List'!D16 -> UTILITY GROUP
D6: (a) | F6: (b) | H6: (c)
D7: Expected Return | F7: Adjustment | H7: Adjusted Return
B8: Company | D8: on Common Equity | F8: Factor | H8: on Common Equity
A9: =A8+1 -> 1 | B9: =VLOOKUP('Proxy Group Ticker'!$B3,vldatabase,2,FALSE) -> Avista Corp. | D9: =VLOOKUP('Proxy Group Ticker'!$B3,vldatabase,18,FALSE) -> 0.08 | F9: ='6'!I9 -> 1.030461228 | H9: =IF(F9="n/a","n/a",D9*F9) -> 0.0824368982 | M9: =IF(D9="n/a","n/a",IF(D9<$C$36,"LOW",IF(D9>$C$37,"HIGH",D9))) -> 0.08 | N9: =IF(H9="n/a","n/a",IF(H9<$C$36,"LOW",IF(H9>$C$37,"HIGH",H9))) -> 0.0824368982
A10: =A9+1 -> 2 | B10: =VLOOKUP('Proxy Group Ticker'!$B4,vldatabase,2,FALSE) -> Black Hills Corp. | D10: =VLOOKUP('Proxy Group Ticker'!$B4,vldatabase,18,FALSE) -> 0.095 | F10: ='6'!I10 -> 1.02969389 | H10: =IF(F10="n/a","n/a",D10*F10) -> 0.09782091951 | M10: 0.095 | N10: 0.09782091951
A11: 3 | B11: =VLOOKUP('Proxy Group Ticker'!$B5,vldatabase,2,FALSE) -> CenterPoint Energy | D11: =VLOOKUP('Proxy Group Ticker'!$B5,vldatabase,18,FALSE) -> 0.1 | F11: ='6'!I11 -> 1.018679209 | H11: 0.1018679209 | M11: 0.1 | N11: 0.1018679209
A12: 4 | B12: =VLOOKUP('Proxy Group Ticker'!$B6,vldatabase,2,FALSE) -> CMS Energy Corp. | D12: =VLOOKUP('Proxy Group Ticker'!$B6,vldatabase,18,FALSE) -> 0.14 | F12: ='6'!I12 -> 1.01052498 | H12: 0.1414734972 | M12: 0.14 | N12: 0.1414734972
A13: 5 | B13: =VLOOKUP('Proxy Group Ticker'!$B7,vldatabase,2,FALSE) -> Dominion Energy | D13: =VLOOKUP('Proxy Group Ticker'!$B7,vldatabase,18,FALSE) -> 0.12 | F13: ='6'!I13 -> 1.039181993 | H13: 0.1247018392 | M13: 0.12 | N13: 0.1247018392
A14: 6 | B14: =VLOOKUP('Proxy Group Ticker'!$B8,vldatabase,2,FALSE) -> DTE Energy Co. | D14: =VLOOKUP('Proxy Group Ticker'!$B8,vldatabase,18,FALSE) -> 0.125 | F14: ='6'!I14 -> 1.019238194 | H14: 0.1274047742 | M14: 0.125 | N14: 0.1274047742
A15: 7 | B15: =VLOOKUP('Proxy Group Ticker'!$B9,vldatabase,2,FALSE) -> Duke Energy Corp. | D15: =VLOOKUP('Proxy Group Ticker'!$B9,vldatabase,18,FALSE) -> 0.09 | F15: ='6'!I15 -> 1.013316719 | H15: 0.09119850467 | M15: 0.09 | N15: 0.09119850467
A16: 8 | B16: =VLOOKUP('Proxy Group Ticker'!$B10,vldatabase,2,FALSE) -> Edison International | D16: =VLOOKUP('Proxy Group Ticker'!$B10,vldatabase,18,FALSE) -> 0.13 | F16: ='6'!I16 -> 1.033723901 | H16: 0.1343841071 | M16: 0.13 | N16: 0.1343841071
A17: 9 | B17: =VLOOKUP('Proxy Group Ticker'!$B11,vldatabase,2,FALSE) -> Emera Inc. | D17: =VLOOKUP('Proxy Group Ticker'!$B11,vldatabase,18,FALSE) -> 0.105 | F17: ='6'!I17 -> 1.010483147 | H17: 0.1061007304 | M17: 0.105 | N17: 0.1061007304
A18: 10 | B18: =VLOOKUP('Proxy Group Ticker'!$B12,vldatabase,2,FALSE) -> Entergy Corp. | D18: =VLOOKUP('Proxy Group Ticker'!$B12,vldatabase,18,FALSE) -> 0.09 | F18: ='6'!I18 -> 1.028870909 | H18: 0.09259838179 | M18: 0.09 | N18: 0.09259838179
A19: 11 | B19: =VLOOKUP('Proxy Group Ticker'!$B13,vldatabase,2,FALSE) -> Exelon Corp. | D19: =VLOOKUP('Proxy Group Ticker'!$B13,vldatabase,18,FALSE) -> 0.1 | F19: ='6'!I19 -> 0.9820119575 | H19: 0.09820119575 | M19: 0.1 | N19: 0.09820119575
A20: 12 | B20: =VLOOKUP('Proxy Group Ticker'!$B14,vldatabase,2,FALSE) -> Hawaiian Elec. | D20: =VLOOKUP('Proxy Group Ticker'!$B14,vldatabase,18,FALSE) -> 0.125 | F20: ='6'!I20 -> 1.020940342 | H20: 0.1276175428 | M20: 0.125 | N20: 0.1276175428
A21: 13 | B21: =VLOOKUP('Proxy Group Ticker'!$B15,vldatabase,2,FALSE) -> IDACORP, Inc. | D21: =VLOOKUP('Proxy Group Ticker'!$B15,vldatabase,18,FALSE) -> 0.095 | F21: ='6'!I21 -> 1.023769736 | H21: 0.09725812491 | M21: 0.095 | N21: 0.09725812491
A22: 14 | B22: =VLOOKUP('Proxy Group Ticker'!$B16,vldatabase,2,FALSE) -> NorthWestern Corp. | D22: =VLOOKUP('Proxy Group Ticker'!$B16,vldatabase,18,FALSE) -> 0.08 | F22: ='6'!I22 -> 1.027696137 | H22: 0.08221569093 | M22: 0.08 | N22: 0.08221569093
A23: 15 | B23: =VLOOKUP('Proxy Group Ticker'!$B17,vldatabase,2,FALSE) -> Otter Tail Corp. | D23: =VLOOKUP('Proxy Group Ticker'!$B17,vldatabase,18,FALSE) -> 0.115 | F23: ='6'!I23 -> 1.019548547 | H23: 0.1172480829 | M23: 0.115 | N23: 0.1172480829
A24: 16 | B24: =VLOOKUP('Proxy Group Ticker'!$B18,vldatabase,2,FALSE) -> Pub Sv Enterprise Grp. | D24: =VLOOKUP('Proxy Group Ticker'!$B18,vldatabase,18,FALSE) -> 0.135 | F24: ='6'!I24 -> 1.015053529 | H24: 0.1370322264 | M24: 0.135 | N24: 0.1370322264
A25: 17 | B25: =VLOOKUP('Proxy Group Ticker'!$B19,vldatabase,2,FALSE) -> Sempra Energy | D25: =VLOOKUP('Proxy Group Ticker'!$B19,vldatabase,18,FALSE) -> 0.11 | F25: ='6'!I25 -> 1.02242303 | H25: 0.1124665333 | M25: 0.11 | N25: 0.1124665333
A26: 18 | B26: =VLOOKUP('Proxy Group Ticker'!$B20,vldatabase,2,FALSE) -> Southern Company | D26: =VLOOKUP('Proxy Group Ticker'!$B20,vldatabase,18,FALSE) -> 0.145 | F26: ='6'!I26 -> 1.021614403 | H26: 0.1481340884 | M26: 0.145 | N26: 0.1481340884
B28: Average (d) | D28: =AVERAGE(M9:M26) -> 0.11 | H28: =AVERAGE(N9:N26) -> 0.1122311699 | L28: Min | M28: =MIN(M9:M26) -> 0.08 | N28: =MIN(N9:N26) -> 0.08221569093
L29: Max | M29: =MAX(M9:M26) -> 0.145 | N29: =MAX(N9:N26) -> 0.1481340884
A31: (a) | B31: ='Electric Utility Data'!$B$49 -> The Value Line Investment Survey (Jan. 20, Feb. 10 and Mar. 10, 2023).
A32: (b) | B32: ="Adjustment to convert year-end return to an average rate of return from "&'6'!Q1 &"." -> Adjustment to convert year-end return to an average rate of return from Exhibit AMM-6.
A33: (c) | B33: (a) x (b).
A34: (d) | B34: Excludes highlighted values.
A36: Threshold Min | C36: ='5 (3)'!D34 -> 0.07344 | H36: =MIN(H9:H26) -> 0.08221569093
A37: Threshold Max | C37: ='5 (3)'!D35 -> 0.159 | H37: =MAX(H9:H26) -> 0.1481340884

Sheet 11
A1: ='Exhibit List'!C17 -> FLOTATION COST STUDY | K1: ='Exhibit List'!B17 -> Exhibit AMM-11
K2: Page 1 of 1
A3: ='Exhibit List'!D17 -> ELECTRIC & GAS UTILITIES
C5: -1 | D5: =C5-1 -> -2 | E5: -3 | F5: -4 | G5: -5 | H5: -6 | I5: -7 | J5: -8 | K5: -9
F6: Underwriting | I6: Total | J6: Gross Proceeds | K6: Flotation
D7: Shares | E7: Offering | F7: Discount | G7: Underwriting | H7: Offering | I7: Flotation | J7: Before Flot. | K7: Cost | M7: Latest | N7: Net
A8: No. | B8: Company | C8: Date | D8: Issued | E8: Price | F8: (per share) | G8: Discount | H8: Expense | I8: Costs | J8: Costs | K8: (%) | M8: Price | N8: Proceeds
A9: 1 | B9: ALLETE | C9: 2022-04-01 | D9: 3200000 | E9: 63 | F9: 2.205 | G9: =D9*F9 -> 7056000 | H9: 700000 | I9: =H9+G9 -> 7756000 | J9: =E9*D9 -> 201600000 | K9: =I9/J9 -> 0.03847222222
A10: =A9+1 -> 2 | B10: Alliant Energy | C10: 2019-11-14 | D10: 3717502 | E10: 52.63 | F10: 0.395 | G10: =D10*F10 -> 1468413.29 | H10: 500000 | I10: =H10+G10 -> 1968413.29 | J10: =E10*D10 -> 195652130.3 | K10: =I10/J10 -> 0.01006078128
A11: 3 | B11: Ameren Corp. | C11: 2019-08-05 | D11: 7549205 | E11: 74.3 | F11: 0.12 | G11: =D11*F11 -> 905904.6 | H11: 750000 | I11: =H11+G11 -> 1655904.6 | J11: =E11*D11 -> 560905931.5 | K11: =I11/J11 -> 0.002952196629
A12: 4 | B12: American Elec Pwr | C12: 2009-04-02 | D12: =60000000+9000000 -> 69000000 | E12: 24.5 | F12: 0.735 | G12: =D12*F12 -> 50715000 | H12: 400000 | I12: =H12+G12 -> 51115000 | J12: =E12*D12 -> 1690500000 | K12: =I12/J12 -> 0.03023661639
A13: 5 | B13: Avangrid, Inc. | C13: N/A
A14: 6 | B14: Avista Corp. | C14: 2006-12-13 | D14: =2750000+412500 -> 3162500 | E14: 25.05 | F14: 0.48 | G14: =D14*F14 -> 1518000 | H14: 300000 | I14: =H14+G14 -> 1818000 | J14: =E14*D14 -> 79220625 | K14: =I14/J14 -> 0.02294856926
A15: 7 | B15: Black Hills Corp. | C15: 2020-02-25 | D15: 1222942 | E15: 81.77 | F15: 0.7359 | G15: 899963.0178 | H15: 230000 | I15: 1129963.018 | J15: 99999967.34 | K15: 0.01129963387
A16: 8 | B16: CenterPoint Energy | C16: 2018-09-27 | D16: 60550459 | E16: 27.25 | F16: 0.75 | G16: 45412844.25 | H16: 1000000 | I16: 46412844.25 | J16: 1650000008 | K16: 0.02812899638
A17: 9 | B17: CMS Energy Corp. | C17: 2005-03-31 | D17: =20000000+3000000 -> 23000000 | E17: 12.25 | F17: 0.4288 | G17: 9862400 | H17: 325000 | I17: 10187400 | J17: 281750000 | K17: 0.03615758651
A18: 10 | B18: Consolidated Edison (a) | C18: 2021-06-17 | D18: 10100000 | E18: 76.92 | F18: =M18-E18 -> 0.83 | G18: 8383000 | H18: 450000 | I18: 8833000 | J18: 776892000 | K18: 0.01136966271 | M18: 77.75 | N18: =J18-G18-H18 -> 768059000
A19: 11 | B19: Dominion Energy (a) | C19: 2018-03-29 | D19: 20000000 | E19: 67.3258 | F19: =M19-E19 -> 1.8942 | G19: 37884000 | H19: 450000 | I19: 38334000 | J19: 1346516000 | K19: 0.02846902673 | M19: 69.22 | N19: =J19-G19-H19 -> 1308182000
A20: 12 | B20: DTE Energy Co. | C20: 2019-10-29 | D20: 2400000 | E20: 126 | F20: 3.15 | G20: 7560000 | H20: 300000 | I20: 7860000 | J20: 302400000 | K20: 0.02599206349
A21: 13 | B21: Duke Energy Corp. (a) | C21: 2019-11-18 | D21: 25000000 | E21: 85.99 | F21: =M21-E21 -> 2.66 | G21: 66500000 | H21: 592000 | I21: 67092000 | J21: 2149750000 | K21: 0.03120921037 | M21: 88.65 | N21: =J21-G21-H21 -> 2082658000
A22: 14 | B22: Edison International | C22: 2020-05-13 | D22: 14181882 | E22: 56.41 | F22: =14000000/D22 -> 0.9871750449 | G22: 14000000 | H22: 1000000 | I22: 15000000 | J22: 799999963.6 | K22: 0.01875000085
A23: 15 | B23: Entergy Corp. | C23: 2018-06-08 | D23: 13289037 | E23: 75.25 | F23: 0.8 | G23: 10631229.6 | H23: 650000 | I23: 11281229.6 | J23: 1000000034 | K23: 0.01128122921
A24: 16 | B24: Evergy Inc. | C24: N/A
A25: 17 | B25: Eversource Energy | C25: 2020-06-12 | D25: 6000000 | E25: 84.91 | F25: =M25-E25 -> 1.35 | G25: =D25*F25 -> 8100000 | H25: 600000 | I25: =H25+G25 -> 8700000 | J25: =E25*D25 -> 509460000 | K25: =I25/J25 -> 0.01707690496 | M25: 86.26 | N25: =J25-G25-H25 -> 500760000
A26: 18 | B26: Exelon Corp. (a) | C26: 2022-08-08 | D26: 11300000 | E26: 43.32 | F26: =M26-E26 -> 0.99 | G26: 11187000 | H26: 900000 | I26: 12087000 | J26: 489516000 | K26: 0.02469173633 | M26: 44.31 | N26: =J26-G26-H26 -> 477429000
A27: 19 | B27: FirstEnergy Corp. | C27: 2003-09-15 | D27: =28000000+4200000 -> 32200000 | E27: 30 | F27: 0.975 | G27: 31395000 | H27: 423000 | I27: 31818000 | J27: 966000000 | K27: 0.0329378882
A28: 20 | B28: Hawaiian Elec. | C28: 2013-03-20 | D28: =6100000+900000 -> 7000000 | E28: 26.75 | F28: 1.00312 | G28: 7021840 | H28: 450000 | I28: 7471840 | J28: 187250000 | K28: 0.03990301736
A29: 21 | B29: IDACORP, Inc. | C29: 2004-12-10 | D29: =3500000+525000 -> 4025000 | E29: 30 | F29: 1.2 | G29: 4830000 | H29: 300000 | I29: 5130000 | J29: 120750000 | K29: 0.04248447205
A30: 22 | B30: NextEra Energy, Inc. (a) | C30: 2016-11-03 | D30: =12000000+1800000 -> 13800000 | E30: 124 | F30: =M30-E30 -> 1.89 | G30: 26082000 | H30: 750000 | I30: 26832000 | J30: 1711200000 | K30: 0.0156802244 | M30: 125.89 | N30: =J30-G30-H30 -> 1684368000
A31: 23 | B31: NorthWestern Corp. | C31: 2021-11-18 | D31: 6074767 | E31: 53.5 | F31: 1.605 | G31: 9750001.035 | H31: 900000 | I31: 10650001.04 | J31: 325000034.5 | K31: 0.03276923048
A32: 24 | B32: OGE Energy Corp. | C32: 2003-08-22 | D32: =4650000+674074 -> 5324074 | E32: 21.6 | F32: 0.79 | G32: 4206018.46 | H32: 325000 | I32: 4531018.46 | J32: 114999998.4 | K32: 0.03940016107
A33: 25 | B33: Otter Tail Corp. | C33: N/A
A34: 26 | B34: Pinnacle West Capital | C34: 2010-04-09 | D34: =6000000+900000 -> 6900000 | E34: 38 | F34: 1.33 | G34: =D34*F34 -> 9177000 | H34: 190000 | I34: =H34+G34 -> 9367000 | J34: =E34*D34 -> 262200000 | K34: =I34/J34 -> 0.03572463768
A35: 27 | B35: PNM Resources | C35: 2020-01-07 | D35: 5375000 | E35: 47.21 | F35: =M35-E35 -> 1.99 | G35: 10696250 | H35: 750000 | I35: 11446250 | J35: 253753750 | K35: 0.04510770777 | M35: 49.2 | N35: =J35-G35-H35 -> 242307500
A36: 28 | B36: Portland General Elec. | C36: 2022-10-27 | D36: 10100000 | E36: 43 | F36: 1.23625 | G36: 12486125 | H36: =500000+15000 -> 515000 | I36: 13001125 | J36: 434300000 | K36: 0.02993581626
A37: 29 | B37: PPL Corp. | C37: 2018-05-10 | D37: 55000000 | E37: 27 | F37: 0.2943 | G37: 16186500 | H37: 1000000 | I37: 17186500 | J37: 1485000000 | K37: 0.01157340067
A38: 30 | B38: Pub Sv Enterprise Grp. | C38: 2003-10-02 | D38: =8250000+1237500 -> 9487500 | E38: 41.75 | F38: 1.2525 | G38: 11883093.75 | H38: 350000 | I38: 12233093.75 | J38: 396103125 | K38: 0.03088360828
A39: 31 | B39: Sempra Energy | C39: 2018-01-05 | D39: =23364486+3504672 -> 26869158 | E39: 107 | F39: 1.926 | G39: 51749998.31 | H39: 1500000 | I39: 53249998.31 | J39: 2874999906 | K39: 0.01852173915
A40: 32 | B40: Southern Company (a) | C40: 2016-08-18 | D40: 32500000 | E40: 49.3 | F40: =M40-E40 -> 1.66 | G40: 53950000 | H40: 557000 | I40: 54507000 | J40: 1602250000 | K40: 0.03401903573 | M40: 50.96 | N40: =J40-G40-H40 -> 1547743000
A41: 33 | B41: WEC Energy Group | C41: N/A
A42: 34 | B42: Xcel Energy Inc. (a) | C42: 2019-10-30 | D42: 10300000 | E42: 62.69 | F42: =M42-E42 -> 0.63 | G42: =D42*F42 -> 6489000 | H42: 650000 | I42: =H42+G42 -> 7139000 | J42: =E42*D42 -> 645707000 | K42: =I42/J42 -> 0.0110560982 | M42: 63.32 | N42: =J42-G42-H42 -> 638568000
B43: Average | K43: =AVERAGE(K9:K42) -> 0.02563644915
A46: 1 | B46: Atmos Energy Corp. | C46: 2018-11-30 | D46: 7008087 | E46: 92.75 | F46: 0.9769 | G46: =D46*F46 -> 6846200.19 | H46: 1000000 | I46: =H46+G46 -> 7846200.19 | J46: =E46*D46 -> 650000069.2 | K46: =I46/J46 -> 0.01207107593
A47: =A46+1 -> 2 | B47: Chesapeake Utilities | C47: 2016-09-23 | D47: 960488 | E47: 62.26 | F47: 2.33 | G47: =D47*F47 -> 2237937.04 | H47: =J47-N47-G47 -> 162045.84 | I47: =H47+G47 -> 2399982.88 | J47: =E47*D47 -> 59799982.88 | K47: =I47/J47 -> 0.04013350447 | N47: 57400000
A48: =A47+1 -> 3 | B48: New Jersey Resources | C48: 2019-12-04 | D48: 5700000 | E48: 41.25 | F48: 1.2375 | G48: =D48*F48 -> 7053750 | H48: 500000 | I48: =G48+H48 -> 7553750 | J48: =E48*D48 -> 235125000 | K48: =I48/J48 -> 0.03212652844
A49: 4 | B49: NiSource Inc. | C49: 2017-05-03 | D49: N/A | E49: N/A | F49: N/A | G49: =0.02*J49 -> 10000000 | H49: 57950 | I49: =G49+H49 -> 10057950 | J49: 500000000 | K49: =I49/J49 -> 0.0201159
A50: 5 | B50: Northwest Nat. Holding Co. | C50: 2022-03-30 | D50: 2500000 | E50: 50 | F50: 1.625 | G50: =D50*F50 -> 4062500 | H50: 450000 | I50: =G50+H50 -> 4512500 | J50: =E50*D50 -> 125000000 | K50: =I50/J50 -> 0.0361
A51: 6 | B51: ONE Gas, Inc. | C51: N/A
A52: 7 | B52: Southwest Gas | C52: 2023-03-09 | D52: 3576180 | E52: 60.12 | F52: 2.0291 | G52: =D52*F52 -> 7256426.838 | H52: 538000 | I52: =G52+H52 -> 7794426.838 | J52: =E52*D52 -> 214999941.6 | K52: =I52/J52 -> 0.03625315793
A53: 8 | B53: Spire Inc. | C53: 2018-05-09 | D53: 2000000 | E53: 63.05 | F53: 2.10938 | G53: =D53*F53 -> 4218760 | H53: 325000 | I53: =G53+H53 -> 4543760 | J53: =E53*D53 -> 126100000 | K53: =I53/J53 -> 0.03603298969
B54: Average | K54: =AVERAGE(K46:K53) -> 0.03040473664
B56: Average - Electric & Gas | K56: =AVERAGE(K9:K42,K46:K53) -> 0.02653855759
B59: SEC Form 424B for each company (through April 10, 2023).
B60: Column (2) * Column (4)
B61: SEC Form 424B for each company (through April 10, 2023).
B62: Column (5) + Column (6)
B63: Column (2) * Column (3)
B64: Column (7) / Column (8)
B65: Underwriting discount computed as the difference between the current market price and the price offered to the issuing company by the underwriters.

Sheet 12 (1)
A1: ='Exhibit List'!C18 -> DCF MODEL - NON-UTILITY GROUP | J1: ='Exhibit List'!B18 -> Exhibit AMM-12
J2: Page 1 of 3
A3: ='Exhibit List'!D18 -> DIVIDEND YIELD
E5: (a) | G5: (b)
B6: Company | C6: Industry Group | E6: Price | G6: Dividends | I6: Yield
A7: 1 | B7: 3M Company | C7: Diversified Co. | E7: ='Stock Price (Non-Utility)'!C34 -> 106.3603333 | G7: 6 | I7: =G7/E7 -> 0.05641200824 | L7: MMM
A8: =A7+1 -> 2 | B8: Abbott Labs. | C8: Med Supp Non-Invasive | E8: ='Stock Price (Non-Utility)'!D34 -> 100.2903333 | G8: 2.04 | I8: 0.02034094346 | L8: ABT
A9: =A8+1 -> 3 | B9: Air Products & Chem. | C9: Chemical (Diversified) | E9: ='Stock Price (Non-Utility)'!E34 -> 281.1386667 | G9: 7 | I9: 0.0248987451 | L9: APD
A10: 4 | B10: Allstate Corp. | C10: Insurance (Prop/Cas.) | E10: ='Stock Price (Non-Utility)'!F34 -> 120.4396667 | G10: 3.56 | I10: 0.02955836809 | L10: ALL
A11: 5 | B11: Amdocs Ltd. | C11: IT Services | E11: ='Stock Price (Non-Utility)'!G34 -> 92.79 | G11: 1.74 | I11: 0.01875202069 | L11: DOX
A12: 6 | B12: Amgen | C12: Biotechnology | E12: ='Stock Price (Non-Utility)'!H34 -> 234.2061667 | G12: 8.52 | I12: 0.03637820524 | L12: AMGN
A13: 7 | B13: Archer Daniels Midl'd | C13: Food Processing | E13: ='Stock Price (Non-Utility)'!I34 -> 79.031 | G13: 1.8 | I13: 0.02277587276 | L13: ADM
A14: 8 | B14: Becton, Dickinson | C14: Med Supp Invasive | E14: ='Stock Price (Non-Utility)'!J34 -> 237.5023333 | G14: 3.68 | I14: 0.01549458461 | L14: BDX
A15: 9 | B15: Bristol-Myers Squibb | C15: Drug | E15: ='Stock Price (Non-Utility)'!K34 -> 68.51433333 | G15: 2.31 | I15: 0.0337155729 | L15: BMY
A16: 10 | B16: Brown & Brown | C16: Financial Svcs. (Div.) | E16: ='Stock Price (Non-Utility)'!L34 -> 55.82333333 | G16: 0.46 | I16: 0.008240281842 | L16: BRO
A17: 11 | B17: Brown-Forman 'B' | C17: Beverage | E17: ='Stock Price (Non-Utility)'!M34 -> 63.89633333 | G17: 0.82 | I17: 0.01283328725 | L17: BF/B
A18: 12 | B18: Church & Dwight | C18: Household Products | E18: ='Stock Price (Non-Utility)'!N34 -> 84.47966667 | G18: 1.09 | I18: 0.01290251303 | L18: CHD
A19: 13 | B19: Cisco Systems | C19: Telecom. Equipment | E19: ='Stock Price (Non-Utility)'!O34 -> 49.50833333 | G19: 1.56 | I19: 0.03150984683 | L19: CSCO
A20: 14 | B20: Coca-Cola | C20: Beverage | E20: ='Stock Price (Non-Utility)'!P34 -> 60.06933333 | G20: 1.84 | I20: 0.03063127053 | L20: KO
A21: 15 | B21: Colgate-Palmolive | C21: Household Products | E21: ='Stock Price (Non-Utility)'!Q34 -> 72.99333333 | G21: 1.92 | I21: 0.02630377203 | L21: CL
A22: 16 | B22: Comcast Corp. | C22: Cable TV | E22: ='Stock Price (Non-Utility)'!R34 -> 36.81133333 | G22: 1.16 | I22: 0.03151203434 | L22: CMCSA
A23: 17 | B23: Costco Wholesale | C23: Retail Store | E23: ='Stock Price (Non-Utility)'!S34 -> 488.498 | G23: 3.75 | I23: 0.00767659233 | L23: COST
A24: 18 | B24: Danaher Corp. | C24: Diversified Co. | E24: ='Stock Price (Non-Utility)'!T34 -> 247.939 | G24: 1.08 | I24: 0.004355910123 | L24: DHR
A25: 19 | B25: Gen'l Mills | C25: Food Processing | E25: ='Stock Price (Non-Utility)'!U34 -> 80.16 | G25: 2.17 | I25: 0.02707085828 | L25: GIS
A26: 20 | B26: Gilead Sciences | C26: Drug | E26: ='Stock Price (Non-Utility)'!V34 -> 80.646 | G26: 3 | I26: 0.03719961312 | L26: GILD
A27: 21 | B27: Hershey Co. | C27: Food Processing | E27: ='Stock Price (Non-Utility)'!W34 -> 241.7346667 | G27: 4.27 | I27: 0.01766399523 | L27: HSY
A28: 22 | B28: Home Depot | C28: Retail Building Supply | E28: ='Stock Price (Non-Utility)'!X34 -> 292.8676667 | G28: 8.36 | I28: 0.02854531569 | L28: HD
A29: 23 | B29: Hormel Foods | C29: Food Processing | E29: ='Stock Price (Non-Utility)'!Y34 -> 41.242 | G29: 1.1 | I29: 0.02667183939 | L29: HRL
A30: 24 | B30: Intercontinental Exch. | C30: Brokers & Exchanges | E30: ='Stock Price (Non-Utility)'!Z34 -> 100.9856667 | G30: 1.68 | I30: 0.01663602425 | L30: ICE
A31: 25 | B31: Johnson & Johnson | C31: Med Supp Non-Invasive | E31: ='Stock Price (Non-Utility)'!AA34 -> 154.3216667 | G31: 4.52 | I31: 0.02928947113 | L31: JNJ
A32: 26 | B32: Kimberly-Clark | C32: Household Products | E32: ='Stock Price (Non-Utility)'!AB34 -> 126.7106667 | G32: 4.72 | I32: 0.03725021835 | L32: KMB
A33: 27 | B33: Lilly (Eli) | C33: Drug | E33: ='Stock Price (Non-Utility)'!AC34 -> 325.233 | G33: 4.52 | I33: 0.01389772871 | L33: LLY
A34: 28 | B34: Lockheed Martin | C34: Aerospace/Defense | E34: ='Stock Price (Non-Utility)'!AD34 -> 475.633 | G34: 12.2 | I34: 0.02565002849 | L34: LMT
A35: 29 | B35: Marsh & McLennan | C35: Financial Svcs. (Div.) | E35: ='Stock Price (Non-Utility)'!AE34 -> 161.2536667 | G35: 2.48 | I35: 0.01537949525 | L35: MMC
A36: 30 | B36: McCormick & Co. | C36: Food Processing | E36: ='Stock Price (Non-Utility)'!AF34 -> 73.91133333 | G36: 1.56 | I36: 0.0211063707 | L36: MKC
A37: 31 | B37: McDonald's Corp. | C37: Restaurant | E37: ='Stock Price (Non-Utility)'!AG34 -> 267.8276667 | G37: 6.2 | I37: 0.02314921411 | L37: MCD
A38: 32 | B38: McKesson Corp. | C38: Med Supp Non-Invasive | E38: ='Stock Price (Non-Utility)'!AH34 -> 348.2003333 | G38: 2.28 | I38: 0.006547954674 | L38: MCK
A39: 33 | B39: Merck & Co. | C39: Drug | E39: ='Stock Price (Non-Utility)'!AI34 -> 107.2823333 | G39: 2.92 | I39: 0.02721790167 | L39: MRK
A40: 34 | B40: Microsoft Corp. | C40: Computer Software | E40: ='Stock Price (Non-Utility)'!AJ34 -> 262.0003333 | G40: 2.73 | I40: 0.01041983407 | L40: MSFT
A41: 35 | B41: Mondelez Int'l | C41: Food Processing | E41: ='Stock Price (Non-Utility)'!AK34 -> 66.46133333 | G41: 1.54 | I41: 0.02317136781 | L41: MDLZ
A42: 36 | B42: NewMarket Corp. | C42: Chemical (Specialty) | E42: ='Stock Price (Non-Utility)'!AL34 -> 347.55 | G42: 8.4 | I42: 0.02416918429 | L42: NEU
A43: 37 | B43: Northrop Grumman | C43: Aerospace/Defense | E43: ='Stock Price (Non-Utility)'!AM34 -> 461.0346667 | G43: 6.92 | I43: 0.01500971727 | L43: NOC
A44: 38 | B44: Oracle Corp. | C44: Computer Software | E44: ='Stock Price (Non-Utility)'!AN34 -> 87.33133333 | G44: 1.6 | I44: 0.01832103025 | L44: ORCL
A45: 39 | B45: PepsiCo, Inc. | C45: Beverage | E45: ='Stock Price (Non-Utility)'!AO34 -> 175.488 | G45: 4.6 | I45: 0.02621261853 | L45: PEP
A46: 40 | B46: Pfizer, Inc. | C46: Drug | E46: ='Stock Price (Non-Utility)'!AP34 -> 40.845 | G46: 1.64 | I46: 0.04015179337 | L46: PFE
A47: 41 | B47: Procter & Gamble | C47: Household Products | E47: ='Stock Price (Non-Utility)'!AQ34 -> 140.9596667 | G47: 3.65 | I47: 0.02589393183 | L47: PG
A48: 42 | B48: Progressive Corp. | C48: Insurance (Prop/Cas.) | E48: ='Stock Price (Non-Utility)'!AR34 -> 141.527 | G48: 0.4 | I48: 0.002826315827 | L48: PGR
A49: 43 | B49: Republic Services | C49: Environmental | E49: ='Stock Price (Non-Utility)'!AS34 -> 129.7973333 | G49: 1.98 | I49: 0.01525455068 | L49: RSG
A50: 44 | B50: Sherwin-Williams | C50: Retail Building Supply | E50: ='Stock Price (Non-Utility)'!AT34 -> 219.55 | G50: 2.42 | I50: 0.01102254612 | L50: SHW
A51: 45 | B51: Smucker (J.M.) | C51: Food Processing | E51: ='Stock Price (Non-Utility)'!AU34 -> 150.8656667 | G51: 4.14 | I51: 0.0274416313 | L51: SJM
A52: 46 | B52: Texas Instruments | C52: Semiconductor | E52: ='Stock Price (Non-Utility)'!AV34 -> 174.9353333 | G52: 4.96 | I52: 0.02835333437 | L52: TXN
A53: 47 | B53: Thermo Fisher Sci. | C53: Precision Instrument | E53: ='Stock Price (Non-Utility)'!AW34 -> 551.8913333 | G53: 1.4 | I53: 0.002536731265 | L53: TMO
A54: 48 | B54: Travelers Cos. | C54: Insurance (Prop/Cas.) | E54: ='Stock Price (Non-Utility)'!AX34 -> 176.4743333 | G54: 3.72 | I54: 0.02107955265 | L54: TRV
A55: 49 | B55: Verizon Communic. | C55: Telecom. Services | E55: ='Stock Price (Non-Utility)'!AY34 -> 38.052 | G55: 2.64 | I55: 0.06937874488 | L55: VZ
A56: 50 | B56: Walmart Inc. | C56: Retail Store | E56: ='Stock Price (Non-Utility)'!AZ34 -> 141.2843333 | G56: 2.32 | I56: 0.0164207874 | L56: WMT
A57: 51 | B57: Waste Management | C57: Environmental | E57: ='Stock Price (Non-Utility)'!BA34 -> 152.252 | G57: 2.8 | I57: 0.01839056301 | L57: WM
I58: =G58/E58 -> 
B59: Average | I59: =AVERAGE(I7:I57) -> 0.02301219791
A61: (a) | B61: ='Stock Price (Non-Utility)'!B37 -> Average of closing prices for 30 trading days ended Mar. 29, 2023.
A62: (b) | B62: The Value Line Investment Survey, Summary & Index (Mar. 31, 2023).

Sheet 12 (2)
A1: ='Exhibit List'!C19 -> DCF MODEL - NON-UTILITY GROUP | I1: ='Exhibit List'!B19 -> Exhibit AMM-12
I2: Page 2 of 3
A3: ='Exhibit List'!D19 -> GROWTH RATES
D4: (a) | F4: (b) | H4: (c)
D5: Earnings Growth
B6: Company | D6: V Line | F6: IBES | H6: Zacks
A7: =A6+1 -> 1 | B7: ='12 (1)'!B7 -> 3M Company | D7: 0.075 | F7: 0.0009 | H7: 0.095 | J7: Jan. 6
A8: =A7+1 -> 2 | B8: ='12 (1)'!B8 -> Abbott Labs. | D8: 0.065 | F8: 0.083 | H8: 0.0509 | J8: Feb. 10
A9: 3 | B9: ='12 (1)'!B9 -> Air Products & Chem. | D9: 0.115 | F9: 0.0879 | H9: 0.1168 | J9: Jan. 27
A10: 4 | B10: ='12 (1)'!B10 -> Allstate Corp. | D10: 0.035 | F10: -0.0219 | H10: 0.07 | J10: Mar. 3
A11: 5 | B11: ='12 (1)'!B11 -> Amdocs Ltd. | D11: 0.075 | F11: 0.1107 | H11: 0.11 | J11: Feb. 3
A12: 6 | B12: ='12 (1)'!B12 -> Amgen | D12: 0.045 | F12: 0.0412 | H12: 0.07 | J12: Mar. 3
A13: 7 | B13: ='12 (1)'!B13 -> Archer Daniels Midl'd | D13: 0.13 | F13: -0.028 | H13: 0.0639 | J13: Jan. 13
A14: 8 | B14: ='12 (1)'!B14 -> Becton, Dickinson | D14: 0.05 | F14: 0.063 | H14: 0.0777 | J14: Feb. 10
A15: 9 | B15: ='12 (1)'!B15 -> Bristol-Myers Squibb | D15: n/a | F15: 0.0406 | H15: 0.057 | J15: Mar. 31
A16: 10 | B16: ='12 (1)'!B16 -> Brown & Brown | D16: 0.08 | F16: 0.1322 | H16: n/a | J16: Feb. 3
A17: 11 | B17: ='12 (1)'!B17 -> Brown-Forman 'B' | D17: 0.145 | F17: 0.0885 | H17: n/a | J17: Jan. 13
A18: 12 | B18: ='12 (1)'!B18 -> Church & Dwight | D18: 0.06 | F18: 0.0781 | H18: 0.0764 | J18: Mar. 17
A19: 13 | B19: ='12 (1)'!B19 -> Cisco Systems | D19: 0.085 | F19: 0.0732 | H19: 0.065 | J19: Mar. 10
A20: 14 | B20: ='12 (1)'!B20 -> Coca-Cola | D20: 0.08 | F20: 0.0606 | H20: 0.0666 | J20: Jan. 13
A21: 15 | B21: ='12 (1)'!B21 -> Colgate-Palmolive | D21: 0.06 | F21: 0.0602 | H21: 0.0621 | J21: Mar. 17
A22: 16 | B22: ='12 (1)'!B22 -> Comcast Corp. | D22: 0.085 | F22: 0.064 | H22: 0.1264 | J22: Mar. 10
A23: 17 | B23: ='12 (1)'!B23 -> Costco Wholesale | D23: 0.105 | F23: 0.099 | H23: 0.0924 | J23: Jan. 20
A24: 18 | B24: ='12 (1)'!B24 -> Danaher Corp. | D24: 0.16 | F24: 0.0331 | H24: 0.12 | J24: Jan. 6
A25: 19 | B25: ='12 (1)'!B25 -> Gen'l Mills | D25: 0.045 | F25: 0.0704 | H25: 0.075 | J25: Jan. 13
A26: 20 | B26: ='12 (1)'!B26 -> Gilead Sciences | D26: 0.12 | F26: 0.0252 | H26: 0.1226 | J26: Mar. 31
A27: 21 | B27: ='12 (1)'!B27 -> Hershey Co. | D27: 0.09 | F27: 0.0964 | H27: 0.0767 | J27: Jan. 13
A28: 22 | B28: ='12 (1)'!B28 -> Home Depot | D28: 0.09 | F28: 0.0222 | H28: 0.1122 | J28: Mar. 17
A29: 23 | B29: ='12 (1)'!B29 -> Hormel Foods | D29: 0.075 | F29: 0.033 | H29: 0.0583 | J29: Jan. 13
A30: 24 | B30: ='12 (1)'!B30 -> Intercontinental Exch. | D30: 0.07 | F30: 0.0586 | H30: 0.054 | J30: Jan. 6
A31: 25 | B31: ='12 (1)'!B31 -> Johnson & Johnson | D31: 0.08 | F31: 0.0394 | H31: 0.0553 | J31: Feb. 10
A32: 26 | B32: ='12 (1)'!B32 -> Kimberly-Clark | D32: 0.07 | F32: 0.0961 | H32: 0.0986 | J32: Mar. 17
A33: 27 | B33: ='12 (1)'!B33 -> Lilly (Eli) | D33: 0.115 | F33: 0.2287 | H33: 0.2062 | J33: Mar. 31
A34: 28 | B34: ='12 (1)'!B34 -> Lockheed Martin | D34: 0.07 | F34: 0.0955 | H34: 0.0686 | J34: Mar. 3
A35: 29 | B35: ='12 (1)'!B35 -> Marsh & McLennan | D35: 0.105 | F35: 0.0908 | H35: 0.0846 | J35: Feb. 3
A36: 30 | B36: ='12 (1)'!B36 -> McCormick & Co. | D36: 0.045 | F36: 0.0351 | H36: 0.0692 | J36: Jan. 13
A37: 31 | B37: ='12 (1)'!B37 -> McDonald's Corp. | D37: 0.09 | F37: 0.0775 | H37: 0.0807 | J37: Feb. 17
A38: 32 | B38: ='12 (1)'!B38 -> McKesson Corp. | D38: 0.1 | F38: 0.1187 | H38: 0.1036 | J38: Feb. 10
A39: 33 | B39: ='12 (1)'!B39 -> Merck & Co. | D39: 0.085 | F39: 0.1047 | H39: 0.0801 | J39: Mar. 31
A40: 34 | B40: ='12 (1)'!B40 -> Microsoft Corp. | D40: 0.15 | F40: 0.119 | H40: 0.1166 | J40: Feb. 3
A41: 35 | B41: ='12 (1)'!B41 -> Mondelez Int'l | D41: 0.075 | F41: 0.0645 | H41: 0.0714 | J41: Jan. 13
A42: 36 | B42: ='12 (1)'!B42 -> NewMarket Corp. | D42: 0.01 | F42: 0.077 | H42: n/a | J42: Feb. 24
A43: 37 | B43: ='12 (1)'!B43 -> Northrop Grumman | D43: 0.095 | F43: 0.03 | H43: 0.0345 | J43: Mar. 3
A44: 38 | B44: ='12 (1)'!B44 -> Oracle Corp. | D44: 0.1 | F44: 0.0906 | H44: 0.08 | J44: Feb. 3
A45: 39 | B45: ='12 (1)'!B45 -> PepsiCo, Inc. | D45: 0.065 | F45: 0.0755 | H45: 0.0763 | J45: Jan. 13
A46: 40 | B46: ='12 (1)'!B46 -> Pfizer, Inc. | D46: 0.02 | F46: -0.08 | H46: 0.09 | J46: Mar. 31
A47: 41 | B47: ='12 (1)'!B47 -> Procter & Gamble | D47: 0.055 | F47: 0.0507 | H47: 0.0614 | J47: Mar. 17
A48: 42 | B48: ='12 (1)'!B48 -> Progressive Corp. | D48: 0.065 | F48: 0.2864 | H48: 0.2389 | J48: Mar. 3
A49: 43 | B49: ='12 (1)'!B49 -> Republic Services | D49: 0.125 | F49: 0.0897 | H49: 0.0911 | J49: Feb. 17
A50: 44 | B50: ='12 (1)'!B50 -> Sherwin-Williams | D50: 0.07 | F50: 0.0907 | H50: 0.103 | J50: Mar. 17
A51: 45 | B51: ='12 (1)'!B51 -> Smucker (J.M.) | D51: 0.04 | F51: 0.0379 | H51: 0.04 | J51: Jan. 13
A52: 46 | B52: ='12 (1)'!B52 -> Texas Instruments | D52: 0.045 | F52: 0.1 | H52: 0.0933 | J52: Mar. 24
A53: 47 | B53: ='12 (1)'!B53 -> Thermo Fisher Sci. | D53: 0.11 | F53: 0.0777 | H53: 0.125 | J53: Feb. 10
A54: 48 | B54: ='12 (1)'!B54 -> Travelers Cos. | D54: 0.075 | F54: 0.0883 | H54: 0.1071 | J54: Mar. 3
A55: 49 | B55: ='12 (1)'!B55 -> Verizon Communic. | D55: 0.025 | F55: 0.0013 | H55: 0.0415 | J55: Mar. 10
A56: 50 | B56: ='12 (1)'!B56 -> Walmart Inc. | D56: 0.075 | F56: 0.0509 | H56: 0.055 | J56: Jan. 20
A57: 51 | B57: ='12 (1)'!B57 -> Waste Management | D57: 0.065 | F57: 0.0875 | H57: 0.1088 | J57: Feb. 17
A59: (a) | B59: The Value Line Investment Survey (various editions as of Mar. 31, 2023).
A60: (b) | B60: www.finance.yahoo.com (retrieved Mar. 30, 2023).
A61: (c) | B61: www.zacks.com (retrieved Mar. 30, 2023).

Sheet 12 (3)
A1: ='Exhibit List'!C20 -> DCF MODEL - NON-UTILITY GROUP | I1: ='Exhibit List'!B20 -> Exhibit AMM-12
I2: Page 3 of 3
A3: ='Exhibit List'!D20 -> DCF COST OF EQUITY ESTIMATES
D5: (a) | F5: (b) | H5: (c)
B6: Company | D6: V Line | F6: IBES | H6: Zacks
A7: 1 | B7: ='12 (1)'!B7 -> 3M Company | D7: =IF('12 (2)'!D7="n/a","n/a",'12 (1)'!$I7+'12 (2)'!D7) -> 0.1314120082 | F7: =IF('12 (2)'!F7="n/a","n/a",'12 (1)'!$I7+'12 (2)'!F7) -> 0.05731200824 | H7: =IF('12 (2)'!H7="n/a","n/a",'12 (1)'!$I7+'12 (2)'!H7) -> 0.1514120082 | L7: =IF(D7="n/a","n/a",IF(D7<$C$67,"LOW",IF(D7>$C$68,"HIGH",D7))) -> 0.1314120082 | M7: =IF(F7="n/a","n/a",IF(F7<$C$67,"LOW",IF(F7>$C$68,"HIGH",F7))) -> LOW | N7: =IF(H7="n/a","n/a",IF(H7<$C$67,"LOW",IF(H7>$C$68,"HIGH",H7))) -> 0.1514120082
A8: =A7+1 -> 2 | B8: ='12 (1)'!B8 -> Abbott Labs. | D8: =IF('12 (2)'!D8="n/a","n/a",'12 (1)'!$I8+'12 (2)'!D8) -> 0.08534094346 | F8: =IF('12 (2)'!F8="n/a","n/a",'12 (1)'!$I8+'12 (2)'!F8) -> 0.1033409435 | H8: =IF('12 (2)'!H8="n/a","n/a",'12 (1)'!$I8+'12 (2)'!H8) -> 0.07124094346 | L8: =IF(D8="n/a","n/a",IF(D8<$C$67,"LOW",IF(D8>$C$68,"HIGH",D8))) -> 0.08534094346 | M8: =IF(F8="n/a","n/a",IF(F8<$C$67,"LOW",IF(F8>$C$68,"HIGH",F8))) -> 0.1033409435 | N8: =IF(H8="n/a","n/a",IF(H8<$C$67,"LOW",IF(H8>$C$68,"HIGH",H8))) -> LOW
A9: =A8+1 -> 3 | B9: ='12 (1)'!B9 -> Air Products & Chem. | D9: =IF('12 (2)'!D9="n/a","n/a",'12 (1)'!$I9+'12 (2)'!D9) -> 0.1398987451 | F9: =IF('12 (2)'!F9="n/a","n/a",'12 (1)'!$I9+'12 (2)'!F9) -> 0.1127987451 | H9: =IF('12 (2)'!H9="n/a","n/a",'12 (1)'!$I9+'12 (2)'!H9) -> 0.1416987451 | L9: 0.1398987451 | M9: 0.1127987451 | N9: 0.1416987451
A10: 4 | B10: ='12 (1)'!B10 -> Allstate Corp. | D10: =IF('12 (2)'!D10="n/a","n/a",'12 (1)'!$I10+'12 (2)'!D10) -> 0.06455836809 | F10: =IF('12 (2)'!F10="n/a","n/a",'12 (1)'!$I10+'12 (2)'!F10) -> 0.00765836809 | H10: =IF('12 (2)'!H10="n/a","n/a",'12 (1)'!$I10+'12 (2)'!H10) -> 0.09955836809 | L10: LOW | M10: LOW | N10: 0.09955836809
A11: 5 | B11: ='12 (1)'!B11 -> Amdocs Ltd. | D11: =IF('12 (2)'!D11="n/a","n/a",'12 (1)'!$I11+'12 (2)'!D11) -> 0.09375202069 | F11: =IF('12 (2)'!F11="n/a","n/a",'12 (1)'!$I11+'12 (2)'!F11) -> 0.1294520207 | H11: =IF('12 (2)'!H11="n/a","n/a",'12 (1)'!$I11+'12 (2)'!H11) -> 0.1287520207 | L11: 0.09375202069 | M11: 0.1294520207 | N11: 0.1287520207
A12: 6 | B12: ='12 (1)'!B12 -> Amgen | D12: =IF('12 (2)'!D12="n/a","n/a",'12 (1)'!$I12+'12 (2)'!D12) -> 0.08137820524 | F12: =IF('12 (2)'!F12="n/a","n/a",'12 (1)'!$I12+'12 (2)'!F12) -> 0.07757820524 | H12: =IF('12 (2)'!H12="n/a","n/a",'12 (1)'!$I12+'12 (2)'!H12) -> 0.1063782052 | L12: 0.08137820524 | M12: 0.07757820524 | N12: 0.1063782052
A13: 7 | B13: ='12 (1)'!B13 -> Archer Daniels Midl'd | D13: =IF('12 (2)'!D13="n/a","n/a",'12 (1)'!$I13+'12 (2)'!D13) -> 0.1527758728 | F13: =IF('12 (2)'!F13="n/a","n/a",'12 (1)'!$I13+'12 (2)'!F13) -> -0.005224127241 | H13: =IF('12 (2)'!H13="n/a","n/a",'12 (1)'!$I13+'12 (2)'!H13) -> 0.08667587276 | L13: 0.1527758728 | M13: LOW | N13: 0.08667587276
A14: 8 | B14: ='12 (1)'!B14 -> Becton, Dickinson | D14: =IF('12 (2)'!D14="n/a","n/a",'12 (1)'!$I14+'12 (2)'!D14) -> 0.06549458461 | F14: =IF('12 (2)'!F14="n/a","n/a",'12 (1)'!$I14+'12 (2)'!F14) -> 0.07849458461 | H14: =IF('12 (2)'!H14="n/a","n/a",'12 (1)'!$I14+'12 (2)'!H14) -> 0.09319458461 | L14: LOW | M14: 0.07849458461 | N14: 0.09319458461
A15: 9 | B15: ='12 (1)'!B15 -> Bristol-Myers Squibb | D15: =IF('12 (2)'!D15="n/a","n/a",'12 (1)'!$I15+'12 (2)'!D15) -> n/a | F15: =IF('12 (2)'!F15="n/a","n/a",'12 (1)'!$I15+'12 (2)'!F15) -> 0.0743155729 | H15: =IF('12 (2)'!H15="n/a","n/a",'12 (1)'!$I15+'12 (2)'!H15) -> 0.0907155729 | L15: n/a | M15: 0.0743155729 | N15: 0.0907155729
A16: 10 | B16: ='12 (1)'!B16 -> Brown & Brown | D16: =IF('12 (2)'!D16="n/a","n/a",'12 (1)'!$I16+'12 (2)'!D16) -> 0.08824028184 | F16: =IF('12 (2)'!F16="n/a","n/a",'12 (1)'!$I16+'12 (2)'!F16) -> 0.1404402818 | H16: =IF('12 (2)'!H16="n/a","n/a",'12 (1)'!$I16+'12 (2)'!H16) -> n/a | L16: 0.08824028184 | M16: 0.1404402818 | N16: n/a
A17: 11 | B17: ='12 (1)'!B17 -> Brown-Forman 'B' | D17: =IF('12 (2)'!D17="n/a","n/a",'12 (1)'!$I17+'12 (2)'!D17) -> 0.1578332873 | F17: =IF('12 (2)'!F17="n/a","n/a",'12 (1)'!$I17+'12 (2)'!F17) -> 0.1013332873 | H17: =IF('12 (2)'!H17="n/a","n/a",'12 (1)'!$I17+'12 (2)'!H17) -> n/a | L17: 0.1578332873 | M17: 0.1013332873 | N17: n/a
A18: 12 | B18: ='12 (1)'!B18 -> Church & Dwight | D18: =IF('12 (2)'!D18="n/a","n/a",'12 (1)'!$I18+'12 (2)'!D18) -> 0.07290251303 | F18: =IF('12 (2)'!F18="n/a","n/a",'12 (1)'!$I18+'12 (2)'!F18) -> 0.09100251303 | H18: =IF('12 (2)'!H18="n/a","n/a",'12 (1)'!$I18+'12 (2)'!H18) -> 0.08930251303 | L18: LOW | M18: 0.09100251303 | N18: 0.08930251303
A19: 13 | B19: ='12 (1)'!B19 -> Cisco Systems | D19: =IF('12 (2)'!D19="n/a","n/a",'12 (1)'!$I19+'12 (2)'!D19) -> 0.1165098468 | F19: =IF('12 (2)'!F19="n/a","n/a",'12 (1)'!$I19+'12 (2)'!F19) -> 0.1047098468 | H19: =IF('12 (2)'!H19="n/a","n/a",'12 (1)'!$I19+'12 (2)'!H19) -> 0.09650984683 | L19: 0.1165098468 | M19: 0.1047098468 | N19: 0.09650984683
A20: 14 | B20: ='12 (1)'!B20 -> Coca-Cola | D20: =IF('12 (2)'!D20="n/a","n/a",'12 (1)'!$I20+'12 (2)'!D20) -> 0.1106312705 | F20: =IF('12 (2)'!F20="n/a","n/a",'12 (1)'!$I20+'12 (2)'!F20) -> 0.09123127053 | H20: =IF('12 (2)'!H20="n/a","n/a",'12 (1)'!$I20+'12 (2)'!H20) -> 0.09723127053 | L20: 0.1106312705 | M20: 0.09123127053 | N20: 0.09723127053
A21: 15 | B21: ='12 (1)'!B21 -> Colgate-Palmolive | D21: =IF('12 (2)'!D21="n/a","n/a",'12 (1)'!$I21+'12 (2)'!D21) -> 0.08630377203 | F21: =IF('12 (2)'!F21="n/a","n/a",'12 (1)'!$I21+'12 (2)'!F21) -> 0.08650377203 | H21: =IF('12 (2)'!H21="n/a","n/a",'12 (1)'!$I21+'12 (2)'!H21) -> 0.08840377203 | L21: 0.08630377203 | M21: 0.08650377203 | N21: 0.08840377203
A22: 16 | B22: ='12 (1)'!B22 -> Comcast Corp. | D22: =IF('12 (2)'!D22="n/a","n/a",'12 (1)'!$I22+'12 (2)'!D22) -> 0.1165120343 | F22: =IF('12 (2)'!F22="n/a","n/a",'12 (1)'!$I22+'12 (2)'!F22) -> 0.09551203434 | H22: =IF('12 (2)'!H22="n/a","n/a",'12 (1)'!$I22+'12 (2)'!H22) -> 0.1579120343 | L22: 0.1165120343 | M22: 0.09551203434 | N22: 0.1579120343
A23: 17 | B23: ='12 (1)'!B23 -> Costco Wholesale | D23: =IF('12 (2)'!D23="n/a","n/a",'12 (1)'!$I23+'12 (2)'!D23) -> 0.1126765923 | F23: =IF('12 (2)'!F23="n/a","n/a",'12 (1)'!$I23+'12 (2)'!F23) -> 0.1066765923 | H23: =IF('12 (2)'!H23="n/a","n/a",'12 (1)'!$I23+'12 (2)'!H23) -> 0.1000765923 | L23: 0.1126765923 | M23: 0.1066765923 | N23: 0.1000765923
A24: 18 | B24: ='12 (1)'!B24 -> Danaher Corp. | D24: =IF('12 (2)'!D24="n/a","n/a",'12 (1)'!$I24+'12 (2)'!D24) -> 0.1643559101 | F24: =IF('12 (2)'!F24="n/a","n/a",'12 (1)'!$I24+'12 (2)'!F24) -> 0.03745591012 | H24: =IF('12 (2)'!H24="n/a","n/a",'12 (1)'!$I24+'12 (2)'!H24) -> 0.1243559101 | L24: HIGH | M24: LOW | N24: 0.1243559101
A25: 19 | B25: ='12 (1)'!B25 -> Gen'l Mills | D25: =IF('12 (2)'!D25="n/a","n/a",'12 (1)'!$I25+'12 (2)'!D25) -> 0.07207085828 | F25: =IF('12 (2)'!F25="n/a","n/a",'12 (1)'!$I25+'12 (2)'!F25) -> 0.09747085828 | H25: =IF('12 (2)'!H25="n/a","n/a",'12 (1)'!$I25+'12 (2)'!H25) -> 0.1020708583 | L25: LOW | M25: 0.09747085828 | N25: 0.1020708583
A26: 20 | B26: ='12 (1)'!B26 -> Gilead Sciences | D26: =IF('12 (2)'!D26="n/a","n/a",'12 (1)'!$I26+'12 (2)'!D26) -> 0.1571996131 | F26: =IF('12 (2)'!F26="n/a","n/a",'12 (1)'!$I26+'12 (2)'!F26) -> 0.06239961312 | H26: =IF('12 (2)'!H26="n/a","n/a",'12 (1)'!$I26+'12 (2)'!H26) -> 0.1597996131 | L26: 0.1571996131 | M26: LOW | N26: HIGH
A27: 21 | B27: ='12 (1)'!B27 -> Hershey Co. | D27: =IF('12 (2)'!D27="n/a","n/a",'12 (1)'!$I27+'12 (2)'!D27) -> 0.1076639952 | F27: =IF('12 (2)'!F27="n/a","n/a",'12 (1)'!$I27+'12 (2)'!F27) -> 0.1140639952 | H27: =IF('12 (2)'!H27="n/a","n/a",'12 (1)'!$I27+'12 (2)'!H27) -> 0.09436399523 | L27: 0.1076639952 | M27: 0.1140639952 | N27: 0.09436399523
A28: 22 | B28: ='12 (1)'!B28 -> Home Depot | D28: =IF('12 (2)'!D28="n/a","n/a",'12 (1)'!$I28+'12 (2)'!D28) -> 0.1185453157 | F28: =IF('12 (2)'!F28="n/a","n/a",'12 (1)'!$I28+'12 (2)'!F28) -> 0.05074531569 | H28: =IF('12 (2)'!H28="n/a","n/a",'12 (1)'!$I28+'12 (2)'!H28) -> 0.1407453157 | L28: 0.1185453157 | M28: LOW | N28: 0.1407453157
A29: 23 | B29: ='12 (1)'!B29 -> Hormel Foods | D29: =IF('12 (2)'!D29="n/a","n/a",'12 (1)'!$I29+'12 (2)'!D29) -> 0.1016718394 | F29: =IF('12 (2)'!F29="n/a","n/a",'12 (1)'!$I29+'12 (2)'!F29) -> 0.05967183939 | H29: =IF('12 (2)'!H29="n/a","n/a",'12 (1)'!$I29+'12 (2)'!H29) -> 0.08497183939 | L29: 0.1016718394 | M29: LOW | N29: 0.08497183939
A30: 24 | B30: ='12 (1)'!B30 -> Intercontinental Exch. | D30: =IF('12 (2)'!D30="n/a","n/a",'12 (1)'!$I30+'12 (2)'!D30) -> 0.08663602425 | F30: =IF('12 (2)'!F30="n/a","n/a",'12 (1)'!$I30+'12 (2)'!F30) -> 0.07523602425 | H30: =IF('12 (2)'!H30="n/a","n/a",'12 (1)'!$I30+'12 (2)'!H30) -> 0.07063602425 | L30: 0.08663602425 | M30: 0.07523602425 | N30: LOW
A31: 25 | B31: ='12 (1)'!B31 -> Johnson & Johnson | D31: =IF('12 (2)'!D31="n/a","n/a",'12 (1)'!$I31+'12 (2)'!D31) -> 0.1092894711 | F31: =IF('12 (2)'!F31="n/a","n/a",'12 (1)'!$I31+'12 (2)'!F31) -> 0.06868947113 | H31: =IF('12 (2)'!H31="n/a","n/a",'12 (1)'!$I31+'12 (2)'!H31) -> 0.08458947113 | L31: 0.1092894711 | M31: LOW | N31: 0.08458947113
A32: 26 | B32: ='12 (1)'!B32 -> Kimberly-Clark | D32: =IF('12 (2)'!D32="n/a","n/a",'12 (1)'!$I32+'12 (2)'!D32) -> 0.1072502183 | F32: =IF('12 (2)'!F32="n/a","n/a",'12 (1)'!$I32+'12 (2)'!F32) -> 0.1333502183 | H32: =IF('12 (2)'!H32="n/a","n/a",'12 (1)'!$I32+'12 (2)'!H32) -> 0.1358502183 | L32: 0.1072502183 | M32: 0.1333502183 | N32: 0.1358502183
A33: 27 | B33: ='12 (1)'!B33 -> Lilly (Eli) | D33: =IF('12 (2)'!D33="n/a","n/a",'12 (1)'!$I33+'12 (2)'!D33) -> 0.1288977287 | F33: =IF('12 (2)'!F33="n/a","n/a",'12 (1)'!$I33+'12 (2)'!F33) -> 0.2425977287 | H33: =IF('12 (2)'!H33="n/a","n/a",'12 (1)'!$I33+'12 (2)'!H33) -> 0.2200977287 | L33: 0.1288977287 | M33: HIGH | N33: HIGH
A34: 28 | B34: ='12 (1)'!B34 -> Lockheed Martin | D34: =IF('12 (2)'!D34="n/a","n/a",'12 (1)'!$I34+'12 (2)'!D34) -> 0.09565002849 | F34: =IF('12 (2)'!F34="n/a","n/a",'12 (1)'!$I34+'12 (2)'!F34) -> 0.1211500285 | H34: =IF('12 (2)'!H34="n/a","n/a",'12 (1)'!$I34+'12 (2)'!H34) -> 0.09425002849 | L34: 0.09565002849 | M34: 0.1211500285 | N34: 0.09425002849
A35: 29 | B35: ='12 (1)'!B35 -> Marsh & McLennan | D35: =IF('12 (2)'!D35="n/a","n/a",'12 (1)'!$I35+'12 (2)'!D35) -> 0.1203794952 | F35: =IF('12 (2)'!F35="n/a","n/a",'12 (1)'!$I35+'12 (2)'!F35) -> 0.1061794952 | H35: =IF('12 (2)'!H35="n/a","n/a",'12 (1)'!$I35+'12 (2)'!H35) -> 0.09997949525 | L35: 0.1203794952 | M35: 0.1061794952 | N35: 0.09997949525
A36: 30 | B36: ='12 (1)'!B36 -> McCormick & Co. | D36: =IF('12 (2)'!D36="n/a","n/a",'12 (1)'!$I36+'12 (2)'!D36) -> 0.0661063707 | F36: =IF('12 (2)'!F36="n/a","n/a",'12 (1)'!$I36+'12 (2)'!F36) -> 0.0562063707 | H36: =IF('12 (2)'!H36="n/a","n/a",'12 (1)'!$I36+'12 (2)'!H36) -> 0.0903063707 | L36: LOW | M36: LOW | N36: 0.0903063707
A37: 31 | B37: ='12 (1)'!B37 -> McDonald's Corp. | D37: =IF('12 (2)'!D37="n/a","n/a",'12 (1)'!$I37+'12 (2)'!D37) -> 0.1131492141 | F37: =IF('12 (2)'!F37="n/a","n/a",'12 (1)'!$I37+'12 (2)'!F37) -> 0.1006492141 | H37: =IF('12 (2)'!H37="n/a","n/a",'12 (1)'!$I37+'12 (2)'!H37) -> 0.1038492141 | L37: 0.1131492141 | M37: 0.1006492141 | N37: 0.1038492141
A38: 32 | B38: ='12 (1)'!B38 -> McKesson Corp. | D38: =IF('12 (2)'!D38="n/a","n/a",'12 (1)'!$I38+'12 (2)'!D38) -> 0.1065479547 | F38: =IF('12 (2)'!F38="n/a","n/a",'12 (1)'!$I38+'12 (2)'!F38) -> 0.1252479547 | H38: =IF('12 (2)'!H38="n/a","n/a",'12 (1)'!$I38+'12 (2)'!H38) -> 0.1101479547 | L38: 0.1065479547 | M38: 0.1252479547 | N38: 0.1101479547
A39: 33 | B39: ='12 (1)'!B39 -> Merck & Co. | D39: =IF('12 (2)'!D39="n/a","n/a",'12 (1)'!$I39+'12 (2)'!D39) -> 0.1122179017 | F39: =IF('12 (2)'!F39="n/a","n/a",'12 (1)'!$I39+'12 (2)'!F39) -> 0.1319179017 | H39: =IF('12 (2)'!H39="n/a","n/a",'12 (1)'!$I39+'12 (2)'!H39) -> 0.1073179017 | L39: 0.1122179017 | M39: 0.1319179017 | N39: 0.1073179017
A40: 34 | B40: ='12 (1)'!B40 -> Microsoft Corp. | D40: =IF('12 (2)'!D40="n/a","n/a",'12 (1)'!$I40+'12 (2)'!D40) -> 0.1604198341 | F40: =IF('12 (2)'!F40="n/a","n/a",'12 (1)'!$I40+'12 (2)'!F40) -> 0.1294198341 | H40: =IF('12 (2)'!H40="n/a","n/a",'12 (1)'!$I40+'12 (2)'!H40) -> 0.1270198341 | L40: HIGH | M40: 0.1294198341 | N40: 0.1270198341
A41: 35 | B41: ='12 (1)'!B41 -> Mondelez Int'l | D41: =IF('12 (2)'!D41="n/a","n/a",'12 (1)'!$I41+'12 (2)'!D41) -> 0.09817136781 | F41: =IF('12 (2)'!F41="n/a","n/a",'12 (1)'!$I41+'12 (2)'!F41) -> 0.08767136781 | H41: =IF('12 (2)'!H41="n/a","n/a",'12 (1)'!$I41+'12 (2)'!H41) -> 0.09457136781 | L41: 0.09817136781 | M41: 0.08767136781 | N41: 0.09457136781
A42: 36 | B42: ='12 (1)'!B42 -> NewMarket Corp. | D42: =IF('12 (2)'!D42="n/a","n/a",'12 (1)'!$I42+'12 (2)'!D42) -> 0.03416918429 | F42: =IF('12 (2)'!F42="n/a","n/a",'12 (1)'!$I42+'12 (2)'!F42) -> 0.1011691843 | H42: =IF('12 (2)'!H42="n/a","n/a",'12 (1)'!$I42+'12 (2)'!H42) -> n/a | L42: LOW | M42: 0.1011691843 | N42: n/a
A43: 37 | B43: ='12 (1)'!B43 -> Northrop Grumman | D43: =IF('12 (2)'!D43="n/a","n/a",'12 (1)'!$I43+'12 (2)'!D43) -> 0.1100097173 | F43: =IF('12 (2)'!F43="n/a","n/a",'12 (1)'!$I43+'12 (2)'!F43) -> 0.04500971727 | H43: =IF('12 (2)'!H43="n/a","n/a",'12 (1)'!$I43+'12 (2)'!H43) -> 0.04950971727 | L43: 0.1100097173 | M43: LOW | N43: LOW
A44: 38 | B44: ='12 (1)'!B44 -> Oracle Corp. | D44: =IF('12 (2)'!D44="n/a","n/a",'12 (1)'!$I44+'12 (2)'!D44) -> 0.1183210303 | F44: =IF('12 (2)'!F44="n/a","n/a",'12 (1)'!$I44+'12 (2)'!F44) -> 0.1089210303 | H44: =IF('12 (2)'!H44="n/a","n/a",'12 (1)'!$I44+'12 (2)'!H44) -> 0.09832103025 | L44: 0.1183210303 | M44: 0.1089210303 | N44: 0.09832103025
A45: 39 | B45: ='12 (1)'!B45 -> PepsiCo, Inc. | D45: =IF('12 (2)'!D45="n/a","n/a",'12 (1)'!$I45+'12 (2)'!D45) -> 0.09121261853 | F45: =IF('12 (2)'!F45="n/a","n/a",'12 (1)'!$I45+'12 (2)'!F45) -> 0.1017126185 | H45: =IF('12 (2)'!H45="n/a","n/a",'12 (1)'!$I45+'12 (2)'!H45) -> 0.1025126185 | L45: 0.09121261853 | M45: 0.1017126185 | N45: 0.1025126185
A46: 40 | B46: ='12 (1)'!B46 -> Pfizer, Inc. | D46: =IF('12 (2)'!D46="n/a","n/a",'12 (1)'!$I46+'12 (2)'!D46) -> 0.06015179337 | F46: =IF('12 (2)'!F46="n/a","n/a",'12 (1)'!$I46+'12 (2)'!F46) -> -0.03984820663 | H46: =IF('12 (2)'!H46="n/a","n/a",'12 (1)'!$I46+'12 (2)'!H46) -> 0.1301517934 | L46: LOW | M46: LOW | N46: 0.1301517934
A47: 41 | B47: ='12 (1)'!B47 -> Procter & Gamble | D47: =IF('12 (2)'!D47="n/a","n/a",'12 (1)'!$I47+'12 (2)'!D47) -> 0.08089393183 | F47: =IF('12 (2)'!F47="n/a","n/a",'12 (1)'!$I47+'12 (2)'!F47) -> 0.07659393183 | H47: =IF('12 (2)'!H47="n/a","n/a",'12 (1)'!$I47+'12 (2)'!H47) -> 0.08729393183 | L47: 0.08089393183 | M47: 0.07659393183 | N47: 0.08729393183
A48: 42 | B48: ='12 (1)'!B48 -> Progressive Corp. | D48: =IF('12 (2)'!D48="n/a","n/a",'12 (1)'!$I48+'12 (2)'!D48) -> 0.06782631583 | F48: =IF('12 (2)'!F48="n/a","n/a",'12 (1)'!$I48+'12 (2)'!F48) -> 0.2892263158 | H48: =IF('12 (2)'!H48="n/a","n/a",'12 (1)'!$I48+'12 (2)'!H48) -> 0.2417263158 | L48: LOW | M48: HIGH | N48: HIGH
A49: 43 | B49: ='12 (1)'!B49 -> Republic Services | D49: =IF('12 (2)'!D49="n/a","n/a",'12 (1)'!$I49+'12 (2)'!D49) -> 0.1402545507 | F49: =IF('12 (2)'!F49="n/a","n/a",'12 (1)'!$I49+'12 (2)'!F49) -> 0.1049545507 | H49: =IF('12 (2)'!H49="n/a","n/a",'12 (1)'!$I49+'12 (2)'!H49) -> 0.1063545507 | L49: 0.1402545507 | M49: 0.1049545507 | N49: 0.1063545507
A50: 44 | B50: ='12 (1)'!B50 -> Sherwin-Williams | D50: =IF('12 (2)'!D50="n/a","n/a",'12 (1)'!$I50+'12 (2)'!D50) -> 0.08102254612 | F50: =IF('12 (2)'!F50="n/a","n/a",'12 (1)'!$I50+'12 (2)'!F50) -> 0.1017225461 | H50: =IF('12 (2)'!H50="n/a","n/a",'12 (1)'!$I50+'12 (2)'!H50) -> 0.1140225461 | L50: 0.08102254612 | M50: 0.1017225461 | N50: 0.1140225461
A51: 45 | B51: ='12 (1)'!B51 -> Smucker (J.M.) | D51: =IF('12 (2)'!D51="n/a","n/a",'12 (1)'!$I51+'12 (2)'!D51) -> 0.0674416313 | F51: =IF('12 (2)'!F51="n/a","n/a",'12 (1)'!$I51+'12 (2)'!F51) -> 0.0653416313 | H51: =IF('12 (2)'!H51="n/a","n/a",'12 (1)'!$I51+'12 (2)'!H51) -> 0.0674416313 | L51: LOW | M51: LOW | N51: LOW
A52: 46 | B52: ='12 (1)'!B52 -> Texas Instruments | D52: =IF('12 (2)'!D52="n/a","n/a",'12 (1)'!$I52+'12 (2)'!D52) -> 0.07335333437 | F52: =IF('12 (2)'!F52="n/a","n/a",'12 (1)'!$I52+'12 (2)'!F52) -> 0.1283533344 | H52: =IF('12 (2)'!H52="n/a","n/a",'12 (1)'!$I52+'12 (2)'!H52) -> 0.1216533344 | L52: LOW | M52: 0.1283533344 | N52: 0.1216533344
A53: 47 | B53: ='12 (1)'!B53 -> Thermo Fisher Sci. | D53: =IF('12 (2)'!D53="n/a","n/a",'12 (1)'!$I53+'12 (2)'!D53) -> 0.1125367313 | F53: =IF('12 (2)'!F53="n/a","n/a",'12 (1)'!$I53+'12 (2)'!F53) -> 0.08023673126 | H53: =IF('12 (2)'!H53="n/a","n/a",'12 (1)'!$I53+'12 (2)'!H53) -> 0.1275367313 | L53: 0.1125367313 | M53: 0.08023673126 | N53: 0.1275367313
A54: 48 | B54: ='12 (1)'!B54 -> Travelers Cos. | D54: =IF('12 (2)'!D54="n/a","n/a",'12 (1)'!$I54+'12 (2)'!D54) -> 0.09607955265 | F54: =IF('12 (2)'!F54="n/a","n/a",'12 (1)'!$I54+'12 (2)'!F54) -> 0.1093795526 | H54: =IF('12 (2)'!H54="n/a","n/a",'12 (1)'!$I54+'12 (2)'!H54) -> 0.1281795526 | L54: 0.09607955265 | M54: 0.1093795526 | N54: 0.1281795526
A55: 49 | B55: ='12 (1)'!B55 -> Verizon Communic. | D55: =IF('12 (2)'!D55="n/a","n/a",'12 (1)'!$I55+'12 (2)'!D55) -> 0.09437874488 | F55: =IF('12 (2)'!F55="n/a","n/a",'12 (1)'!$I55+'12 (2)'!F55) -> 0.07067874488 | H55: =IF('12 (2)'!H55="n/a","n/a",'12 (1)'!$I55+'12 (2)'!H55) -> 0.1108787449 | L55: 0.09437874488 | M55: LOW | N55: 0.1108787449
A56: 50 | B56: ='12 (1)'!B56 -> Walmart Inc. | D56: =IF('12 (2)'!D56="n/a","n/a",'12 (1)'!$I56+'12 (2)'!D56) -> 0.0914207874 | F56: =IF('12 (2)'!F56="n/a","n/a",'12 (1)'!$I56+'12 (2)'!F56) -> 0.0673207874 | H56: =IF('12 (2)'!H56="n/a","n/a",'12 (1)'!$I56+'12 (2)'!H56) -> 0.0714207874 | L56: 0.0914207874 | M56: LOW | N56: LOW
A57: 51 | B57: ='12 (1)'!B57 -> Waste Management | D57: =IF('12 (2)'!D57="n/a","n/a",'12 (1)'!$I57+'12 (2)'!D57) -> 0.08339056301 | F57: =IF('12 (2)'!F57="n/a","n/a",'12 (1)'!$I57+'12 (2)'!F57) -> 0.105890563 | H57: =IF('12 (2)'!H57="n/a","n/a",'12 (1)'!$I57+'12 (2)'!H57) -> 0.127190563 | L57: 0.08339056301 | M57: 0.105890563 | N57: 0.127190563
B59: Average (b) | D59: =AVERAGE(L7:L57) -> 0.1088435743 | F59: =AVERAGE(M7:M57) -> 0.1038480173 | H59: =AVERAGE(N7:N57) -> 0.1094076645 | J59: =AVERAGE(D59:H59) -> 0.1073664187 | K59: Min | L59: =MIN(L7:L57) -> 0.08089393183 | M59: =MIN(M7:M57) -> 0.0743155729 | N59: =MIN(N7:N57) -> 0.08458947113
K60: Max | L60: =MAX(L7:L57) -> 0.1578332873 | M60: =MAX(M7:M57) -> 0.1404402818 | N60: =MAX(N7:N57) -> 0.1579120343
A61: (a) | B61: Sum of dividend yield (p. 1) and respective growth rate (p. 2). | K61: Mid | L61: =AVERAGE(L59,L60) -> 0.1193636095 | M61: =AVERAGE(M59,M60) -> 0.1073779274 | N61: 0.1212507527
A62: (b) | B62: Excludes highlighted figures.
B67: Criteria Min | C67: ='5 (3)'!D34 -> 0.07344
B68: Criteria Max | C68: ='5 (3)'!D35 -> 0.159

Sheet Proxy Group Risk Measures
A1: RISK MEASURES
A3: ELECTRIC UTILITY GROUP
E4: (a) | H4: (b) | K4: (c) | P4: (d) | R4: (c)
E5: S&P | H5: Moody's | K5: Value Line
E6: Corporate | H6: Long-term | K6: Safety | M6: Financial | R6: Market | T6: Industrial
B7: Company | C7: SYM | E7: Rating | H7: Rating | K7: Rank | M7: Strength | P7: Beta | R7: Cap | T7: Revenues
A8: =A7+1 -> 1 | B8: =VLOOKUP('Proxy Group Ticker'!$B3,vldatabase,2,FALSE) -> Avista Corp. | C8: ='Proxy Group Ticker'!B3 -> AVA | E8: =VLOOKUP('Proxy Group Ticker'!$B3,vldatabase,26,FALSE) -> BBB | F8: =VLOOKUP(E8,'Ordinal Ratings'!A$6:C$28,2,FALSE) -> 9 | H8: =VLOOKUP('Proxy Group Ticker'!$B3,vldatabase,27,FALSE) -> Baa2 | I8: =VLOOKUP(H8,'Ordinal Ratings'!I$6:K$25,2,FALSE) -> 9 | K8: =VLOOKUP('Proxy Group Ticker'!$B3,vldatabase,22,FALSE) -> 2 | M8: =VLOOKUP('Proxy Group Ticker'!$B3,vldatabase,24,FALSE) -> B++ | N8: =VLOOKUP(M8,'Ordinal Ratings'!E$6:G$16,2,FALSE) -> 4 | P8: =VLOOKUP('Proxy Group Ticker'!$B3,vldatabase,23,FALSE) -> 0.9 | R8: =VLOOKUP('Proxy Group Ticker'!$B3,vldatabase,28,FALSE) -> 3200 | T8: 0.11
A9: =A8+1 -> 2 | B9: =VLOOKUP('Proxy Group Ticker'!$B4,vldatabase,2,FALSE) -> Black Hills Corp. | C9: ='Proxy Group Ticker'!B4 -> BKH | E9: =VLOOKUP('Proxy Group Ticker'!$B4,vldatabase,26,FALSE) -> BBB+ | F9: =VLOOKUP(E9,'Ordinal Ratings'!A$6:C$28,2,FALSE) -> 8 | H9: =VLOOKUP('Proxy Group Ticker'!$B4,vldatabase,27,FALSE) -> Baa2 | I9: =VLOOKUP(H9,'Ordinal Ratings'!I$6:K$25,2,FALSE) -> 9 | K9: =VLOOKUP('Proxy Group Ticker'!$B4,vldatabase,22,FALSE) -> 2 | M9: =VLOOKUP('Proxy Group Ticker'!$B4,vldatabase,24,FALSE) -> A | N9: =VLOOKUP(M9,'Ordinal Ratings'!E$6:G$16,2,FALSE) -> 3 | P9: =VLOOKUP('Proxy Group Ticker'!$B4,vldatabase,23,FALSE) -> 0.95 | R9: =VLOOKUP('Proxy Group Ticker'!$B4,vldatabase,28,FALSE) -> 4600 | T9: 0.19
A10: 3 | B10: =VLOOKUP('Proxy Group Ticker'!$B5,vldatabase,2,FALSE) -> CenterPoint Energy | C10: ='Proxy Group Ticker'!B5 -> CNP | E10: =VLOOKUP('Proxy Group Ticker'!$B5,vldatabase,26,FALSE) -> BBB+ | F10: =VLOOKUP(E10,'Ordinal Ratings'!A$6:C$28,2,FALSE) -> 8 | H10: =VLOOKUP('Proxy Group Ticker'!$B5,vldatabase,27,FALSE) -> Baa2 | I10: =VLOOKUP(H10,'Ordinal Ratings'!I$6:K$25,2,FALSE) -> 9 | K10: =VLOOKUP('Proxy Group Ticker'!$B5,vldatabase,22,FALSE) -> 3 | M10: =VLOOKUP('Proxy Group Ticker'!$B5,vldatabase,24,FALSE) -> B++ | N10: =VLOOKUP(M10,'Ordinal Ratings'!E$6:G$16,2,FALSE) -> 4 | P10: =VLOOKUP('Proxy Group Ticker'!$B5,vldatabase,23,FALSE) -> 1.1 | R10: =VLOOKUP('Proxy Group Ticker'!$B5,vldatabase,28,FALSE) -> 17900 | T10: =166374/900162 -> 0.1848267312 | U10: 10-K
A11: 4 | B11: =VLOOKUP('Proxy Group Ticker'!$B6,vldatabase,2,FALSE) -> CMS Energy Corp. | C11: ='Proxy Group Ticker'!B6 -> CMS | E11: =VLOOKUP('Proxy Group Ticker'!$B6,vldatabase,26,FALSE) -> BBB+ | F11: =VLOOKUP(E11,'Ordinal Ratings'!A$6:C$28,2,FALSE) -> 8 | H11: =VLOOKUP('Proxy Group Ticker'!$B6,vldatabase,27,FALSE) -> Baa2 | I11: =VLOOKUP(H11,'Ordinal Ratings'!I$6:K$25,2,FALSE) -> 9 | K11: =VLOOKUP('Proxy Group Ticker'!$B6,vldatabase,22,FALSE) -> 2 | M11: =VLOOKUP('Proxy Group Ticker'!$B6,vldatabase,24,FALSE) -> A | N11: =VLOOKUP(M11,'Ordinal Ratings'!E$6:G$16,2,FALSE) -> 3 | P11: =VLOOKUP('Proxy Group Ticker'!$B6,vldatabase,23,FALSE) -> 0.8 | R11: =VLOOKUP('Proxy Group Ticker'!$B6,vldatabase,28,FALSE) -> 17400 | T11: 0.15
A12: 5 | B12: =VLOOKUP('Proxy Group Ticker'!$B7,vldatabase,2,FALSE) -> Dominion Energy | C12: ='Proxy Group Ticker'!B7 -> D | E12: =VLOOKUP('Proxy Group Ticker'!$B7,vldatabase,26,FALSE) -> BBB+ | F12: =VLOOKUP(E12,'Ordinal Ratings'!A$6:C$28,2,FALSE) -> 8 | H12: =VLOOKUP('Proxy Group Ticker'!$B7,vldatabase,27,FALSE) -> Baa2 | I12: =VLOOKUP(H12,'Ordinal Ratings'!I$6:K$25,2,FALSE) -> 9 | K12: =VLOOKUP('Proxy Group Ticker'!$B7,vldatabase,22,FALSE) -> 2 | M12: =VLOOKUP('Proxy Group Ticker'!$B7,vldatabase,24,FALSE) -> B++ | N12: =VLOOKUP(M12,'Ordinal Ratings'!E$6:G$16,2,FALSE) -> 4 | P12: =VLOOKUP('Proxy Group Ticker'!$B7,vldatabase,23,FALSE) -> 0.8 | R12: =VLOOKUP('Proxy Group Ticker'!$B7,vldatabase,28,FALSE) -> 52200 | T12: 0.08
A13: 6 | B13: =VLOOKUP('Proxy Group Ticker'!$B8,vldatabase,2,FALSE) -> DTE Energy Co. | C13: ='Proxy Group Ticker'!B8 -> DTE | E13: =VLOOKUP('Proxy Group Ticker'!$B8,vldatabase,26,FALSE) -> BBB+ | F13: =VLOOKUP(E13,'Ordinal Ratings'!A$6:C$28,2,FALSE) -> 8 | H13: =VLOOKUP('Proxy Group Ticker'!$B8,vldatabase,27,FALSE) -> Baa2 | I13: =VLOOKUP(H13,'Ordinal Ratings'!I$6:K$25,2,FALSE) -> 9 | K13: =VLOOKUP('Proxy Group Ticker'!$B8,vldatabase,22,FALSE) -> 2 | M13: =VLOOKUP('Proxy Group Ticker'!$B8,vldatabase,24,FALSE) -> A | N13: =VLOOKUP(M13,'Ordinal Ratings'!E$6:G$16,2,FALSE) -> 3 | P13: =VLOOKUP('Proxy Group Ticker'!$B8,vldatabase,23,FALSE) -> 0.95 | R13: =VLOOKUP('Proxy Group Ticker'!$B8,vldatabase,28,FALSE) -> 22900 | T13: 0.11
A14: 7 | B14: =VLOOKUP('Proxy Group Ticker'!$B9,vldatabase,2,FALSE) -> Duke Energy Corp. | C14: ='Proxy Group Ticker'!B9 -> DUK | E14: =VLOOKUP('Proxy Group Ticker'!$B9,vldatabase,26,FALSE) -> BBB+ | F14: =VLOOKUP(E14,'Ordinal Ratings'!A$6:C$28,2,FALSE) -> 8 | H14: =VLOOKUP('Proxy Group Ticker'!$B9,vldatabase,27,FALSE) -> Baa2 | I14: =VLOOKUP(H14,'Ordinal Ratings'!I$6:K$25,2,FALSE) -> 9 | K14: =VLOOKUP('Proxy Group Ticker'!$B9,vldatabase,22,FALSE) -> 2 | M14: =VLOOKUP('Proxy Group Ticker'!$B9,vldatabase,24,FALSE) -> A | N14: =VLOOKUP(M14,'Ordinal Ratings'!E$6:G$16,2,FALSE) -> 3 | P14: =VLOOKUP('Proxy Group Ticker'!$B9,vldatabase,23,FALSE) -> 0.85 | R14: =VLOOKUP('Proxy Group Ticker'!$B9,vldatabase,28,FALSE) -> 78300 | T14: 0.13
A15: 8 | B15: =VLOOKUP('Proxy Group Ticker'!$B10,vldatabase,2,FALSE) -> Edison International | C15: ='Proxy Group Ticker'!B10 -> EIX | E15: =VLOOKUP('Proxy Group Ticker'!$B10,vldatabase,26,FALSE) -> BBB | F15: =VLOOKUP(E15,'Ordinal Ratings'!A$6:C$28,2,FALSE) -> 9 | H15: =VLOOKUP('Proxy Group Ticker'!$B10,vldatabase,27,FALSE) -> Baa2 | I15: =VLOOKUP(H15,'Ordinal Ratings'!I$6:K$25,2,FALSE) -> 9 | K15: =VLOOKUP('Proxy Group Ticker'!$B10,vldatabase,22,FALSE) -> 3 | M15: =VLOOKUP('Proxy Group Ticker'!$B10,vldatabase,24,FALSE) -> B++ | N15: =VLOOKUP(M15,'Ordinal Ratings'!E$6:G$16,2,FALSE) -> 4 | P15: =VLOOKUP('Proxy Group Ticker'!$B10,vldatabase,23,FALSE) -> 0.95 | R15: =VLOOKUP('Proxy Group Ticker'!$B10,vldatabase,28,FALSE) -> 25900 | T15: 0.03
A16: 9 | B16: =VLOOKUP('Proxy Group Ticker'!$B11,vldatabase,2,FALSE) -> Emera Inc. | C16: ='Proxy Group Ticker'!B11 -> EMA | E16: =VLOOKUP('Proxy Group Ticker'!$B11,vldatabase,26,FALSE) -> BBB | F16: =VLOOKUP(E16,'Ordinal Ratings'!A$6:C$28,2,FALSE) -> 9 | H16: =VLOOKUP('Proxy Group Ticker'!$B11,vldatabase,27,FALSE) -> Baa3 | I16: =VLOOKUP(H16,'Ordinal Ratings'!I$6:K$25,2,FALSE) -> 10 | K16: =VLOOKUP('Proxy Group Ticker'!$B11,vldatabase,22,FALSE) -> 2 | M16: =VLOOKUP('Proxy Group Ticker'!$B11,vldatabase,24,FALSE) -> B++ | N16: =VLOOKUP(M16,'Ordinal Ratings'!E$6:G$16,2,FALSE) -> 4 | P16: =VLOOKUP('Proxy Group Ticker'!$B11,vldatabase,23,FALSE) -> 0.7 | R16: =VLOOKUP('Proxy Group Ticker'!$B11,vldatabase,28,FALSE) -> 14300 | T16: =E111/H111 -> 0.1270108043 | U16: 40-F
A17: 10 | B17: =VLOOKUP('Proxy Group Ticker'!$B12,vldatabase,2,FALSE) -> Entergy Corp. | C17: ='Proxy Group Ticker'!B12 -> ETR | E17: =VLOOKUP('Proxy Group Ticker'!$B12,vldatabase,26,FALSE) -> BBB+ | F17: =VLOOKUP(E17,'Ordinal Ratings'!A$6:C$28,2,FALSE) -> 8 | H17: =VLOOKUP('Proxy Group Ticker'!$B12,vldatabase,27,FALSE) -> Baa2 | I17: =VLOOKUP(H17,'Ordinal Ratings'!I$6:K$25,2,FALSE) -> 9 | K17: =VLOOKUP('Proxy Group Ticker'!$B12,vldatabase,22,FALSE) -> 2 | M17: =VLOOKUP('Proxy Group Ticker'!$B12,vldatabase,24,FALSE) -> B++ | N17: =VLOOKUP(M17,'Ordinal Ratings'!E$6:G$16,2,FALSE) -> 4 | P17: =VLOOKUP('Proxy Group Ticker'!$B12,vldatabase,23,FALSE) -> 0.95 | R17: =VLOOKUP('Proxy Group Ticker'!$B12,vldatabase,28,FALSE) -> 23000 | T17: 0.27
A18: 11 | B18: =VLOOKUP('Proxy Group Ticker'!$B13,vldatabase,2,FALSE) -> Exelon Corp. | C18: ='Proxy Group Ticker'!B13 -> EXC | E18: =VLOOKUP('Proxy Group Ticker'!$B13,vldatabase,26,FALSE) -> BBB+ | F18: =VLOOKUP(E18,'Ordinal Ratings'!A$6:C$28,2,FALSE) -> 8 | H18: =VLOOKUP('Proxy Group Ticker'!$B13,vldatabase,27,FALSE) -> Baa2 | I18: =VLOOKUP(H18,'Ordinal Ratings'!I$6:K$25,2,FALSE) -> 9 | K18: =VLOOKUP('Proxy Group Ticker'!$B13,vldatabase,22,FALSE) -> 2 | M18: =VLOOKUP('Proxy Group Ticker'!$B13,vldatabase,24,FALSE) -> B++ | N18: =VLOOKUP(M18,'Ordinal Ratings'!E$6:G$16,2,FALSE) -> 4 | P18: =VLOOKUP('Proxy Group Ticker'!$B13,vldatabase,23,FALSE) -> n/a | R18: =VLOOKUP('Proxy Group Ticker'!$B13,vldatabase,28,FALSE) -> 41500 | T18: 0.17
A19: 12 | B19: =VLOOKUP('Proxy Group Ticker'!$B14,vldatabase,2,FALSE) -> Hawaiian Elec. | C19: ='Proxy Group Ticker'!B14 -> HE | E19: =VLOOKUP('Proxy Group Ticker'!$B14,vldatabase,26,FALSE) -> BBB- | F19: =VLOOKUP(E19,'Ordinal Ratings'!A$6:C$28,2,FALSE) -> 10 | H19: =VLOOKUP('Proxy Group Ticker'!$B14,vldatabase,27,FALSE) -> NR | I19: =VLOOKUP(H19,'Ordinal Ratings'!I$6:K$25,2,FALSE) -> -- | K19: =VLOOKUP('Proxy Group Ticker'!$B14,vldatabase,22,FALSE) -> 2 | M19: =VLOOKUP('Proxy Group Ticker'!$B14,vldatabase,24,FALSE) -> A | N19: =VLOOKUP(M19,'Ordinal Ratings'!E$6:G$16,2,FALSE) -> 3 | P19: =VLOOKUP('Proxy Group Ticker'!$B14,vldatabase,23,FALSE) -> 0.85 | R19: =VLOOKUP('Proxy Group Ticker'!$B14,vldatabase,28,FALSE) -> 4600 | T19: =1211.242/3366.621 -> 0.3597797317 | U19: 10-K
A20: 13 | B20: =VLOOKUP('Proxy Group Ticker'!$B15,vldatabase,2,FALSE) -> IDACORP, Inc. | C20: ='Proxy Group Ticker'!B15 -> IDA | E20: =VLOOKUP('Proxy Group Ticker'!$B15,vldatabase,26,FALSE) -> BBB | F20: =VLOOKUP(E20,'Ordinal Ratings'!A$6:C$28,2,FALSE) -> 9 | H20: =VLOOKUP('Proxy Group Ticker'!$B15,vldatabase,27,FALSE) -> Baa2 | I20: =VLOOKUP(H20,'Ordinal Ratings'!I$6:K$25,2,FALSE) -> 9 | K20: =VLOOKUP('Proxy Group Ticker'!$B15,vldatabase,22,FALSE) -> 1 | M20: =VLOOKUP('Proxy Group Ticker'!$B15,vldatabase,24,FALSE) -> A+ | N20: =VLOOKUP(M20,'Ordinal Ratings'!E$6:G$16,2,FALSE) -> 2 | P20: =VLOOKUP('Proxy Group Ticker'!$B15,vldatabase,23,FALSE) -> 0.8 | R20: =VLOOKUP('Proxy Group Ticker'!$B15,vldatabase,28,FALSE) -> 5500 | T20: 0.15
A21: 14 | B21: =VLOOKUP('Proxy Group Ticker'!$B16,vldatabase,2,FALSE) -> NorthWestern Corp. | C21: ='Proxy Group Ticker'!B16 -> NWE | E21: =VLOOKUP('Proxy Group Ticker'!$B16,vldatabase,26,FALSE) -> BBB | F21: =VLOOKUP(E21,'Ordinal Ratings'!A$6:C$28,2,FALSE) -> 9 | H21: =VLOOKUP('Proxy Group Ticker'!$B16,vldatabase,27,FALSE) -> Baa2 | I21: =VLOOKUP(H21,'Ordinal Ratings'!I$6:K$25,2,FALSE) -> 9 | K21: =VLOOKUP('Proxy Group Ticker'!$B16,vldatabase,22,FALSE) -> 2 | M21: =VLOOKUP('Proxy Group Ticker'!$B16,vldatabase,24,FALSE) -> B++ | N21: =VLOOKUP(M21,'Ordinal Ratings'!E$6:G$16,2,FALSE) -> 4 | P21: =VLOOKUP('Proxy Group Ticker'!$B16,vldatabase,23,FALSE) -> 0.9 | R21: =VLOOKUP('Proxy Group Ticker'!$B16,vldatabase,28,FALSE) -> 3400 | T21: 0.04
A22: 15 | B22: =VLOOKUP('Proxy Group Ticker'!$B17,vldatabase,2,FALSE) -> Otter Tail Corp. | C22: ='Proxy Group Ticker'!B17 -> OTTR | E22: =VLOOKUP('Proxy Group Ticker'!$B17,vldatabase,26,FALSE) -> BBB | F22: =VLOOKUP(E22,'Ordinal Ratings'!A$6:C$28,2,FALSE) -> 9 | H22: =VLOOKUP('Proxy Group Ticker'!$B17,vldatabase,27,FALSE) -> Baa2 | I22: =VLOOKUP(H22,'Ordinal Ratings'!I$6:K$25,2,FALSE) -> 9 | K22: =VLOOKUP('Proxy Group Ticker'!$B17,vldatabase,22,FALSE) -> 2 | M22: =VLOOKUP('Proxy Group Ticker'!$B17,vldatabase,24,FALSE) -> A | N22: =VLOOKUP(M22,'Ordinal Ratings'!E$6:G$16,2,FALSE) -> 3 | P22: =VLOOKUP('Proxy Group Ticker'!$B17,vldatabase,23,FALSE) -> 0.9 | R22: =VLOOKUP('Proxy Group Ticker'!$B17,vldatabase,28,FALSE) -> 3000 | T22: 0.3
A23: 16 | B23: =VLOOKUP('Proxy Group Ticker'!$B18,vldatabase,2,FALSE) -> Pub Sv Enterprise Grp. | C23: ='Proxy Group Ticker'!B18 -> PEG | E23: =VLOOKUP('Proxy Group Ticker'!$B18,vldatabase,26,FALSE) -> BBB+ | F23: =VLOOKUP(E23,'Ordinal Ratings'!A$6:C$28,2,FALSE) -> 8 | H23: =VLOOKUP('Proxy Group Ticker'!$B18,vldatabase,27,FALSE) -> Baa2 | I23: =VLOOKUP(H23,'Ordinal Ratings'!I$6:K$25,2,FALSE) -> 9 | K23: =VLOOKUP('Proxy Group Ticker'!$B18,vldatabase,22,FALSE) -> 1 | M23: =VLOOKUP('Proxy Group Ticker'!$B18,vldatabase,24,FALSE) -> A++ | N23: =VLOOKUP(M23,'Ordinal Ratings'!E$6:G$16,2,FALSE) -> 1 | P23: =VLOOKUP('Proxy Group Ticker'!$B18,vldatabase,23,FALSE) -> 0.9 | R23: =VLOOKUP('Proxy Group Ticker'!$B18,vldatabase,28,FALSE) -> 30500 | T23: =230179785/4463942446 -> 0.05156423672 | U23: Form 1
A24: 17 | B24: =VLOOKUP('Proxy Group Ticker'!$B19,vldatabase,2,FALSE) -> Sempra Energy | C24: ='Proxy Group Ticker'!B19 -> SRE | E24: =VLOOKUP('Proxy Group Ticker'!$B19,vldatabase,26,FALSE) -> BBB+ | F24: =VLOOKUP(E24,'Ordinal Ratings'!A$6:C$28,2,FALSE) -> 8 | H24: =VLOOKUP('Proxy Group Ticker'!$B19,vldatabase,27,FALSE) -> Baa2 | I24: =VLOOKUP(H24,'Ordinal Ratings'!I$6:K$25,2,FALSE) -> 9 | K24: =VLOOKUP('Proxy Group Ticker'!$B19,vldatabase,22,FALSE) -> 2 | M24: =VLOOKUP('Proxy Group Ticker'!$B19,vldatabase,24,FALSE) -> A | N24: =VLOOKUP(M24,'Ordinal Ratings'!E$6:G$16,2,FALSE) -> 3 | P24: =VLOOKUP('Proxy Group Ticker'!$B19,vldatabase,23,FALSE) -> 0.95 | R24: =VLOOKUP('Proxy Group Ticker'!$B19,vldatabase,28,FALSE) -> 49400 | T24: =186199658/3467108134 -> 0.05370460072 | U24: Form 1
A25: 18 | B25: =VLOOKUP('Proxy Group Ticker'!$B20,vldatabase,2,FALSE) -> Southern Company | C25: ='Proxy Group Ticker'!B20 -> SO | E25: =VLOOKUP('Proxy Group Ticker'!$B20,vldatabase,26,FALSE) -> BBB+ | F25: =VLOOKUP(E25,'Ordinal Ratings'!A$6:C$28,2,FALSE) -> 8 | H25: =VLOOKUP('Proxy Group Ticker'!$B20,vldatabase,27,FALSE) -> Baa2 | I25: =VLOOKUP(H25,'Ordinal Ratings'!I$6:K$25,2,FALSE) -> 9 | K25: =VLOOKUP('Proxy Group Ticker'!$B20,vldatabase,22,FALSE) -> 2 | M25: =VLOOKUP('Proxy Group Ticker'!$B20,vldatabase,24,FALSE) -> A | N25: =VLOOKUP(M25,'Ordinal Ratings'!E$6:G$16,2,FALSE) -> 3 | P25: =VLOOKUP('Proxy Group Ticker'!$B20,vldatabase,23,FALSE) -> 0.9 | R25: =VLOOKUP('Proxy Group Ticker'!$B20,vldatabase,28,FALSE) -> 71300 | T25: 0.19
E27: =VLOOKUP(F27,'Ordinal Ratings'!$B$6:$C$26,2,FALSE) -> BBB+ | F27: =ROUND(AVERAGE(F8:F25),0) -> 8 | H27: =VLOOKUP(I27,'Ordinal Ratings'!$J$6:$K$24,2,FALSE) -> Baa2 | I27: =ROUND(AVERAGE(I8:I25),0) -> 9 | K27: =ROUND(AVERAGE(K8:K25),0) -> 2 | M27: =VLOOKUP(N27,'Ordinal Ratings'!$F$6:$G$15,2,FALSE) -> A | N27: =ROUND(AVERAGE(N8:N25),0) -> 3 | P27: =AVERAGE(P8:P25) -> 0.8911764706 | R27: =AVERAGE(R8:R25) -> 26050 | T27: =AVERAGE(T8:T25) -> 0.1498270058
T29: =U29/U30 -> 0.239483925 | U29: 185174 | V29: Kentucky Power
A30: (a) | B30: ='Electric Utility Data'!B50 -> Issuer credit rating from www.standardandpoors.com (retrieved Mar. 28, 2023). | U30: 773221
A31: (b) | B31: ='Electric Utility Data'!B51 -> Long-term rating from www.moodys.com (retrieved Mar. 28, 2023). | T31: =T29/T27 -> 1.59840293
A32: (c) | B32: ='Electric Utility Data'!B49 -> The Value Line Investment Survey (Jan. 20, Feb. 10 and Mar. 10, 2023).
A33: (d) | B33: ='Electric Utility Data'!B48 -> The Value Line Investment Survey, Summary & Index (Mar. 31, 2023).
A36: RISK MEASURES
A38: NON-UTILITY GROUP
E39: (a) | H39: (b) | K39: (c) | P39: (d) | R39: (c)
E40: S&P | H40: Moody's | K40: Value Line
E41: Corporate | H41: Issuer | K41: Safety | M41: Financial | R41: Market
B42: Company | C42: SYM | E42: Rating | H42: Rating | K42: Rank | M42: Strength | P42: Beta | R42: Cap
A43: =A42+1 -> 1 | B43: 3M Company | C43: MMM | E43: A | F43: =VLOOKUP(E43,'Ordinal Ratings'!A$6:C$28,2,FALSE) -> 6 | H43: A1 | I43: =VLOOKUP(H43,'Ordinal Ratings'!I$6:K$25,2,FALSE) -> 5 | K43: 1 | M43: A+ | N43: =VLOOKUP(M43,'Ordinal Ratings'!E$6:G$15,2,FALSE) -> 2 | P43: 0.95 | R43: 66400 | T43: Jan. 6
A44: =A43+1 -> 2 | B44: Abbott Labs. | C44: ABT | E44: AA- | F44: =VLOOKUP(E44,'Ordinal Ratings'!A$6:C$28,2,FALSE) -> 4 | H44: A1 | I44: =VLOOKUP(H44,'Ordinal Ratings'!I$6:K$25,2,FALSE) -> 5 | K44: 1 | M44: A++ | N44: =VLOOKUP(M44,'Ordinal Ratings'!E$6:G$15,2,FALSE) -> 1 | P44: 0.9 | R44: 191000 | T44: Feb. 10
A45: 3 | B45: Air Products & Chem. | C45: APD | E45: A | F45: =VLOOKUP(E45,'Ordinal Ratings'!A$6:C$28,2,FALSE) -> 6 | H45: A2 | I45: =VLOOKUP(H45,'Ordinal Ratings'!I$6:K$25,2,FALSE) -> 6 | K45: 1 | M45: A++ | N45: =VLOOKUP(M45,'Ordinal Ratings'!E$6:G$15,2,FALSE) -> 1 | P45: 0.9 | R45: 69100 | T45: Jan. 27
A46: 4 | B46: Allstate Corp. | C46: ALL | E46: A- | F46: =VLOOKUP(E46,'Ordinal Ratings'!A$6:C$28,2,FALSE) -> 7 | H46: A3 | I46: =VLOOKUP(H46,'Ordinal Ratings'!I$6:K$25,2,FALSE) -> 7 | K46: 1 | M46: A+ | N46: =VLOOKUP(M46,'Ordinal Ratings'!E$6:G$15,2,FALSE) -> 2 | P46: 0.95 | R46: 35600 | T46: Mar. 3
A47: 5 | B47: Amdocs Ltd. | C47: DOX | E47: BBB | F47: =VLOOKUP(E47,'Ordinal Ratings'!A$6:C$28,2,FALSE) -> 9 | H47: Baa2 | I47: =VLOOKUP(H47,'Ordinal Ratings'!I$6:K$25,2,FALSE) -> 9 | K47: 1 | M47: A | N47: =VLOOKUP(M47,'Ordinal Ratings'!E$6:G$15,2,FALSE) -> 3 | P47: 0.9 | R47: 10900 | T47: Feb. 3
A48: 6 | B48: Amgen | C48: AMGN | E48: BBB+ | F48: =VLOOKUP(E48,'Ordinal Ratings'!A$6:C$28,2,FALSE) -> 8 | H48: Baa1 | I48: =VLOOKUP(H48,'Ordinal Ratings'!I$6:K$25,2,FALSE) -> 8 | K48: 1 | M48: A++ | N48: =VLOOKUP(M48,'Ordinal Ratings'!E$6:G$15,2,FALSE) -> 1 | P48: 0.7 | R48: 128000 | T48: Mar. 3
A49: 7 | B49: Archer Daniels Midl'd | C49: ADM | E49: A | F49: =VLOOKUP(E49,'Ordinal Ratings'!A$6:C$28,2,FALSE) -> 6 | H49: A2 | I49: =VLOOKUP(H49,'Ordinal Ratings'!I$6:K$25,2,FALSE) -> 6 | K49: 1 | M49: A+ | N49: =VLOOKUP(M49,'Ordinal Ratings'!E$6:G$15,2,FALSE) -> 2 | P49: 0.95 | R49: 46500 | T49: Jan. 13
A50: 8 | B50: Becton, Dickinson | C50: BDX | E50: BBB | F50: =VLOOKUP(E50,'Ordinal Ratings'!A$6:C$28,2,FALSE) -> 9 | H50: Baa2 | I50: =VLOOKUP(H50,'Ordinal Ratings'!I$6:K$25,2,FALSE) -> 9 | K50: 1 | M50: A++ | N50: =VLOOKUP(M50,'Ordinal Ratings'!E$6:G$15,2,FALSE) -> 1 | P50: 0.8 | R50: 70900 | T50: Feb. 10
A51: 9 | B51: Bristol-Myers Squibb | C51: BMY | E51: A+ | F51: =VLOOKUP(E51,'Ordinal Ratings'!A$6:C$28,2,FALSE) -> 5 | H51: A2 | I51: =VLOOKUP(H51,'Ordinal Ratings'!I$6:K$25,2,FALSE) -> 6 | K51: 1 | M51: A++ | N51: =VLOOKUP(M51,'Ordinal Ratings'!E$6:G$15,2,FALSE) -> 1 | P51: 0.8 | R51: 146000 | T51: Mar. 31
A52: 10 | B52: Brown & Brown | C52: BRO | E52: BBB- | F52: =VLOOKUP(E52,'Ordinal Ratings'!A$6:C$28,2,FALSE) -> 10 | H52: Baa3 | I52: =VLOOKUP(H52,'Ordinal Ratings'!I$6:K$25,2,FALSE) -> 10 | K52: 1 | M52: A | N52: =VLOOKUP(M52,'Ordinal Ratings'!E$6:G$15,2,FALSE) -> 3 | P52: 0.95 | R52: 17500 | T52: Feb. 3
A53: 11 | B53: Brown-Forman 'B' | C53: BF/B | E53: A- | F53: =VLOOKUP(E53,'Ordinal Ratings'!A$6:C$28,2,FALSE) -> 7 | H53: A1 | I53: =VLOOKUP(H53,'Ordinal Ratings'!I$6:K$25,2,FALSE) -> 5 | K53: 1 | M53: A | N53: =VLOOKUP(M53,'Ordinal Ratings'!E$6:G$15,2,FALSE) -> 3 | P53: 0.85 | R53: 31500 | T53: Jan. 13
A54: 12 | B54: Church & Dwight | C54: CHD | E54: BBB+ | F54: =VLOOKUP(E54,'Ordinal Ratings'!A$6:C$28,2,FALSE) -> 8 | H54: A3 | I54: =VLOOKUP(H54,'Ordinal Ratings'!I$6:K$25,2,FALSE) -> 7 | K54: 1 | M54: A+ | N54: =VLOOKUP(M54,'Ordinal Ratings'!E$6:G$15,2,FALSE) -> 2 | P54: 0.6 | R54: 20400 | T54: Mar. 17
A55: 13 | B55: Cisco Systems | C55: CSCO | E55: AA- | F55: =VLOOKUP(E55,'Ordinal Ratings'!A$6:C$28,2,FALSE) -> 4 | H55: A1 | I55: =VLOOKUP(H55,'Ordinal Ratings'!I$6:K$25,2,FALSE) -> 5 | K55: 1 | M55: A++ | N55: =VLOOKUP(M55,'Ordinal Ratings'!E$6:G$15,2,FALSE) -> 1 | P55: 0.9 | R55: 200000 | T55: Mar. 10
A56: 14 | B56: Coca-Cola | C56: KO | E56: A+ | F56: =VLOOKUP(E56,'Ordinal Ratings'!A$6:C$28,2,FALSE) -> 5 | H56: A1 | I56: =VLOOKUP(H56,'Ordinal Ratings'!I$6:K$25,2,FALSE) -> 5 | K56: 1 | M56: A++ | N56: =VLOOKUP(M56,'Ordinal Ratings'!E$6:G$15,2,FALSE) -> 1 | P56: 0.85 | R56: 275000 | T56: Jan. 13
A57: 15 | B57: Colgate-Palmolive | C57: CL | E57: AA- | F57: =VLOOKUP(E57,'Ordinal Ratings'!A$6:C$28,2,FALSE) -> 4 | H57: Aa3 | I57: =VLOOKUP(H57,'Ordinal Ratings'!I$6:K$25,2,FALSE) -> 4 | K57: 1 | M57: A | N57: =VLOOKUP(M57,'Ordinal Ratings'!E$6:G$15,2,FALSE) -> 3 | P57: 0.65 | R57: 60900 | T57: Mar. 17
A58: 16 | B58: Comcast Corp. | C58: CMCSA | E58: A- | F58: =VLOOKUP(E58,'Ordinal Ratings'!A$6:C$28,2,FALSE) -> 7 | H58: A3 | I58: =VLOOKUP(H58,'Ordinal Ratings'!I$6:K$25,2,FALSE) -> 7 | K58: 1 | M58: A+ | N58: =VLOOKUP(M58,'Ordinal Ratings'!E$6:G$15,2,FALSE) -> 2 | P58: 0.85 | R58: 157000 | T58: Mar. 10
A59: 17 | B59: Costco Wholesale | C59: COST | E59: A+ | F59: =VLOOKUP(E59,'Ordinal Ratings'!A$6:C$28,2,FALSE) -> 5 | H59: Aa3 | I59: =VLOOKUP(H59,'Ordinal Ratings'!I$6:K$25,2,FALSE) -> 4 | K59: 1 | M59: A++ | N59: =VLOOKUP(M59,'Ordinal Ratings'!E$6:G$15,2,FALSE) -> 1 | P59: 0.7 | R59: 212400 | T59: Jan. 20
A60: 18 | B60: Danaher Corp. | C60: DHR | E60: A- | F60: =VLOOKUP(E60,'Ordinal Ratings'!A$6:C$28,2,FALSE) -> 7 | H60: A3 | I60: =VLOOKUP(H60,'Ordinal Ratings'!I$6:K$25,2,FALSE) -> 7 | K60: 1 | M60: A+ | N60: =VLOOKUP(M60,'Ordinal Ratings'!E$6:G$15,2,FALSE) -> 2 | P60: 0.9 | R60: 189000 | T60: Jan. 6
A61: 19 | B61: Gen'l Mills | C61: GIS | E61: BBB | F61: =VLOOKUP(E61,'Ordinal Ratings'!A$6:C$28,2,FALSE) -> 9 | H61: Baa2 | I61: =VLOOKUP(H61,'Ordinal Ratings'!I$6:K$25,2,FALSE) -> 9 | K61: 1 | M61: A+ | N61: =VLOOKUP(M61,'Ordinal Ratings'!E$6:G$15,2,FALSE) -> 2 | P61: 0.55 | R61: 49400 | T61: Jan. 13
A62: 20 | B62: Gilead Sciences | C62: GILD | E62: BBB+ | F62: =VLOOKUP(E62,'Ordinal Ratings'!A$6:C$28,2,FALSE) -> 8 | H62: A3 | I62: =VLOOKUP(H62,'Ordinal Ratings'!I$6:K$25,2,FALSE) -> 7 | K62: 1 | M62: A | N62: =VLOOKUP(M62,'Ordinal Ratings'!E$6:G$15,2,FALSE) -> 3 | P62: 0.6 | R62: 108000 | T62: Mar. 31
A63: 21 | B63: Hershey Co. | C63: HSY | E63: A | F63: =VLOOKUP(E63,'Ordinal Ratings'!A$6:C$28,2,FALSE) -> 6 | H63: A1 | I63: =VLOOKUP(H63,'Ordinal Ratings'!I$6:K$25,2,FALSE) -> 5 | K63: 1 | M63: A+ | N63: =VLOOKUP(M63,'Ordinal Ratings'!E$6:G$15,2,FALSE) -> 2 | P63: 0.75 | R63: 47500 | T63: Jan. 13
A64: 22 | B64: Home Depot | C64: HD | E64: A | F64: =VLOOKUP(E64,'Ordinal Ratings'!A$6:C$28,2,FALSE) -> 6 | H64: A2 | I64: =VLOOKUP(H64,'Ordinal Ratings'!I$6:K$25,2,FALSE) -> 6 | K64: 1 | M64: A++ | N64: =VLOOKUP(M64,'Ordinal Ratings'!E$6:G$15,2,FALSE) -> 1 | P64: 0.95 | R64: 304000 | T64: Mar. 17
A65: 23 | B65: Hormel Foods | C65: HRL | E65: A- | F65: =VLOOKUP(E65,'Ordinal Ratings'!A$6:C$28,2,FALSE) -> 7 | H65: A1 | I65: =VLOOKUP(H65,'Ordinal Ratings'!I$6:K$25,2,FALSE) -> 5 | K65: 1 | M65: A+ | N65: =VLOOKUP(M65,'Ordinal Ratings'!E$6:G$15,2,FALSE) -> 2 | P65: 0.5 | R65: 24900 | T65: Jan. 13
A66: 24 | B66: Intercontinental Exch. | C66: ICE | E66: A- | F66: =VLOOKUP(E66,'Ordinal Ratings'!A$6:C$28,2,FALSE) -> 7 | H66: A3 | I66: =VLOOKUP(H66,'Ordinal Ratings'!I$6:K$25,2,FALSE) -> 7 | K66: 1 | M66: A | N66: =VLOOKUP(M66,'Ordinal Ratings'!E$6:G$15,2,FALSE) -> 3 | P66: 0.95 | R66: 57400 | T66: Jan. 6
A67: 25 | B67: Johnson & Johnson | C67: JNJ | E67: AAA | F67: =VLOOKUP(E67,'Ordinal Ratings'!A$6:C$28,2,FALSE) -> 1 | H67: Aaa | I67: =VLOOKUP(H67,'Ordinal Ratings'!I$6:K$25,2,FALSE) -> 1 | K67: 1 | M67: A++ | N67: =VLOOKUP(M67,'Ordinal Ratings'!E$6:G$15,2,FALSE) -> 1 | P67: 0.8 | R67: 424000 | T67: Feb. 10
A68: 26 | B68: Kimberly-Clark | C68: KMB | E68: A | F68: =VLOOKUP(E68,'Ordinal Ratings'!A$6:C$28,2,FALSE) -> 6 | H68: A2 | I68: =VLOOKUP(H68,'Ordinal Ratings'!I$6:K$25,2,FALSE) -> 6 | K68: 1 | M68: A | N68: =VLOOKUP(M68,'Ordinal Ratings'!E$6:G$15,2,FALSE) -> 3 | P68: 0.7 | R68: 42600 | T68: Mar. 17
A69: 27 | B69: Lilly (Eli) | C69: LLY | E69: A+ | F69: =VLOOKUP(E69,'Ordinal Ratings'!A$6:C$28,2,FALSE) -> 5 | H69: A2 | I69: =VLOOKUP(H69,'Ordinal Ratings'!I$6:K$25,2,FALSE) -> 6 | K69: 1 | M69: A++ | N69: =VLOOKUP(M69,'Ordinal Ratings'!E$6:G$15,2,FALSE) -> 1 | P69: 0.75 | R69: 317000 | T69: Mar. 31
A70: 28 | B70: Lockheed Martin | C70: LMT | E70: A- | F70: =VLOOKUP(E70,'Ordinal Ratings'!A$6:C$28,2,FALSE) -> 7 | H70: A3 | I70: =VLOOKUP(H70,'Ordinal Ratings'!I$6:K$25,2,FALSE) -> 7 | K70: 1 | M70: A++ | N70: =VLOOKUP(M70,'Ordinal Ratings'!E$6:G$15,2,FALSE) -> 1 | P70: 0.9 | R70: 121000 | T70: Mar. 3
A71: 29 | B71: Marsh & McLennan | C71: MMC | E71: A- | F71: =VLOOKUP(E71,'Ordinal Ratings'!A$6:C$28,2,FALSE) -> 7 | H71: Baa1 | I71: =VLOOKUP(H71,'Ordinal Ratings'!I$6:K$25,2,FALSE) -> 8 | K71: 1 | M71: A+ | N71: =VLOOKUP(M71,'Ordinal Ratings'!E$6:G$15,2,FALSE) -> 2 | P71: 0.95 | R71: 86100 | T71: Feb. 3
A72: 30 | B72: McCormick & Co. | C72: MKC | E72: BBB | F72: =VLOOKUP(E72,'Ordinal Ratings'!A$6:C$28,2,FALSE) -> 9 | H72: Baa2 | I72: =VLOOKUP(H72,'Ordinal Ratings'!I$6:K$25,2,FALSE) -> 9 | K72: 1 | M72: A+ | N72: =VLOOKUP(M72,'Ordinal Ratings'!E$6:G$15,2,FALSE) -> 2 | P72: 0.8 | R72: 22200 | T72: Jan. 13
A73: 31 | B73: McDonald's Corp. | C73: MCD | E73: BBB+ | F73: =VLOOKUP(E73,'Ordinal Ratings'!A$6:C$28,2,FALSE) -> 8 | H73: Baa1 | I73: =VLOOKUP(H73,'Ordinal Ratings'!I$6:K$25,2,FALSE) -> 8 | K73: 1 | M73: A++ | N73: =VLOOKUP(M73,'Ordinal Ratings'!E$6:G$15,2,FALSE) -> 1 | P73: 0.9 | R73: 197000 | T73: Feb. 17
A74: 32 | B74: McKesson Corp. | C74: MCK | E74: BBB+ | F74: =VLOOKUP(E74,'Ordinal Ratings'!A$6:C$28,2,FALSE) -> 8 | H74: Baa1 | I74: =VLOOKUP(H74,'Ordinal Ratings'!I$6:K$25,2,FALSE) -> 8 | K74: 1 | M74: A++ | N74: =VLOOKUP(M74,'Ordinal Ratings'!E$6:G$15,2,FALSE) -> 1 | P74: 0.9 | R74: 56000 | T74: Feb. 10
A75: 33 | B75: Merck & Co. | C75: MRK | E75: A+ | F75: =VLOOKUP(E75,'Ordinal Ratings'!A$6:C$28,2,FALSE) -> 5 | H75: A1 | I75: =VLOOKUP(H75,'Ordinal Ratings'!I$6:K$25,2,FALSE) -> 5 | K75: 1 | M75: A++ | N75: =VLOOKUP(M75,'Ordinal Ratings'!E$6:G$15,2,FALSE) -> 1 | P75: 0.75 | R75: 269000 | T75: Mar. 31
A76: 34 | B76: Microsoft Corp. | C76: MSFT | E76: AAA | F76: =VLOOKUP(E76,'Ordinal Ratings'!A$6:C$28,2,FALSE) -> 1 | H76: Aaa | I76: =VLOOKUP(H76,'Ordinal Ratings'!I$6:K$25,2,FALSE) -> 1 | K76: 1 | M76: A++ | N76: =VLOOKUP(M76,'Ordinal Ratings'!E$6:G$15,2,FALSE) -> 1 | P76: 0.9 | R76: 1806000 | T76: Feb. 3
A77: 35 | B77: Mondelez Int'l | C77: MDLZ | E77: BBB | F77: =VLOOKUP(E77,'Ordinal Ratings'!A$6:C$28,2,FALSE) -> 9 | H77: Baa1 | I77: =VLOOKUP(H77,'Ordinal Ratings'!I$6:K$25,2,FALSE) -> 8 | K77: 1 | M77: A+ | N77: =VLOOKUP(M77,'Ordinal Ratings'!E$6:G$15,2,FALSE) -> 2 | P77: 0.85 | R77: 91000 | T77: Jan. 13
A78: 36 | B78: NewMarket Corp. | C78: NEU | E78: BBB+ | F78: =VLOOKUP(E78,'Ordinal Ratings'!A$6:C$28,2,FALSE) -> 8 | H78: Baa2 | I78: =VLOOKUP(H78,'Ordinal Ratings'!I$6:K$25,2,FALSE) -> 9 | K78: 1 | M78: A | N78: =VLOOKUP(M78,'Ordinal Ratings'!E$6:G$15,2,FALSE) -> 3 | P78: 0.75 | R78: 3400 | T78: Feb. 24
A79: 37 | B79: Northrop Grumman | C79: NOC | E79: BBB+ | F79: =VLOOKUP(E79,'Ordinal Ratings'!A$6:C$28,2,FALSE) -> 8 | H79: Baa1 | I79: =VLOOKUP(H79,'Ordinal Ratings'!I$6:K$25,2,FALSE) -> 8 | K79: 1 | M79: A++ | N79: =VLOOKUP(M79,'Ordinal Ratings'!E$6:G$15,2,FALSE) -> 1 | P79: 0.75 | R79: 72000 | T79: Mar. 3
A80: 38 | B80: Oracle Corp. | C80: ORCL | E80: BBB | F80: =VLOOKUP(E80,'Ordinal Ratings'!A$6:C$28,2,FALSE) -> 9 | H80: Baa2 | I80: =VLOOKUP(H80,'Ordinal Ratings'!I$6:K$25,2,FALSE) -> 9 | K80: 1 | M80: A++ | N80: =VLOOKUP(M80,'Ordinal Ratings'!E$6:G$15,2,FALSE) -> 1 | P80: 0.85 | R80: 240000 | T80: Feb. 3
A81: 39 | B81: PepsiCo, Inc. | C81: PEP | E81: A+ | F81: =VLOOKUP(E81,'Ordinal Ratings'!A$6:C$28,2,FALSE) -> 5 | H81: A1 | I81: =VLOOKUP(H81,'Ordinal Ratings'!I$6:K$25,2,FALSE) -> 5 | K81: 1 | M81: A++ | N81: =VLOOKUP(M81,'Ordinal Ratings'!E$6:G$15,2,FALSE) -> 1 | P81: 0.75 | R81: 249000 | T81: Jan. 13
A82: 40 | B82: Pfizer, Inc. | C82: PFE | E82: A+ | F82: =VLOOKUP(E82,'Ordinal Ratings'!A$6:C$28,2,FALSE) -> 5 | H82: A1 | I82: =VLOOKUP(H82,'Ordinal Ratings'!I$6:K$25,2,FALSE) -> 5 | K82: 1 | M82: A++ | N82: =VLOOKUP(M82,'Ordinal Ratings'!E$6:G$15,2,FALSE) -> 1 | P82: 0.8 | R82: 229000 | T82: Mar. 31
A83: 41 | B83: Procter & Gamble | C83: PG | E83: AA- | F83: =VLOOKUP(E83,'Ordinal Ratings'!A$6:C$28,2,FALSE) -> 4 | H83: Aa3 | I83: =VLOOKUP(H83,'Ordinal Ratings'!I$6:K$25,2,FALSE) -> 4 | K83: 1 | M83: A++ | N83: =VLOOKUP(M83,'Ordinal Ratings'!E$6:G$15,2,FALSE) -> 1 | P83: 0.7 | R83: 331000 | T83: Mar. 17
A84: 42 | B84: Progressive Corp. | C84: PGR | E84: A | F84: =VLOOKUP(E84,'Ordinal Ratings'!A$6:C$28,2,FALSE) -> 6 | H84: A2 | I84: =VLOOKUP(H84,'Ordinal Ratings'!I$6:K$25,2,FALSE) -> 6 | K84: 1 | M84: A | N84: =VLOOKUP(M84,'Ordinal Ratings'!E$6:G$15,2,FALSE) -> 3 | P84: 0.75 | R84: 76000 | T84: Mar. 3
A85: 43 | B85: Republic Services | C85: RSG | E85: BBB+ | F85: =VLOOKUP(E85,'Ordinal Ratings'!A$6:C$28,2,FALSE) -> 8 | H85: Baa2 | I85: =VLOOKUP(H85,'Ordinal Ratings'!I$6:K$25,2,FALSE) -> 9 | K85: 1 | M85: A | N85: =VLOOKUP(M85,'Ordinal Ratings'!E$6:G$15,2,FALSE) -> 3 | P85: 0.85 | R85: 39100 | T85: Feb. 17
A86: 44 | B86: Sherwin-Williams | C86: SHW | E86: BBB | F86: =VLOOKUP(E86,'Ordinal Ratings'!A$6:C$28,2,FALSE) -> 9 | H86: Baa2 | I86: =VLOOKUP(H86,'Ordinal Ratings'!I$6:K$25,2,FALSE) -> 9 | K86: 1 | M86: A+ | N86: =VLOOKUP(M86,'Ordinal Ratings'!E$6:G$15,2,FALSE) -> 2 | P86: 0.95 | R86: 58000 | T86: Mar. 17
A87: 45 | B87: Smucker (J.M.) | C87: SJM | E87: BBB | F87: =VLOOKUP(E87,'Ordinal Ratings'!A$6:C$28,2,FALSE) -> 9 | H87: Baa2 | I87: =VLOOKUP(H87,'Ordinal Ratings'!I$6:K$25,2,FALSE) -> 9 | K87: 1 | M87: A+ | N87: =VLOOKUP(M87,'Ordinal Ratings'!E$6:G$15,2,FALSE) -> 2 | P87: 0.6 | R87: 16900 | T87: Jan. 13
A88: 46 | B88: Texas Instruments | C88: TXN | E88: A+ | F88: =VLOOKUP(E88,'Ordinal Ratings'!A$6:C$28,2,FALSE) -> 5 | H88: Aa3 | I88: =VLOOKUP(H88,'Ordinal Ratings'!I$6:K$25,2,FALSE) -> 4 | K88: 1 | M88: A++ | N88: =VLOOKUP(M88,'Ordinal Ratings'!E$6:G$15,2,FALSE) -> 1 | P88: 0.9 | R88: 158000 | T88: Mar. 24
A89: 47 | B89: Thermo Fisher Sci. | C89: TMO | E89: A- | F89: =VLOOKUP(E89,'Ordinal Ratings'!A$6:C$28,2,FALSE) -> 7 | H89: A3 | I89: =VLOOKUP(H89,'Ordinal Ratings'!I$6:K$25,2,FALSE) -> 7 | K89: 1 | M89: A | N89: =VLOOKUP(M89,'Ordinal Ratings'!E$6:G$15,2,FALSE) -> 3 | P89: 0.9 | R89: 221000 | T89: Feb. 10
A90: 48 | B90: Travelers Cos. | C90: TRV | E90: A | F90: =VLOOKUP(E90,'Ordinal Ratings'!A$6:C$28,2,FALSE) -> 6 | H90: A2 | I90: =VLOOKUP(H90,'Ordinal Ratings'!I$6:K$25,2,FALSE) -> 6 | K90: 1 | M90: A++ | N90: =VLOOKUP(M90,'Ordinal Ratings'!E$6:G$15,2,FALSE) -> 1 | P90: 0.95 | R90: 43500 | T90: Mar. 3
A91: 49 | B91: Verizon Communic. | C91: VZ | E91: BBB+ | F91: =VLOOKUP(E91,'Ordinal Ratings'!A$6:C$28,2,FALSE) -> 8 | H91: Baa1 | I91: =VLOOKUP(H91,'Ordinal Ratings'!I$6:K$25,2,FALSE) -> 8 | K91: 1 | M91: A++ | N91: =VLOOKUP(M91,'Ordinal Ratings'!E$6:G$15,2,FALSE) -> 1 | P91: 0.6 | R91: 163000 | T91: Mar. 10
A92: 50 | B92: Walmart Inc. | C92: WMT | E92: AA | F92: =VLOOKUP(E92,'Ordinal Ratings'!A$6:C$28,2,FALSE) -> 3 | H92: Aa2 | I92: =VLOOKUP(H92,'Ordinal Ratings'!I$6:K$25,2,FALSE) -> 3 | K92: 1 | M92: A++ | N92: =VLOOKUP(M92,'Ordinal Ratings'!E$6:G$15,2,FALSE) -> 1 | P92: 0.6 | R92: 391000 | T92: Jan. 20
A93: 51 | B93: Waste Management | C93: WM | E93: A- | F93: =VLOOKUP(E93,'Ordinal Ratings'!A$6:C$28,2,FALSE) -> 7 | H93: Baa1 | I93: =VLOOKUP(H93,'Ordinal Ratings'!I$6:K$25,2,FALSE) -> 8 | K93: 1 | M93: A | N93: =VLOOKUP(M93,'Ordinal Ratings'!E$6:G$15,2,FALSE) -> 3 | P93: 0.8 | R93: 62300 | T93: Feb. 17
A94: =A93+1 -> 52
B95: Average | E95: =VLOOKUP(F95,'Ordinal Ratings'!$B$6:$C$26,2,FALSE) -> A- | F95: =ROUND(AVERAGE(F43:F93),0) -> 7 | H95: =VLOOKUP(I95,'Ordinal Ratings'!$J$6:$K$26,2,FALSE) -> A2 | I95: =ROUND(AVERAGE(I43:I93),0) -> 6 | K95: =AVERAGE(K43:K93) -> 1 | M95: =VLOOKUP(N95,'Ordinal Ratings'!$F$6:$G$26,2,FALSE) -> A+ | N95: =ROUND(AVERAGE(N43:N93),0) -> 2 | P95: =AVERAGE(P44:P93) -> 0.803 | R95: =AVERAGE(R43:R93) -> 162831.3725
A98: (a) | B98: Corporate credit rating from www.standardandpoors.com (retrieved Mar. 28, 2023).
A99: (b) | B99: Long-term rating from www.moodys.com (retrieved Mar. 28, 2023).
A100: (c) | B100: The Value Line Investment Survey (various editions as of Mar. 31, 2023).
A101: (d) | B101: The Value Line Investment Survey, Summary & Index (Mar. 31, 2023).
E107: Industrial | H107: Total
A108: Emera
B109: Tampa Elec. | E109: 176 | H109: 2523
B110: NSPI | E110: 353 | H110: 1642
E111: =E109+E110 -> 529 | H111: =H109+H110 -> 4165

Sheet Stock Price (Utility)
C1: 1 | D1: 2 | E1: 3 | F1: 4 | G1: 5 | H1: 6 | I1: 7 | J1: 8 | K1: 9 | L1: 10 | M1: 11 | N1: 12 | O1: 13 | P1: 14 | Q1: 15 | R1: 16 | S1: 17 | T1: 18 | U1: 19 | V1: 20 | W1: 21 | X1: 22 | Y1: 23 | Z1: 24 | AA1: 25 | AB1: 26 | AC1: 27 | AD1: 28 | AE1: 29 | AF1: 30 | AG1: 31 | AH1: 32 | AI1: 33 | AJ1: 34 | AK1: 35 | AL1: 36 | AM1: 37
B2: Date | C2: =TRANSPOSE('Electric Utility Data'!B8:B44) -> AQN | D2: ALE | E2: LNT | F2: AEE | G2: AEP | H2: AGR | I2: AVA | J2: BKH | K2: CNP | L2: CMS | M2: ED | N2: D | O2: DTE | P2: DUK | Q2: EIX | R2: EMA | S2: ETR | T2: EVRG | U2: ES | V2: EXC | W2: FE | X2: FTS | Y2: HE | Z2: IDA | AA2: NEE | AB2: NWE | AC2: OGE | AD2: OTTR | AE2: PNW | AF2: PNM | AG2: POR | AH2: PPL | AI2: PEG | AJ2: SRE | AK2: SO | AL2: WEC | AM2: XEL
A3: =A2+1 -> 1 | B3: 2023-03-29 | C3: 8.25 | D3: 63.9 | E3: 52.82 | F3: 86.01 | G3: 90.1 | H3: 39.5 | I3: 42.13 | J3: 62.96 | K3: 29.3 | L3: 61.17 | M3: 95.11 | N3: 55.58 | O3: 107.94 | P3: 96.27 | Q3: 69.8 | R3: 55.59 | S3: 106.16 | T3: 60.13 | U3: 77.55 | V3: 41.15 | W3: 39.29 | X3: 57.099998 | Y3: 38.04 | Z3: 107.42 | AA3: 76.11 | AB3: 57.05 | AC3: 36.99 | AD3: 71.57 | AE3: 78.45 | AF3: 48.58 | AG3: 48.08 | AH3: 27.53 | AI3: 61.34 | AJ3: 148.45 | AK3: 69.34 | AL3: 94.34 | AM3: 66.54
A4: 2 | B4: 2023-03-28 | C4: 8.01 | D4: 63.4 | E4: 51.97 | F4: 84.57 | G4: 88.93 | H4: 38.93 | I4: 41.56 | J4: 61.95 | K4: 28.67 | L4: 60.43 | M4: 94.39 | N4: 54.72 | O4: 106.25 | P4: 94.75 | Q4: 68.7 | R4: 55.169998 | S4: 105.08 | T4: 59.24 | U4: 76.18 | V4: 40.82 | W4: 38.62 | X4: 56.860001 | Y4: 37.83 | Z4: 106.16 | AA4: 75.24 | AB4: 56.42 | AC4: 36.2 | AD4: 71.2 | AE4: 77.57 | AF4: 48.61 | AG4: 47.67 | AH4: 27.09 | AI4: 59.88 | AJ4: 145.45 | AK4: 68.39 | AL4: 93.22 | AM4: 65.4
A5: 3 | B5: 2023-03-27 | C5: 8.04 | D5: 63.33 | E5: 51.32 | F5: 83.99 | G5: 88.55 | H5: 38.8 | I5: 41.58 | J5: 61.33 | K5: 28.5 | L5: 60.04 | M5: 94.57 | N5: 54.13 | O5: 105.69 | P5: 94.69 | Q5: 68.53 | R5: 55.459999 | S5: 104.51 | T5: 59.12 | U5: 75.86 | V5: 40.52 | W5: 39.03 | X5: 56.75 | Y5: 37.53 | Z5: 105.59 | AA5: 75.44 | AB5: 55.83 | AC5: 35.81 | AD5: 71.48 | AE5: 77.28 | AF5: 48.64 | AG5: 47.26 | AH5: 26.96 | AI5: 59.22 | AJ5: 144.32 | AK5: 68.24 | AL5: 92.8 | AM5: 65.29
A6: 4 | B6: 2023-03-24 | C6: 8.02 | D6: 63.3 | E6: 51.83 | F6: 84.04 | G6: 89.09 | H6: 38.73 | I6: 41.13 | J6: 60.97 | K6: 28.34 | L6: 60.43 | M6: 95.07 | N6: 53.83 | O6: 106.75 | P6: 94.37 | Q6: 68.38 | R6: 54.700001 | S6: 103.69 | T6: 59.45 | U6: 75.73 | V6: 40.24 | W6: 39.17 | X6: 56.16 | Y6: 36.97 | Z6: 105.66 | AA6: 75.69 | AB6: 55.17 | AC6: 35.67 | AD6: 70.26 | AE6: 77.22 | AF6: 48.63 | AG6: 47.14 | AH6: 26.78 | AI6: 58.78 | AJ6: 142.78 | AK6: 68.59 | AL6: 93.22 | AM6: 65.55
A7: 5 | B7: 2023-03-23 | C7: 7.77 | D7: 60.78 | E7: 50.04 | F7: 80.61 | G7: 85.41 | H7: 37.53 | I7: 39.76 | J7: 59.04 | K7: 27.32 | L7: 57.96 | M7: 91.73 | N7: 52.22 | O7: 102.66 | P7: 91.55 | Q7: 66.04 | R7: 53.130001 | S7: 100.35 | T7: 57.15 | U7: 73.25 | V7: 39.2 | W7: 37.75 | X7: 54.52 | Y7: 36.12 | Z7: 101.81 | AA7: 73.81 | AB7: 53.5 | AC7: 34.46 | AD7: 68.56 | AE7: 74.1 | AF7: 48.46 | AG7: 45.4 | AH7: 25.91 | AI7: 56.74 | AJ7: 139.69 | AK7: 66.34 | AL7: 89.93 | AM7: 63.31
A8: 6 | B8: 2023-03-22 | C8: 7.8 | D8: 60.49 | E8: 50.65 | F8: 81.81 | G8: 86.85 | H8: 37.88 | I8: 40.39 | J8: 60.01 | K8: 27.65 | L8: 58.71 | M8: 92.1 | N8: 53.21 | O8: 103.98 | P8: 92.95 | Q8: 66.31 | R8: 53.639999 | S8: 100.43 | T8: 57.55 | U8: 73.52 | V8: 39.68 | W8: 38.36 | X8: 55.41 | Y8: 36.77 | Z8: 102.61 | AA8: 74.13 | AB8: 54.9 | AC8: 35.14 | AD8: 68.62 | AE8: 75.34 | AF8: 48.68 | AG8: 46.18 | AH8: 26.26 | AI8: 57.13 | AJ8: 142 | AK8: 66.71 | AL8: 90.63 | AM8: 64.15
A9: 7 | B9: 2023-03-21 | C9: 7.85 | D9: 62.71 | E9: 52.01 | F9: 83.74 | G9: 88.9 | H9: 38.79 | I9: 40.98 | J9: 61.29 | K9: 28.24 | L9: 59.95 | M9: 93.19 | N9: 54.09 | O9: 106.29 | P9: 94.77 | Q9: 67.81 | R9: 54.009998 | S9: 103.15 | T9: 58.95 | U9: 74.92 | V9: 40.68 | W9: 39.38 | X9: 55.990002 | Y9: 37.96 | Z9: 105.01 | AA9: 75.36 | AB9: 56.01 | AC9: 36.03 | AD9: 70.4 | AE9: 77.4 | AF9: 48.94 | AG9: 47.3 | AH9: 26.78 | AI9: 58.53 | AJ9: 145.59 | AK9: 67.13 | AL9: 91.91 | AM9: 65.5
